Workbook

Sheet START
F11: =INDIRECT("START!I25") -> START | I11: =INDIRECT("START!K25") -> Описание методологии финмодели
I13: лист | K13: описание листа/столбца/строки/ячейки/блока ячеек
D14: =INDIRECT("Cntrl!M17") -> 0 | E14: =SUM($F14:$PL14) -> 0 | F14: =IFERROR(_xlfn.SHEET($A$1)-SUMIFS(Cntrl!O$15:O$100000,Cntrl!I$15:I$100000,$F$11),1) -> 0
A15: =ROW() -> 15 | I15: разработка финмоделей: https://mngmnt.ru/
A16: =ROW() -> 16 | H16: ФИНАНСОВАЯ МОДЕЛЬ
A17: =ROW() -> 17
A18: =ROW() -> 18
A19: =ROW() -> 19 | H19: СЕТЬ САЛОНОВ ОПТИКИ
A20: =ROW() -> 20
A21: =ROW() -> 21
A22: =ROW() -> 22
A23: =ROW() -> 23 | H23: Методология. Список и предназначение листов настоящей финансовой модели
A24: =ROW() -> 24
A25: =ROW() -> 25 | I25: START | K25: Описание методологии финмодели
A26: =ROW() -> 26 | I26: Cntrl | K26: Общий контроль финансовой модели
A27: =ROW() -> 27 | I27: Periods | K27: Периоды и горизонты моделирования фактических и прогнозных данных
A28: =ROW() -> 28 | I28: Lists | K28: Выпадающие списки финансовой модели
A29: =ROW() -> 29 | I29: Macro | K29: Макропоказатели внешней среды
A30: =ROW() -> 30 | I30: Items | K30: Справочники статей доходов и расходов и т.д.
A31: =ROW() -> 31 | I31: KPI | K31: Справочники ключевых показателей эффективности
A32: =ROW() -> 32 | I32: Mrkting | K32: Маркетинг. Параметры рынков сбыта и каналов привлечения клиентов
A33: =ROW() -> 33 | I33: CapEx | K33: Календарный план-график капитальных затрат
A34: =ROW() -> 34 | I34: Sales | K34: Параметры бюджета продаж
A35: =ROW() -> 35 | I35: Prdction | K35: Технологическая карта производственного процесса
A36: =ROW() -> 36 | I36: HR | K36: Штатное расписание
A37: =ROW() -> 37 | I37: Exp | K37: Прочие расходы бизнес-проекта
A38: =ROW() -> 38 | I38: Credits | K38: Источники финансирования и их условия
A39: =ROW() -> 39 | I39: PL | K39: Итоговый отчет о прибылях и убытках
A40: =ROW() -> 40 | I40: CF | K40: Итоговый отчет о движении денежных средств
A41: =ROW() -> 41 | I41: BS | K41: Итоговый баланс
A42: =ROW() -> 42 | I42: MAIN | K42: Ключевые параметры управления и результаты финансовой модели
A43: =ROW() -> 43 | I43: PLd | K43: Детализированный отчет о прибылях и убытках
A44: =ROW() -> 44 | I44: CFd | K44: Детализированный отчет о движении денежных средств
A45: =ROW() -> 45 | I45: BSd | K45: Детализированный баланс
A46: =ROW() -> 46 | I46: Sens | K46: Анализ чувствительности финмодели
A47: =ROW() -> 47 | I47: UnitEc | K47: Расчет юнит-экономики бизнес-проекта
A48: =ROW() -> 48 | I48: CFind | K48: Анализ финансового потока косвенным методом
A49: =ROW() -> 49 | I49: FinEcAn | K49: Финансово-экономический анализ проекта
A50: =ROW() -> 50 | I50: InvAn | K50: Инвестиционный анализ проекта
A51: =ROW() -> 51 | I51: EBITDA | K51: Анализ собственной операционной деят-сти. Точки безубыточности
A52: =ROW() -> 52 | I52: Rep | K52: Укрупненное формирование всей отчетности финмодели
A53: =ROW() -> 53 | I53: Repd | K53: Детализированное формирование всей отчетности финмодели
A54: =ROW() -> 54 | I54: Calc | K54: Функционал финансовой модели. Все расчеты
A55: =ROW() -> 55 | I55: Fact | K55: Учет фактических операций
A56: =ROW() -> 56 | I56: 1S | K56: Выгрузки из 1С карточек с оборотами по счетам бухучета
A57: =ROW() -> 57 | I57: Rules | K57: Правила сопоставления статей для выгрузок из 1С
A58: =ROW() -> 58 | I58: Res1 | K58: Резервная вкладка 1
A59: =ROW() -> 59 | I59: Res2 | K59: Резервная вкладка 2
A60: =ROW() -> 60 | I60: Res3 | K60: Резервная вкладка 3
A61: =ROW() -> 61 | I61: Res4 | K61: Резервная вкладка 4
A62: =ROW() -> 62 | I62: Res5 | K62: Резервная вкладка 5
A63: =ROW() -> 63
A64: =ROW() -> 64 | H64: Обозначение ячеек для задания исходных данных
A65: =ROW() -> 65
A66: =ROW() -> 66 | H66: * | K66: Ячейки для задания исходных данных финмодели вручную
A67: =ROW() -> 67
A68: =ROW() -> 68 | H68: * | J68: ^ | K68: Ячейки для задания исходных данных финмодели из выпадающих списков вкладки "Lists"
A69: =ROW() -> 69
A70: =ROW() -> 70 | H70: Ячейка F11 | K70: Для каждого листа в этой ячейке отображается название (ярлычка) листа
A71: =ROW() -> 71
A72: =ROW() -> 72 | H72: Ячейка I11 | K72: Для каждого листа в этой ячейке отображается заголовок листа
A73: =ROW() -> 73
A74: =ROW() -> 74 | H74: Ячейка E14 | K74: Для каждого листа в этой ячейке суммируются все контроли листа по 14-той строке
A75: =ROW() -> 75
A76: =ROW() -> 76 | H76: Ячейка D14 | K76: Для каждого листа в этой ячейке отображается общий контроль финмодели из листа "Cntrl"
A77: =ROW() -> 77
A78: =ROW() -> 78 | H78: Ячейка F14 | K78: Для каждого листа в этой ячейке проверяется соответствие названия листа их списку из "START"
A79: =ROW() -> 79
A80: =ROW() -> 80 | H80: Строка 13 | K80: Для каждого листа в этой строке отображаются заголовки столбцов
A81: =ROW() -> 81
A82: =ROW() -> 82 | I82: =$I$26 -> Cntrl | K82: =$K$26 -> Общий контроль финансовой модели
A83: =ROW() -> 83
A84: =ROW() -> 84 | I84: столбец M | K84: Со строки 19 здесь подтягиваются контроли всех листов из ячеек E14
A85: =ROW() -> 85
A86: =ROW() -> 86 | I86: M17 | K86: Общий контроль финмодели - сумма всех контрлей листов в столбце M
A87: =ROW() -> 87
A88: =ROW() -> 88 | I88: столбец O | K88: Со строки 19 здесь рассчитываются порядковые номера ярлычков листов в нижней панели
A89: =ROW() -> 89
A90: =ROW() -> 90 | I90: столбец Q | K90: Со строки 19 здесь из выпадающего списка пользователь выбирает тип листов
A91: =ROW() -> 91
A92: =ROW() -> 92 | I92: столбец S | K92: Со строки 19 здесь проверяется наличие значений из столбца Q в списке столбца U листа "Lists"
A93: =ROW() -> 93
A94: =ROW() -> 94 | I94: столбец G | K94: Со строки 19 здесь проверяется наличие названия из столбца H в заголовках списков листа "Lists"
A95: =ROW() -> 95
A96: =ROW() -> 96 | I96: =$I$27 -> Periods | K96: =$K$27 -> Периоды и горизонты моделирования фактических и прогнозных данных
A97: =ROW() -> 97
A98: =ROW() -> 98 | I98: Q16 | K98: Пользователь задает, выбирая из выпадающего списка, минимальный период шкалы времени
A99: =ROW() -> 99
A100: =ROW() -> 100 | I100: Q17 | K100: Пользователь задает вручную дату, с которой начинаются расчеты моделирования - старт
A101: =ROW() -> 101
A102: =ROW() -> 102 | I102: Q18 | K102: Пользователь задает вручную (от 1 до 400) количество периодов в шкале расчетов - горизонт
A103: =ROW() -> 103
A104: =ROW() -> 104 | I104: строки 20,21 | K104: По данным из ячеек Q16,Q17,Q18 рассчитываются даты начала и окончания периодов шкалы расчетов
A105: =ROW() -> 105
A106: =ROW() -> 106 | I106: строка 22 | K106: Формируются названия периодов шкалы расчетов
A107: =ROW() -> 107
A108: =ROW() -> 108 | I108: Q25 | K108: Пользователь указывает на необходимость отражения фактически проведенных операций
A109: =ROW() -> 109
A110: =ROW() -> 110 | I110: Q26 | K110: В случае выбора "да" в ячейке Q25, пользователь выбирает вариант задания фактического периода
A111: =ROW() -> 111
A112: =ROW() -> 112 | I112: Q30 | K112: Если в ячейках Q25 и Q26 "да", то здесь отображается текущая дата - окончание фактического периода
A113: =ROW() -> 113
A114: =ROW() -> 114 | I114: Q31 | K114: Если в ячейке Q25 "да" и в Q26 "нет", то здесь вручную задаем дату окончания фактического периода
A115: =ROW() -> 115
A116: =ROW() -> 116 | I116: строки 28,29 | K116: По данным из ячеек Q25,Q26,Q30,Q31 рассчитываются даты начала и окончания фактических периодов
A117: =ROW() -> 117
A118: =ROW() -> 118 | I118: Q33 | K118: Пользователь задает, выбирая из выпадающего списка, период шкалы времени для отчетности
A119: =ROW() -> 119
A120: =ROW() -> 120 | I120: строки 35,36 | K120: Рассчитываются даты начала и окончания периодов шкалы отчетности
A121: =ROW() -> 121
A122: =ROW() -> 122 | I122: строка 37 | K122: Формируются названия периодов шкалы отчетности
A123: =ROW() -> 123
A124: =ROW() -> 124 | I124: Q12 | K124: Отображается тип листа
A125: =ROW() -> 125
A126: =ROW() -> 126 | I126: строки 11,12 | K126: В зависимости от типа листа отображаются соответствующие даты начала и окончания периодов
A127: =ROW() -> 127
A128: =ROW() -> 128 | I128: строки 1-10 | K128: Строки носят технический характер, в них рассчитываются следующие параметры:
A129: =ROW() -> 129
A130: =ROW() -> 130 | K130: номер столбца:
A131: =ROW() -> 131 | K131: номер периода модели:
A132: =ROW() -> 132 | K132: номер факт-периода:
A133: =ROW() -> 133 | K133: номер план-периода:
A134: =ROW() -> 134 | K134: число даты начала:
A135: =ROW() -> 135 | K135: номер месяца даты начала:
A136: =ROW() -> 136 | K136: год даты начала:
A137: =ROW() -> 137 | K137: число даты окончания:
A138: =ROW() -> 138 | K138: номер месяца даты окончания:
A139: =ROW() -> 139 | K139: год даты окончания:
A140: =ROW() -> 140
A141: =ROW() -> 141 | I141: столбцы G,S | K141: Производится контроль за корректностью работы выпадающих списков
A142: =ROW() -> 142
A143: =ROW() -> 143 | I143: Lists | K143: Выпадающие списки финансовой модели
A144: =ROW() -> 144
A145: =ROW() -> 145 | I145: строка 1 | K145: Для технических нужд отображаются номера столбцов, в которых находятся выпадающие списки
A146: =ROW() -> 146
A147: =ROW() -> 147 | I147: строка 2 | K147: Для технических нужд отображаются названия столбцов, в которых находятся выпадающие списки
A148: =ROW() -> 148
A149: =ROW() -> 149 | I149: строка 15 | K149: Для технических нужд рассчитываются адреса блоков ячеек с выпадающими списками
A150: =ROW() -> 150
A151: =ROW() -> 151 | I151: столбец Q | K151: Значения выпадающего списка зависят от значения ячейки Q16 листа "Periods" и столбца I
A152: =ROW() -> 152
A153: =ROW() -> 153 | I153: справа от списков | K153: В 1-ом столбце справа от вып.списков производится нумерация актуальных значений вып.списков
A154: =ROW() -> 154
A155: =ROW() -> 155 | I155: справа от списков | K155: Во 2-ом столбце справа от вып.списков производится контроль за неповторяемостью значений
A156: =ROW() -> 156
A157: =ROW() -> 157
A158: =ROW() -> 158
A159: =ROW() -> 159
A160: =ROW() -> 160
A161: =ROW() -> 161
A162: =ROW() -> 162
A163: =ROW() -> 163
A164: =ROW() -> 164
A165: =ROW() -> 165
A166: =ROW() -> 166
A167: =ROW() -> 167
A168: =ROW() -> 168
A169: =ROW() -> 169
A170: =ROW() -> 170
A171: =ROW() -> 171
A172: =ROW() -> 172
A173: =ROW() -> 173
A174: =ROW() -> 174
A175: =ROW() -> 175
A176: =ROW() -> 176

Sheet Cntrl
F11: Cntrl | I11: Общий контроль финансовой модели
I13: лист | K13: ячейка с контролем | M13: контроль | O13: номер листа | Q13: тип листа | V13: точность
D14: 0 | E14: 0 | F14: 0 | G14: 0 | S14: 0
A15: 15 | I15: разработка финмоделей: https://mngmnt.ru/
A16: 16
A17: 17 | G17: 0 | H17: Общий контроль | M17: 0
A18: 18
A19: 19 | G19: 0 | H19: тип листа | I19: START | K19: E14 | M19: 0 | O19: 1 | P19: * | Q19: технический | R19: ^ | S19: 0 | U19: * | V19: 0.0000000
A20: 20 | G20: 0 | H20: тип листа | I20: Cntrl | K20: E14 | M20: 0 | O20: 2 | P20: * | Q20: технический | R20: ^ | S20: 0 | U20: * | V20: 0.0000000
A21: 21 | G21: 0 | H21: тип листа | I21: Periods | K21: E14 | M21: 0 | O21: 3 | P21: * | Q21: расчетный | R21: ^ | S21: 0 | U21: * | V21: 0.0000000
A22: 22 | G22: 0 | H22: тип листа | I22: Lists | K22: E14 | M22: 0 | O22: 4 | P22: * | Q22: технический | R22: ^ | S22: 0 | U22: * | V22: 0.0000000
A23: 23 | G23: 0 | H23: тип листа | I23: Macro | K23: E14 | M23: 0 | O23: 5 | P23: * | Q23: расчетный | R23: ^ | S23: 0 | U23: * | V23: 0.0000000
A24: 24 | G24: 0 | H24: тип листа | I24: Items | K24: E14 | M24: 0 | O24: 6 | P24: * | Q24: технический | R24: ^ | S24: 0 | U24: * | V24: 0.0000000
A25: 25 | G25: 0 | H25: тип листа | I25: KPI | K25: E14 | M25: 0 | O25: 7 | P25: * | Q25: технический | R25: ^ | S25: 0 | U25: * | V25: 0.0000000
A26: 26 | G26: 0 | H26: тип листа | I26: Mrkting | K26: E14 | M26: 0 | O26: 8 | P26: * | Q26: расчетный | R26: ^ | S26: 0 | U26: * | V26: 0.0000100
A27: 27 | G27: 0 | H27: тип листа | I27: CapEx | K27: E14 | M27: 0 | O27: 9 | P27: * | Q27: расчетный | R27: ^ | S27: 0 | U27: * | V27: 0.0000100
A28: 28 | G28: 0 | H28: тип листа | I28: Sales | K28: E14 | M28: 0 | O28: 10 | P28: * | Q28: расчетный | R28: ^ | S28: 0 | U28: * | V28: 0.0000100
A29: 29 | G29: 0 | H29: тип листа | I29: Prdction | K29: E14 | M29: 0 | O29: 11 | P29: * | Q29: расчетный | R29: ^ | S29: 0 | U29: * | V29: 0.0000100
A30: 30 | G30: 0 | H30: тип листа | I30: HR | K30: E14 | M30: 0 | O30: 12 | P30: * | Q30: расчетный | R30: ^ | S30: 0 | U30: * | V30: 0.0000100
A31: 31 | G31: 0 | H31: тип листа | I31: Exp | K31: E14 | M31: 0 | O31: 13 | P31: * | Q31: расчетный | R31: ^ | S31: 0 | U31: * | V31: 0.0000100
A32: 32 | G32: 0 | H32: тип листа | I32: Credits | K32: E14 | M32: 0 | O32: 14 | P32: * | Q32: расчетный | R32: ^ | S32: 0 | U32: * | V32: 0.0000100
A33: 33 | G33: 0 | H33: тип листа | I33: PL | K33: E14 | M33: 0 | O33: 15 | P33: * | Q33: отчетный | R33: ^ | S33: 0 | U33: * | V33: 0.0000100
A34: 34 | G34: 0 | H34: тип листа | I34: CF | K34: E14 | M34: 0 | O34: 16 | P34: * | Q34: отчетный | R34: ^ | S34: 0 | U34: * | V34: 0.0000100
A35: 35 | G35: 0 | H35: тип листа | I35: BS | K35: E14 | M35: 0 | O35: 17 | P35: * | Q35: отчетный | R35: ^ | S35: 0 | U35: * | V35: 0.0000100
A36: 36 | G36: 0 | H36: тип листа | I36: MAIN | K36: E14 | M36: 0 | O36: 18 | P36: * | Q36: отчетный | R36: ^ | S36: 0 | U36: * | V36: 0.0000100
A37: 37 | G37: 0 | H37: тип листа | I37: PLd | K37: E14 | M37: 0 | O37: 19 | P37: * | Q37: расчетный | R37: ^ | S37: 0 | U37: * | V37: 0.0000100
A38: 38 | G38: 0 | H38: тип листа | I38: CFd | K38: E14 | M38: 0 | O38: 20 | P38: * | Q38: расчетный | R38: ^ | S38: 0 | U38: * | V38: 0.0000100
A39: 39 | G39: 0 | H39: тип листа | I39: BSd | K39: E14 | M39: 0 | O39: 21 | P39: * | Q39: расчетный | R39: ^ | S39: 0 | U39: * | V39: 0.0010000
A40: 40 | G40: 0 | H40: тип листа | I40: Sens | K40: E14 | M40: 0 | O40: 22 | P40: * | Q40: отчетный | R40: ^ | S40: 0 | U40: * | V40: 0.0000100
A41: 41 | G41: 0 | H41: тип листа | I41: UnitEc | K41: E14 | M41: 0 | O41: 23 | P41: * | Q41: отчетный | R41: ^ | S41: 0 | U41: * | V41: 0.0000100
A42: 42 | G42: 0 | H42: тип листа | I42: CFind | K42: E14 | M42: 0 | O42: 24 | P42: * | Q42: отчетный | R42: ^ | S42: 0 | U42: * | V42: 0.0000100
A43: 43 | G43: 0 | H43: тип листа | I43: FinEcAn | K43: E14 | M43: 0 | O43: 25 | P43: * | Q43: отчетный | R43: ^ | S43: 0 | U43: * | V43: 0.0000100
A44: 44 | G44: 0 | H44: тип листа | I44: InvAn | K44: E14 | M44: 0 | O44: 26 | P44: * | Q44: отчетный | R44: ^ | S44: 0 | U44: * | V44: 0.0000100
A45: 45 | G45: 0 | H45: тип листа | I45: EBITDA | K45: E14 | M45: 0 | O45: 27 | P45: * | Q45: отчетный | R45: ^ | S45: 0 | U45: * | V45: 0.0000100
A46: 46 | G46: 0 | H46: тип листа | I46: Rep | K46: E14 | M46: 0 | O46: 28 | P46: * | Q46: отчетный | R46: ^ | S46: 0 | U46: * | V46: 0.0000100
A47: 47 | G47: 0 | H47: тип листа | I47: Repd | K47: E14 | M47: 0 | O47: 29 | P47: * | Q47: расчетный | R47: ^ | S47: 0 | U47: * | V47: 0.0010000
A48: 48 | G48: 0 | H48: тип листа | I48: Calc | K48: E14 | M48: 0 | O48: 30 | P48: * | Q48: расчетный | R48: ^ | S48: 0 | U48: * | V48: 0.0010000
A49: 49 | G49: 0 | H49: тип листа | I49: Fact | K49: E14 | P49: * | Q49: расчетный | R49: ^ | S49: 0 | U49: * | V49: 0.0000000
A50: 50 | G50: 0 | H50: тип листа | I50: 1S | K50: E14 | P50: * | Q50: расчетный | R50: ^ | S50: 0 | U50: * | V50: 0.0000000
A51: 51 | G51: 0 | H51: тип листа | I51: Rules | K51: E14 | P51: * | Q51: расчетный | R51: ^ | S51: 0 | U51: * | V51: 0.0000000
A52: 52 | G52: 0 | H52: тип листа | I52: Res1 | K52: E14 | P52: * | Q52: расчетный | R52: ^ | S52: 0 | U52: * | V52: 0.0000000
A53: 53 | G53: 0 | H53: тип листа | I53: Res2 | K53: E14 | P53: * | Q53: расчетный | R53: ^ | S53: 0 | U53: * | V53: 0.0000000
A54: 54 | G54: 0 | H54: тип листа | I54: Res3 | K54: E14 | P54: * | Q54: расчетный | R54: ^ | S54: 0 | U54: * | V54: 0.0000000
A55: 55 | G55: 0 | H55: тип листа | I55: Res4 | K55: E14 | P55: * | Q55: расчетный | R55: ^ | S55: 0 | U55: * | V55: 0.0000000
A56: 56 | G56: 0 | H56: тип листа | I56: Res5 | K56: E14 | P56: * | Q56: расчетный | R56: ^ | S56: 0 | U56: * | V56: 0.0000000
A57: 57
A58: 58
A59: 59
A60: 60
A61: 61
A62: 62
A63: 63
A64: 64
A65: 65
A66: 66
A67: 67
A68: 68
A69: 69
A70: 70

Sheet Periods
Y1: номер столбца: | AA1: 27 | AB1: 28 | AC1: 29 | AD1: 30 | AE1: 31 | AF1: 32 | AG1: 33 | AH1: 34 | AI1: 35 | AJ1: 36 | AK1: 37 | AL1: 38 | AM1: 39 | AN1: 40 | AO1: 41 | AP1: 42 | AQ1: 43 | AR1: 44 | AS1: 45 | AT1: 46 | AU1: 47 | AV1: 48 | AW1: 49 | AX1: 50 | AY1: 51 | AZ1: 52 | BA1: 53 | BB1: 54 | BC1: 55 | BD1: 56 | BE1: 57 | BF1: 58 | BG1: 59 | BH1: 60 | BI1: 61 | BJ1: 62 | BK1: 63 | BL1: 64 | BM1: 65 | BN1: 66 | BO1: 67 | BP1: 68 | BQ1: 69 | BR1: 70 | BS1: 71 | BT1: 72 | BU1: 73 | BV1: 74 | BW1: 75 | BX1: 76 | BY1: 77 | BZ1: 78 | CA1: 79 | CB1: 80 | CC1: 81 | CD1: 82 | CE1: 83 | CF1: 84 | CG1: 85 | CH1: 86 | CI1: 87 | CJ1: 88 | CK1: 89 | CL1: 90 | CM1: 91 | CN1: 92 | CO1: 93 | CP1: 94 | CQ1: 95 | CR1: 96 | CS1: 97 | CT1: 98 | CU1: 99
Y2: номер периода модели: | AA2: 1 | AB2: 2 | AC2: 3 | AD2: 4 | AE2: 5 | AF2: 6 | AG2: 7 | AH2: 8 | AI2: 9 | AJ2: 10 | AK2: 11 | AL2: 12 | AM2: 13 | AN2: 14 | AO2: 15 | AP2: 16 | AQ2: 17 | AR2: 18 | AS2: 19 | AT2: 20 | AU2: 21 | AV2: 22 | AW2: 23 | AX2: 24 | AY2: 25 | AZ2: 26 | BA2: 27 | BB2: 28 | BC2: 29 | BD2: 30 | BE2: 31 | BF2: 32 | BG2: 33 | BH2: 34 | BI2: 35 | BJ2: 36 | BK2: 37 | BL2: 38 | BM2: 39 | BN2: 40 | BO2: 41 | BP2: 42 | BQ2: 43 | BR2: 44 | BS2: 45 | BT2: 46 | BU2: 47 | BV2: 48 | BW2: 49 | BX2: 50 | BY2: 51 | BZ2: 52 | CA2: 53 | CB2: 54 | CC2: 55 | CD2: 56 | CE2: 57 | CF2: 58 | CG2: 59 | CH2: 60 | CI2: 61 | CJ2: 62 | CK2: 63 | CL2: 64 | CM2: 65 | CN2: 66 | CO2: 67 | CP2: 68 | CQ2: 69 | CR2: 70 | CS2: 71 | CT2: 72 | CU2: 73
Y3: номер факт-периода:
Y4: номер план-периода: | AA4: 1 | AB4: 2 | AC4: 3 | AD4: 4 | AE4: 5 | AF4: 6 | AG4: 7 | AH4: 8 | AI4: 9 | AJ4: 10 | AK4: 11 | AL4: 12 | AM4: 13 | AN4: 14 | AO4: 15 | AP4: 16 | AQ4: 17 | AR4: 18 | AS4: 19 | AT4: 20 | AU4: 21 | AV4: 22 | AW4: 23 | AX4: 24 | AY4: 25 | AZ4: 26 | BA4: 27 | BB4: 28 | BC4: 29 | BD4: 30 | BE4: 31 | BF4: 32 | BG4: 33 | BH4: 34 | BI4: 35 | BJ4: 36 | BK4: 37 | BL4: 38 | BM4: 39 | BN4: 40 | BO4: 41 | BP4: 42 | BQ4: 43 | BR4: 44 | BS4: 45 | BT4: 46 | BU4: 47 | BV4: 48 | BW4: 49 | BX4: 50 | BY4: 51 | BZ4: 52 | CA4: 53 | CB4: 54 | CC4: 55 | CD4: 56 | CE4: 57 | CF4: 58 | CG4: 59 | CH4: 60 | CI4: 61 | CJ4: 62 | CK4: 63 | CL4: 64 | CM4: 65 | CN4: 66 | CO4: 67 | CP4: 68 | CQ4: 69 | CR4: 70 | CS4: 71 | CT4: 72
Y5: число даты начала: | AA5: 1 | AB5: 1 | AC5: 1 | AD5: 1 | AE5: 1 | AF5: 1 | AG5: 1 | AH5: 1 | AI5: 1 | AJ5: 1 | AK5: 1 | AL5: 1 | AM5: 1 | AN5: 1 | AO5: 1 | AP5: 1 | AQ5: 1 | AR5: 1 | AS5: 1 | AT5: 1 | AU5: 1 | AV5: 1 | AW5: 1 | AX5: 1 | AY5: 1 | AZ5: 1 | BA5: 1 | BB5: 1 | BC5: 1 | BD5: 1 | BE5: 1 | BF5: 1 | BG5: 1 | BH5: 1 | BI5: 1 | BJ5: 1 | BK5: 1 | BL5: 1 | BM5: 1 | BN5: 1 | BO5: 1 | BP5: 1 | BQ5: 1 | BR5: 1 | BS5: 1 | BT5: 1 | BU5: 1 | BV5: 1 | BW5: 1 | BX5: 1 | BY5: 1 | BZ5: 1 | CA5: 1 | CB5: 1 | CC5: 1 | CD5: 1 | CE5: 1 | CF5: 1 | CG5: 1 | CH5: 1 | CI5: 1 | CJ5: 1 | CK5: 1 | CL5: 1 | CM5: 1 | CN5: 1 | CO5: 1 | CP5: 1 | CQ5: 1 | CR5: 1 | CS5: 1 | CT5: 1
Y6: номер месяца даты начала: | AA6: 7 | AB6: 8 | AC6: 9 | AD6: 10 | AE6: 11 | AF6: 12 | AG6: 1 | AH6: 2 | AI6: 3 | AJ6: 4 | AK6: 5 | AL6: 6 | AM6: 7 | AN6: 8 | AO6: 9 | AP6: 10 | AQ6: 11 | AR6: 12 | AS6: 1 | AT6: 2 | AU6: 3 | AV6: 4 | AW6: 5 | AX6: 6 | AY6: 7 | AZ6: 8 | BA6: 9 | BB6: 10 | BC6: 11 | BD6: 12 | BE6: 1 | BF6: 2 | BG6: 3 | BH6: 4 | BI6: 5 | BJ6: 6 | BK6: 7 | BL6: 8 | BM6: 9 | BN6: 10 | BO6: 11 | BP6: 12 | BQ6: 1 | BR6: 2 | BS6: 3 | BT6: 4 | BU6: 5 | BV6: 6 | BW6: 7 | BX6: 8 | BY6: 9 | BZ6: 10 | CA6: 11 | CB6: 12 | CC6: 1 | CD6: 2 | CE6: 3 | CF6: 4 | CG6: 5 | CH6: 6 | CI6: 7 | CJ6: 8 | CK6: 9 | CL6: 10 | CM6: 11 | CN6: 12 | CO6: 1 | CP6: 2 | CQ6: 3 | CR6: 4 | CS6: 5 | CT6: 6
Y7: год даты начала: | AA7: 21 | AB7: 21 | AC7: 21 | AD7: 21 | AE7: 21 | AF7: 21 | AG7: 22 | AH7: 22 | AI7: 22 | AJ7: 22 | AK7: 22 | AL7: 22 | AM7: 22 | AN7: 22 | AO7: 22 | AP7: 22 | AQ7: 22 | AR7: 22 | AS7: 23 | AT7: 23 | AU7: 23 | AV7: 23 | AW7: 23 | AX7: 23 | AY7: 23 | AZ7: 23 | BA7: 23 | BB7: 23 | BC7: 23 | BD7: 23 | BE7: 24 | BF7: 24 | BG7: 24 | BH7: 24 | BI7: 24 | BJ7: 24 | BK7: 24 | BL7: 24 | BM7: 24 | BN7: 24 | BO7: 24 | BP7: 24 | BQ7: 25 | BR7: 25 | BS7: 25 | BT7: 25 | BU7: 25 | BV7: 25 | BW7: 25 | BX7: 25 | BY7: 25 | BZ7: 25 | CA7: 25 | CB7: 25 | CC7: 26 | CD7: 26 | CE7: 26 | CF7: 26 | CG7: 26 | CH7: 26 | CI7: 26 | CJ7: 26 | CK7: 26 | CL7: 26 | CM7: 26 | CN7: 26 | CO7: 27 | CP7: 27 | CQ7: 27 | CR7: 27 | CS7: 27 | CT7: 27
Y8: число даты окончания: | AA8: 31 | AB8: 31 | AC8: 30 | AD8: 31 | AE8: 30 | AF8: 31 | AG8: 31 | AH8: 28 | AI8: 31 | AJ8: 30 | AK8: 31 | AL8: 30 | AM8: 31 | AN8: 31 | AO8: 30 | AP8: 31 | AQ8: 30 | AR8: 31 | AS8: 31 | AT8: 28 | AU8: 31 | AV8: 30 | AW8: 31 | AX8: 30 | AY8: 31 | AZ8: 31 | BA8: 30 | BB8: 31 | BC8: 30 | BD8: 31 | BE8: 31 | BF8: 29 | BG8: 31 | BH8: 30 | BI8: 31 | BJ8: 30 | BK8: 31 | BL8: 31 | BM8: 30 | BN8: 31 | BO8: 30 | BP8: 31 | BQ8: 31 | BR8: 28 | BS8: 31 | BT8: 30 | BU8: 31 | BV8: 30 | BW8: 31 | BX8: 31 | BY8: 30 | BZ8: 31 | CA8: 30 | CB8: 31 | CC8: 31 | CD8: 28 | CE8: 31 | CF8: 30 | CG8: 31 | CH8: 30 | CI8: 31 | CJ8: 31 | CK8: 30 | CL8: 31 | CM8: 30 | CN8: 31 | CO8: 31 | CP8: 28 | CQ8: 31 | CR8: 30 | CS8: 31 | CT8: 30
Y9: номер месяца даты окончания: | AA9: 7 | AB9: 8 | AC9: 9 | AD9: 10 | AE9: 11 | AF9: 12 | AG9: 1 | AH9: 2 | AI9: 3 | AJ9: 4 | AK9: 5 | AL9: 6 | AM9: 7 | AN9: 8 | AO9: 9 | AP9: 10 | AQ9: 11 | AR9: 12 | AS9: 1 | AT9: 2 | AU9: 3 | AV9: 4 | AW9: 5 | AX9: 6 | AY9: 7 | AZ9: 8 | BA9: 9 | BB9: 10 | BC9: 11 | BD9: 12 | BE9: 1 | BF9: 2 | BG9: 3 | BH9: 4 | BI9: 5 | BJ9: 6 | BK9: 7 | BL9: 8 | BM9: 9 | BN9: 10 | BO9: 11 | BP9: 12 | BQ9: 1 | BR9: 2 | BS9: 3 | BT9: 4 | BU9: 5 | BV9: 6 | BW9: 7 | BX9: 8 | BY9: 9 | BZ9: 10 | CA9: 11 | CB9: 12 | CC9: 1 | CD9: 2 | CE9: 3 | CF9: 4 | CG9: 5 | CH9: 6 | CI9: 7 | CJ9: 8 | CK9: 9 | CL9: 10 | CM9: 11 | CN9: 12 | CO9: 1 | CP9: 2 | CQ9: 3 | CR9: 4 | CS9: 5 | CT9: 6
Y10: год даты окончания: | AA10: 21 | AB10: 21 | AC10: 21 | AD10: 21 | AE10: 21 | AF10: 21 | AG10: 22 | AH10: 22 | AI10: 22 | AJ10: 22 | AK10: 22 | AL10: 22 | AM10: 22 | AN10: 22 | AO10: 22 | AP10: 22 | AQ10: 22 | AR10: 22 | AS10: 23 | AT10: 23 | AU10: 23 | AV10: 23 | AW10: 23 | AX10: 23 | AY10: 23 | AZ10: 23 | BA10: 23 | BB10: 23 | BC10: 23 | BD10: 23 | BE10: 24 | BF10: 24 | BG10: 24 | BH10: 24 | BI10: 24 | BJ10: 24 | BK10: 24 | BL10: 24 | BM10: 24 | BN10: 24 | BO10: 24 | BP10: 24 | BQ10: 25 | BR10: 25 | BS10: 25 | BT10: 25 | BU10: 25 | BV10: 25 | BW10: 25 | BX10: 25 | BY10: 25 | BZ10: 25 | CA10: 25 | CB10: 25 | CC10: 26 | CD10: 26 | CE10: 26 | CF10: 26 | CG10: 26 | CH10: 26 | CI10: 26 | CJ10: 26 | CK10: 26 | CL10: 26 | CM10: 26 | CN10: 26 | CO10: 27 | CP10: 27 | CQ10: 27 | CR10: 27 | CS10: 27 | CT10: 27
F11: Periods | I11: Периоды и горизонты моделирования фактических и прогнозных данных | X11: 2021-07-01 | AA11: 2021-07-01 | AB11: 2021-08-01 | AC11: 2021-09-01 | AD11: 2021-10-01 | AE11: 2021-11-01 | AF11: 2021-12-01 | AG11: 2022-01-01 | AH11: 2022-02-01 | AI11: 2022-03-01 | AJ11: 2022-04-01 | AK11: 2022-05-01 | AL11: 2022-06-01 | AM11: 2022-07-01 | AN11: 2022-08-01 | AO11: 2022-09-01 | AP11: 2022-10-01 | AQ11: 2022-11-01 | AR11: 2022-12-01 | AS11: 2023-01-01 | AT11: 2023-02-01 | AU11: 2023-03-01 | AV11: 2023-04-01 | AW11: 2023-05-01 | AX11: 2023-06-01 | AY11: 2023-07-01 | AZ11: 2023-08-01 | BA11: 2023-09-01 | BB11: 2023-10-01 | BC11: 2023-11-01 | BD11: 2023-12-01 | BE11: 2024-01-01 | BF11: 2024-02-01 | BG11: 2024-03-01 | BH11: 2024-04-01 | BI11: 2024-05-01 | BJ11: 2024-06-01 | BK11: 2024-07-01 | BL11: 2024-08-01 | BM11: 2024-09-01 | BN11: 2024-10-01 | BO11: 2024-11-01 | BP11: 2024-12-01 | BQ11: 2025-01-01 | BR11: 2025-02-01 | BS11: 2025-03-01 | BT11: 2025-04-01 | BU11: 2025-05-01 | BV11: 2025-06-01 | BW11: 2025-07-01 | BX11: 2025-08-01 | BY11: 2025-09-01 | BZ11: 2025-10-01 | CA11: 2025-11-01 | CB11: 2025-12-01 | CC11: 2026-01-01 | CD11: 2026-02-01 | CE11: 2026-03-01 | CF11: 2026-04-01 | CG11: 2026-05-01 | CH11: 2026-06-01 | CI11: 2026-07-01 | CJ11: 2026-08-01 | CK11: 2026-09-01 | CL11: 2026-10-01 | CM11: 2026-11-01 | CN11: 2026-12-01 | CO11: 2027-01-01 | CP11: 2027-02-01 | CQ11: 2027-03-01 | CR11: 2027-04-01 | CS11: 2027-05-01 | CT11: 2027-06-01
H12: тип листа | Q12: расчетный | X12: 2027-06-30 | AA12: 2021-07-31 | AB12: 2021-08-31 | AC12: 2021-09-30 | AD12: 2021-10-31 | AE12: 2021-11-30 | AF12: 2021-12-31 | AG12: 2022-01-31 | AH12: 2022-02-28 | AI12: 2022-03-31 | AJ12: 2022-04-30 | AK12: 2022-05-31 | AL12: 2022-06-30 | AM12: 2022-07-31 | AN12: 2022-08-31 | AO12: 2022-09-30 | AP12: 2022-10-31 | AQ12: 2022-11-30 | AR12: 2022-12-31 | AS12: 2023-01-31 | AT12: 2023-02-28 | AU12: 2023-03-31 | AV12: 2023-04-30 | AW12: 2023-05-31 | AX12: 2023-06-30 | AY12: 2023-07-31 | AZ12: 2023-08-31 | BA12: 2023-09-30 | BB12: 2023-10-31 | BC12: 2023-11-30 | BD12: 2023-12-31 | BE12: 2024-01-31 | BF12: 2024-02-29 | BG12: 2024-03-31 | BH12: 2024-04-30 | BI12: 2024-05-31 | BJ12: 2024-06-30 | BK12: 2024-07-31 | BL12: 2024-08-31 | BM12: 2024-09-30 | BN12: 2024-10-31 | BO12: 2024-11-30 | BP12: 2024-12-31 | BQ12: 2025-01-31 | BR12: 2025-02-28 | BS12: 2025-03-31 | BT12: 2025-04-30 | BU12: 2025-05-31 | BV12: 2025-06-30 | BW12: 2025-07-31 | BX12: 2025-08-31 | BY12: 2025-09-30 | BZ12: 2025-10-31 | CA12: 2025-11-30 | CB12: 2025-12-31 | CC12: 2026-01-31 | CD12: 2026-02-28 | CE12: 2026-03-31 | CF12: 2026-04-30 | CG12: 2026-05-31 | CH12: 2026-06-30 | CI12: 2026-07-31 | CJ12: 2026-08-31 | CK12: 2026-09-30 | CL12: 2026-10-31 | CM12: 2026-11-30 | CN12: 2026-12-31 | CO12: 2027-01-31 | CP12: 2027-02-28 | CQ12: 2027-03-31 | CR12: 2027-04-30 | CS12: 2027-05-31 | CT12: 2027-06-30
H13: показатель | Q13: значение | X13: итого | AA13: 2021-07-01 | AB13: 2021-08-01 | AC13: 2021-09-01 | AD13: 2021-10-01 | AE13: 2021-11-01 | AF13: 2021-12-01 | AG13: 2022-01-01 | AH13: 2022-02-01 | AI13: 2022-03-01 | AJ13: 2022-04-01 | AK13: 2022-05-01 | AL13: 2022-06-01 | AM13: 2022-07-01 | AN13: 2022-08-01 | AO13: 2022-09-01 | AP13: 2022-10-01 | AQ13: 2022-11-01 | AR13: 2022-12-01 | AS13: 2023-01-01 | AT13: 2023-02-01 | AU13: 2023-03-01 | AV13: 2023-04-01 | AW13: 2023-05-01 | AX13: 2023-06-01 | AY13: 2023-07-01 | AZ13: 2023-08-01 | BA13: 2023-09-01 | BB13: 2023-10-01 | BC13: 2023-11-01 | BD13: 2023-12-01 | BE13: 2024-01-01 | BF13: 2024-02-01 | BG13: 2024-03-01 | BH13: 2024-04-01 | BI13: 2024-05-01 | BJ13: 2024-06-01 | BK13: 2024-07-01 | BL13: 2024-08-01 | BM13: 2024-09-01 | BN13: 2024-10-01 | BO13: 2024-11-01 | BP13: 2024-12-01 | BQ13: 2025-01-01 | BR13: 2025-02-01 | BS13: 2025-03-01 | BT13: 2025-04-01 | BU13: 2025-05-01 | BV13: 2025-06-01 | BW13: 2025-07-01 | BX13: 2025-08-01 | BY13: 2025-09-01 | BZ13: 2025-10-01 | CA13: 2025-11-01 | CB13: 2025-12-01 | CC13: 2026-01-01 | CD13: 2026-02-01 | CE13: 2026-03-01 | CF13: 2026-04-01 | CG13: 2026-05-01 | CH13: 2026-06-01 | CI13: 2026-07-01 | CJ13: 2026-08-01 | CK13: 2026-09-01 | CL13: 2026-10-01 | CM13: 2026-11-01 | CN13: 2026-12-01 | CO13: 2027-01-01 | CP13: 2027-02-01 | CQ13: 2027-03-01 | CR13: 2027-04-01 | CS13: 2027-05-01 | CT13: 2027-06-01
D14: 0 | E14: 0 | F14: 0 | G14: 0 | S14: 0
A15: 15 | H15: разработка финмоделей: https://mngmnt.ru/
A16: 16 | G16: 0 | H16: минимальный период расчетов | P16: * | Q16: месяц | R16: ^ | S16: 0 | Y16: номер периода модели: | AA16: 1 | AB16: 2 | AC16: 3 | AD16: 4 | AE16: 5 | AF16: 6 | AG16: 7 | AH16: 8 | AI16: 9 | AJ16: 10 | AK16: 11 | AL16: 12 | AM16: 13 | AN16: 14 | AO16: 15 | AP16: 16 | AQ16: 17 | AR16: 18 | AS16: 19 | AT16: 20 | AU16: 21 | AV16: 22 | AW16: 23 | AX16: 24 | AY16: 25 | AZ16: 26 | BA16: 27 | BB16: 28 | BC16: 29 | BD16: 30 | BE16: 31 | BF16: 32 | BG16: 33 | BH16: 34 | BI16: 35 | BJ16: 36 | BK16: 37 | BL16: 38 | BM16: 39 | BN16: 40 | BO16: 41 | BP16: 42 | BQ16: 43 | BR16: 44 | BS16: 45 | BT16: 46 | BU16: 47 | BV16: 48 | BW16: 49 | BX16: 50 | BY16: 51 | BZ16: 52 | CA16: 53 | CB16: 54 | CC16: 55 | CD16: 56 | CE16: 57 | CF16: 58 | CG16: 59 | CH16: 60 | CI16: 61 | CJ16: 62 | CK16: 63 | CL16: 64 | CM16: 65 | CN16: 66 | CO16: 67 | CP16: 68 | CQ16: 69 | CR16: 70 | CS16: 71 | CT16: 72 | CU16: 73
A17: 17 | G17: 0 | H17: дата старта проекта | P17: * | Q17: 2021-07-01 | S17: 0 | Y17: номер месяца даты начала: | AA17: 7 | AB17: 8 | AC17: 9 | AD17: 10 | AE17: 11 | AF17: 12 | AG17: 1 | AH17: 2 | AI17: 3 | AJ17: 4 | AK17: 5 | AL17: 6 | AM17: 7 | AN17: 8 | AO17: 9 | AP17: 10 | AQ17: 11 | AR17: 12 | AS17: 1 | AT17: 2 | AU17: 3 | AV17: 4 | AW17: 5 | AX17: 6 | AY17: 7 | AZ17: 8 | BA17: 9 | BB17: 10 | BC17: 11 | BD17: 12 | BE17: 1 | BF17: 2 | BG17: 3 | BH17: 4 | BI17: 5 | BJ17: 6 | BK17: 7 | BL17: 8 | BM17: 9 | BN17: 10 | BO17: 11 | BP17: 12 | BQ17: 1 | BR17: 2 | BS17: 3 | BT17: 4 | BU17: 5 | BV17: 6 | BW17: 7 | BX17: 8 | BY17: 9 | BZ17: 10 | CA17: 11 | CB17: 12 | CC17: 1 | CD17: 2 | CE17: 3 | CF17: 4 | CG17: 5 | CH17: 6 | CI17: 7 | CJ17: 8 | CK17: 9 | CL17: 10 | CM17: 11 | CN17: 12 | CO17: 1 | CP17: 2 | CQ17: 3 | CR17: 4 | CS17: 5 | CT17: 6
A18: 18 | G18: 0 | H18: горизонт моделирования в кол-ве периодов | P18: * | Q18: 72 | S18: 0 | Y18: год даты начала: | AA18: 21 | AB18: 21 | AC18: 21 | AD18: 21 | AE18: 21 | AF18: 21 | AG18: 22 | AH18: 22 | AI18: 22 | AJ18: 22 | AK18: 22 | AL18: 22 | AM18: 22 | AN18: 22 | AO18: 22 | AP18: 22 | AQ18: 22 | AR18: 22 | AS18: 23 | AT18: 23 | AU18: 23 | AV18: 23 | AW18: 23 | AX18: 23 | AY18: 23 | AZ18: 23 | BA18: 23 | BB18: 23 | BC18: 23 | BD18: 23 | BE18: 24 | BF18: 24 | BG18: 24 | BH18: 24 | BI18: 24 | BJ18: 24 | BK18: 24 | BL18: 24 | BM18: 24 | BN18: 24 | BO18: 24 | BP18: 24 | BQ18: 25 | BR18: 25 | BS18: 25 | BT18: 25 | BU18: 25 | BV18: 25 | BW18: 25 | BX18: 25 | BY18: 25 | BZ18: 25 | CA18: 25 | CB18: 25 | CC18: 26 | CD18: 26 | CE18: 26 | CF18: 26 | CG18: 26 | CH18: 26 | CI18: 26 | CJ18: 26 | CK18: 26 | CL18: 26 | CM18: 26 | CN18: 26 | CO18: 27 | CP18: 27 | CQ18: 27 | CR18: 27 | CS18: 27 | CT18: 27
A19: 19
A20: 20 | G20: 0 | H20: дата старта периода расчетов модели | X20: 2021-07-01 | AA20: 2021-07-01 | AB20: 2021-08-01 | AC20: 2021-09-01 | AD20: 2021-10-01 | AE20: 2021-11-01 | AF20: 2021-12-01 | AG20: 2022-01-01 | AH20: 2022-02-01 | AI20: 2022-03-01 | AJ20: 2022-04-01 | AK20: 2022-05-01 | AL20: 2022-06-01 | AM20: 2022-07-01 | AN20: 2022-08-01 | AO20: 2022-09-01 | AP20: 2022-10-01 | AQ20: 2022-11-01 | AR20: 2022-12-01 | AS20: 2023-01-01 | AT20: 2023-02-01 | AU20: 2023-03-01 | AV20: 2023-04-01 | AW20: 2023-05-01 | AX20: 2023-06-01 | AY20: 2023-07-01 | AZ20: 2023-08-01 | BA20: 2023-09-01 | BB20: 2023-10-01 | BC20: 2023-11-01 | BD20: 2023-12-01 | BE20: 2024-01-01 | BF20: 2024-02-01 | BG20: 2024-03-01 | BH20: 2024-04-01 | BI20: 2024-05-01 | BJ20: 2024-06-01 | BK20: 2024-07-01 | BL20: 2024-08-01 | BM20: 2024-09-01 | BN20: 2024-10-01 | BO20: 2024-11-01 | BP20: 2024-12-01 | BQ20: 2025-01-01 | BR20: 2025-02-01 | BS20: 2025-03-01 | BT20: 2025-04-01 | BU20: 2025-05-01 | BV20: 2025-06-01 | BW20: 2025-07-01 | BX20: 2025-08-01 | BY20: 2025-09-01 | BZ20: 2025-10-01 | CA20: 2025-11-01 | CB20: 2025-12-01 | CC20: 2026-01-01 | CD20: 2026-02-01 | CE20: 2026-03-01 | CF20: 2026-04-01 | CG20: 2026-05-01 | CH20: 2026-06-01 | CI20: 2026-07-01 | CJ20: 2026-08-01 | CK20: 2026-09-01 | CL20: 2026-10-01 | CM20: 2026-11-01 | CN20: 2026-12-01 | CO20: 2027-01-01 | CP20: 2027-02-01 | CQ20: 2027-03-01 | CR20: 2027-04-01 | CS20: 2027-05-01 | CT20: 2027-06-01
A21: 21 | G21: 0 | H21: дата завершения периода расчетов модели | X21: 2027-06-30 | AA21: 2021-07-31 | AB21: 2021-08-31 | AC21: 2021-09-30 | AD21: 2021-10-31 | AE21: 2021-11-30 | AF21: 2021-12-31 | AG21: 2022-01-31 | AH21: 2022-02-28 | AI21: 2022-03-31 | AJ21: 2022-04-30 | AK21: 2022-05-31 | AL21: 2022-06-30 | AM21: 2022-07-31 | AN21: 2022-08-31 | AO21: 2022-09-30 | AP21: 2022-10-31 | AQ21: 2022-11-30 | AR21: 2022-12-31 | AS21: 2023-01-31 | AT21: 2023-02-28 | AU21: 2023-03-31 | AV21: 2023-04-30 | AW21: 2023-05-31 | AX21: 2023-06-30 | AY21: 2023-07-31 | AZ21: 2023-08-31 | BA21: 2023-09-30 | BB21: 2023-10-31 | BC21: 2023-11-30 | BD21: 2023-12-31 | BE21: 2024-01-31 | BF21: 2024-02-29 | BG21: 2024-03-31 | BH21: 2024-04-30 | BI21: 2024-05-31 | BJ21: 2024-06-30 | BK21: 2024-07-31 | BL21: 2024-08-31 | BM21: 2024-09-30 | BN21: 2024-10-31 | BO21: 2024-11-30 | BP21: 2024-12-31 | BQ21: 2025-01-31 | BR21: 2025-02-28 | BS21: 2025-03-31 | BT21: 2025-04-30 | BU21: 2025-05-31 | BV21: 2025-06-30 | BW21: 2025-07-31 | BX21: 2025-08-31 | BY21: 2025-09-30 | BZ21: 2025-10-31 | CA21: 2025-11-30 | CB21: 2025-12-31 | CC21: 2026-01-31 | CD21: 2026-02-28 | CE21: 2026-03-31 | CF21: 2026-04-30 | CG21: 2026-05-31 | CH21: 2026-06-30 | CI21: 2026-07-31 | CJ21: 2026-08-31 | CK21: 2026-09-30 | CL21: 2026-10-31 | CM21: 2026-11-30 | CN21: 2026-12-31 | CO21: 2027-01-31 | CP21: 2027-02-28 | CQ21: 2027-03-31 | CR21: 2027-04-30 | CS21: 2027-05-31 | CT21: 2027-06-30
A22: 22 | G22: 0 | H22: названия периодов расчета | AA22: 2021-07-01 | AB22: 2021-08-01 | AC22: 2021-09-01 | AD22: 2021-10-01 | AE22: 2021-11-01 | AF22: 2021-12-01 | AG22: 2022-01-01 | AH22: 2022-02-01 | AI22: 2022-03-01 | AJ22: 2022-04-01 | AK22: 2022-05-01 | AL22: 2022-06-01 | AM22: 2022-07-01 | AN22: 2022-08-01 | AO22: 2022-09-01 | AP22: 2022-10-01 | AQ22: 2022-11-01 | AR22: 2022-12-01 | AS22: 2023-01-01 | AT22: 2023-02-01 | AU22: 2023-03-01 | AV22: 2023-04-01 | AW22: 2023-05-01 | AX22: 2023-06-01 | AY22: 2023-07-01 | AZ22: 2023-08-01 | BA22: 2023-09-01 | BB22: 2023-10-01 | BC22: 2023-11-01 | BD22: 2023-12-01 | BE22: 2024-01-01 | BF22: 2024-02-01 | BG22: 2024-03-01 | BH22: 2024-04-01 | BI22: 2024-05-01 | BJ22: 2024-06-01 | BK22: 2024-07-01 | BL22: 2024-08-01 | BM22: 2024-09-01 | BN22: 2024-10-01 | BO22: 2024-11-01 | BP22: 2024-12-01 | BQ22: 2025-01-01 | BR22: 2025-02-01 | BS22: 2025-03-01 | BT22: 2025-04-01 | BU22: 2025-05-01 | BV22: 2025-06-01 | BW22: 2025-07-01 | BX22: 2025-08-01 | BY22: 2025-09-01 | BZ22: 2025-10-01 | CA22: 2025-11-01 | CB22: 2025-12-01 | CC22: 2026-01-01 | CD22: 2026-02-01 | CE22: 2026-03-01 | CF22: 2026-04-01 | CG22: 2026-05-01 | CH22: 2026-06-01 | CI22: 2026-07-01 | CJ22: 2026-08-01 | CK22: 2026-09-01 | CL22: 2026-10-01 | CM22: 2026-11-01 | CN22: 2026-12-01 | CO22: 2027-01-01 | CP22: 2027-02-01 | CQ22: 2027-03-01 | CR22: 2027-04-01 | CS22: 2027-05-01 | CT22: 2027-06-01
A23: 23
A24: 24 | G24: 0 | H24: ответ "да/нет"
A25: 25 | G25: 0 | H25: ответ "да/нет" | I25: учесть фактические данные? | P25: * | Q25: нет | R25: ^ | S25: 0
A26: 26 | G26: 0 | H26: ответ "да/нет" | I26: фактический период выбрать по умолчанию? | Q26: да | R26: ^ | S26: 0
A27: 27
A28: 28 | G28: 0 | H28: дата начала фактического периода
A29: 29 | G29: 0 | H29: дата окончания фактического периода
A30: 30 | G30: 0 | H30: дата окончания фактического периода | I30: по умолчанию - сегодняшний день | Q30: 2022-02-07
A31: 31 | G31: 0 | H31: дата окончания фактического периода | I31: задать вручную дату окончания периода | Q31: 2020-10-31 | Y31: номер периода модели: | AA31: 1 | AB31: 2 | AC31: 3 | AD31: 4 | AE31: 5 | AF31: 6 | AG31: 7 | AH31: 8 | AI31: 9 | AJ31: 10 | AK31: 11 | AL31: 12 | AM31: 13 | AN31: 14 | AO31: 15 | AP31: 16 | AQ31: 17 | AR31: 18 | AS31: 19 | AT31: 20 | AU31: 21 | AV31: 22 | AW31: 23 | AX31: 24 | AY31: 25 | AZ31: 26 | BA31: 27 | BB31: 28 | BC31: 29 | BD31: 30 | BE31: 31 | BF31: 32 | BG31: 33 | BH31: 34 | BI31: 35 | BJ31: 36 | BK31: 37 | BL31: 38 | BM31: 39 | BN31: 40 | BO31: 41 | BP31: 42 | BQ31: 43 | BR31: 44 | BS31: 45 | BT31: 46 | BU31: 47 | BV31: 48 | BW31: 49 | BX31: 50 | BY31: 51 | BZ31: 52 | CA31: 53 | CB31: 54 | CC31: 55 | CD31: 56 | CE31: 57 | CF31: 58 | CG31: 59 | CH31: 60 | CI31: 61 | CJ31: 62 | CK31: 63 | CL31: 64 | CM31: 65 | CN31: 66 | CO31: 67 | CP31: 68 | CQ31: 69 | CR31: 70 | CS31: 71 | CT31: 72 | CU31: 73
A32: 32 | Y32: номер месяца даты начала: | AA32: 7 | AB32: 7 | AC32: 7 | AD32: 7 | AE32: 7 | AF32: 7
A33: 33 | G33: 0 | H33: период отчетности | P33: * | Q33: год текущий | R33: ^ | S33: 0 | Y33: год даты начала: | AA33: 21 | AB33: 22 | AC33: 23 | AD33: 24 | AE33: 25 | AF33: 26
A34: 34
A35: 35 | G35: 0 | H35: дата старта отчетности модели | X35: 2021-07-01 | AA35: 2021-07-01 | AB35: 2022-07-01 | AC35: 2023-07-01 | AD35: 2024-07-01 | AE35: 2025-07-01 | AF35: 2026-07-01
A36: 36 | G36: 0 | H36: дата завершения отчетности модели | X36: 2027-06-30 | AA36: 2022-06-30 | AB36: 2023-06-30 | AC36: 2024-06-30 | AD36: 2025-06-30 | AE36: 2026-06-30 | AF36: 2027-06-30
A37: 37 | G37: 0 | H37: названия периодов отчетности | AA37: 1 год | AB37: 2 год | AC37: 3 год | AD37: 4 год | AE37: 5 год | AF37: 6 год
A38: 38
A39: 39
A40: 40
A41: 41
A42: 42 | H42: разработка финмоделей: https://mngmnt.ru/
A43: 43
A44: 44
A45: 45
A46: 46
A47: 47
A48: 48
A49: 49
A50: 50
A51: 51
A52: 52
A53: 53
A54: 54
A55: 55
A56: 56
A57: 57
A58: 58
A59: 59
A60: 60
A61: 61
A62: 62
A63: 63
A64: 64
A65: 65
A66: 66
A67: 67
A68: 68
A69: 69
A70: 70

Sheet Lists
I1: =COLUMN() -> 9 | M1: =COLUMN() -> 13 | Q1: =COLUMN() -> 17 | U1: =COLUMN() -> 21 | AB1: =COLUMN() -> 28 | AF1: =COLUMN() -> 32 | AI1: =COLUMN() -> 35 | AM1: =COLUMN() -> 39 | AQ1: =COLUMN() -> 43 | AU1: =COLUMN() -> 47 | AY1: =COLUMN() -> 51 | BC1: =COLUMN() -> 55 | BG1: =COLUMN() -> 59 | BK1: =COLUMN() -> 63 | BO1: =COLUMN() -> 67 | BS1: =COLUMN() -> 71 | BW1: =COLUMN() -> 75 | CA1: =COLUMN() -> 79 | CE1: =COLUMN() -> 83 | CI1: =COLUMN() -> 87 | CM1: =COLUMN() -> 91 | CQ1: =COLUMN() -> 95 | CU1: =COLUMN() -> 99
I2: =LEFT(ADDRESS(1,COLUMN(),4),LEN(ADDRESS(1,COLUMN(),4))-1) -> I | M2: =LEFT(ADDRESS(1,COLUMN(),4),LEN(ADDRESS(1,COLUMN(),4))-1) -> M | Q2: =LEFT(ADDRESS(1,COLUMN(),4),LEN(ADDRESS(1,COLUMN(),4))-1) -> Q | U2: =LEFT(ADDRESS(1,COLUMN(),4),LEN(ADDRESS(1,COLUMN(),4))-1) -> U | AB2: =LEFT(ADDRESS(1,COLUMN(),4),LEN(ADDRESS(1,COLUMN(),4))-1) -> AB | AF2: =LEFT(ADDRESS(1,COLUMN(),4),LEN(ADDRESS(1,COLUMN(),4))-1) -> AF | AI2: =LEFT(ADDRESS(1,COLUMN(),4),LEN(ADDRESS(1,COLUMN(),4))-1) -> AI | AM2: =LEFT(ADDRESS(1,COLUMN(),4),LEN(ADDRESS(1,COLUMN(),4))-1) -> AM | AQ2: =LEFT(ADDRESS(1,COLUMN(),4),LEN(ADDRESS(1,COLUMN(),4))-1) -> AQ | AU2: =LEFT(ADDRESS(1,COLUMN(),4),LEN(ADDRESS(1,COLUMN(),4))-1) -> AU | AY2: =LEFT(ADDRESS(1,COLUMN(),4),LEN(ADDRESS(1,COLUMN(),4))-1) -> AY | BC2: =LEFT(ADDRESS(1,COLUMN(),4),LEN(ADDRESS(1,COLUMN(),4))-1) -> BC | BG2: =LEFT(ADDRESS(1,COLUMN(),4),LEN(ADDRESS(1,COLUMN(),4))-1) -> BG | BK2: =LEFT(ADDRESS(1,COLUMN(),4),LEN(ADDRESS(1,COLUMN(),4))-1) -> BK | BO2: =LEFT(ADDRESS(1,COLUMN(),4),LEN(ADDRESS(1,COLUMN(),4))-1) -> BO | BS2: =LEFT(ADDRESS(1,COLUMN(),4),LEN(ADDRESS(1,COLUMN(),4))-1) -> BS | BW2: =LEFT(ADDRESS(1,COLUMN(),4),LEN(ADDRESS(1,COLUMN(),4))-1) -> BW | CA2: =LEFT(ADDRESS(1,COLUMN(),4),LEN(ADDRESS(1,COLUMN(),4))-1) -> CA | CE2: =LEFT(ADDRESS(1,COLUMN(),4),LEN(ADDRESS(1,COLUMN(),4))-1) -> CE | CI2: =LEFT(ADDRESS(1,COLUMN(),4),LEN(ADDRESS(1,COLUMN(),4))-1) -> CI | CM2: =LEFT(ADDRESS(1,COLUMN(),4),LEN(ADDRESS(1,COLUMN(),4))-1) -> CM | CQ2: =LEFT(ADDRESS(1,COLUMN(),4),LEN(ADDRESS(1,COLUMN(),4))-1) -> CQ | CU2: =LEFT(ADDRESS(1,COLUMN(),4),LEN(ADDRESS(1,COLUMN(),4))-1) -> CU
F11: =INDIRECT("START!I28") -> Lists | I11: =INDIRECT("START!K28") -> Выпадающие списки финансовой модели
AI12: =START!$I$32 -> Mrkting | AY12: =START!$I$32 -> Mrkting | BC12: =START!$I$32 -> Mrkting | BK12: =START!$I$34 -> Sales | BO12: =START!$I$35 -> Prdction | BS12: =START!$I$33 -> CapEx | BW12: =START!$I$33 -> CapEx | CA12: =START!$I$36 -> HR | CI12: =START!$I$36 -> HR | CM12: =START!$I$29 -> Macro | CQ12: =START!$I$29 -> Macro | CU12: =START!$I$54 -> Calc
I13: минимальный период расчетов | M13: ответ "да/нет" | Q13: период отчетности | U13: тип листа | AB13: тип прогрессии | AF13: кол-во дней в периоде | AI13: каналы привлечения клиентов | AM13: продукция | AQ13: дата старта | AU13: тип учета | AY13: натуральные факторы переменных расходов маркетинга | BC13: денежные факторы переменных расходов маркетинга | BG13: тип зависимости переменных расходов | BK13: типы деятельности сотрудников отдела продаж | BO13: типы деятельности производственных сотрудников | BS13: Ввод в эксплуатацию | BW13: Налоги на внеоборотные активы | CA13: Типы и должности персонала | CE13: Типы оплаты | CI13: Потребность в офисе | CM13: Система налогообложения | CQ13: Налоги и сборы | CU13: Метки расчетов
D14: =INDIRECT("Cntrl!M17") -> 0 | E14: =SUM($F14:$PH14) -> 0 | F14: =IFERROR(_xlfn.SHEET($A$1)-SUMIFS(Cntrl!O$15:O$100000,Cntrl!I$15:I$100000,$F$11),1) -> 0 | I14: =IF(OR(I13=0,I13=""),1,IF(COUNTIF(13:13,I13)=1,0,1)) -> 0 | K14: =SUM(K$15:K$100000) -> 0 | M14: =IF(OR(M13=0,M13=""),1,IF(COUNTIF(13:13,M13)=1,0,1)) -> 0 | O14: =SUM(O$15:O$100000) -> 0 | Q14: =IF(OR(Q13=0,Q13=""),1,IF(COUNTIF(13:13,Q13)=1,0,1)) -> 0 | S14: =SUM(S$15:S$100000) -> 0 | U14: =IF(OR(U13=0,U13=""),1,IF(COUNTIF(13:13,U13)=1,0,1)) -> 0 | W14: =SUM(W$15:W$100000) -> 0 | AD14: =SUM(AD$15:AD$100000) -> 0 | AF14: =IF(OR(AF13=0,AF13=""),1,IF(COUNTIF(13:13,AF13)=1,0,1)) -> 0 | AI14: =IF(OR(AI13=0,AI13=""),1,IF(COUNTIF(13:13,AI13)=1,0,1)) -> 0 | AK14: =SUM(AK$15:AK$100000) -> 0 | AM14: =IF(OR(AM13=0,AM13=""),1,IF(COUNTIF(13:13,AM13)=1,0,1)) -> 0 | AO14: =SUM(AO$15:AO$100000) -> 0 | AQ14: =IF(OR(AQ13=0,AQ13=""),1,IF(COUNTIF(13:13,AQ13)=1,0,1)) -> 0 | AS14: =SUM(AS$15:AS$100000) -> 0 | AU14: =IF(OR(AU13=0,AU13=""),1,IF(COUNTIF(13:13,AU13)=1,0,1)) -> 0 | AW14: =SUM(AW$15:AW$100000) -> 0 | AY14: =IF(OR(AY13=0,AY13=""),1,IF(COUNTIF(13:13,AY13)=1,0,1)) -> 0 | BA14: =SUM(BA$15:BA$100000) -> 0 | BC14: =IF(OR(BC13=0,BC13=""),1,IF(COUNTIF(13:13,BC13)=1,0,1)) -> 0 | BE14: =SUM(BE$15:BE$100000) -> 0 | BG14: =IF(OR(BG13=0,BG13=""),1,IF(COUNTIF(13:13,BG13)=1,0,1)) -> 0 | BI14: =SUM(BI$15:BI$100000) -> 0 | BK14: =IF(OR(BK13=0,BK13=""),1,IF(COUNTIF(13:13,BK13)=1,0,1)) -> 0 | BM14: =SUM(BM$15:BM$100000) -> 0 | BO14: =IF(OR(BO13=0,BO13=""),1,IF(COUNTIF(13:13,BO13)=1,0,1)) -> 0 | BQ14: =SUM(BQ$15:BQ$100000) -> 0 | BS14: =IF(OR(BS13=0,BS13=""),1,IF(COUNTIF(13:13,BS13)=1,0,1)) -> 0 | BU14: =SUM(BU$15:BU$100000) -> 0 | BW14: =IF(OR(BW13=0,BW13=""),1,IF(COUNTIF(13:13,BW13)=1,0,1)) -> 0 | BY14: =SUM(BY$15:BY$100000) -> 0 | CA14: =IF(OR(CA13=0,CA13=""),1,IF(COUNTIF(13:13,CA13)=1,0,1)) -> 0 | CC14: =SUM(CC$15:CC$100000) -> 0 | CE14: =IF(OR(CE13=0,CE13=""),1,IF(COUNTIF(13:13,CE13)=1,0,1)) -> 0 | CG14: =SUM(CG$15:CG$100000) -> 0 | CI14: =IF(OR(CI13=0,CI13=""),1,IF(COUNTIF(13:13,CI13)=1,0,1)) -> 0 | CK14: =SUM(CK$15:CK$100000) -> 0 | CM14: =IF(OR(CM13=0,CM13=""),1,IF(COUNTIF(13:13,CM13)=1,0,1)) -> 0 | CO14: =SUM(CO$15:CO$100000) -> 0 | CQ14: =IF(OR(CQ13=0,CQ13=""),1,IF(COUNTIF(13:13,CQ13)=1,0,1)) -> 0 | CS14: =SUM(CS$15:CS$100000) -> 0 | CU14: =IF(OR(CU13=0,CU13=""),1,IF(COUNTIF(13:13,CU13)=1,0,1)) -> 0 | CW14: =SUM(CW$15:CW$100000) -> 0
A15: =ROW() -> 15 | I15: =$F$11&"!"&I$2&$A16&":"&I$2&($A15+MAX(J$15:J$100000)) -> Lists!I16:I22 | M15: =$F$11&"!"&M$2&$A16&":"&M$2&($A15+MAX(N$15:N$100000)) -> Lists!M16:M17 | Q15: =$F$11&"!"&Q$2&$A16&":"&Q$2&($A15+MAX(R$15:R$100000)) -> Lists!Q16:Q18 | U15: =$F$11&"!"&U$2&$A16&":"&U$2&($A15+MAX(V$15:V$100000)) -> Lists!U16:U18 | AB15: =$F$11&"!"&AB$2&$A16&":"&AB$2&($A15+MAX(AC$15:AC$100000)) -> Lists!AB16:AB17 | AF15: =$F$11&"!"&AF$2&$A16&":"&AF$2&($A15+MAX(AG$15:AG$100000)) -> Lists!AF16:AF22 | AI15: =$F$11&"!"&AI$2&$A16&":"&AI$2&($A15+MAX(AJ$15:AJ$100000)) -> Lists!AI16:AI17 | AM15: =$F$11&"!"&AM$2&$A16&":"&AM$2&($A15+MAX(AN$15:AN$100000)) -> Lists!AM16:AM18 | AQ15: =$F$11&"!"&AQ$2&$A16&":"&AQ$2&($A15+MAX(AR$15:AR$100000)) -> Lists!AQ16:AQ87 | AU15: =$F$11&"!"&AU$2&$A16&":"&AU$2&($A15+MAX(AV$15:AV$100000)) -> Lists!AU16:AU20 | AY15: =$F$11&"!"&AY$2&$A16&":"&AY$2&($A15+MAX(AZ$15:AZ$100000)) -> Lists!AY16:AY19 | BC15: =$F$11&"!"&BC$2&$A16&":"&BC$2&($A15+MAX(BD$15:BD$100000)) -> Lists!BC16:BC17 | BG15: =$F$11&"!"&BG$2&$A16&":"&BG$2&($A15+MAX(BH$15:BH$100000)) -> Lists!BG16:BG17 | BK15: =$F$11&"!"&BK$2&$A16&":"&BK$2&($A15+MAX(BL$15:BL$100000)) -> Lists!BK16:BK18 | BO15: =$F$11&"!"&BO$2&$A16&":"&BO$2&($A15+MAX(BP$15:BP$100000)) -> Lists!BO16:BO18 | BS15: =$F$11&"!"&BS$2&$A16&":"&BS$2&($A15+MAX(BT$15:BT$100000)) -> Lists!BS16:BS18 | BW15: =$F$11&"!"&BW$2&$A16&":"&BW$2&($A15+MAX(BX$15:BX$100000)) -> Lists!BW16:BW18 | CA15: =$F$11&"!"&CA$2&$A16&":"&CA$2&($A15+MAX(CB$15:CB$100000)) -> Lists!CA16:CA25 | CE15: =$F$11&"!"&CE$2&$A16&":"&CE$2&($A15+MAX(CF$15:CF$100000)) -> Lists!CE16:CE18 | CI15: =$F$11&"!"&CI$2&$A16&":"&CI$2&($A15+MAX(CJ$15:CJ$100000)) -> Lists!CI16:CI17 | CM15: =$F$11&"!"&CM$2&$A16&":"&CM$2&($A15+MAX(CN$15:CN$100000)) -> Lists!CM16:CM19 | CQ15: =$F$11&"!"&CQ$2&$A16&":"&CQ$2&($A15+MAX(CR$15:CR$100000)) -> Lists!CQ16:CQ19 | CU15: =$F$11&"!"&CU$2&$A16&":"&CU$2&($A15+MAX(CV$15:CV$100000)) -> Lists!CU16:CU29
A16: =ROW() -> 16 | I16: день | J16: =MAX(J$15:J15)+1 -> 1 | K16: =IF(OR(I16=0,I16=""),0,IF(COUNTIF(I$15:I$100000,I16)=1,0,1)) -> 0 | M16: да | N16: =MAX(N$15:N15)+1 -> 1 | O16: =IF(OR(M16=0,M16=""),0,IF(COUNTIF(M$15:M$100000,M16)=1,0,1)) -> 0 | Q16: =IF(Periods!$Q$16=$I$16,$I17,IF(OR(Periods!$Q$16=$I$17,Periods!$Q$16=$I$18),$I19,IF(Periods!$Q$16=$I$19,$I20,IF(Periods!$Q$16=$I$20,$I21,IF(Periods!$Q$16=$I$21,$I22,""))))) -> квартал | R16: =IF(OR(Q16="",Q16=0),"",MAX(R$15:R15)+1) -> 1 | S16: =IF(OR(Q16=0,Q16=""),0,IF(COUNTIF(Q$15:Q$100000,Q16)=1,0,1)) -> 0 | U16: расчетный | V16: =MAX(V$15:V15)+1 -> 1 | W16: =IF(OR(U16=0,U16=""),0,IF(COUNTIF(U$15:U$100000,U16)=1,0,1)) -> 0 | AB16: линейная | AC16: =MAX(AC$15:AC15)+1 -> 1 | AD16: =IF(OR(AB16=0,AB16=""),0,IF(COUNTIF(AB$15:AB$100000,AB16)=1,0,1)) -> 0 | AF16: 1 | AG16: =MAX(AG$15:AG15)+1 -> 1 | AH16: =MAX(AH$15:AH15)+1 -> 1 | AI16: =IF(SUMIFS(Mrkting!$A:$A,Mrkting!$K:$K,AH16)=0,"",INDEX(Mrkting!$L:$L,SUMIFS(Mrkting!$A:$A,Mrkting!$K:$K,AH16))) -> Street - Уличный трафик вдоль салонов | AJ16: =IF(OR(AI16="",AI16=0),"",MAX(AJ$15:AJ15)+1) -> 1 | AK16: =IF(OR(AI16=0,AI16=""),0,IF(COUNTIF(AI$15:AI$100000,AI16)=1,0,1)) -> 0 | AL16: * | AM16: Очки | AN16: =MAX(AN$15:AN15)+1 -> 1 | AO16: =IF(OR(AM16=0,AM16=""),0,IF(COUNTIF(AM$15:AM$100000,AM16)=1,0,1)) -> 0 | AP16: =MAX(AP$15:AP15)+1 -> 1 | AQ16: =SUMIFS(Periods!$11:$11,Periods!$2:$2,AP16) -> 2021-07-01 | AR16: =IF(OR(AQ16="",AQ16=0),"",MAX(AR$15:AR15)+1) -> 1 | AS16: =IF(OR(AQ16=0,AQ16=""),0,IF(COUNTIF(AQ$15:AQ$100000,AQ16)=1,0,1)) -> 0 | AU16: начисление | AV16: =MAX(AV$15:AV15)+1 -> 1 | AW16: =IF(OR(AU16=0,AU16=""),0,IF(COUNTIF(AU$15:AU$100000,AU16)=1,0,1)) -> 0 | AY16: =Mrkting!$H$19 -> Поток запусков создания салонов оптики | AZ16: =MAX(AZ$15:AZ15)+1 -> 1 | BA16: =IF(OR(AY16=0,AY16=""),0,IF(COUNTIF(AY$15:AY$100000,AY16)=1,0,1)) -> 0 | BC16: =Mrkting!$H$97 -> Общий оборот (GMV) | BD16: =MAX(BD$15:BD15)+1 -> 1 | BE16: =IF(OR(BC16=0,BC16=""),0,IF(COUNTIF(BC$15:BC$100000,BC16)=1,0,1)) -> 0 | BG16: натуральные факторы | BH16: =MAX(BH$15:BH15)+1 -> 1 | BI16: =IF(OR(BG16=0,BG16=""),0,IF(COUNTIF(BG$15:BG$100000,BG16)=1,0,1)) -> 0 | BJ16: * | BK16: информирование об услугах | BL16: =MAX(BL$15:BL15)+1 -> 1 | BM16: =IF(OR(BK16=0,BK16=""),0,IF(COUNTIF(BK$15:BK$100000,BK16)=1,0,1)) -> 0 | BN16: * | BO16: Проверка зрения | BP16: =MAX(BP$15:BP15)+1 -> 1 | BQ16: =IF(OR(BO16=0,BO16=""),0,IF(COUNTIF(BO$15:BO$100000,BO16)=1,0,1)) -> 0 | BS16: в последний период всех капзатрат | BT16: =MAX(BT$15:BT15)+1 -> 1 | BU16: =IF(OR(BS16=0,BS16=""),0,IF(COUNTIF(BS$15:BS$100000,BS16)=1,0,1)) -> 0 | BW16: земельный налог | BX16: =MAX(BX$15:BX15)+1 -> 1 | BY16: =IF(OR(BW16=0,BW16=""),0,IF(COUNTIF(BW$15:BW$100000,BW16)=1,0,1)) -> 0 | CA16: Сотрудники маркетинга | CB16: =MAX(CB$15:CB15)+1 -> 1 | CC16: =IF(OR(CA16=0,CA16=""),0,IF(COUNTIF(CA$15:CA$100000,CA16)=1,0,1)) -> 0 | CE16: аванс-доплата | CF16: =MAX(CF$15:CF15)+1 -> 1 | CG16: =IF(OR(CE16=0,CE16=""),0,IF(COUNTIF(CE$15:CE$100000,CE16)=1,0,1)) -> 0 | CI16: нужен офис | CJ16: =MAX(CJ$15:CJ15)+1 -> 1 | CK16: =IF(OR(CI16=0,CI16=""),0,IF(COUNTIF(CI$15:CI$100000,CI16)=1,0,1)) -> 0 | CM16: ОСНО | CN16: =MAX(CN$15:CN15)+1 -> 1 | CO16: =IF(OR(CM16=0,CM16=""),0,IF(COUNTIF(CM$15:CM$100000,CM16)=1,0,1)) -> 0 | CQ16: НДС | CR16: =MAX(CR$15:CR15)+1 -> 1 | CS16: =IF(OR(CQ16=0,CQ16=""),0,IF(COUNTIF(CQ$15:CQ$100000,CQ16)=1,0,1)) -> 0 | CU16: ндс(+) | CV16: =MAX(CV$15:CV15)+1 -> 1 | CW16: =IF(OR(CU16=0,CU16=""),0,IF(COUNTIF(CU$15:CU$100000,CU16)=1,0,1)) -> 0
A17: =ROW() -> 17 | I17: неделя | J17: =MAX(J$15:J16)+1 -> 2 | K17: =IF(OR(I17=0,I17=""),0,IF(COUNTIF(I$15:I$100000,I17)=1,0,1)) -> 0 | M17: нет | N17: =MAX(N$15:N16)+1 -> 2 | O17: =IF(OR(M17=0,M17=""),0,IF(COUNTIF(M$15:M$100000,M17)=1,0,1)) -> 0 | Q17: =IF(Periods!$Q$16=$I$16,$I18,IF(OR(Periods!$Q$16=$I$17,Periods!$Q$16=$I$18),$I20,IF(Periods!$Q$16=$I$19,$I21,IF(Periods!$Q$16=$I$20,$I22,IF(Periods!$Q$16=$I$21,$I23,""))))) -> год текущий | R17: =IF(OR(Q17="",Q17=0),"",MAX(R$15:R16)+1) -> 2 | S17: =IF(OR(Q17=0,Q17=""),0,IF(COUNTIF(Q$15:Q$100000,Q17)=1,0,1)) -> 0 | U17: отчетный | V17: =MAX(V$15:V16)+1 -> 2 | W17: =IF(OR(U17=0,U17=""),0,IF(COUNTIF(U$15:U$100000,U17)=1,0,1)) -> 0 | AB17: геометрическая | AC17: =MAX(AC$15:AC16)+1 -> 2 | AD17: =IF(OR(AB17=0,AB17=""),0,IF(COUNTIF(AB$15:AB$100000,AB17)=1,0,1)) -> 0 | AF17: 7 | AG17: =MAX(AG$15:AG16)+1 -> 2 | AH17: =MAX(AH$15:AH16)+1 -> 2 | AI17: =IF(SUMIFS(Mrkting!$A:$A,Mrkting!$K:$K,AH17)=0,"",INDEX(Mrkting!$L:$L,SUMIFS(Mrkting!$A:$A,Mrkting!$K:$K,AH17))) -> ТЦ - Трафик вдоль салонов внутри ТЦ | AJ17: =IF(OR(AI17="",AI17=0),"",MAX(AJ$15:AJ16)+1) -> 2 | AK17: =IF(OR(AI17=0,AI17=""),0,IF(COUNTIF(AI$15:AI$100000,AI17)=1,0,1)) -> 0 | AL17: * | AM17: Профилактика | AN17: =MAX(AN$15:AN16)+1 -> 2 | AO17: =IF(OR(AM17=0,AM17=""),0,IF(COUNTIF(AM$15:AM$100000,AM17)=1,0,1)) -> 0 | AP17: =MAX(AP$15:AP16)+1 -> 2 | AQ17: =SUMIFS(Periods!$11:$11,Periods!$2:$2,AP17) -> 2021-08-01 | AR17: =IF(OR(AQ17="",AQ17=0),"",MAX(AR$15:AR16)+1) -> 2 | AS17: =IF(OR(AQ17=0,AQ17=""),0,IF(COUNTIF(AQ$15:AQ$100000,AQ17)=1,0,1)) -> 0 | AU17: учет | AV17: =MAX(AV$15:AV16)+1 -> 2 | AW17: =IF(OR(AU17=0,AU17=""),0,IF(COUNTIF(AU$15:AU$100000,AU17)=1,0,1)) -> 0 | AY17: =Mrkting!$H$65 -> Трафик | AZ17: =MAX(AZ$15:AZ16)+1 -> 2 | BA17: =IF(OR(AY17=0,AY17=""),0,IF(COUNTIF(AY$15:AY$100000,AY17)=1,0,1)) -> 0 | BC17: =Mrkting!$H$131 -> Общий оборот (GMV) с учетом скидок | BD17: =MAX(BD$15:BD16)+1 -> 2 | BE17: =IF(OR(BC17=0,BC17=""),0,IF(COUNTIF(BC$15:BC$100000,BC17)=1,0,1)) -> 0 | BG17: денежные факторы | BH17: =MAX(BH$15:BH16)+1 -> 2 | BI17: =IF(OR(BG17=0,BG17=""),0,IF(COUNTIF(BG$15:BG$100000,BG17)=1,0,1)) -> 0 | BJ17: * | BK17: информирование о ценах и условиях | BL17: =MAX(BL$15:BL16)+1 -> 2 | BM17: =IF(OR(BK17=0,BK17=""),0,IF(COUNTIF(BK$15:BK$100000,BK17)=1,0,1)) -> 0 | BN17: * | BO17: Консультирование по зрению | BP17: =MAX(BP$15:BP16)+1 -> 2 | BQ17: =IF(OR(BO17=0,BO17=""),0,IF(COUNTIF(BO$15:BO$100000,BO17)=1,0,1)) -> 0 | BS17: в последний период данной статьи | BT17: =MAX(BT$15:BT16)+1 -> 2 | BU17: =IF(OR(BS17=0,BS17=""),0,IF(COUNTIF(BS$15:BS$100000,BS17)=1,0,1)) -> 0 | BW17: транспортный налог | BX17: =MAX(BX$15:BX16)+1 -> 2 | BY17: =IF(OR(BW17=0,BW17=""),0,IF(COUNTIF(BW$15:BW$100000,BW17)=1,0,1)) -> 0 | CA17: Продавцы-консультанты | CB17: =MAX(CB$15:CB16)+1 -> 2 | CC17: =IF(OR(CA17=0,CA17=""),0,IF(COUNTIF(CA$15:CA$100000,CA17)=1,0,1)) -> 0 | CE17: аванс-платеж | CF17: =MAX(CF$15:CF16)+1 -> 2 | CG17: =IF(OR(CE17=0,CE17=""),0,IF(COUNTIF(CE$15:CE$100000,CE17)=1,0,1)) -> 0 | CI17: не нужен офис | CJ17: =MAX(CJ$15:CJ16)+1 -> 2 | CK17: =IF(OR(CI17=0,CI17=""),0,IF(COUNTIF(CI$15:CI$100000,CI17)=1,0,1)) -> 0 | CM17: УСН(6%) | CN17: =MAX(CN$15:CN16)+1 -> 2 | CO17: =IF(OR(CM17=0,CM17=""),0,IF(COUNTIF(CM$15:CM$100000,CM17)=1,0,1)) -> 0 | CQ17: Соцсборы | CR17: =MAX(CR$15:CR16)+1 -> 2 | CS17: =IF(OR(CQ17=0,CQ17=""),0,IF(COUNTIF(CQ$15:CQ$100000,CQ17)=1,0,1)) -> 0 | CU17: ндс(-) | CV17: =MAX(CV$15:CV16)+1 -> 2 | CW17: 0
A18: =ROW() -> 18 | I18: декада | J18: =MAX(J$15:J17)+1 -> 3 | K18: 0 | Q18: =IF(Periods!$Q$16=$I$16,$I19,IF(OR(Periods!$Q$16=$I$17,Periods!$Q$16=$I$18),$I21,IF(Periods!$Q$16=$I$19,$I22,IF(Periods!$Q$16=$I$20,$I23,IF(Periods!$Q$16=$I$21,$I24,""))))) -> год календ. | R18: =IF(OR(Q18="",Q18=0),"",MAX(R$15:R17)+1) -> 3 | S18: 0 | U18: технический | V18: =MAX(V$15:V17)+1 -> 3 | W18: =IF(OR(U18=0,U18=""),0,IF(COUNTIF(U$15:U$100000,U18)=1,0,1)) -> 0 | AF18: 10 | AG18: =MAX(AG$15:AG17)+1 -> 3 | AH18: =MAX(AH$15:AH17)+1 -> 3 | AI18: =IF(SUMIFS(Mrkting!$A:$A,Mrkting!$K:$K,AH18)=0,"",INDEX(Mrkting!$L:$L,SUMIFS(Mrkting!$A:$A,Mrkting!$K:$K,AH18))) ->  | AJ18: =IF(OR(AI18="",AI18=0),"",MAX(AJ$15:AJ17)+1) ->  | AK18: 0 | AL18: * | AM18: Аксессуары | AN18: =MAX(AN$15:AN17)+1 -> 3 | AO18: =IF(OR(AM18=0,AM18=""),0,IF(COUNTIF(AM$15:AM$100000,AM18)=1,0,1)) -> 0 | AP18: =MAX(AP$15:AP17)+1 -> 3 | AQ18: =SUMIFS(Periods!$11:$11,Periods!$2:$2,AP18) -> 2021-09-01 | AR18: =IF(OR(AQ18="",AQ18=0),"",MAX(AR$15:AR17)+1) -> 3 | AS18: 0 | AU18: оплата | AV18: =MAX(AV$15:AV17)+1 -> 3 | AW18: =IF(OR(AU18=0,AU18=""),0,IF(COUNTIF(AU$15:AU$100000,AU18)=1,0,1)) -> 0 | AY18: =Mrkting!$H$67 -> Конверсия в посетителя | AZ18: =MAX(AZ$15:AZ17)+1 -> 3 | BA18: =IF(OR(AY18=0,AY18=""),0,IF(COUNTIF(AY$15:AY$100000,AY18)=1,0,1)) -> 0 | BJ18: * | BK18: представительская деятельность | BL18: =MAX(BL$15:BL17)+1 -> 3 | BM18: =IF(OR(BK18=0,BK18=""),0,IF(COUNTIF(BK$15:BK$100000,BK18)=1,0,1)) -> 0 | BN18: * | BO18: Консультирование по очкам и оправам | BP18: =MAX(BP$15:BP17)+1 -> 3 | BQ18: =IF(OR(BO18=0,BO18=""),0,IF(COUNTIF(BO$15:BO$100000,BO18)=1,0,1)) -> 0 | BS18: в каждый период начисления | BT18: =MAX(BT$15:BT17)+1 -> 3 | BU18: =IF(OR(BS18=0,BS18=""),0,IF(COUNTIF(BS$15:BS$100000,BS18)=1,0,1)) -> 0 | BW18: налог на имущество организаций | BX18: =MAX(BX$15:BX17)+1 -> 3 | BY18: =IF(OR(BW18=0,BW18=""),0,IF(COUNTIF(BW$15:BW$100000,BW18)=1,0,1)) -> 0 | CA18: Врачи и медики-консультанты | CB18: =MAX(CB$15:CB17)+1 -> 3 | CC18: =IF(OR(CA18=0,CA18=""),0,IF(COUNTIF(CA$15:CA$100000,CA18)=1,0,1)) -> 0 | CE18: ретро-платеж | CF18: =MAX(CF$15:CF17)+1 -> 3 | CG18: =IF(OR(CE18=0,CE18=""),0,IF(COUNTIF(CE$15:CE$100000,CE18)=1,0,1)) -> 0 | CM18: УСН(15%) | CN18: =MAX(CN$15:CN17)+1 -> 3 | CO18: =IF(OR(CM18=0,CM18=""),0,IF(COUNTIF(CM$15:CM$100000,CM18)=1,0,1)) -> 0 | CQ18: Налог на прибыль | CR18: =MAX(CR$15:CR17)+1 -> 3 | CS18: =IF(OR(CQ18=0,CQ18=""),0,IF(COUNTIF(CQ$15:CQ$100000,CQ18)=1,0,1)) -> 0 | CU18: PL(+) | CV18: =MAX(CV$15:CV17)+1 -> 3 | CW18: 0
A19: =ROW() -> 19 | I19: месяц | J19: =MAX(J$15:J18)+1 -> 4 | K19: 0 | Q19: =IF(Periods!$Q$16=$I$16,$I20,IF(OR(Periods!$Q$16=$I$17,Periods!$Q$16=$I$18),$I22,IF(Periods!$Q$16=$I$19,$I23,IF(Periods!$Q$16=$I$20,$I24,IF(Periods!$Q$16=$I$21,$I25,""))))) -> 0 | R19: =IF(OR(Q19="",Q19=0),"",MAX(R$15:R18)+1) ->  | S19: 0 | AF19: 30 | AG19: =MAX(AG$15:AG18)+1 -> 4 | AH19: =MAX(AH$15:AH18)+1 -> 4 | AI19: =IF(SUMIFS(Mrkting!$A:$A,Mrkting!$K:$K,AH19)=0,"",INDEX(Mrkting!$L:$L,SUMIFS(Mrkting!$A:$A,Mrkting!$K:$K,AH19))) ->  | AJ19: =IF(OR(AI19="",AI19=0),"",MAX(AJ$15:AJ18)+1) ->  | AK19: 0 | AP19: =MAX(AP$15:AP18)+1 -> 4 | AQ19: =SUMIFS(Periods!$11:$11,Periods!$2:$2,AP19) -> 2021-10-01 | AR19: =IF(OR(AQ19="",AQ19=0),"",MAX(AR$15:AR18)+1) -> 4 | AS19: 0 | AU19: списание | AV19: =MAX(AV$15:AV18)+1 -> 4 | AW19: =IF(OR(AU19=0,AU19=""),0,IF(COUNTIF(AU$15:AU$100000,AU19)=1,0,1)) -> 0 | AY19: =Mrkting!$H$76 -> Валовый поток посетителей | AZ19: =MAX(AZ$15:AZ18)+1 -> 4 | BA19: =IF(OR(AY19=0,AY19=""),0,IF(COUNTIF(AY$15:AY$100000,AY19)=1,0,1)) -> 0 | BZ19: * | CA19: Управляющий | CB19: =MAX(CB$15:CB18)+1 -> 4 | CC19: =IF(OR(CA19=0,CA19=""),0,IF(COUNTIF(CA$15:CA$100000,CA19)=1,0,1)) -> 0 | CM19: ТОСЭР | CN19: =MAX(CN$15:CN18)+1 -> 4 | CO19: =IF(OR(CM19=0,CM19=""),0,IF(COUNTIF(CM$15:CM$100000,CM19)=1,0,1)) -> 0 | CQ19: ТОСЭР | CR19: =MAX(CR$15:CR18)+1 -> 4 | CS19: =IF(OR(CQ19=0,CQ19=""),0,IF(COUNTIF(CQ$15:CQ$100000,CQ19)=1,0,1)) -> 0 | CU19: PL(-) | CV19: =MAX(CV$15:CV18)+1 -> 4 | CW19: 0
A20: =ROW() -> 20 | I20: квартал | J20: =MAX(J$15:J19)+1 -> 5 | K20: 0 | Q20: =IF(Periods!$Q$16=$I$16,$I21,IF(OR(Periods!$Q$16=$I$17,Periods!$Q$16=$I$18),$I23,IF(Periods!$Q$16=$I$19,$I24,IF(Periods!$Q$16=$I$20,$I25,IF(Periods!$Q$16=$I$21,$I26,""))))) -> 0 | R20: =IF(OR(Q20="",Q20=0),"",MAX(R$15:R19)+1) ->  | S20: 0 | AF20: 90 | AG20: =MAX(AG$15:AG19)+1 -> 5 | AH20: =MAX(AH$15:AH19)+1 -> 5 | AI20: =IF(SUMIFS(Mrkting!$A:$A,Mrkting!$K:$K,AH20)=0,"",INDEX(Mrkting!$L:$L,SUMIFS(Mrkting!$A:$A,Mrkting!$K:$K,AH20))) ->  | AJ20: =IF(OR(AI20="",AI20=0),"",MAX(AJ$15:AJ19)+1) ->  | AK20: 0 | AP20: =MAX(AP$15:AP19)+1 -> 5 | AQ20: =SUMIFS(Periods!$11:$11,Periods!$2:$2,AP20) -> 2021-11-01 | AR20: =IF(OR(AQ20="",AQ20=0),"",MAX(AR$15:AR19)+1) -> 5 | AS20: 0 | AU20: калькуляция | AV20: =MAX(AV$15:AV19)+1 -> 5 | AW20: =IF(OR(AU20=0,AU20=""),0,IF(COUNTIF(AU$15:AU$100000,AU20)=1,0,1)) -> 0 | BZ20: * | CA20: Мастер | CB20: =MAX(CB$15:CB19)+1 -> 5 | CC20: 0 | CU20: PL | CV20: =MAX(CV$15:CV19)+1 -> 5 | CW20: 0
A21: =ROW() -> 21 | I21: год текущий | J21: =MAX(J$15:J20)+1 -> 6 | K21: 0 | Q21: =IF(Periods!$Q$16=$I$16,$I22,IF(OR(Periods!$Q$16=$I$17,Periods!$Q$16=$I$18),$I24,IF(Periods!$Q$16=$I$19,$I25,IF(Periods!$Q$16=$I$20,$I26,IF(Periods!$Q$16=$I$21,$I27,""))))) -> 0 | R21: =IF(OR(Q21="",Q21=0),"",MAX(R$15:R20)+1) ->  | S21: 0 | AF21: 360 | AG21: =MAX(AG$15:AG20)+1 -> 6 | AH21: =MAX(AH$15:AH20)+1 -> 6 | AI21: =IF(SUMIFS(Mrkting!$A:$A,Mrkting!$K:$K,AH21)=0,"",INDEX(Mrkting!$L:$L,SUMIFS(Mrkting!$A:$A,Mrkting!$K:$K,AH21))) ->  | AJ21: =IF(OR(AI21="",AI21=0),"",MAX(AJ$15:AJ20)+1) ->  | AK21: 0 | AP21: =MAX(AP$15:AP20)+1 -> 6 | AQ21: =SUMIFS(Periods!$11:$11,Periods!$2:$2,AP21) -> 2021-12-01 | AR21: =IF(OR(AQ21="",AQ21=0),"",MAX(AR$15:AR20)+1) -> 6 | AS21: 0 | BZ21: * | CA21: Главный бухгалтер | CB21: =MAX(CB$15:CB20)+1 -> 6 | CC21: 0 | CU21: CF(+) | CV21: =MAX(CV$15:CV20)+1 -> 6 | CW21: 0
A22: =ROW() -> 22 | I22: год календ. | J22: =MAX(J$15:J21)+1 -> 7 | K22: 0 | Q22: =IF(Periods!$Q$16=$I$16,$I23,IF(OR(Periods!$Q$16=$I$17,Periods!$Q$16=$I$18),$I25,IF(Periods!$Q$16=$I$19,$I26,IF(Periods!$Q$16=$I$20,$I27,IF(Periods!$Q$16=$I$21,$I28,""))))) -> 0 | R22: =IF(OR(Q22="",Q22=0),"",MAX(R$15:R21)+1) ->  | S22: 0 | AF22: 360 | AG22: =MAX(AG$15:AG21)+1 -> 7 | AH22: =MAX(AH$15:AH21)+1 -> 7 | AI22: =IF(SUMIFS(Mrkting!$A:$A,Mrkting!$K:$K,AH22)=0,"",INDEX(Mrkting!$L:$L,SUMIFS(Mrkting!$A:$A,Mrkting!$K:$K,AH22))) ->  | AJ22: =IF(OR(AI22="",AI22=0),"",MAX(AJ$15:AJ21)+1) ->  | AK22: 0 | AP22: =MAX(AP$15:AP21)+1 -> 7 | AQ22: =SUMIFS(Periods!$11:$11,Periods!$2:$2,AP22) -> 2022-01-01 | AR22: =IF(OR(AQ22="",AQ22=0),"",MAX(AR$15:AR21)+1) -> 7 | AS22: 0 | BZ22: * | CA22: ИТ-специалисты | CB22: =MAX(CB$15:CB21)+1 -> 7 | CC22: 0 | CU22: CF(-) | CV22: =MAX(CV$15:CV21)+1 -> 7 | CW22: 0
A23: =ROW() -> 23 | AH23: =MAX(AH$15:AH22)+1 -> 8 | AI23: =IF(SUMIFS(Mrkting!$A:$A,Mrkting!$K:$K,AH23)=0,"",INDEX(Mrkting!$L:$L,SUMIFS(Mrkting!$A:$A,Mrkting!$K:$K,AH23))) ->  | AJ23: =IF(OR(AI23="",AI23=0),"",MAX(AJ$15:AJ22)+1) ->  | AK23: =IF(OR(AI23=0,AI23=""),0,IF(COUNTIF(AI$15:AI$100000,AI23)=1,0,1)) -> 0 | AP23: =MAX(AP$15:AP22)+1 -> 8 | AQ23: =SUMIFS(Periods!$11:$11,Periods!$2:$2,AP23) -> 2022-02-01 | AR23: =IF(OR(AQ23="",AQ23=0),"",MAX(AR$15:AR22)+1) -> 8 | AS23: =IF(OR(AQ23=0,AQ23=""),0,IF(COUNTIF(AQ$15:AQ$100000,AQ23)=1,0,1)) -> 0 | BZ23: * | CA23: Финансовые менеджеры | CB23: =MAX(CB$15:CB22)+1 -> 8 | CC23: 0 | CU23: CF | CV23: =MAX(CV$15:CV22)+1 -> 8 | CW23: 0
A24: =ROW() -> 24 | AH24: =MAX(AH$15:AH23)+1 -> 9 | AI24: =IF(SUMIFS(Mrkting!$A:$A,Mrkting!$K:$K,AH24)=0,"",INDEX(Mrkting!$L:$L,SUMIFS(Mrkting!$A:$A,Mrkting!$K:$K,AH24))) ->  | AJ24: =IF(OR(AI24="",AI24=0),"",MAX(AJ$15:AJ23)+1) ->  | AK24: 0 | AP24: =MAX(AP$15:AP23)+1 -> 9 | AQ24: =SUMIFS(Periods!$11:$11,Periods!$2:$2,AP24) -> 2022-03-01 | AR24: =IF(OR(AQ24="",AQ24=0),"",MAX(AR$15:AR23)+1) -> 9 | AS24: 0 | BZ24: * | CA24: Бухгалтера | CB24: =MAX(CB$15:CB23)+1 -> 9 | CC24: 0 | CU24: BS | CV24: =MAX(CV$15:CV23)+1 -> 9 | CW24: 0
A25: =ROW() -> 25 | AH25: =MAX(AH$15:AH24)+1 -> 10 | AI25: =IF(SUMIFS(Mrkting!$A:$A,Mrkting!$K:$K,AH25)=0,"",INDEX(Mrkting!$L:$L,SUMIFS(Mrkting!$A:$A,Mrkting!$K:$K,AH25))) ->  | AJ25: =IF(OR(AI25="",AI25=0),"",MAX(AJ$15:AJ24)+1) ->  | AK25: 0 | AP25: =MAX(AP$15:AP24)+1 -> 10 | AQ25: =SUMIFS(Periods!$11:$11,Periods!$2:$2,AP25) -> 2022-04-01 | AR25: =IF(OR(AQ25="",AQ25=0),"",MAX(AR$15:AR24)+1) -> 10 | AS25: 0 | BZ25: * | CA25: Прочие сотрудники | CB25: =MAX(CB$15:CB24)+1 -> 10 | CC25: 0 | CU25: BS(+) | CV25: =MAX(CV$15:CV24)+1 -> 10 | CW25: 0
A26: =ROW() -> 26 | AH26: =MAX(AH$15:AH25)+1 -> 11 | AI26: =IF(SUMIFS(Mrkting!$A:$A,Mrkting!$K:$K,AH26)=0,"",INDEX(Mrkting!$L:$L,SUMIFS(Mrkting!$A:$A,Mrkting!$K:$K,AH26))) ->  | AJ26: =IF(OR(AI26="",AI26=0),"",MAX(AJ$15:AJ25)+1) ->  | AK26: 0 | AP26: =MAX(AP$15:AP25)+1 -> 11 | AQ26: =SUMIFS(Periods!$11:$11,Periods!$2:$2,AP26) -> 2022-05-01 | AR26: =IF(OR(AQ26="",AQ26=0),"",MAX(AR$15:AR25)+1) -> 11 | AS26: 0 | CU26: BS(-) | CV26: =MAX(CV$15:CV25)+1 -> 11 | CW26: 0
A27: =ROW() -> 27 | AH27: =MAX(AH$15:AH26)+1 -> 12 | AI27: =IF(SUMIFS(Mrkting!$A:$A,Mrkting!$K:$K,AH27)=0,"",INDEX(Mrkting!$L:$L,SUMIFS(Mrkting!$A:$A,Mrkting!$K:$K,AH27))) ->  | AJ27: =IF(OR(AI27="",AI27=0),"",MAX(AJ$15:AJ26)+1) ->  | AK27: 0 | AP27: =MAX(AP$15:AP26)+1 -> 12 | AQ27: =SUMIFS(Periods!$11:$11,Periods!$2:$2,AP27) -> 2022-06-01 | AR27: =IF(OR(AQ27="",AQ27=0),"",MAX(AR$15:AR26)+1) -> 12 | AS27: 0 | CU27: SF(+) | CV27: =MAX(CV$15:CV26)+1 -> 12 | CW27: 0
A28: =ROW() -> 28 | AH28: =MAX(AH$15:AH27)+1 -> 13 | AI28: =IF(SUMIFS(Mrkting!$A:$A,Mrkting!$K:$K,AH28)=0,"",INDEX(Mrkting!$L:$L,SUMIFS(Mrkting!$A:$A,Mrkting!$K:$K,AH28))) ->  | AJ28: =IF(OR(AI28="",AI28=0),"",MAX(AJ$15:AJ27)+1) ->  | AK28: 0 | AP28: =MAX(AP$15:AP27)+1 -> 13 | AQ28: =SUMIFS(Periods!$11:$11,Periods!$2:$2,AP28) -> 2022-07-01 | AR28: =IF(OR(AQ28="",AQ28=0),"",MAX(AR$15:AR27)+1) -> 13 | AS28: 0 | CU28: SF(-) | CV28: =MAX(CV$15:CV27)+1 -> 13 | CW28: 0
A29: =ROW() -> 29 | AH29: =MAX(AH$15:AH28)+1 -> 14 | AI29: =IF(SUMIFS(Mrkting!$A:$A,Mrkting!$K:$K,AH29)=0,"",INDEX(Mrkting!$L:$L,SUMIFS(Mrkting!$A:$A,Mrkting!$K:$K,AH29))) ->  | AJ29: =IF(OR(AI29="",AI29=0),"",MAX(AJ$15:AJ28)+1) ->  | AK29: =IF(OR(AI29=0,AI29=""),0,IF(COUNTIF(AI$15:AI$100000,AI29)=1,0,1)) -> 0 | AP29: =MAX(AP$15:AP28)+1 -> 14 | AQ29: =SUMIFS(Periods!$11:$11,Periods!$2:$2,AP29) -> 2022-08-01 | AR29: =IF(OR(AQ29="",AQ29=0),"",MAX(AR$15:AR28)+1) -> 14 | AS29: 0 | CU29: SF | CV29: =MAX(CV$15:CV28)+1 -> 14 | CW29: 0
A30: =ROW() -> 30 | AH30: =MAX(AH$15:AH29)+1 -> 15 | AI30: =IF(SUMIFS(Mrkting!$A:$A,Mrkting!$K:$K,AH30)=0,"",INDEX(Mrkting!$L:$L,SUMIFS(Mrkting!$A:$A,Mrkting!$K:$K,AH30))) ->  | AJ30: =IF(OR(AI30="",AI30=0),"",MAX(AJ$15:AJ29)+1) ->  | AK30: =IF(OR(AI30=0,AI30=""),0,IF(COUNTIF(AI$15:AI$100000,AI30)=1,0,1)) -> 0 | AP30: =MAX(AP$15:AP29)+1 -> 15 | AQ30: =SUMIFS(Periods!$11:$11,Periods!$2:$2,AP30) -> 2022-09-01 | AR30: =IF(OR(AQ30="",AQ30=0),"",MAX(AR$15:AR29)+1) -> 15 | AS30: 0
A31: =ROW() -> 31 | AP31: =MAX(AP$15:AP30)+1 -> 16 | AQ31: =SUMIFS(Periods!$11:$11,Periods!$2:$2,AP31) -> 2022-10-01 | AR31: =IF(OR(AQ31="",AQ31=0),"",MAX(AR$15:AR30)+1) -> 16 | AS31: =IF(OR(AQ31=0,AQ31=""),0,IF(COUNTIF(AQ$15:AQ$100000,AQ31)=1,0,1)) -> 0
A32: =ROW() -> 32 | AP32: =MAX(AP$15:AP31)+1 -> 17 | AQ32: =SUMIFS(Periods!$11:$11,Periods!$2:$2,AP32) -> 2022-11-01 | AR32: =IF(OR(AQ32="",AQ32=0),"",MAX(AR$15:AR31)+1) -> 17 | AS32: 0
A33: =ROW() -> 33 | AP33: =MAX(AP$15:AP32)+1 -> 18 | AQ33: =SUMIFS(Periods!$11:$11,Periods!$2:$2,AP33) -> 2022-12-01 | AR33: =IF(OR(AQ33="",AQ33=0),"",MAX(AR$15:AR32)+1) -> 18 | AS33: 0
A34: =ROW() -> 34 | AP34: =MAX(AP$15:AP33)+1 -> 19 | AQ34: =SUMIFS(Periods!$11:$11,Periods!$2:$2,AP34) -> 2023-01-01 | AR34: =IF(OR(AQ34="",AQ34=0),"",MAX(AR$15:AR33)+1) -> 19 | AS34: 0
A35: =ROW() -> 35 | AP35: =MAX(AP$15:AP34)+1 -> 20 | AQ35: =SUMIFS(Periods!$11:$11,Periods!$2:$2,AP35) -> 2023-02-01 | AR35: =IF(OR(AQ35="",AQ35=0),"",MAX(AR$15:AR34)+1) -> 20 | AS35: 0
A36: =ROW() -> 36 | AP36: =MAX(AP$15:AP35)+1 -> 21 | AQ36: =SUMIFS(Periods!$11:$11,Periods!$2:$2,AP36) -> 2023-03-01 | AR36: =IF(OR(AQ36="",AQ36=0),"",MAX(AR$15:AR35)+1) -> 21 | AS36: 0
A37: =ROW() -> 37 | AP37: =MAX(AP$15:AP36)+1 -> 22 | AQ37: =SUMIFS(Periods!$11:$11,Periods!$2:$2,AP37) -> 2023-04-01 | AR37: =IF(OR(AQ37="",AQ37=0),"",MAX(AR$15:AR36)+1) -> 22 | AS37: 0
A38: =ROW() -> 38 | AP38: =MAX(AP$15:AP37)+1 -> 23 | AQ38: =SUMIFS(Periods!$11:$11,Periods!$2:$2,AP38) -> 2023-05-01 | AR38: =IF(OR(AQ38="",AQ38=0),"",MAX(AR$15:AR37)+1) -> 23 | AS38: 0
A39: =ROW() -> 39 | AP39: =MAX(AP$15:AP38)+1 -> 24 | AQ39: =SUMIFS(Periods!$11:$11,Periods!$2:$2,AP39) -> 2023-06-01 | AR39: =IF(OR(AQ39="",AQ39=0),"",MAX(AR$15:AR38)+1) -> 24 | AS39: 0
A40: =ROW() -> 40 | AP40: =MAX(AP$15:AP39)+1 -> 25 | AQ40: =SUMIFS(Periods!$11:$11,Periods!$2:$2,AP40) -> 2023-07-01 | AR40: =IF(OR(AQ40="",AQ40=0),"",MAX(AR$15:AR39)+1) -> 25 | AS40: 0
A41: =ROW() -> 41 | AP41: =MAX(AP$15:AP40)+1 -> 26 | AQ41: =SUMIFS(Periods!$11:$11,Periods!$2:$2,AP41) -> 2023-08-01 | AR41: =IF(OR(AQ41="",AQ41=0),"",MAX(AR$15:AR40)+1) -> 26 | AS41: 0
A42: =ROW() -> 42 | AP42: =MAX(AP$15:AP41)+1 -> 27 | AQ42: =SUMIFS(Periods!$11:$11,Periods!$2:$2,AP42) -> 2023-09-01 | AR42: =IF(OR(AQ42="",AQ42=0),"",MAX(AR$15:AR41)+1) -> 27 | AS42: 0
A43: =ROW() -> 43 | I43: разработка финмоделей: https://mngmnt.ru/ | AP43: =MAX(AP$15:AP42)+1 -> 28 | AQ43: =SUMIFS(Periods!$11:$11,Periods!$2:$2,AP43) -> 2023-10-01 | AR43: =IF(OR(AQ43="",AQ43=0),"",MAX(AR$15:AR42)+1) -> 28 | AS43: 0
A44: =ROW() -> 44 | AP44: =MAX(AP$15:AP43)+1 -> 29 | AQ44: =SUMIFS(Periods!$11:$11,Periods!$2:$2,AP44) -> 2023-11-01 | AR44: =IF(OR(AQ44="",AQ44=0),"",MAX(AR$15:AR43)+1) -> 29 | AS44: 0
A45: =ROW() -> 45 | AP45: =MAX(AP$15:AP44)+1 -> 30 | AQ45: =SUMIFS(Periods!$11:$11,Periods!$2:$2,AP45) -> 2023-12-01 | AR45: =IF(OR(AQ45="",AQ45=0),"",MAX(AR$15:AR44)+1) -> 30 | AS45: 0
A46: =ROW() -> 46 | AP46: =MAX(AP$15:AP45)+1 -> 31 | AQ46: =SUMIFS(Periods!$11:$11,Periods!$2:$2,AP46) -> 2024-01-01 | AR46: =IF(OR(AQ46="",AQ46=0),"",MAX(AR$15:AR45)+1) -> 31 | AS46: 0
A47: =ROW() -> 47 | AP47: =MAX(AP$15:AP46)+1 -> 32 | AQ47: =SUMIFS(Periods!$11:$11,Periods!$2:$2,AP47) -> 2024-02-01 | AR47: =IF(OR(AQ47="",AQ47=0),"",MAX(AR$15:AR46)+1) -> 32 | AS47: 0
A48: =ROW() -> 48 | AP48: =MAX(AP$15:AP47)+1 -> 33 | AQ48: =SUMIFS(Periods!$11:$11,Periods!$2:$2,AP48) -> 2024-03-01 | AR48: =IF(OR(AQ48="",AQ48=0),"",MAX(AR$15:AR47)+1) -> 33 | AS48: 0
A49: =ROW() -> 49 | AP49: =MAX(AP$15:AP48)+1 -> 34 | AQ49: =SUMIFS(Periods!$11:$11,Periods!$2:$2,AP49) -> 2024-04-01 | AR49: =IF(OR(AQ49="",AQ49=0),"",MAX(AR$15:AR48)+1) -> 34 | AS49: 0
A50: =ROW() -> 50 | AP50: =MAX(AP$15:AP49)+1 -> 35 | AQ50: =SUMIFS(Periods!$11:$11,Periods!$2:$2,AP50) -> 2024-05-01 | AR50: =IF(OR(AQ50="",AQ50=0),"",MAX(AR$15:AR49)+1) -> 35 | AS50: 0
A51: =ROW() -> 51 | AP51: =MAX(AP$15:AP50)+1 -> 36 | AQ51: =SUMIFS(Periods!$11:$11,Periods!$2:$2,AP51) -> 2024-06-01 | AR51: =IF(OR(AQ51="",AQ51=0),"",MAX(AR$15:AR50)+1) -> 36 | AS51: 0
A52: =ROW() -> 52 | AP52: =MAX(AP$15:AP51)+1 -> 37 | AQ52: =SUMIFS(Periods!$11:$11,Periods!$2:$2,AP52) -> 2024-07-01 | AR52: =IF(OR(AQ52="",AQ52=0),"",MAX(AR$15:AR51)+1) -> 37 | AS52: 0
A53: =ROW() -> 53 | AP53: =MAX(AP$15:AP52)+1 -> 38 | AQ53: =SUMIFS(Periods!$11:$11,Periods!$2:$2,AP53) -> 2024-08-01 | AR53: =IF(OR(AQ53="",AQ53=0),"",MAX(AR$15:AR52)+1) -> 38 | AS53: 0
A54: =ROW() -> 54 | AP54: =MAX(AP$15:AP53)+1 -> 39 | AQ54: =SUMIFS(Periods!$11:$11,Periods!$2:$2,AP54) -> 2024-09-01 | AR54: =IF(OR(AQ54="",AQ54=0),"",MAX(AR$15:AR53)+1) -> 39 | AS54: 0
A55: =ROW() -> 55 | AP55: =MAX(AP$15:AP54)+1 -> 40 | AQ55: =SUMIFS(Periods!$11:$11,Periods!$2:$2,AP55) -> 2024-10-01 | AR55: =IF(OR(AQ55="",AQ55=0),"",MAX(AR$15:AR54)+1) -> 40 | AS55: 0
A56: =ROW() -> 56 | AP56: =MAX(AP$15:AP55)+1 -> 41 | AQ56: =SUMIFS(Periods!$11:$11,Periods!$2:$2,AP56) -> 2024-11-01 | AR56: =IF(OR(AQ56="",AQ56=0),"",MAX(AR$15:AR55)+1) -> 41 | AS56: 0
A57: =ROW() -> 57 | AP57: =MAX(AP$15:AP56)+1 -> 42 | AQ57: =SUMIFS(Periods!$11:$11,Periods!$2:$2,AP57) -> 2024-12-01 | AR57: =IF(OR(AQ57="",AQ57=0),"",MAX(AR$15:AR56)+1) -> 42 | AS57: 0
A58: =ROW() -> 58 | AP58: =MAX(AP$15:AP57)+1 -> 43 | AQ58: =SUMIFS(Periods!$11:$11,Periods!$2:$2,AP58) -> 2025-01-01 | AR58: =IF(OR(AQ58="",AQ58=0),"",MAX(AR$15:AR57)+1) -> 43 | AS58: 0
A59: =ROW() -> 59 | AP59: =MAX(AP$15:AP58)+1 -> 44 | AQ59: =SUMIFS(Periods!$11:$11,Periods!$2:$2,AP59) -> 2025-02-01 | AR59: =IF(OR(AQ59="",AQ59=0),"",MAX(AR$15:AR58)+1) -> 44 | AS59: 0
A60: =ROW() -> 60 | AP60: =MAX(AP$15:AP59)+1 -> 45 | AQ60: =SUMIFS(Periods!$11:$11,Periods!$2:$2,AP60) -> 2025-03-01 | AR60: =IF(OR(AQ60="",AQ60=0),"",MAX(AR$15:AR59)+1) -> 45 | AS60: 0
A61: =ROW() -> 61 | AP61: =MAX(AP$15:AP60)+1 -> 46 | AQ61: =SUMIFS(Periods!$11:$11,Periods!$2:$2,AP61) -> 2025-04-01 | AR61: =IF(OR(AQ61="",AQ61=0),"",MAX(AR$15:AR60)+1) -> 46 | AS61: 0
A62: =ROW() -> 62 | AP62: =MAX(AP$15:AP61)+1 -> 47 | AQ62: =SUMIFS(Periods!$11:$11,Periods!$2:$2,AP62) -> 2025-05-01 | AR62: =IF(OR(AQ62="",AQ62=0),"",MAX(AR$15:AR61)+1) -> 47 | AS62: 0
A63: =ROW() -> 63 | AP63: =MAX(AP$15:AP62)+1 -> 48 | AQ63: =SUMIFS(Periods!$11:$11,Periods!$2:$2,AP63) -> 2025-06-01 | AR63: =IF(OR(AQ63="",AQ63=0),"",MAX(AR$15:AR62)+1) -> 48 | AS63: 0
A64: =ROW() -> 64 | AP64: =MAX(AP$15:AP63)+1 -> 49 | AQ64: =SUMIFS(Periods!$11:$11,Periods!$2:$2,AP64) -> 2025-07-01 | AR64: =IF(OR(AQ64="",AQ64=0),"",MAX(AR$15:AR63)+1) -> 49 | AS64: 0
A65: =ROW() -> 65 | AP65: =MAX(AP$15:AP64)+1 -> 50 | AQ65: =SUMIFS(Periods!$11:$11,Periods!$2:$2,AP65) -> 2025-08-01 | AR65: =IF(OR(AQ65="",AQ65=0),"",MAX(AR$15:AR64)+1) -> 50 | AS65: 0
A66: =ROW() -> 66 | AP66: =MAX(AP$15:AP65)+1 -> 51 | AQ66: =SUMIFS(Periods!$11:$11,Periods!$2:$2,AP66) -> 2025-09-01 | AR66: =IF(OR(AQ66="",AQ66=0),"",MAX(AR$15:AR65)+1) -> 51 | AS66: 0
A67: =ROW() -> 67 | AP67: =MAX(AP$15:AP66)+1 -> 52 | AQ67: =SUMIFS(Periods!$11:$11,Periods!$2:$2,AP67) -> 2025-10-01 | AR67: =IF(OR(AQ67="",AQ67=0),"",MAX(AR$15:AR66)+1) -> 52 | AS67: 0
A68: =ROW() -> 68 | AP68: =MAX(AP$15:AP67)+1 -> 53 | AQ68: =SUMIFS(Periods!$11:$11,Periods!$2:$2,AP68) -> 2025-11-01 | AR68: =IF(OR(AQ68="",AQ68=0),"",MAX(AR$15:AR67)+1) -> 53 | AS68: 0
A69: =ROW() -> 69 | AP69: =MAX(AP$15:AP68)+1 -> 54 | AQ69: =SUMIFS(Periods!$11:$11,Periods!$2:$2,AP69) -> 2025-12-01 | AR69: =IF(OR(AQ69="",AQ69=0),"",MAX(AR$15:AR68)+1) -> 54 | AS69: 0
A70: =ROW() -> 70 | AP70: =MAX(AP$15:AP69)+1 -> 55 | AQ70: =SUMIFS(Periods!$11:$11,Periods!$2:$2,AP70) -> 2026-01-01 | AR70: =IF(OR(AQ70="",AQ70=0),"",MAX(AR$15:AR69)+1) -> 55 | AS70: 0
AP71: =MAX(AP$15:AP70)+1 -> 56 | AQ71: =SUMIFS(Periods!$11:$11,Periods!$2:$2,AP71) -> 2026-02-01 | AR71: =IF(OR(AQ71="",AQ71=0),"",MAX(AR$15:AR70)+1) -> 56 | AS71: 0
AP72: =MAX(AP$15:AP71)+1 -> 57 | AQ72: =SUMIFS(Periods!$11:$11,Periods!$2:$2,AP72) -> 2026-03-01 | AR72: =IF(OR(AQ72="",AQ72=0),"",MAX(AR$15:AR71)+1) -> 57 | AS72: 0
AP73: =MAX(AP$15:AP72)+1 -> 58 | AQ73: =SUMIFS(Periods!$11:$11,Periods!$2:$2,AP73) -> 2026-04-01 | AR73: =IF(OR(AQ73="",AQ73=0),"",MAX(AR$15:AR72)+1) -> 58 | AS73: 0
AP74: =MAX(AP$15:AP73)+1 -> 59 | AQ74: =SUMIFS(Periods!$11:$11,Periods!$2:$2,AP74) -> 2026-05-01 | AR74: =IF(OR(AQ74="",AQ74=0),"",MAX(AR$15:AR73)+1) -> 59 | AS74: 0
AP75: =MAX(AP$15:AP74)+1 -> 60 | AQ75: =SUMIFS(Periods!$11:$11,Periods!$2:$2,AP75) -> 2026-06-01 | AR75: =IF(OR(AQ75="",AQ75=0),"",MAX(AR$15:AR74)+1) -> 60 | AS75: 0
AP76: =MAX(AP$15:AP75)+1 -> 61 | AQ76: =SUMIFS(Periods!$11:$11,Periods!$2:$2,AP76) -> 2026-07-01 | AR76: =IF(OR(AQ76="",AQ76=0),"",MAX(AR$15:AR75)+1) -> 61 | AS76: 0
AP77: =MAX(AP$15:AP76)+1 -> 62 | AQ77: =SUMIFS(Periods!$11:$11,Periods!$2:$2,AP77) -> 2026-08-01 | AR77: =IF(OR(AQ77="",AQ77=0),"",MAX(AR$15:AR76)+1) -> 62 | AS77: 0
AP78: =MAX(AP$15:AP77)+1 -> 63 | AQ78: =SUMIFS(Periods!$11:$11,Periods!$2:$2,AP78) -> 2026-09-01 | AR78: =IF(OR(AQ78="",AQ78=0),"",MAX(AR$15:AR77)+1) -> 63 | AS78: 0
AP79: =MAX(AP$15:AP78)+1 -> 64 | AQ79: =SUMIFS(Periods!$11:$11,Periods!$2:$2,AP79) -> 2026-10-01 | AR79: =IF(OR(AQ79="",AQ79=0),"",MAX(AR$15:AR78)+1) -> 64 | AS79: 0
AP80: =MAX(AP$15:AP79)+1 -> 65 | AQ80: =SUMIFS(Periods!$11:$11,Periods!$2:$2,AP80) -> 2026-11-01 | AR80: =IF(OR(AQ80="",AQ80=0),"",MAX(AR$15:AR79)+1) -> 65 | AS80: 0
AP81: =MAX(AP$15:AP80)+1 -> 66 | AQ81: =SUMIFS(Periods!$11:$11,Periods!$2:$2,AP81) -> 2026-12-01 | AR81: =IF(OR(AQ81="",AQ81=0),"",MAX(AR$15:AR80)+1) -> 66 | AS81: 0
AP82: =MAX(AP$15:AP81)+1 -> 67 | AQ82: =SUMIFS(Periods!$11:$11,Periods!$2:$2,AP82) -> 2027-01-01 | AR82: =IF(OR(AQ82="",AQ82=0),"",MAX(AR$15:AR81)+1) -> 67 | AS82: 0
AP83: =MAX(AP$15:AP82)+1 -> 68 | AQ83: =SUMIFS(Periods!$11:$11,Periods!$2:$2,AP83) -> 2027-02-01 | AR83: =IF(OR(AQ83="",AQ83=0),"",MAX(AR$15:AR82)+1) -> 68 | AS83: 0
AP84: =MAX(AP$15:AP83)+1 -> 69 | AQ84: =SUMIFS(Periods!$11:$11,Periods!$2:$2,AP84) -> 2027-03-01 | AR84: =IF(OR(AQ84="",AQ84=0),"",MAX(AR$15:AR83)+1) -> 69 | AS84: 0
AP85: =MAX(AP$15:AP84)+1 -> 70 | AQ85: =SUMIFS(Periods!$11:$11,Periods!$2:$2,AP85) -> 2027-04-01 | AR85: =IF(OR(AQ85="",AQ85=0),"",MAX(AR$15:AR84)+1) -> 70 | AS85: 0
AP86: =MAX(AP$15:AP85)+1 -> 71 | AQ86: =SUMIFS(Periods!$11:$11,Periods!$2:$2,AP86) -> 2027-05-01 | AR86: =IF(OR(AQ86="",AQ86=0),"",MAX(AR$15:AR85)+1) -> 71 | AS86: 0
AP87: =MAX(AP$15:AP86)+1 -> 72 | AQ87: =SUMIFS(Periods!$11:$11,Periods!$2:$2,AP87) -> 2027-06-01 | AR87: =IF(OR(AQ87="",AQ87=0),"",MAX(AR$15:AR86)+1) -> 72 | AS87: 0
AP88: =MAX(AP$15:AP87)+1 -> 73 | AQ88: =SUMIFS(Periods!$11:$11,Periods!$2:$2,AP88) -> 00:00:00 | AR88: =IF(OR(AQ88="",AQ88=0),"",MAX(AR$15:AR87)+1) ->  | AS88: 0
AP89: =MAX(AP$15:AP88)+1 -> 74 | AQ89: =SUMIFS(Periods!$11:$11,Periods!$2:$2,AP89) -> 00:00:00 | AR89: =IF(OR(AQ89="",AQ89=0),"",MAX(AR$15:AR88)+1) ->  | AS89: 0
AP90: =MAX(AP$15:AP89)+1 -> 75 | AQ90: =SUMIFS(Periods!$11:$11,Periods!$2:$2,AP90) -> 00:00:00 | AR90: =IF(OR(AQ90="",AQ90=0),"",MAX(AR$15:AR89)+1) ->  | AS90: 0
AP91: =MAX(AP$15:AP90)+1 -> 76 | AQ91: =SUMIFS(Periods!$11:$11,Periods!$2:$2,AP91) -> 00:00:00 | AR91: =IF(OR(AQ91="",AQ91=0),"",MAX(AR$15:AR90)+1) ->  | AS91: 0
AP92: =MAX(AP$15:AP91)+1 -> 77 | AQ92: =SUMIFS(Periods!$11:$11,Periods!$2:$2,AP92) -> 00:00:00 | AR92: =IF(OR(AQ92="",AQ92=0),"",MAX(AR$15:AR91)+1) ->  | AS92: 0
AP93: =MAX(AP$15:AP92)+1 -> 78 | AQ93: =SUMIFS(Periods!$11:$11,Periods!$2:$2,AP93) -> 00:00:00 | AR93: =IF(OR(AQ93="",AQ93=0),"",MAX(AR$15:AR92)+1) ->  | AS93: 0
AP94: =MAX(AP$15:AP93)+1 -> 79 | AQ94: =SUMIFS(Periods!$11:$11,Periods!$2:$2,AP94) -> 00:00:00 | AR94: =IF(OR(AQ94="",AQ94=0),"",MAX(AR$15:AR93)+1) ->  | AS94: 0
AP95: =MAX(AP$15:AP94)+1 -> 80 | AQ95: =SUMIFS(Periods!$11:$11,Periods!$2:$2,AP95) -> 00:00:00 | AR95: =IF(OR(AQ95="",AQ95=0),"",MAX(AR$15:AR94)+1) ->  | AS95: =IF(OR(AQ95=0,AQ95=""),0,IF(COUNTIF(AQ$15:AQ$100000,AQ95)=1,0,1)) -> 0
AP96: =MAX(AP$15:AP95)+1 -> 81 | AQ96: =SUMIFS(Periods!$11:$11,Periods!$2:$2,AP96) -> 00:00:00 | AR96: =IF(OR(AQ96="",AQ96=0),"",MAX(AR$15:AR95)+1) ->  | AS96: 0
AP97: =MAX(AP$15:AP96)+1 -> 82 | AQ97: =SUMIFS(Periods!$11:$11,Periods!$2:$2,AP97) -> 00:00:00 | AR97: =IF(OR(AQ97="",AQ97=0),"",MAX(AR$15:AR96)+1) ->  | AS97: 0
AP98: =MAX(AP$15:AP97)+1 -> 83 | AQ98: =SUMIFS(Periods!$11:$11,Periods!$2:$2,AP98) -> 00:00:00 | AR98: =IF(OR(AQ98="",AQ98=0),"",MAX(AR$15:AR97)+1) ->  | AS98: 0
AP99: =MAX(AP$15:AP98)+1 -> 84 | AQ99: =SUMIFS(Periods!$11:$11,Periods!$2:$2,AP99) -> 00:00:00 | AR99: =IF(OR(AQ99="",AQ99=0),"",MAX(AR$15:AR98)+1) ->  | AS99: 0
AP100: =MAX(AP$15:AP99)+1 -> 85 | AQ100: =SUMIFS(Periods!$11:$11,Periods!$2:$2,AP100) -> 00:00:00 | AR100: =IF(OR(AQ100="",AQ100=0),"",MAX(AR$15:AR99)+1) ->  | AS100: 0
AP101: =MAX(AP$15:AP100)+1 -> 86 | AQ101: =SUMIFS(Periods!$11:$11,Periods!$2:$2,AP101) -> 00:00:00 | AR101: =IF(OR(AQ101="",AQ101=0),"",MAX(AR$15:AR100)+1) ->  | AS101: 0
AP102: =MAX(AP$15:AP101)+1 -> 87 | AQ102: =SUMIFS(Periods!$11:$11,Periods!$2:$2,AP102) -> 00:00:00 | AR102: =IF(OR(AQ102="",AQ102=0),"",MAX(AR$15:AR101)+1) ->  | AS102: 0
AP103: =MAX(AP$15:AP102)+1 -> 88 | AQ103: =SUMIFS(Periods!$11:$11,Periods!$2:$2,AP103) -> 00:00:00 | AR103: =IF(OR(AQ103="",AQ103=0),"",MAX(AR$15:AR102)+1) ->  | AS103: 0
AP104: =MAX(AP$15:AP103)+1 -> 89 | AQ104: =SUMIFS(Periods!$11:$11,Periods!$2:$2,AP104) -> 00:00:00 | AR104: =IF(OR(AQ104="",AQ104=0),"",MAX(AR$15:AR103)+1) ->  | AS104: 0
AP105: =MAX(AP$15:AP104)+1 -> 90 | AQ105: =SUMIFS(Periods!$11:$11,Periods!$2:$2,AP105) -> 00:00:00 | AR105: =IF(OR(AQ105="",AQ105=0),"",MAX(AR$15:AR104)+1) ->  | AS105: 0
AP106: =MAX(AP$15:AP105)+1 -> 91 | AQ106: =SUMIFS(Periods!$11:$11,Periods!$2:$2,AP106) -> 00:00:00 | AR106: =IF(OR(AQ106="",AQ106=0),"",MAX(AR$15:AR105)+1) ->  | AS106: 0
AP107: =MAX(AP$15:AP106)+1 -> 92 | AQ107: =SUMIFS(Periods!$11:$11,Periods!$2:$2,AP107) -> 00:00:00 | AR107: =IF(OR(AQ107="",AQ107=0),"",MAX(AR$15:AR106)+1) ->  | AS107: 0
AP108: =MAX(AP$15:AP107)+1 -> 93 | AQ108: =SUMIFS(Periods!$11:$11,Periods!$2:$2,AP108) -> 00:00:00 | AR108: =IF(OR(AQ108="",AQ108=0),"",MAX(AR$15:AR107)+1) ->  | AS108: 0
AP109: =MAX(AP$15:AP108)+1 -> 94 | AQ109: =SUMIFS(Periods!$11:$11,Periods!$2:$2,AP109) -> 00:00:00 | AR109: =IF(OR(AQ109="",AQ109=0),"",MAX(AR$15:AR108)+1) ->  | AS109: 0
AP110: =MAX(AP$15:AP109)+1 -> 95 | AQ110: =SUMIFS(Periods!$11:$11,Periods!$2:$2,AP110) -> 00:00:00 | AR110: =IF(OR(AQ110="",AQ110=0),"",MAX(AR$15:AR109)+1) ->  | AS110: 0
AP111: =MAX(AP$15:AP110)+1 -> 96 | AQ111: =SUMIFS(Periods!$11:$11,Periods!$2:$2,AP111) -> 00:00:00 | AR111: =IF(OR(AQ111="",AQ111=0),"",MAX(AR$15:AR110)+1) ->  | AS111: 0
AP112: =MAX(AP$15:AP111)+1 -> 97 | AQ112: =SUMIFS(Periods!$11:$11,Periods!$2:$2,AP112) -> 00:00:00 | AR112: =IF(OR(AQ112="",AQ112=0),"",MAX(AR$15:AR111)+1) ->  | AS112: 0
AP113: =MAX(AP$15:AP112)+1 -> 98 | AQ113: =SUMIFS(Periods!$11:$11,Periods!$2:$2,AP113) -> 00:00:00 | AR113: =IF(OR(AQ113="",AQ113=0),"",MAX(AR$15:AR112)+1) ->  | AS113: 0
AP114: =MAX(AP$15:AP113)+1 -> 99 | AQ114: =SUMIFS(Periods!$11:$11,Periods!$2:$2,AP114) -> 00:00:00 | AR114: =IF(OR(AQ114="",AQ114=0),"",MAX(AR$15:AR113)+1) ->  | AS114: 0
AP115: =MAX(AP$15:AP114)+1 -> 100 | AQ115: =SUMIFS(Periods!$11:$11,Periods!$2:$2,AP115) -> 00:00:00 | AR115: =IF(OR(AQ115="",AQ115=0),"",MAX(AR$15:AR114)+1) ->  | AS115: 0
AP116: =MAX(AP$15:AP115)+1 -> 101 | AQ116: =SUMIFS(Periods!$11:$11,Periods!$2:$2,AP116) -> 00:00:00 | AR116: =IF(OR(AQ116="",AQ116=0),"",MAX(AR$15:AR115)+1) ->  | AS116: 0
AP117: =MAX(AP$15:AP116)+1 -> 102 | AQ117: =SUMIFS(Periods!$11:$11,Periods!$2:$2,AP117) -> 00:00:00 | AR117: =IF(OR(AQ117="",AQ117=0),"",MAX(AR$15:AR116)+1) ->  | AS117: 0
AP118: =MAX(AP$15:AP117)+1 -> 103 | AQ118: =SUMIFS(Periods!$11:$11,Periods!$2:$2,AP118) -> 00:00:00 | AR118: =IF(OR(AQ118="",AQ118=0),"",MAX(AR$15:AR117)+1) ->  | AS118: 0
AP119: =MAX(AP$15:AP118)+1 -> 104 | AQ119: =SUMIFS(Periods!$11:$11,Periods!$2:$2,AP119) -> 00:00:00 | AR119: =IF(OR(AQ119="",AQ119=0),"",MAX(AR$15:AR118)+1) ->  | AS119: 0
AP120: =MAX(AP$15:AP119)+1 -> 105 | AQ120: =SUMIFS(Periods!$11:$11,Periods!$2:$2,AP120) -> 00:00:00 | AR120: =IF(OR(AQ120="",AQ120=0),"",MAX(AR$15:AR119)+1) ->  | AS120: 0
AP121: =MAX(AP$15:AP120)+1 -> 106 | AQ121: =SUMIFS(Periods!$11:$11,Periods!$2:$2,AP121) -> 00:00:00 | AR121: =IF(OR(AQ121="",AQ121=0),"",MAX(AR$15:AR120)+1) ->  | AS121: 0
AP122: =MAX(AP$15:AP121)+1 -> 107 | AQ122: =SUMIFS(Periods!$11:$11,Periods!$2:$2,AP122) -> 00:00:00 | AR122: =IF(OR(AQ122="",AQ122=0),"",MAX(AR$15:AR121)+1) ->  | AS122: 0
AP123: =MAX(AP$15:AP122)+1 -> 108 | AQ123: =SUMIFS(Periods!$11:$11,Periods!$2:$2,AP123) -> 00:00:00 | AR123: =IF(OR(AQ123="",AQ123=0),"",MAX(AR$15:AR122)+1) ->  | AS123: 0
AP124: =MAX(AP$15:AP123)+1 -> 109 | AQ124: =SUMIFS(Periods!$11:$11,Periods!$2:$2,AP124) -> 00:00:00 | AR124: =IF(OR(AQ124="",AQ124=0),"",MAX(AR$15:AR123)+1) ->  | AS124: 0
AP125: =MAX(AP$15:AP124)+1 -> 110 | AQ125: =SUMIFS(Periods!$11:$11,Periods!$2:$2,AP125) -> 00:00:00 | AR125: =IF(OR(AQ125="",AQ125=0),"",MAX(AR$15:AR124)+1) ->  | AS125: 0
AP126: =MAX(AP$15:AP125)+1 -> 111 | AQ126: =SUMIFS(Periods!$11:$11,Periods!$2:$2,AP126) -> 00:00:00 | AR126: =IF(OR(AQ126="",AQ126=0),"",MAX(AR$15:AR125)+1) ->  | AS126: 0
AP127: =MAX(AP$15:AP126)+1 -> 112 | AQ127: =SUMIFS(Periods!$11:$11,Periods!$2:$2,AP127) -> 00:00:00 | AR127: =IF(OR(AQ127="",AQ127=0),"",MAX(AR$15:AR126)+1) ->  | AS127: 0
AP128: =MAX(AP$15:AP127)+1 -> 113 | AQ128: =SUMIFS(Periods!$11:$11,Periods!$2:$2,AP128) -> 00:00:00 | AR128: =IF(OR(AQ128="",AQ128=0),"",MAX(AR$15:AR127)+1) ->  | AS128: 0
AP129: =MAX(AP$15:AP128)+1 -> 114 | AQ129: =SUMIFS(Periods!$11:$11,Periods!$2:$2,AP129) -> 00:00:00 | AR129: =IF(OR(AQ129="",AQ129=0),"",MAX(AR$15:AR128)+1) ->  | AS129: 0
AP130: =MAX(AP$15:AP129)+1 -> 115 | AQ130: =SUMIFS(Periods!$11:$11,Periods!$2:$2,AP130) -> 00:00:00 | AR130: =IF(OR(AQ130="",AQ130=0),"",MAX(AR$15:AR129)+1) ->  | AS130: 0
AP131: =MAX(AP$15:AP130)+1 -> 116 | AQ131: =SUMIFS(Periods!$11:$11,Periods!$2:$2,AP131) -> 00:00:00 | AR131: =IF(OR(AQ131="",AQ131=0),"",MAX(AR$15:AR130)+1) ->  | AS131: 0
AP132: =MAX(AP$15:AP131)+1 -> 117 | AQ132: =SUMIFS(Periods!$11:$11,Periods!$2:$2,AP132) -> 00:00:00 | AR132: =IF(OR(AQ132="",AQ132=0),"",MAX(AR$15:AR131)+1) ->  | AS132: 0
AP133: =MAX(AP$15:AP132)+1 -> 118 | AQ133: =SUMIFS(Periods!$11:$11,Periods!$2:$2,AP133) -> 00:00:00 | AR133: =IF(OR(AQ133="",AQ133=0),"",MAX(AR$15:AR132)+1) ->  | AS133: 0
AP134: =MAX(AP$15:AP133)+1 -> 119 | AQ134: =SUMIFS(Periods!$11:$11,Periods!$2:$2,AP134) -> 00:00:00 | AR134: =IF(OR(AQ134="",AQ134=0),"",MAX(AR$15:AR133)+1) ->  | AS134: 0
AP135: =MAX(AP$15:AP134)+1 -> 120 | AQ135: =SUMIFS(Periods!$11:$11,Periods!$2:$2,AP135) -> 00:00:00 | AR135: =IF(OR(AQ135="",AQ135=0),"",MAX(AR$15:AR134)+1) ->  | AS135: 0
AP136: =MAX(AP$15:AP135)+1 -> 121 | AQ136: =SUMIFS(Periods!$11:$11,Periods!$2:$2,AP136) -> 00:00:00 | AR136: =IF(OR(AQ136="",AQ136=0),"",MAX(AR$15:AR135)+1) ->  | AS136: 0
AP137: =MAX(AP$15:AP136)+1 -> 122 | AQ137: =SUMIFS(Periods!$11:$11,Periods!$2:$2,AP137) -> 00:00:00 | AR137: =IF(OR(AQ137="",AQ137=0),"",MAX(AR$15:AR136)+1) ->  | AS137: 0
AP138: =MAX(AP$15:AP137)+1 -> 123 | AQ138: =SUMIFS(Periods!$11:$11,Periods!$2:$2,AP138) -> 00:00:00 | AR138: =IF(OR(AQ138="",AQ138=0),"",MAX(AR$15:AR137)+1) ->  | AS138: 0
AP139: =MAX(AP$15:AP138)+1 -> 124 | AQ139: =SUMIFS(Periods!$11:$11,Periods!$2:$2,AP139) -> 00:00:00 | AR139: =IF(OR(AQ139="",AQ139=0),"",MAX(AR$15:AR138)+1) ->  | AS139: 0
AP140: =MAX(AP$15:AP139)+1 -> 125 | AQ140: =SUMIFS(Periods!$11:$11,Periods!$2:$2,AP140) -> 00:00:00 | AR140: =IF(OR(AQ140="",AQ140=0),"",MAX(AR$15:AR139)+1) ->  | AS140: 0
AP141: =MAX(AP$15:AP140)+1 -> 126 | AQ141: =SUMIFS(Periods!$11:$11,Periods!$2:$2,AP141) -> 00:00:00 | AR141: =IF(OR(AQ141="",AQ141=0),"",MAX(AR$15:AR140)+1) ->  | AS141: 0
AP142: =MAX(AP$15:AP141)+1 -> 127 | AQ142: =SUMIFS(Periods!$11:$11,Periods!$2:$2,AP142) -> 00:00:00 | AR142: =IF(OR(AQ142="",AQ142=0),"",MAX(AR$15:AR141)+1) ->  | AS142: 0
AP143: =MAX(AP$15:AP142)+1 -> 128 | AQ143: =SUMIFS(Periods!$11:$11,Periods!$2:$2,AP143) -> 00:00:00 | AR143: =IF(OR(AQ143="",AQ143=0),"",MAX(AR$15:AR142)+1) ->  | AS143: 0
AP144: =MAX(AP$15:AP143)+1 -> 129 | AQ144: =SUMIFS(Periods!$11:$11,Periods!$2:$2,AP144) -> 00:00:00 | AR144: =IF(OR(AQ144="",AQ144=0),"",MAX(AR$15:AR143)+1) ->  | AS144: 0
AP145: =MAX(AP$15:AP144)+1 -> 130 | AQ145: =SUMIFS(Periods!$11:$11,Periods!$2:$2,AP145) -> 00:00:00 | AR145: =IF(OR(AQ145="",AQ145=0),"",MAX(AR$15:AR144)+1) ->  | AS145: 0
AP146: =MAX(AP$15:AP145)+1 -> 131 | AQ146: =SUMIFS(Periods!$11:$11,Periods!$2:$2,AP146) -> 00:00:00 | AR146: =IF(OR(AQ146="",AQ146=0),"",MAX(AR$15:AR145)+1) ->  | AS146: 0
AP147: =MAX(AP$15:AP146)+1 -> 132 | AQ147: =SUMIFS(Periods!$11:$11,Periods!$2:$2,AP147) -> 00:00:00 | AR147: =IF(OR(AQ147="",AQ147=0),"",MAX(AR$15:AR146)+1) ->  | AS147: 0
AP148: =MAX(AP$15:AP147)+1 -> 133 | AQ148: =SUMIFS(Periods!$11:$11,Periods!$2:$2,AP148) -> 00:00:00 | AR148: =IF(OR(AQ148="",AQ148=0),"",MAX(AR$15:AR147)+1) ->  | AS148: 0
AP149: =MAX(AP$15:AP148)+1 -> 134 | AQ149: =SUMIFS(Periods!$11:$11,Periods!$2:$2,AP149) -> 00:00:00 | AR149: =IF(OR(AQ149="",AQ149=0),"",MAX(AR$15:AR148)+1) ->  | AS149: 0
AP150: =MAX(AP$15:AP149)+1 -> 135 | AQ150: =SUMIFS(Periods!$11:$11,Periods!$2:$2,AP150) -> 00:00:00 | AR150: =IF(OR(AQ150="",AQ150=0),"",MAX(AR$15:AR149)+1) ->  | AS150: 0
AP151: =MAX(AP$15:AP150)+1 -> 136 | AQ151: =SUMIFS(Periods!$11:$11,Periods!$2:$2,AP151) -> 00:00:00 | AR151: =IF(OR(AQ151="",AQ151=0),"",MAX(AR$15:AR150)+1) ->  | AS151: 0
AP152: =MAX(AP$15:AP151)+1 -> 137 | AQ152: =SUMIFS(Periods!$11:$11,Periods!$2:$2,AP152) -> 00:00:00 | AR152: =IF(OR(AQ152="",AQ152=0),"",MAX(AR$15:AR151)+1) ->  | AS152: 0
AP153: =MAX(AP$15:AP152)+1 -> 138 | AQ153: =SUMIFS(Periods!$11:$11,Periods!$2:$2,AP153) -> 00:00:00 | AR153: =IF(OR(AQ153="",AQ153=0),"",MAX(AR$15:AR152)+1) ->  | AS153: 0
AP154: =MAX(AP$15:AP153)+1 -> 139 | AQ154: =SUMIFS(Periods!$11:$11,Periods!$2:$2,AP154) -> 00:00:00 | AR154: =IF(OR(AQ154="",AQ154=0),"",MAX(AR$15:AR153)+1) ->  | AS154: 0
AP155: =MAX(AP$15:AP154)+1 -> 140 | AQ155: =SUMIFS(Periods!$11:$11,Periods!$2:$2,AP155) -> 00:00:00 | AR155: =IF(OR(AQ155="",AQ155=0),"",MAX(AR$15:AR154)+1) ->  | AS155: 0
AP156: =MAX(AP$15:AP155)+1 -> 141 | AQ156: =SUMIFS(Periods!$11:$11,Periods!$2:$2,AP156) -> 00:00:00 | AR156: =IF(OR(AQ156="",AQ156=0),"",MAX(AR$15:AR155)+1) ->  | AS156: 0
AP157: =MAX(AP$15:AP156)+1 -> 142 | AQ157: =SUMIFS(Periods!$11:$11,Periods!$2:$2,AP157) -> 00:00:00 | AR157: =IF(OR(AQ157="",AQ157=0),"",MAX(AR$15:AR156)+1) ->  | AS157: 0
AP158: =MAX(AP$15:AP157)+1 -> 143 | AQ158: =SUMIFS(Periods!$11:$11,Periods!$2:$2,AP158) -> 00:00:00 | AR158: =IF(OR(AQ158="",AQ158=0),"",MAX(AR$15:AR157)+1) ->  | AS158: 0
AP159: =MAX(AP$15:AP158)+1 -> 144 | AQ159: =SUMIFS(Periods!$11:$11,Periods!$2:$2,AP159) -> 00:00:00 | AR159: =IF(OR(AQ159="",AQ159=0),"",MAX(AR$15:AR158)+1) ->  | AS159: =IF(OR(AQ159=0,AQ159=""),0,IF(COUNTIF(AQ$15:AQ$100000,AQ159)=1,0,1)) -> 0
AP160: =MAX(AP$15:AP159)+1 -> 145 | AQ160: =SUMIFS(Periods!$11:$11,Periods!$2:$2,AP160) -> 00:00:00 | AR160: =IF(OR(AQ160="",AQ160=0),"",MAX(AR$15:AR159)+1) ->  | AS160: 0
AP161: =MAX(AP$15:AP160)+1 -> 146 | AQ161: =SUMIFS(Periods!$11:$11,Periods!$2:$2,AP161) -> 00:00:00 | AR161: =IF(OR(AQ161="",AQ161=0),"",MAX(AR$15:AR160)+1) ->  | AS161: 0
AP162: =MAX(AP$15:AP161)+1 -> 147 | AQ162: =SUMIFS(Periods!$11:$11,Periods!$2:$2,AP162) -> 00:00:00 | AR162: =IF(OR(AQ162="",AQ162=0),"",MAX(AR$15:AR161)+1) ->  | AS162: 0
AP163: =MAX(AP$15:AP162)+1 -> 148 | AQ163: =SUMIFS(Periods!$11:$11,Periods!$2:$2,AP163) -> 00:00:00 | AR163: =IF(OR(AQ163="",AQ163=0),"",MAX(AR$15:AR162)+1) ->  | AS163: 0
AP164: =MAX(AP$15:AP163)+1 -> 149 | AQ164: =SUMIFS(Periods!$11:$11,Periods!$2:$2,AP164) -> 00:00:00 | AR164: =IF(OR(AQ164="",AQ164=0),"",MAX(AR$15:AR163)+1) ->  | AS164: 0
AP165: =MAX(AP$15:AP164)+1 -> 150 | AQ165: =SUMIFS(Periods!$11:$11,Periods!$2:$2,AP165) -> 00:00:00 | AR165: =IF(OR(AQ165="",AQ165=0),"",MAX(AR$15:AR164)+1) ->  | AS165: 0
AP166: =MAX(AP$15:AP165)+1 -> 151 | AQ166: =SUMIFS(Periods!$11:$11,Periods!$2:$2,AP166) -> 00:00:00 | AR166: =IF(OR(AQ166="",AQ166=0),"",MAX(AR$15:AR165)+1) ->  | AS166: 0
AP167: =MAX(AP$15:AP166)+1 -> 152 | AQ167: =SUMIFS(Periods!$11:$11,Periods!$2:$2,AP167) -> 00:00:00 | AR167: =IF(OR(AQ167="",AQ167=0),"",MAX(AR$15:AR166)+1) ->  | AS167: 0
AP168: =MAX(AP$15:AP167)+1 -> 153 | AQ168: =SUMIFS(Periods!$11:$11,Periods!$2:$2,AP168) -> 00:00:00 | AR168: =IF(OR(AQ168="",AQ168=0),"",MAX(AR$15:AR167)+1) ->  | AS168: 0
AP169: =MAX(AP$15:AP168)+1 -> 154 | AQ169: =SUMIFS(Periods!$11:$11,Periods!$2:$2,AP169) -> 00:00:00 | AR169: =IF(OR(AQ169="",AQ169=0),"",MAX(AR$15:AR168)+1) ->  | AS169: 0
AP170: =MAX(AP$15:AP169)+1 -> 155 | AQ170: =SUMIFS(Periods!$11:$11,Periods!$2:$2,AP170) -> 00:00:00 | AR170: =IF(OR(AQ170="",AQ170=0),"",MAX(AR$15:AR169)+1) ->  | AS170: 0
AP171: =MAX(AP$15:AP170)+1 -> 156 | AQ171: =SUMIFS(Periods!$11:$11,Periods!$2:$2,AP171) -> 00:00:00 | AR171: =IF(OR(AQ171="",AQ171=0),"",MAX(AR$15:AR170)+1) ->  | AS171: 0
AP172: =MAX(AP$15:AP171)+1 -> 157 | AQ172: =SUMIFS(Periods!$11:$11,Periods!$2:$2,AP172) -> 00:00:00 | AR172: =IF(OR(AQ172="",AQ172=0),"",MAX(AR$15:AR171)+1) ->  | AS172: 0
AP173: =MAX(AP$15:AP172)+1 -> 158 | AQ173: =SUMIFS(Periods!$11:$11,Periods!$2:$2,AP173) -> 00:00:00 | AR173: =IF(OR(AQ173="",AQ173=0),"",MAX(AR$15:AR172)+1) ->  | AS173: 0
AP174: =MAX(AP$15:AP173)+1 -> 159 | AQ174: =SUMIFS(Periods!$11:$11,Periods!$2:$2,AP174) -> 00:00:00 | AR174: =IF(OR(AQ174="",AQ174=0),"",MAX(AR$15:AR173)+1) ->  | AS174: 0
AP175: =MAX(AP$15:AP174)+1 -> 160 | AQ175: =SUMIFS(Periods!$11:$11,Periods!$2:$2,AP175) -> 00:00:00 | AR175: =IF(OR(AQ175="",AQ175=0),"",MAX(AR$15:AR174)+1) ->  | AS175: 0
AP176: =MAX(AP$15:AP175)+1 -> 161 | AQ176: =SUMIFS(Periods!$11:$11,Periods!$2:$2,AP176) -> 00:00:00 | AR176: =IF(OR(AQ176="",AQ176=0),"",MAX(AR$15:AR175)+1) ->  | AS176: 0
AP177: =MAX(AP$15:AP176)+1 -> 162 | AQ177: =SUMIFS(Periods!$11:$11,Periods!$2:$2,AP177) -> 00:00:00 | AR177: =IF(OR(AQ177="",AQ177=0),"",MAX(AR$15:AR176)+1) ->  | AS177: 0
AP178: =MAX(AP$15:AP177)+1 -> 163 | AQ178: =SUMIFS(Periods!$11:$11,Periods!$2:$2,AP178) -> 00:00:00 | AR178: =IF(OR(AQ178="",AQ178=0),"",MAX(AR$15:AR177)+1) ->  | AS178: 0
AP179: =MAX(AP$15:AP178)+1 -> 164 | AQ179: =SUMIFS(Periods!$11:$11,Periods!$2:$2,AP179) -> 00:00:00 | AR179: =IF(OR(AQ179="",AQ179=0),"",MAX(AR$15:AR178)+1) ->  | AS179: 0
AP180: =MAX(AP$15:AP179)+1 -> 165 | AQ180: =SUMIFS(Periods!$11:$11,Periods!$2:$2,AP180) -> 00:00:00 | AR180: =IF(OR(AQ180="",AQ180=0),"",MAX(AR$15:AR179)+1) ->  | AS180: 0
AP181: =MAX(AP$15:AP180)+1 -> 166 | AQ181: =SUMIFS(Periods!$11:$11,Periods!$2:$2,AP181) -> 00:00:00 | AR181: =IF(OR(AQ181="",AQ181=0),"",MAX(AR$15:AR180)+1) ->  | AS181: 0
AP182: =MAX(AP$15:AP181)+1 -> 167 | AQ182: =SUMIFS(Periods!$11:$11,Periods!$2:$2,AP182) -> 00:00:00 | AR182: =IF(OR(AQ182="",AQ182=0),"",MAX(AR$15:AR181)+1) ->  | AS182: 0
AP183: =MAX(AP$15:AP182)+1 -> 168 | AQ183: =SUMIFS(Periods!$11:$11,Periods!$2:$2,AP183) -> 00:00:00 | AR183: =IF(OR(AQ183="",AQ183=0),"",MAX(AR$15:AR182)+1) ->  | AS183: 0
AP184: =MAX(AP$15:AP183)+1 -> 169 | AQ184: =SUMIFS(Periods!$11:$11,Periods!$2:$2,AP184) -> 00:00:00 | AR184: =IF(OR(AQ184="",AQ184=0),"",MAX(AR$15:AR183)+1) ->  | AS184: 0
AP185: =MAX(AP$15:AP184)+1 -> 170 | AQ185: =SUMIFS(Periods!$11:$11,Periods!$2:$2,AP185) -> 00:00:00 | AR185: =IF(OR(AQ185="",AQ185=0),"",MAX(AR$15:AR184)+1) ->  | AS185: 0
AP186: =MAX(AP$15:AP185)+1 -> 171 | AQ186: =SUMIFS(Periods!$11:$11,Periods!$2:$2,AP186) -> 00:00:00 | AR186: =IF(OR(AQ186="",AQ186=0),"",MAX(AR$15:AR185)+1) ->  | AS186: 0
AP187: =MAX(AP$15:AP186)+1 -> 172 | AQ187: =SUMIFS(Periods!$11:$11,Periods!$2:$2,AP187) -> 00:00:00 | AR187: =IF(OR(AQ187="",AQ187=0),"",MAX(AR$15:AR186)+1) ->  | AS187: 0
AP188: =MAX(AP$15:AP187)+1 -> 173 | AQ188: =SUMIFS(Periods!$11:$11,Periods!$2:$2,AP188) -> 00:00:00 | AR188: =IF(OR(AQ188="",AQ188=0),"",MAX(AR$15:AR187)+1) ->  | AS188: 0
AP189: =MAX(AP$15:AP188)+1 -> 174 | AQ189: =SUMIFS(Periods!$11:$11,Periods!$2:$2,AP189) -> 00:00:00 | AR189: =IF(OR(AQ189="",AQ189=0),"",MAX(AR$15:AR188)+1) ->  | AS189: 0
AP190: =MAX(AP$15:AP189)+1 -> 175 | AQ190: =SUMIFS(Periods!$11:$11,Periods!$2:$2,AP190) -> 00:00:00 | AR190: =IF(OR(AQ190="",AQ190=0),"",MAX(AR$15:AR189)+1) ->  | AS190: 0
AP191: =MAX(AP$15:AP190)+1 -> 176 | AQ191: =SUMIFS(Periods!$11:$11,Periods!$2:$2,AP191) -> 00:00:00 | AR191: =IF(OR(AQ191="",AQ191=0),"",MAX(AR$15:AR190)+1) ->  | AS191: 0
AP192: =MAX(AP$15:AP191)+1 -> 177 | AQ192: =SUMIFS(Periods!$11:$11,Periods!$2:$2,AP192) -> 00:00:00 | AR192: =IF(OR(AQ192="",AQ192=0),"",MAX(AR$15:AR191)+1) ->  | AS192: 0
AP193: =MAX(AP$15:AP192)+1 -> 178 | AQ193: =SUMIFS(Periods!$11:$11,Periods!$2:$2,AP193) -> 00:00:00 | AR193: =IF(OR(AQ193="",AQ193=0),"",MAX(AR$15:AR192)+1) ->  | AS193: 0
AP194: =MAX(AP$15:AP193)+1 -> 179 | AQ194: =SUMIFS(Periods!$11:$11,Periods!$2:$2,AP194) -> 00:00:00 | AR194: =IF(OR(AQ194="",AQ194=0),"",MAX(AR$15:AR193)+1) ->  | AS194: 0
AP195: =MAX(AP$15:AP194)+1 -> 180 | AQ195: =SUMIFS(Periods!$11:$11,Periods!$2:$2,AP195) -> 00:00:00 | AR195: =IF(OR(AQ195="",AQ195=0),"",MAX(AR$15:AR194)+1) ->  | AS195: 0
AP196: =MAX(AP$15:AP195)+1 -> 181 | AQ196: =SUMIFS(Periods!$11:$11,Periods!$2:$2,AP196) -> 00:00:00 | AR196: =IF(OR(AQ196="",AQ196=0),"",MAX(AR$15:AR195)+1) ->  | AS196: 0
AP197: =MAX(AP$15:AP196)+1 -> 182 | AQ197: =SUMIFS(Periods!$11:$11,Periods!$2:$2,AP197) -> 00:00:00 | AR197: =IF(OR(AQ197="",AQ197=0),"",MAX(AR$15:AR196)+1) ->  | AS197: 0
AP198: =MAX(AP$15:AP197)+1 -> 183 | AQ198: =SUMIFS(Periods!$11:$11,Periods!$2:$2,AP198) -> 00:00:00 | AR198: =IF(OR(AQ198="",AQ198=0),"",MAX(AR$15:AR197)+1) ->  | AS198: 0
AP199: =MAX(AP$15:AP198)+1 -> 184 | AQ199: =SUMIFS(Periods!$11:$11,Periods!$2:$2,AP199) -> 00:00:00 | AR199: =IF(OR(AQ199="",AQ199=0),"",MAX(AR$15:AR198)+1) ->  | AS199: 0
AP200: =MAX(AP$15:AP199)+1 -> 185 | AQ200: =SUMIFS(Periods!$11:$11,Periods!$2:$2,AP200) -> 00:00:00 | AR200: =IF(OR(AQ200="",AQ200=0),"",MAX(AR$15:AR199)+1) ->  | AS200: 0
AP201: =MAX(AP$15:AP200)+1 -> 186 | AQ201: =SUMIFS(Periods!$11:$11,Periods!$2:$2,AP201) -> 00:00:00 | AR201: =IF(OR(AQ201="",AQ201=0),"",MAX(AR$15:AR200)+1) ->  | AS201: 0
AP202: =MAX(AP$15:AP201)+1 -> 187 | AQ202: =SUMIFS(Periods!$11:$11,Periods!$2:$2,AP202) -> 00:00:00 | AR202: =IF(OR(AQ202="",AQ202=0),"",MAX(AR$15:AR201)+1) ->  | AS202: 0
AP203: =MAX(AP$15:AP202)+1 -> 188 | AQ203: =SUMIFS(Periods!$11:$11,Periods!$2:$2,AP203) -> 00:00:00 | AR203: =IF(OR(AQ203="",AQ203=0),"",MAX(AR$15:AR202)+1) ->  | AS203: 0
AP204: =MAX(AP$15:AP203)+1 -> 189 | AQ204: =SUMIFS(Periods!$11:$11,Periods!$2:$2,AP204) -> 00:00:00 | AR204: =IF(OR(AQ204="",AQ204=0),"",MAX(AR$15:AR203)+1) ->  | AS204: 0
AP205: =MAX(AP$15:AP204)+1 -> 190 | AQ205: =SUMIFS(Periods!$11:$11,Periods!$2:$2,AP205) -> 00:00:00 | AR205: =IF(OR(AQ205="",AQ205=0),"",MAX(AR$15:AR204)+1) ->  | AS205: 0
AP206: =MAX(AP$15:AP205)+1 -> 191 | AQ206: =SUMIFS(Periods!$11:$11,Periods!$2:$2,AP206) -> 00:00:00 | AR206: =IF(OR(AQ206="",AQ206=0),"",MAX(AR$15:AR205)+1) ->  | AS206: 0
AP207: =MAX(AP$15:AP206)+1 -> 192 | AQ207: =SUMIFS(Periods!$11:$11,Periods!$2:$2,AP207) -> 00:00:00 | AR207: =IF(OR(AQ207="",AQ207=0),"",MAX(AR$15:AR206)+1) ->  | AS207: 0
AP208: =MAX(AP$15:AP207)+1 -> 193 | AQ208: =SUMIFS(Periods!$11:$11,Periods!$2:$2,AP208) -> 00:00:00 | AR208: =IF(OR(AQ208="",AQ208=0),"",MAX(AR$15:AR207)+1) ->  | AS208: 0
... 207 more rows

Sheet Macro
Y1: номер столбца: | AA1: 27 | AB1: 28 | AC1: 29 | AD1: 30 | AE1: 31 | AF1: 32 | AG1: 33 | AH1: 34 | AI1: 35 | AJ1: 36 | AK1: 37 | AL1: 38 | AM1: 39 | AN1: 40 | AO1: 41 | AP1: 42 | AQ1: 43 | AR1: 44 | AS1: 45 | AT1: 46 | AU1: 47 | AV1: 48 | AW1: 49 | AX1: 50 | AY1: 51 | AZ1: 52 | BA1: 53 | BB1: 54 | BC1: 55 | BD1: 56 | BE1: 57 | BF1: 58 | BG1: 59 | BH1: 60 | BI1: 61 | BJ1: 62 | BK1: 63 | BL1: 64 | BM1: 65 | BN1: 66 | BO1: 67 | BP1: 68 | BQ1: 69 | BR1: 70 | BS1: 71 | BT1: 72 | BU1: 73 | BV1: 74 | BW1: 75 | BX1: 76 | BY1: 77 | BZ1: 78 | CA1: 79 | CB1: 80 | CC1: 81 | CD1: 82 | CE1: 83 | CF1: 84 | CG1: 85 | CH1: 86 | CI1: 87 | CJ1: 88 | CK1: 89 | CL1: 90 | CM1: 91 | CN1: 92 | CO1: 93 | CP1: 94 | CQ1: 95 | CR1: 96 | CS1: 97 | CT1: 98 | CU1: 99
Y2: номер периода модели: | AA2: 1 | AB2: 2 | AC2: 3 | AD2: 4 | AE2: 5 | AF2: 6 | AG2: 7 | AH2: 8 | AI2: 9 | AJ2: 10 | AK2: 11 | AL2: 12 | AM2: 13 | AN2: 14 | AO2: 15 | AP2: 16 | AQ2: 17 | AR2: 18 | AS2: 19 | AT2: 20 | AU2: 21 | AV2: 22 | AW2: 23 | AX2: 24 | AY2: 25 | AZ2: 26 | BA2: 27 | BB2: 28 | BC2: 29 | BD2: 30 | BE2: 31 | BF2: 32 | BG2: 33 | BH2: 34 | BI2: 35 | BJ2: 36 | BK2: 37 | BL2: 38 | BM2: 39 | BN2: 40 | BO2: 41 | BP2: 42 | BQ2: 43 | BR2: 44 | BS2: 45 | BT2: 46 | BU2: 47 | BV2: 48 | BW2: 49 | BX2: 50 | BY2: 51 | BZ2: 52 | CA2: 53 | CB2: 54 | CC2: 55 | CD2: 56 | CE2: 57 | CF2: 58 | CG2: 59 | CH2: 60 | CI2: 61 | CJ2: 62 | CK2: 63 | CL2: 64 | CM2: 65 | CN2: 66 | CO2: 67 | CP2: 68 | CQ2: 69 | CR2: 70 | CS2: 71 | CT2: 72 | CU2: 73
Y3: номер факт-периода:
Y4: номер план-периода: | AA4: 1 | AB4: 2 | AC4: 3 | AD4: 4 | AE4: 5 | AF4: 6 | AG4: 7 | AH4: 8 | AI4: 9 | AJ4: 10 | AK4: 11 | AL4: 12 | AM4: 13 | AN4: 14 | AO4: 15 | AP4: 16 | AQ4: 17 | AR4: 18 | AS4: 19 | AT4: 20 | AU4: 21 | AV4: 22 | AW4: 23 | AX4: 24 | AY4: 25 | AZ4: 26 | BA4: 27 | BB4: 28 | BC4: 29 | BD4: 30 | BE4: 31 | BF4: 32 | BG4: 33 | BH4: 34 | BI4: 35 | BJ4: 36 | BK4: 37 | BL4: 38 | BM4: 39 | BN4: 40 | BO4: 41 | BP4: 42 | BQ4: 43 | BR4: 44 | BS4: 45 | BT4: 46 | BU4: 47 | BV4: 48 | BW4: 49 | BX4: 50 | BY4: 51 | BZ4: 52 | CA4: 53 | CB4: 54 | CC4: 55 | CD4: 56 | CE4: 57 | CF4: 58 | CG4: 59 | CH4: 60 | CI4: 61 | CJ4: 62 | CK4: 63 | CL4: 64 | CM4: 65 | CN4: 66 | CO4: 67 | CP4: 68 | CQ4: 69 | CR4: 70 | CS4: 71 | CT4: 72
Y5: число даты начала: | AA5: 1 | AB5: 1 | AC5: 1 | AD5: 1 | AE5: 1 | AF5: 1 | AG5: 1 | AH5: 1 | AI5: 1 | AJ5: 1 | AK5: 1 | AL5: 1 | AM5: 1 | AN5: 1 | AO5: 1 | AP5: 1 | AQ5: 1 | AR5: 1 | AS5: 1 | AT5: 1 | AU5: 1 | AV5: 1 | AW5: 1 | AX5: 1 | AY5: 1 | AZ5: 1 | BA5: 1 | BB5: 1 | BC5: 1 | BD5: 1 | BE5: 1 | BF5: 1 | BG5: 1 | BH5: 1 | BI5: 1 | BJ5: 1 | BK5: 1 | BL5: 1 | BM5: 1 | BN5: 1 | BO5: 1 | BP5: 1 | BQ5: 1 | BR5: 1 | BS5: 1 | BT5: 1 | BU5: 1 | BV5: 1 | BW5: 1 | BX5: 1 | BY5: 1 | BZ5: 1 | CA5: 1 | CB5: 1 | CC5: 1 | CD5: 1 | CE5: 1 | CF5: 1 | CG5: 1 | CH5: 1 | CI5: 1 | CJ5: 1 | CK5: 1 | CL5: 1 | CM5: 1 | CN5: 1 | CO5: 1 | CP5: 1 | CQ5: 1 | CR5: 1 | CS5: 1 | CT5: 1
Y6: номер месяца даты начала: | AA6: 7 | AB6: 8 | AC6: 9 | AD6: 10 | AE6: 11 | AF6: 12 | AG6: 1 | AH6: 2 | AI6: 3 | AJ6: 4 | AK6: 5 | AL6: 6 | AM6: 7 | AN6: 8 | AO6: 9 | AP6: 10 | AQ6: 11 | AR6: 12 | AS6: 1 | AT6: 2 | AU6: 3 | AV6: 4 | AW6: 5 | AX6: 6 | AY6: 7 | AZ6: 8 | BA6: 9 | BB6: 10 | BC6: 11 | BD6: 12 | BE6: 1 | BF6: 2 | BG6: 3 | BH6: 4 | BI6: 5 | BJ6: 6 | BK6: 7 | BL6: 8 | BM6: 9 | BN6: 10 | BO6: 11 | BP6: 12 | BQ6: 1 | BR6: 2 | BS6: 3 | BT6: 4 | BU6: 5 | BV6: 6 | BW6: 7 | BX6: 8 | BY6: 9 | BZ6: 10 | CA6: 11 | CB6: 12 | CC6: 1 | CD6: 2 | CE6: 3 | CF6: 4 | CG6: 5 | CH6: 6 | CI6: 7 | CJ6: 8 | CK6: 9 | CL6: 10 | CM6: 11 | CN6: 12 | CO6: 1 | CP6: 2 | CQ6: 3 | CR6: 4 | CS6: 5 | CT6: 6
Y7: год даты начала: | AA7: 21 | AB7: 21 | AC7: 21 | AD7: 21 | AE7: 21 | AF7: 21 | AG7: 22 | AH7: 22 | AI7: 22 | AJ7: 22 | AK7: 22 | AL7: 22 | AM7: 22 | AN7: 22 | AO7: 22 | AP7: 22 | AQ7: 22 | AR7: 22 | AS7: 23 | AT7: 23 | AU7: 23 | AV7: 23 | AW7: 23 | AX7: 23 | AY7: 23 | AZ7: 23 | BA7: 23 | BB7: 23 | BC7: 23 | BD7: 23 | BE7: 24 | BF7: 24 | BG7: 24 | BH7: 24 | BI7: 24 | BJ7: 24 | BK7: 24 | BL7: 24 | BM7: 24 | BN7: 24 | BO7: 24 | BP7: 24 | BQ7: 25 | BR7: 25 | BS7: 25 | BT7: 25 | BU7: 25 | BV7: 25 | BW7: 25 | BX7: 25 | BY7: 25 | BZ7: 25 | CA7: 25 | CB7: 25 | CC7: 26 | CD7: 26 | CE7: 26 | CF7: 26 | CG7: 26 | CH7: 26 | CI7: 26 | CJ7: 26 | CK7: 26 | CL7: 26 | CM7: 26 | CN7: 26 | CO7: 27 | CP7: 27 | CQ7: 27 | CR7: 27 | CS7: 27 | CT7: 27
Y8: число даты окончания: | AA8: 31 | AB8: 31 | AC8: 30 | AD8: 31 | AE8: 30 | AF8: 31 | AG8: 31 | AH8: 28 | AI8: 31 | AJ8: 30 | AK8: 31 | AL8: 30 | AM8: 31 | AN8: 31 | AO8: 30 | AP8: 31 | AQ8: 30 | AR8: 31 | AS8: 31 | AT8: 28 | AU8: 31 | AV8: 30 | AW8: 31 | AX8: 30 | AY8: 31 | AZ8: 31 | BA8: 30 | BB8: 31 | BC8: 30 | BD8: 31 | BE8: 31 | BF8: 29 | BG8: 31 | BH8: 30 | BI8: 31 | BJ8: 30 | BK8: 31 | BL8: 31 | BM8: 30 | BN8: 31 | BO8: 30 | BP8: 31 | BQ8: 31 | BR8: 28 | BS8: 31 | BT8: 30 | BU8: 31 | BV8: 30 | BW8: 31 | BX8: 31 | BY8: 30 | BZ8: 31 | CA8: 30 | CB8: 31 | CC8: 31 | CD8: 28 | CE8: 31 | CF8: 30 | CG8: 31 | CH8: 30 | CI8: 31 | CJ8: 31 | CK8: 30 | CL8: 31 | CM8: 30 | CN8: 31 | CO8: 31 | CP8: 28 | CQ8: 31 | CR8: 30 | CS8: 31 | CT8: 30
Y9: номер месяца даты окончания: | AA9: 7 | AB9: 8 | AC9: 9 | AD9: 10 | AE9: 11 | AF9: 12 | AG9: 1 | AH9: 2 | AI9: 3 | AJ9: 4 | AK9: 5 | AL9: 6 | AM9: 7 | AN9: 8 | AO9: 9 | AP9: 10 | AQ9: 11 | AR9: 12 | AS9: 1 | AT9: 2 | AU9: 3 | AV9: 4 | AW9: 5 | AX9: 6 | AY9: 7 | AZ9: 8 | BA9: 9 | BB9: 10 | BC9: 11 | BD9: 12 | BE9: 1 | BF9: 2 | BG9: 3 | BH9: 4 | BI9: 5 | BJ9: 6 | BK9: 7 | BL9: 8 | BM9: 9 | BN9: 10 | BO9: 11 | BP9: 12 | BQ9: 1 | BR9: 2 | BS9: 3 | BT9: 4 | BU9: 5 | BV9: 6 | BW9: 7 | BX9: 8 | BY9: 9 | BZ9: 10 | CA9: 11 | CB9: 12 | CC9: 1 | CD9: 2 | CE9: 3 | CF9: 4 | CG9: 5 | CH9: 6 | CI9: 7 | CJ9: 8 | CK9: 9 | CL9: 10 | CM9: 11 | CN9: 12 | CO9: 1 | CP9: 2 | CQ9: 3 | CR9: 4 | CS9: 5 | CT9: 6
Y10: год даты окончания: | AA10: 21 | AB10: 21 | AC10: 21 | AD10: 21 | AE10: 21 | AF10: 21 | AG10: 22 | AH10: 22 | AI10: 22 | AJ10: 22 | AK10: 22 | AL10: 22 | AM10: 22 | AN10: 22 | AO10: 22 | AP10: 22 | AQ10: 22 | AR10: 22 | AS10: 23 | AT10: 23 | AU10: 23 | AV10: 23 | AW10: 23 | AX10: 23 | AY10: 23 | AZ10: 23 | BA10: 23 | BB10: 23 | BC10: 23 | BD10: 23 | BE10: 24 | BF10: 24 | BG10: 24 | BH10: 24 | BI10: 24 | BJ10: 24 | BK10: 24 | BL10: 24 | BM10: 24 | BN10: 24 | BO10: 24 | BP10: 24 | BQ10: 25 | BR10: 25 | BS10: 25 | BT10: 25 | BU10: 25 | BV10: 25 | BW10: 25 | BX10: 25 | BY10: 25 | BZ10: 25 | CA10: 25 | CB10: 25 | CC10: 26 | CD10: 26 | CE10: 26 | CF10: 26 | CG10: 26 | CH10: 26 | CI10: 26 | CJ10: 26 | CK10: 26 | CL10: 26 | CM10: 26 | CN10: 26 | CO10: 27 | CP10: 27 | CQ10: 27 | CR10: 27 | CS10: 27 | CT10: 27
F11: Macro | I11: Макропоказатели внешней среды | X11: 2021-07-01 | AA11: 2021-07-01 | AB11: 2021-08-01 | AC11: 2021-09-01 | AD11: 2021-10-01 | AE11: 2021-11-01 | AF11: 2021-12-01 | AG11: 2022-01-01 | AH11: 2022-02-01 | AI11: 2022-03-01 | AJ11: 2022-04-01 | AK11: 2022-05-01 | AL11: 2022-06-01 | AM11: 2022-07-01 | AN11: 2022-08-01 | AO11: 2022-09-01 | AP11: 2022-10-01 | AQ11: 2022-11-01 | AR11: 2022-12-01 | AS11: 2023-01-01 | AT11: 2023-02-01 | AU11: 2023-03-01 | AV11: 2023-04-01 | AW11: 2023-05-01 | AX11: 2023-06-01 | AY11: 2023-07-01 | AZ11: 2023-08-01 | BA11: 2023-09-01 | BB11: 2023-10-01 | BC11: 2023-11-01 | BD11: 2023-12-01 | BE11: 2024-01-01 | BF11: 2024-02-01 | BG11: 2024-03-01 | BH11: 2024-04-01 | BI11: 2024-05-01 | BJ11: 2024-06-01 | BK11: 2024-07-01 | BL11: 2024-08-01 | BM11: 2024-09-01 | BN11: 2024-10-01 | BO11: 2024-11-01 | BP11: 2024-12-01 | BQ11: 2025-01-01 | BR11: 2025-02-01 | BS11: 2025-03-01 | BT11: 2025-04-01 | BU11: 2025-05-01 | BV11: 2025-06-01 | BW11: 2025-07-01 | BX11: 2025-08-01 | BY11: 2025-09-01 | BZ11: 2025-10-01 | CA11: 2025-11-01 | CB11: 2025-12-01 | CC11: 2026-01-01 | CD11: 2026-02-01 | CE11: 2026-03-01 | CF11: 2026-04-01 | CG11: 2026-05-01 | CH11: 2026-06-01 | CI11: 2026-07-01 | CJ11: 2026-08-01 | CK11: 2026-09-01 | CL11: 2026-10-01 | CM11: 2026-11-01 | CN11: 2026-12-01 | CO11: 2027-01-01 | CP11: 2027-02-01 | CQ11: 2027-03-01 | CR11: 2027-04-01 | CS11: 2027-05-01 | CT11: 2027-06-01
H12: тип листа | Q12: расчетный | X12: 2027-06-30 | AA12: 2021-07-31 | AB12: 2021-08-31 | AC12: 2021-09-30 | AD12: 2021-10-31 | AE12: 2021-11-30 | AF12: 2021-12-31 | AG12: 2022-01-31 | AH12: 2022-02-28 | AI12: 2022-03-31 | AJ12: 2022-04-30 | AK12: 2022-05-31 | AL12: 2022-06-30 | AM12: 2022-07-31 | AN12: 2022-08-31 | AO12: 2022-09-30 | AP12: 2022-10-31 | AQ12: 2022-11-30 | AR12: 2022-12-31 | AS12: 2023-01-31 | AT12: 2023-02-28 | AU12: 2023-03-31 | AV12: 2023-04-30 | AW12: 2023-05-31 | AX12: 2023-06-30 | AY12: 2023-07-31 | AZ12: 2023-08-31 | BA12: 2023-09-30 | BB12: 2023-10-31 | BC12: 2023-11-30 | BD12: 2023-12-31 | BE12: 2024-01-31 | BF12: 2024-02-29 | BG12: 2024-03-31 | BH12: 2024-04-30 | BI12: 2024-05-31 | BJ12: 2024-06-30 | BK12: 2024-07-31 | BL12: 2024-08-31 | BM12: 2024-09-30 | BN12: 2024-10-31 | BO12: 2024-11-30 | BP12: 2024-12-31 | BQ12: 2025-01-31 | BR12: 2025-02-28 | BS12: 2025-03-31 | BT12: 2025-04-30 | BU12: 2025-05-31 | BV12: 2025-06-30 | BW12: 2025-07-31 | BX12: 2025-08-31 | BY12: 2025-09-30 | BZ12: 2025-10-31 | CA12: 2025-11-30 | CB12: 2025-12-31 | CC12: 2026-01-31 | CD12: 2026-02-28 | CE12: 2026-03-31 | CF12: 2026-04-30 | CG12: 2026-05-31 | CH12: 2026-06-30 | CI12: 2026-07-31 | CJ12: 2026-08-31 | CK12: 2026-09-30 | CL12: 2026-10-31 | CM12: 2026-11-30 | CN12: 2026-12-31 | CO12: 2027-01-31 | CP12: 2027-02-28 | CQ12: 2027-03-31 | CR12: 2027-04-30 | CS12: 2027-05-31 | CT12: 2027-06-30
H13: показатель | M13: ед.изм. | Q13: значение | X13: итого | AA13: 2021-07-01 | AB13: 2021-08-01 | AC13: 2021-09-01 | AD13: 2021-10-01 | AE13: 2021-11-01 | AF13: 2021-12-01 | AG13: 2022-01-01 | AH13: 2022-02-01 | AI13: 2022-03-01 | AJ13: 2022-04-01 | AK13: 2022-05-01 | AL13: 2022-06-01 | AM13: 2022-07-01 | AN13: 2022-08-01 | AO13: 2022-09-01 | AP13: 2022-10-01 | AQ13: 2022-11-01 | AR13: 2022-12-01 | AS13: 2023-01-01 | AT13: 2023-02-01 | AU13: 2023-03-01 | AV13: 2023-04-01 | AW13: 2023-05-01 | AX13: 2023-06-01 | AY13: 2023-07-01 | AZ13: 2023-08-01 | BA13: 2023-09-01 | BB13: 2023-10-01 | BC13: 2023-11-01 | BD13: 2023-12-01 | BE13: 2024-01-01 | BF13: 2024-02-01 | BG13: 2024-03-01 | BH13: 2024-04-01 | BI13: 2024-05-01 | BJ13: 2024-06-01 | BK13: 2024-07-01 | BL13: 2024-08-01 | BM13: 2024-09-01 | BN13: 2024-10-01 | BO13: 2024-11-01 | BP13: 2024-12-01 | BQ13: 2025-01-01 | BR13: 2025-02-01 | BS13: 2025-03-01 | BT13: 2025-04-01 | BU13: 2025-05-01 | BV13: 2025-06-01 | BW13: 2025-07-01 | BX13: 2025-08-01 | BY13: 2025-09-01 | BZ13: 2025-10-01 | CA13: 2025-11-01 | CB13: 2025-12-01 | CC13: 2026-01-01 | CD13: 2026-02-01 | CE13: 2026-03-01 | CF13: 2026-04-01 | CG13: 2026-05-01 | CH13: 2026-06-01 | CI13: 2026-07-01 | CJ13: 2026-08-01 | CK13: 2026-09-01 | CL13: 2026-10-01 | CM13: 2026-11-01 | CN13: 2026-12-01 | CO13: 2027-01-01 | CP13: 2027-02-01 | CQ13: 2027-03-01 | CR13: 2027-04-01 | CS13: 2027-05-01 | CT13: 2027-06-01
D14: 0 | E14: 0 | F14: 0 | G14: 0 | S14: 0 | T14: 0
A15: 15 | H15: разработка финмоделей: https://mngmnt.ru/
A16: 16 | G16: 0 | H16: Параметры рабочего дня сотрудника
A17: 17 | G17: 0 | H17: Параметры рабочего дня сотрудника | I17: Время одной смены рабочего дня | M17: кол-во часов | P17: * | Q17: 8 | S17: 0
A18: 18 | G18: 0 | H18: Параметры рабочего дня сотрудника | I18: Количество рабочих дней в месяце | M18: р.дней/мес. | P18: * | Q18: 20 | S18: 0
A19: 19 | G19: 0 | H19: Параметры рабочего дня сотрудника | I19: Количество рабочих дней в расчетном периоде | M19: р.дней/расч.пер. | Q19: 20 | S19: 0
A20: 20 | G20: 0 | H20: Параметры рабочего дня сотрудника | I20: Количество рабочих часов в расчетном периоде | M20: р.часов/расч.пер. | Q20: 160 | S20: 0
A21: 21
A22: 22 | G22: 0 | H22: Система налогообложения | AA22: ОСНО | AB22: ОСНО | AC22: ОСНО | AD22: ОСНО | AE22: ОСНО | AF22: ОСНО | AG22: ОСНО | AH22: ОСНО | AI22: ОСНО | AJ22: ОСНО | AK22: ОСНО | AL22: ОСНО | AM22: ОСНО | AN22: ОСНО | AO22: ОСНО | AP22: ОСНО | AQ22: ОСНО | AR22: ОСНО | AS22: ОСНО | AT22: ОСНО | AU22: ОСНО | AV22: ОСНО | AW22: ОСНО | AX22: ОСНО | AY22: ОСНО | AZ22: ОСНО | BA22: ОСНО | BB22: ОСНО | BC22: ОСНО | BD22: ОСНО | BE22: ОСНО | BF22: ОСНО | BG22: ОСНО | BH22: ОСНО | BI22: ОСНО | BJ22: ОСНО | BK22: ОСНО | BL22: ОСНО | BM22: ОСНО | BN22: ОСНО | BO22: ОСНО | BP22: ОСНО | BQ22: ОСНО | BR22: ОСНО | BS22: ОСНО | BT22: ОСНО | BU22: ОСНО | BV22: ОСНО | BW22: ОСНО | BX22: ОСНО | BY22: ОСНО | BZ22: ОСНО | CA22: ОСНО | CB22: ОСНО | CC22: ОСНО | CD22: ОСНО | CE22: ОСНО | CF22: ОСНО | CG22: ОСНО | CH22: ОСНО | CI22: ОСНО | CJ22: ОСНО | CK22: ОСНО | CL22: ОСНО | CM22: ОСНО | CN22: ОСНО | CO22: ОСНО | CP22: ОСНО | CQ22: ОСНО | CR22: ОСНО | CS22: ОСНО | CT22: ОСНО
A23: 23 | G23: 0 | H23: Система налогообложения | I23: Единое значение для всех периодов расчета | M23: вып.список | P23: * | Q23: ОСНО | R23: ^ | S23: 0
A24: 24 | G24: 0 | H24: Система налогообложения | I24: Вручную для каждого периода расчетов | M24: вып.список | Y24: *
A25: 25 | G25: 0 | H25: Система налогообложения | I25: г | J25: 2021 | M25: вып.список | P25: * | R25: ^ | S25: 0
A26: 26 | G26: 0 | H26: Система налогообложения | I26: г | J26: 2022 | M26: вып.список | P26: * | R26: ^ | S26: 0
A27: 27 | G27: 0 | H27: Система налогообложения | I27: г | J27: 2023 | M27: вып.список | P27: * | R27: ^ | S27: 0
A28: 28 | G28: 0 | H28: Система налогообложения | I28: г | J28: 2024 | M28: вып.список | P28: * | R28: ^ | S28: 0
A29: 29 | L29: пустая строка
A30: 30
A31: 31 | G31: 0 | H31: Ставки налога на прибыль
A32: 32 | G32: 0 | H32: Ставки налога на прибыль | I32: ОСНО | M32: % | P32: * | Q32: 20.0% | S32: 0
A33: 33 | G33: 0 | H33: Ставки налога на прибыль | I33: УСН(6%) | M33: % | P33: * | Q33: 6.0% | S33: 0
A34: 34 | G34: 0 | H34: Ставки налога на прибыль | I34: УСН(6%) | J34: ограничения суммы НП на вычет соцсборов | M34: % | P34: * | Q34: 50.0% | S34: 0
A35: 35 | G35: 0 | H35: Ставки налога на прибыль | I35: УСН(15%) | M35: % | P35: * | Q35: 15.0% | S35: 0
A36: 36 | G36: 0 | H36: Ставки налога на прибыль | I36: УСН(15%) | J36: минимальный процент от дохода | M36: % | P36: * | Q36: 1.0% | S36: 0
A37: 37 | G37: 0 | H37: Ставки налога на прибыль | I37: ТОСЭР | M37: %
A38: 38 | G38: 0 | H38: Ставки налога на прибыль | I38: г | J38: 5 | M38: % | P38: * | Q38: 0.0% | S38: 0
A39: 39 | G39: 0 | H39: Ставки налога на прибыль | I39: г | J39: 10 | M39: % | P39: * | Q39: 12.0% | S39: 0
A40: 40 | L40: пустая строка
A41: 41
A42: 42 | G42: 0 | H42: Ставки НДС
A43: 43 | G43: 0 | H43: Ставки НДС | I43: ОСНО | M43: % | P43: * | Q43: 20.0% | S43: 0
A44: 44 | G44: 0 | H44: Ставки НДС | I44: УСН(6%) | M44: % | P44: * | Q44: 0.0% | S44: 0
A45: 45 | G45: 0 | H45: Ставки НДС | I45: УСН(15%) | M45: % | P45: * | Q45: 0.0% | S45: 0
A46: 46 | G46: 0 | H46: Ставки НДС | I46: ТОСЭР | M46: %
A47: 47 | G47: 0 | H47: Ставки НДС | I47: г | J47: 5 | M47: % | P47: * | Q47: 20.0% | S47: 0
A48: 48 | G48: 0 | H48: Ставки НДС | I48: г | J48: 10 | M48: % | P48: * | Q48: 20.0% | S48: 0
A49: 49 | L49: пустая строка
A50: 50
A51: 51 | G51: 0 | H51: Ставки соцсборов
A52: 52 | G52: 0 | H52: Ставки соцсборов | I52: ОСНО | M52: % | P52: * | Q52: 30.0% | S52: 0
A53: 53 | G53: 0 | H53: Ставки соцсборов | I53: УСН(6%) | M53: % | P53: * | Q53: 30.0% | S53: 0
A54: 54 | G54: 0 | H54: Ставки соцсборов | I54: УСН(15%) | M54: % | P54: * | Q54: 30.0% | S54: 0
A55: 55 | G55: 0 | H55: Ставки соцсборов | I55: ТОСЭР | M55: %
A56: 56 | G56: 0 | H56: Ставки соцсборов | I56: г | J56: 5 | M56: % | P56: * | Q56: 7.6% | S56: 0
A57: 57 | G57: 0 | H57: Ставки соцсборов | I57: г | J57: 10 | M57: % | P57: * | Q57: 7.6% | S57: 0
A58: 58 | L58: пустая строка
A59: 59
A60: 60 | G60: 0 | H60: Ставки земельного налога | AA60: 1.5% | AB60: 1.5% | AC60: 1.5% | AD60: 1.5% | AE60: 1.5% | AF60: 1.5% | AG60: 1.5% | AH60: 1.5% | AI60: 1.5% | AJ60: 1.5% | AK60: 1.5% | AL60: 1.5% | AM60: 1.5% | AN60: 1.5% | AO60: 1.5% | AP60: 1.5% | AQ60: 1.5% | AR60: 1.5% | AS60: 1.5% | AT60: 1.5% | AU60: 1.5% | AV60: 1.5% | AW60: 1.5% | AX60: 1.5% | AY60: 1.5% | AZ60: 1.5% | BA60: 1.5% | BB60: 1.5% | BC60: 1.5% | BD60: 1.5% | BE60: 1.5% | BF60: 1.5% | BG60: 1.5% | BH60: 1.5% | BI60: 1.5% | BJ60: 1.5% | BK60: 1.5% | BL60: 1.5% | BM60: 1.5% | BN60: 1.5% | BO60: 1.5% | BP60: 1.5% | BQ60: 1.5% | BR60: 1.5% | BS60: 1.5% | BT60: 1.5% | BU60: 1.5% | BV60: 1.5% | BW60: 1.5% | BX60: 1.5% | BY60: 1.5% | BZ60: 1.5% | CA60: 1.5% | CB60: 1.5% | CC60: 1.5% | CD60: 1.5% | CE60: 1.5% | CF60: 1.5% | CG60: 1.5% | CH60: 1.5% | CI60: 1.5% | CJ60: 1.5% | CK60: 1.5% | CL60: 1.5% | CM60: 1.5% | CN60: 1.5% | CO60: 1.5% | CP60: 1.5% | CQ60: 1.5% | CR60: 1.5% | CS60: 1.5% | CT60: 1.5% | CU60: 1.5%
A61: 61 | G61: 0 | H61: Ставки земельного налога | I61: ОСНО | M61: % | P61: * | Q61: 1.5% | S61: 0
A62: 62 | G62: 0 | H62: Ставки земельного налога | I62: УСН(6%) | M62: % | P62: * | Q62: 1.5% | S62: 0
A63: 63 | G63: 0 | H63: Ставки земельного налога | I63: УСН(15%) | M63: % | P63: * | Q63: 1.5% | S63: 0
A64: 64 | G64: 0 | H64: Ставки земельного налога | I64: ТОСЭР | M64: %
A65: 65 | G65: 0 | H65: Ставки земельного налога | I65: г | J65: 5 | M65: % | P65: * | Q65: 0.0% | S65: 0
A66: 66 | G66: 0 | H66: Ставки земельного налога | I66: г | J66: 20 | M66: % | P66: * | Q66: 0.0% | S66: 0
A67: 67 | L67: пустая строка
A68: 68
A69: 69 | G69: 0 | H69: Ставки налога на имущество | AA69: 1.5% | AB69: 1.5% | AC69: 1.5% | AD69: 1.5% | AE69: 1.5% | AF69: 1.5% | AG69: 1.5% | AH69: 1.5% | AI69: 1.5% | AJ69: 1.5% | AK69: 1.5% | AL69: 1.5% | AM69: 1.5% | AN69: 1.5% | AO69: 1.5% | AP69: 1.5% | AQ69: 1.5% | AR69: 1.5% | AS69: 1.5% | AT69: 1.5% | AU69: 1.5% | AV69: 1.5% | AW69: 1.5% | AX69: 1.5% | AY69: 1.5% | AZ69: 1.5% | BA69: 1.5% | BB69: 1.5% | BC69: 1.5% | BD69: 1.5% | BE69: 1.5% | BF69: 1.5% | BG69: 1.5% | BH69: 1.5% | BI69: 1.5% | BJ69: 1.5% | BK69: 1.5% | BL69: 1.5% | BM69: 1.5% | BN69: 1.5% | BO69: 1.5% | BP69: 1.5% | BQ69: 1.5% | BR69: 1.5% | BS69: 1.5% | BT69: 1.5% | BU69: 1.5% | BV69: 1.5% | BW69: 1.5% | BX69: 1.5% | BY69: 1.5% | BZ69: 1.5% | CA69: 1.5% | CB69: 1.5% | CC69: 1.5% | CD69: 1.5% | CE69: 1.5% | CF69: 1.5% | CG69: 1.5% | CH69: 1.5% | CI69: 1.5% | CJ69: 1.5% | CK69: 1.5% | CL69: 1.5% | CM69: 1.5% | CN69: 1.5% | CO69: 1.5% | CP69: 1.5% | CQ69: 1.5% | CR69: 1.5% | CS69: 1.5% | CT69: 1.5% | CU69: 1.5%
A70: 70 | G70: 0 | H70: Ставки налога на имущество | I70: ОСНО | M70: % | P70: * | Q70: 1.5% | S70: 0
A71: 71 | G71: 0 | H71: Ставки налога на имущество | I71: УСН(6%) | M71: % | P71: * | Q71: 1.5% | S71: 0
A72: 72 | G72: 0 | H72: Ставки налога на имущество | I72: УСН(15%) | M72: % | P72: * | Q72: 1.5% | S72: 0
A73: 73 | G73: 0 | H73: Ставки налога на имущество | I73: ТОСЭР | M73: %
A74: 74 | G74: 0 | H74: Ставки налога на имущество | I74: г | J74: 5 | M74: % | P74: * | Q74: 0.0% | S74: 0
A75: 75 | G75: 0 | H75: Ставки налога на имущество | I75: г | J75: 20 | M75: % | P75: * | Q75: 0.0% | S75: 0
A76: 76 | L76: пустая строка
A77: 77
A78: 78 | G78: 0 | H78: Ставки транспортного налога | AA78: 0.5% | AB78: 0.5% | AC78: 0.5% | AD78: 0.5% | AE78: 0.5% | AF78: 0.5% | AG78: 0.5% | AH78: 0.5% | AI78: 0.5% | AJ78: 0.5% | AK78: 0.5% | AL78: 0.5% | AM78: 0.5% | AN78: 0.5% | AO78: 0.5% | AP78: 0.5% | AQ78: 0.5% | AR78: 0.5% | AS78: 0.5% | AT78: 0.5% | AU78: 0.5% | AV78: 0.5% | AW78: 0.5% | AX78: 0.5% | AY78: 0.5% | AZ78: 0.5% | BA78: 0.5% | BB78: 0.5% | BC78: 0.5% | BD78: 0.5% | BE78: 0.5% | BF78: 0.5% | BG78: 0.5% | BH78: 0.5% | BI78: 0.5% | BJ78: 0.5% | BK78: 0.5% | BL78: 0.5% | BM78: 0.5% | BN78: 0.5% | BO78: 0.5% | BP78: 0.5% | BQ78: 0.5% | BR78: 0.5% | BS78: 0.5% | BT78: 0.5% | BU78: 0.5% | BV78: 0.5% | BW78: 0.5% | BX78: 0.5% | BY78: 0.5% | BZ78: 0.5% | CA78: 0.5% | CB78: 0.5% | CC78: 0.5% | CD78: 0.5% | CE78: 0.5% | CF78: 0.5% | CG78: 0.5% | CH78: 0.5% | CI78: 0.5% | CJ78: 0.5% | CK78: 0.5% | CL78: 0.5% | CM78: 0.5% | CN78: 0.5% | CO78: 0.5% | CP78: 0.5% | CQ78: 0.5% | CR78: 0.5% | CS78: 0.5% | CT78: 0.5% | CU78: 0.5%
A79: 79 | G79: 0 | H79: Ставки транспортного налога | I79: ОСНО | M79: % | P79: * | Q79: 0.5% | S79: 0
A80: 80 | G80: 0 | H80: Ставки транспортного налога | I80: УСН(6%) | M80: % | P80: * | Q80: 0.5% | S80: 0
A81: 81 | G81: 0 | H81: Ставки транспортного налога | I81: УСН(15%) | M81: % | P81: * | Q81: 0.5% | S81: 0
A82: 82 | G82: 0 | H82: Ставки транспортного налога | I82: ТОСЭР | M82: %
A83: 83 | G83: 0 | H83: Ставки транспортного налога | I83: г | J83: 5 | M83: % | P83: * | Q83: 0.0% | S83: 0
A84: 84 | G84: 0 | H84: Ставки транспортного налога | I84: г | J84: 20 | M84: % | P84: * | Q84: 0.0% | S84: 0
A85: 85 | L85: пустая строка
A86: 86
A87: 87 | G87: 0 | H87: НДС к возмещению по капзатратам
A88: 88 | G88: 0 | H88: НДС к возмещению по капзатратам | I88: кол-во месяцев на возмещение НДС | M88: кол-во мес. | P88: * | Q88: 7 | S88: 0
H91: разработка финмоделей: https://mngmnt.ru/

Sheet Items
I1: =COLUMN() -> 9 | M1: =COLUMN() -> 13 | Q1: =COLUMN() -> 17 | AD1: =COLUMN() -> 30 | AH1: =COLUMN() -> 34 | AL1: =COLUMN() -> 38 | AN1: =COLUMN() -> 40 | AQ1: =COLUMN() -> 43 | AU1: =COLUMN() -> 47 | AY1: =COLUMN() -> 51 | BC1: =COLUMN() -> 55 | BG1: =COLUMN() -> 59 | BK1: =COLUMN() -> 63 | BO1: =COLUMN() -> 67 | BS1: =COLUMN() -> 71
I2: =LEFT(ADDRESS(1,COLUMN(),4),LEN(ADDRESS(1,COLUMN(),4))-1) -> I | M2: =LEFT(ADDRESS(1,COLUMN(),4),LEN(ADDRESS(1,COLUMN(),4))-1) -> M | Q2: =LEFT(ADDRESS(1,COLUMN(),4),LEN(ADDRESS(1,COLUMN(),4))-1) -> Q | AD2: =LEFT(ADDRESS(1,COLUMN(),4),LEN(ADDRESS(1,COLUMN(),4))-1) -> AD | AH2: =LEFT(ADDRESS(1,COLUMN(),4),LEN(ADDRESS(1,COLUMN(),4))-1) -> AH | AL2: =LEFT(ADDRESS(1,COLUMN(),4),LEN(ADDRESS(1,COLUMN(),4))-1) -> AL | AN2: =LEFT(ADDRESS(1,COLUMN(),4),LEN(ADDRESS(1,COLUMN(),4))-1) -> AN | AQ2: =LEFT(ADDRESS(1,COLUMN(),4),LEN(ADDRESS(1,COLUMN(),4))-1) -> AQ | AU2: =LEFT(ADDRESS(1,COLUMN(),4),LEN(ADDRESS(1,COLUMN(),4))-1) -> AU | AY2: =LEFT(ADDRESS(1,COLUMN(),4),LEN(ADDRESS(1,COLUMN(),4))-1) -> AY | BC2: =LEFT(ADDRESS(1,COLUMN(),4),LEN(ADDRESS(1,COLUMN(),4))-1) -> BC | BG2: =LEFT(ADDRESS(1,COLUMN(),4),LEN(ADDRESS(1,COLUMN(),4))-1) -> BG | BK2: =LEFT(ADDRESS(1,COLUMN(),4),LEN(ADDRESS(1,COLUMN(),4))-1) -> BK | BO2: =LEFT(ADDRESS(1,COLUMN(),4),LEN(ADDRESS(1,COLUMN(),4))-1) -> BO | BS2: =LEFT(ADDRESS(1,COLUMN(),4),LEN(ADDRESS(1,COLUMN(),4))-1) -> BS
F11: =INDIRECT("START!I30") -> Items | I11: =INDIRECT("START!K30") -> Справочники статей доходов и расходов и т.д.
I12: =START!$I$32 -> Mrkting | M12: =START!$I$32 -> Mrkting | Q12: =START!$I$32 -> Mrkting | AD12: =START!$I$34 -> Sales | AH12: =START!$I$34 -> Sales | AL12: =START!$I$35 -> Prdction | AN12: =START!$I$35 -> Prdction | AQ12: =START!$I$35 -> Prdction | AU12: =START!$I$33 -> CapEx | AY12: =START!$I$33 -> CapEx | BC12: =START!$I$37 -> Exp | BG12: =START!$I$36 -> HR | BK12: =START!$I$54 -> Calc | BO12: =START!$I$54 -> Calc | BS12: =START!$I$54 -> Calc
I13: Капитальные затраты маркетинга | M13: Прямые переменные расходы маркетинга | Q13: Прямые постоянные расходы маркетинга | AD13: Прямые переменные коммерческие расходы | AH13: Прямые постоянные расходы отдела продаж | AL13: Прямые производственные расходы | AN13: ед.изм. | AQ13: Постоянные производственные расходы | AU13: Капзатраты разовые амортизируемые | AY13: Капзатраты переменные амортизируемые | BC13: Постоянные расходы | BG13: Расходы на персонал | BK13: Статьи Баланса | BO13: Статьи отчета о прибылях и убытках | BS13: Статьи отчета о ДДС
D14: =INDIRECT("Cntrl!M17") -> 0 | E14: =SUM($F14:$PM14) -> 0 | F14: =IFERROR(_xlfn.SHEET($A$1)-SUMIFS(Cntrl!O$15:O$100000,Cntrl!I$15:I$100000,$F$11),1) -> 0 | I14: =IF(OR(I13=0,I13=""),1,IF(COUNTIF(13:13,I13)=1,0,1)) -> 0 | K14: =SUM(K$15:K$100000) -> 0 | M14: =IF(OR(M13=0,M13=""),1,IF(COUNTIF(13:13,M13)=1,0,1)) -> 0 | O14: =SUM(O$15:O$100000) -> 0 | Q14: =IF(OR(Q13=0,Q13=""),1,IF(COUNTIF(13:13,Q13)=1,0,1)) -> 0 | S14: =SUM(S$15:S$100000) -> 0 | AD14: =IF(OR(AD13=0,AD13=""),1,IF(COUNTIF(13:13,AD13)=1,0,1)) -> 0 | AF14: =SUM(AF$15:AF$100000) -> 0 | AH14: =IF(OR(AH13=0,AH13=""),1,IF(COUNTIF(13:13,AH13)=1,0,1)) -> 0 | AJ14: =SUM(AJ$15:AJ$100000) -> 0 | AL14: =IF(OR(AL13=0,AL13=""),1,IF(COUNTIF(13:13,AL13)=1,0,1)) -> 0 | AN14: =IF(OR(AN13=0,AN13=""),1,IF(COUNTIF(13:13,AN13)=1,0,1)) -> 0 | AO14: =SUM(AO$15:AO$100000) -> 0 | AQ14: =IF(OR(AQ13=0,AQ13=""),1,IF(COUNTIF(13:13,AQ13)=1,0,1)) -> 0 | AS14: =SUM(AS$15:AS$100000) -> 0 | AU14: =IF(OR(AU13=0,AU13=""),1,IF(COUNTIF(13:13,AU13)=1,0,1)) -> 0 | AW14: =SUM(AW$15:AW$100000) -> 0 | AY14: =IF(OR(AY13=0,AY13=""),1,IF(COUNTIF(13:13,AY13)=1,0,1)) -> 0 | BA14: =SUM(BA$15:BA$100000) -> 0 | BC14: =IF(OR(BC13=0,BC13=""),1,IF(COUNTIF(13:13,BC13)=1,0,1)) -> 0 | BE14: =SUM(BE$15:BE$100000) -> 0 | BG14: =IF(OR(BG13=0,BG13=""),1,IF(COUNTIF(13:13,BG13)=1,0,1)) -> 0 | BI14: =SUM(BI$15:BI$100000) -> 0 | BK14: =IF(OR(BK13=0,BK13=""),1,IF(COUNTIF(13:13,BK13)=1,0,1)) -> 0 | BM14: =SUM(BM$15:BM$100000) -> 0 | BO14: =IF(OR(BO13=0,BO13=""),1,IF(COUNTIF(13:13,BO13)=1,0,1)) -> 0 | BQ14: =SUM(BQ$15:BQ$100000) -> 0 | BS14: =IF(OR(BS13=0,BS13=""),1,IF(COUNTIF(13:13,BS13)=1,0,1)) -> 0 | BU14: =SUM(BU$15:BU$100000) -> 0
A15: =ROW() -> 15 | I15: =$F$11&"!"&I$2&$A16&":"&I$2&($A15+MAX(J$15:J$100000)) -> Items!I16:I18 | M15: =$F$11&"!"&M$2&$A16&":"&M$2&($A15+MAX(N$15:N$100000)) -> Items!M16:M18 | Q15: =$F$11&"!"&Q$2&$A16&":"&Q$2&($A15+MAX(R$15:R$100000)) -> Items!Q16:Q17 | AD15: =$F$11&"!"&AD$2&$A16&":"&AD$2&($A15+MAX(AE$15:AE$100000)) -> Items!AD16:AD18 | AH15: =$F$11&"!"&AH$2&$A16&":"&AH$2&($A15+MAX(AI$15:AI$100000)) -> Items!AH16:AH17 | AL15: =$F$11&"!"&AL$2&$A16&":"&AL$2&($A15+MAX(AM$15:AM$100000)) -> Items!AL16:AL18 | AN15: =$F$11&"!"&AN$2&$A16&":"&AN$2&($A15+MAX(AO$15:AO$100000)) -> Items!AN16:AN15 | AQ15: =$F$11&"!"&AQ$2&$A16&":"&AQ$2&($A15+MAX(AR$15:AR$100000)) -> Items!AQ16:AQ17 | AU15: =$F$11&"!"&AU$2&$A16&":"&AU$2&($A15+MAX(AV$15:AV$100000)) -> Items!AU16:AU25 | AY15: =$F$11&"!"&AY$2&$A16&":"&AY$2&($A15+MAX(AZ$15:AZ$100000)) -> Items!AY16:AY25 | BC15: =$F$11&"!"&BC$2&$A16&":"&BC$2&($A15+MAX(BD$15:BD$100000)) -> Items!BC16:BC22 | BG15: =$F$11&"!"&BG$2&$A16&":"&BG$2&($A15+MAX(BH$15:BH$100000)) -> Items!BG16:BG20 | BK15: =$F$11&"!"&BK$2&$A16&":"&BK$2&($A15+MAX(BL$15:BL$100000)) -> Items!BK16:BK46 | BO15: =$F$11&"!"&BO$2&$A16&":"&BO$2&($A15+MAX(BP$15:BP$100000)) -> Items!BO16:BO35 | BS15: =$F$11&"!"&BS$2&$A16&":"&BS$2&($A15+MAX(BT$15:BT$100000)) -> Items!BS16:BS42
A16: =ROW() -> 16 | H16: * | I16: Подготовка рекламных материалов | J16: =MAX(J$15:J15)+1 -> 1 | K16: =IF(OR(I16=0,I16=""),0,IF(COUNTIF(I$15:I$100000,I16)=1,0,1)) -> 0 | L16: * | M16: Представительские расходы | N16: =MAX(N$15:N15)+1 -> 1 | O16: =IF(OR(M16=0,M16=""),0,IF(COUNTIF(M$15:M$100000,M16)=1,0,1)) -> 0 | Q16: ФОТ сотрудников маркетинга | R16: =MAX(R$15:R15)+1 -> 1 | S16: =IF(OR(Q16=0,Q16=""),0,IF(COUNTIF(Q$15:Q$100000,Q16)=1,0,1)) -> 0 | AC16: * | AD16: Представительские расходы | AE16: =MAX(AE$15:AE15)+1 -> 1 | AF16: =IF(OR(AD16=0,AD16=""),0,IF(COUNTIF(AD$15:AD$100000,AD16)=1,0,1)) -> 0 | AH16: ФОТ продавцов-консультантов | AI16: =MAX(AI$15:AI15)+1 -> 1 | AJ16: =IF(OR(AH16=0,AH16=""),0,IF(COUNTIF(AH$15:AH$100000,AH16)=1,0,1)) -> 0 | AK16: * | AL16: Готовые очки | AM16: =MAX(AM$15:AM15)+1 -> 1 | AN16: шт | AO16: =IF(OR(AL16=0,AL16=""),0,IF(COUNTIF(AL$15:AL$100000,AL16)=1,0,1)) -> 0 | AQ16: ФОТ врачей и медиков-консультантов | AR16: =MAX(AR$15:AR15)+1 -> 1 | AS16: =IF(OR(AQ16=0,AQ16=""),0,IF(COUNTIF(AQ$15:AQ$100000,AQ16)=1,0,1)) -> 0 | AT16: * | AU16: Оформление юрлица | AV16: =MAX(AV$15:AV15)+1 -> 1 | AW16: =IF(OR(AU16=0,AU16=""),0,IF(COUNTIF(AU$15:AU$100000,AU16)=1,0,1)) -> 0 | AX16: * | AY16: Ремонтные работы (250кв.м.) | AZ16: =MAX(AZ$15:AZ15)+1 -> 1 | BA16: =IF(OR(AY16=0,AY16=""),0,IF(COUNTIF(AY$15:AY$100000,AY16)=1,0,1)) -> 0 | BB16: * | BC16: Аутсорсинг бухгалтерии | BD16: =MAX(BD$15:BD15)+1 -> 1 | BE16: =IF(OR(BC16=0,BC16=""),0,IF(COUNTIF(BC$15:BC$100000,BC16)=1,0,1)) -> 0 | BF16: * | BG16: Аренда офиса | BH16: =MAX(BH$15:BH15)+1 -> 1 | BI16: =IF(OR(BG16=0,BG16=""),0,IF(COUNTIF(BG$15:BG$100000,BG16)=1,0,1)) -> 0 | BJ16: * | BK16: Дебиторская задолженность | BL16: =MAX(BL$15:BL15)+1 -> 1 | BM16: =IF(OR(BK16=0,BK16=""),0,IF(COUNTIF(BK$15:BK$100000,BK16)=1,0,1)) -> 0 | BN16: * | BO16: Выручка | BP16: =MAX(BP$15:BP15)+1 -> 1 | BQ16: =IF(OR(BO16=0,BO16=""),0,IF(COUNTIF(BO$15:BO$100000,BO16)=1,0,1)) -> 0 | BR16: * | BS16: Финпоток проекта без финансирования (CF) | BT16: =MAX(BT$15:BT15)+1 -> 1 | BU16: =IF(OR(BS16=0,BS16=""),0,IF(COUNTIF(BS$15:BS$100000,BS16)=1,0,1)) -> 0
A17: =ROW() -> 17 | H17: * | I17: Съемка видео-роликов | J17: =MAX(J$15:J16)+1 -> 2 | K17: =IF(OR(I17=0,I17=""),0,IF(COUNTIF(I$15:I$100000,I17)=1,0,1)) -> 0 | L17: * | M17: Командировочные расходы | N17: =MAX(N$15:N16)+1 -> 2 | O17: =IF(OR(M17=0,M17=""),0,IF(COUNTIF(M$15:M$100000,M17)=1,0,1)) -> 0 | P17: * | Q17: Прочие расходы маркетинга | R17: =MAX(R$15:R16)+1 -> 2 | S17: =IF(OR(Q17=0,Q17=""),0,IF(COUNTIF(Q$15:Q$100000,Q17)=1,0,1)) -> 0 | AC17: * | AD17: Средства личной гигиены | AE17: =MAX(AE$15:AE16)+1 -> 2 | AF17: =IF(OR(AD17=0,AD17=""),0,IF(COUNTIF(AD$15:AD$100000,AD17)=1,0,1)) -> 0 | AG17: * | AH17: Прочие расходы отдела продаж | AI17: =MAX(AI$15:AI16)+1 -> 2 | AJ17: =IF(OR(AH17=0,AH17=""),0,IF(COUNTIF(AH$15:AH$100000,AH17)=1,0,1)) -> 0 | AK17: * | AL17: Оправы | AM17: =MAX(AM$15:AM16)+1 -> 2 | AN17: шт | AO17: =IF(OR(AL17=0,AL17=""),0,IF(COUNTIF(AL$15:AL$100000,AL17)=1,0,1)) -> 0 | AP17: * | AQ17: Прочие производственные расходы | AR17: =MAX(AR$15:AR16)+1 -> 2 | AS17: =IF(OR(AQ17=0,AQ17=""),0,IF(COUNTIF(AQ$15:AQ$100000,AQ17)=1,0,1)) -> 0 | AT17: * | AU17: Юридические расходы | AV17: =MAX(AV$15:AV16)+1 -> 2 | AW17: =IF(OR(AU17=0,AU17=""),0,IF(COUNTIF(AU$15:AU$100000,AU17)=1,0,1)) -> 0 | AX17: * | AY17: Рабочее место офтальмолога | AZ17: =MAX(AZ$15:AZ16)+1 -> 2 | BA17: =IF(OR(AY17=0,AY17=""),0,IF(COUNTIF(AY$15:AY$100000,AY17)=1,0,1)) -> 0 | BB17: * | BC17: Юридические расходы | BD17: =MAX(BD$15:BD16)+1 -> 2 | BE17: 0 | BF17: * | BG17: Расходы на организацию рабочего места | BH17: =MAX(BH$15:BH16)+1 -> 2 | BI17: =IF(OR(BG17=0,BG17=""),0,IF(COUNTIF(BG$15:BG$100000,BG17)=1,0,1)) -> 0 | BJ17: * | BK17: Авансы полученные | BL17: =MAX(BL$15:BL16)+1 -> 2 | BM17: 0 | BN17: * | BO17: Себестоимость | BP17: =MAX(BP$15:BP16)+1 -> 2 | BQ17: 0 | BR17: * | BS17: Финпоток проекта нарастающим итогом | BT17: =MAX(BT$15:BT16)+1 -> 2 | BU17: 0
A18: =ROW() -> 18 | H18: * | I18: Аутсорсинг внешних исполнителей | J18: =MAX(J$15:J17)+1 -> 3 | K18: =IF(OR(I18=0,I18=""),0,IF(COUNTIF(I$15:I$100000,I18)=1,0,1)) -> 0 | L18: * | M18: Расходы на поддержание конверсии | N18: =MAX(N$15:N17)+1 -> 3 | O18: =IF(OR(M18=0,M18=""),0,IF(COUNTIF(M$15:M$100000,M18)=1,0,1)) -> 0 | AC18: * | AD18: Прочие расходники | AE18: =MAX(AE$15:AE17)+1 -> 3 | AF18: =IF(OR(AD18=0,AD18=""),0,IF(COUNTIF(AD$15:AD$100000,AD18)=1,0,1)) -> 0 | AK18: * | AL18: Прочие расходники и аксессуары | AM18: =MAX(AM$15:AM17)+1 -> 3 | AN18: шт | AO18: =IF(OR(AL18=0,AL18=""),0,IF(COUNTIF(AL$15:AL$100000,AL18)=1,0,1)) -> 0 | AT18: * | AU18: Разработка логотипа и дизайна | AV18: =MAX(AV$15:AV17)+1 -> 3 | AW18: =IF(OR(AU18=0,AU18=""),0,IF(COUNTIF(AU$15:AU$100000,AU18)=1,0,1)) -> 0 | AX18: * | AY18: Локальная мастерская | AZ18: =MAX(AZ$15:AZ17)+1 -> 3 | BA18: =IF(OR(AY18=0,AY18=""),0,IF(COUNTIF(AY$15:AY$100000,AY18)=1,0,1)) -> 0 | BB18: * | BC18: Расходы на лицензии, ПО и т.п. | BD18: =MAX(BD$15:BD17)+1 -> 3 | BE18: 0 | BF18: * | BG18: Расходы на оргтехнику | BH18: =MAX(BH$15:BH17)+1 -> 3 | BI18: =IF(OR(BG18=0,BG18=""),0,IF(COUNTIF(BG$15:BG$100000,BG18)=1,0,1)) -> 0 | BJ18: * | BK18: Поступление запасов | BL18: =MAX(BL$15:BL17)+1 -> 3 | BM18: 0 | BN18: * | BO18: Валовая прибыль | BP18: =MAX(BP$15:BP17)+1 -> 3 | BQ18: 0 | BR18: * | BS18: Свободный положительный финпоток проекта | BT18: =MAX(BT$15:BT17)+1 -> 3 | BU18: 0
A19: =ROW() -> 19 | AT19: * | AU19: Заключение контрактов с поставщиками | AV19: =MAX(AV$15:AV18)+1 -> 4 | AW19: =IF(OR(AU19=0,AU19=""),0,IF(COUNTIF(AU$15:AU$100000,AU19)=1,0,1)) -> 0 | AX19: * | AY19: Торговое оборудование | AZ19: =MAX(AZ$15:AZ18)+1 -> 4 | BA19: =IF(OR(AY19=0,AY19=""),0,IF(COUNTIF(AY$15:AY$100000,AY19)=1,0,1)) -> 0 | BB19: * | BC19: Банковские расходы | BD19: =MAX(BD$15:BD18)+1 -> 4 | BE19: 0 | BF19: * | BG19: Канцелярские расходы | BH19: =MAX(BH$15:BH18)+1 -> 4 | BI19: =IF(OR(BG19=0,BG19=""),0,IF(COUNTIF(BG$15:BG$100000,BG19)=1,0,1)) -> 0 | BJ19: * | BK19: Списание запасов на незавершенное пр-во | BL19: =MAX(BL$15:BL18)+1 -> 4 | BM19: 0 | BN19: * | BO19: НДС начисленный | BP19: =MAX(BP$15:BP18)+1 -> 4 | BQ19: 0 | BR19: * | BS19: Свободный отрицательный финпоток проекта | BT19: =MAX(BT$15:BT18)+1 -> 4 | BU19: 0
A20: =ROW() -> 20 | AT20: * | AU20: Оборудование для сетевой мастерской | AV20: =MAX(AV$15:AV19)+1 -> 5 | AW20: 0 | AX20: * | AY20: Охранная и пожарная сигнализации | AZ20: =MAX(AZ$15:AZ19)+1 -> 5 | BA20: 0 | BB20: * | BC20: Расходы на уборку-охрану | BD20: =MAX(BD$15:BD19)+1 -> 5 | BE20: 0 | BF20: * | BG20: Прочие расходы на персонал | BH20: =MAX(BH$15:BH19)+1 -> 5 | BI20: =IF(OR(BG20=0,BG20=""),0,IF(COUNTIF(BG$15:BG$100000,BG20)=1,0,1)) -> 0 | BJ20: * | BK20: Запасы | BL20: =MAX(BL$15:BL19)+1 -> 5 | BM20: 0 | BN20: * | BO20: НДС к возмещению | BP20: =MAX(BP$15:BP19)+1 -> 5 | BQ20: 0 | BR20: * | BS20: Свободный финпоток (FCF) | BT20: =MAX(BT$15:BT19)+1 -> 5 | BU20: 0
A21: =ROW() -> 21 | AT21: * | AU21: Лицензирование | AV21: =MAX(AV$15:AV20)+1 -> 6 | AW21: 0 | AX21: * | AY21: Оргтехника, кассовая техника и ПО | AZ21: =MAX(AZ$15:AZ20)+1 -> 6 | BA21: 0 | BB21: * | BC21: Постоянный расход - 6 | BD21: =MAX(BD$15:BD20)+1 -> 6 | BE21: 0 | BJ21: * | BK21: Незавершенное производство | BL21: =MAX(BL$15:BL20)+1 -> 6 | BM21: 0 | BN21: * | BO21: Прямые расходы | BP21: =MAX(BP$15:BP20)+1 -> 6 | BQ21: 0 | BR21: * | BS21: Кассовый разрыв | BT21: =MAX(BT$15:BT20)+1 -> 6 | BU21: 0
A22: =ROW() -> 22 | AT22: * | AU22: ="Разовые капзатраты - "&AV22 -> Разовые капзатраты - 7 | AV22: =MAX(AV$15:AV21)+1 -> 7 | AW22: 0 | AX22: * | AY22: Спецоборудование по 3D-подбору очков | AZ22: =MAX(AZ$15:AZ21)+1 -> 7 | BA22: 0 | BB22: * | BC22: Постоянный расход - 7 | BD22: =MAX(BD$15:BD21)+1 -> 7 | BE22: 0 | BJ22: * | BK22: Авансы выданные | BL22: =MAX(BL$15:BL21)+1 -> 7 | BM22: 0 | BN22: * | BO22: Маржинальная прибыль | BP22: =MAX(BP$15:BP21)+1 -> 7 | BQ22: 0 | BR22: * | BS22: Поступление финансирования от Учредителей | BT22: =MAX(BT$15:BT21)+1 -> 7 | BU22: 0
A23: =ROW() -> 23 | AT23: * | AU23: ="Разовые капзатраты - "&AV23 -> Разовые капзатраты - 8 | AV23: =MAX(AV$15:AV22)+1 -> 8 | AW23: 0 | AX23: * | AY23: ="Переменные капзатраты - "&AZ23 -> Переменные капзатраты - 8 | AZ23: =MAX(AZ$15:AZ22)+1 -> 8 | BA23: 0 | BJ23: * | BK23: Кредиторская задолженность | BL23: =MAX(BL$15:BL22)+1 -> 8 | BM23: 0 | BN23: * | BO23: Управленческие расходы | BP23: =MAX(BP$15:BP22)+1 -> 8 | BQ23: 0 | BR23: * | BS23: Финпоток проекта для кредиторов | BT23: =MAX(BT$15:BT22)+1 -> 8 | BU23: 0
A24: =ROW() -> 24 | AT24: * | AU24: ="Разовые капзатраты - "&AV24 -> Разовые капзатраты - 9 | AV24: =MAX(AV$15:AV23)+1 -> 9 | AW24: 0 | AX24: * | AY24: ="Переменные капзатраты - "&AZ24 -> Переменные капзатраты - 9 | AZ24: =MAX(AZ$15:AZ23)+1 -> 9 | BA24: 0 | BJ24: * | BK24: Задолженность перед персоналом | BL24: =MAX(BL$15:BL23)+1 -> 9 | BM24: 0 | BN24: * | BO24: ФОТ управленческого персонала | BP24: =MAX(BP$15:BP23)+1 -> 9 | BQ24: 0 | BR24: * | BS24: Финпоток проекта для кредиторов нараст. итогом | BT24: =MAX(BT$15:BT23)+1 -> 9 | BU24: 0
A25: =ROW() -> 25 | AT25: * | AU25: ="Разовые капзатраты - "&AV25 -> Разовые капзатраты - 10 | AV25: =MAX(AV$15:AV24)+1 -> 10 | AW25: 0 | AX25: * | AY25: ="Переменные капзатраты - "&AZ25 -> Переменные капзатраты - 10 | AZ25: =MAX(AZ$15:AZ24)+1 -> 10 | BA25: 0 | BJ25: * | BK25: Задолженность по соцсборам | BL25: =MAX(BL$15:BL24)+1 -> 10 | BM25: 0 | BN25: * | BO25: EBITDA | BP25: =MAX(BP$15:BP24)+1 -> 10 | BQ25: 0 | BR25: * | BS25: Свободный полож. финпоток для кредиторов | BT25: =MAX(BT$15:BT24)+1 -> 10 | BU25: 0
A26: =ROW() -> 26 | BJ26: * | BK26: АКТИВЫ | BL26: =MAX(BL$15:BL25)+1 -> 11 | BM26: =IF(OR(BK26=0,BK26=""),0,IF(COUNTIF(BK$15:BK$100000,BK26)=1,0,1)) -> 0 | BN26: * | BO26: Капзатраты | BP26: =MAX(BP$15:BP25)+1 -> 11 | BQ26: =IF(OR(BO26=0,BO26=""),0,IF(COUNTIF(BO$15:BO$100000,BO26)=1,0,1)) -> 0 | BR26: * | BS26: Свободный отриц. финпоток для кредиторов | BT26: =MAX(BT$15:BT25)+1 -> 11 | BU26: 0
A27: =ROW() -> 27 | BJ27: * | BK27: ПАССИВЫ | BL27: =MAX(BL$15:BL26)+1 -> 12 | BM27: 0 | BN27: * | BO27: НДС к возмещению по капзатратам | BP27: =MAX(BP$15:BP26)+1 -> 12 | BQ27: 0 | BR27: * | BS27: Свободный финпоток для кредиторов | BT27: =MAX(BT$15:BT26)+1 -> 12 | BU27: 0
A28: =ROW() -> 28 | BJ28: * | BK28: Денежные средства | BL28: =MAX(BL$15:BL27)+1 -> 13 | BM28: 0 | BN28: * | BO28: Амортизация | BP28: =MAX(BP$15:BP27)+1 -> 13 | BQ28: 0 | BR28: * | BS28: Кассовый разрыв проекта для кредиторов | BT28: =MAX(BT$15:BT27)+1 -> 13 | BU28: 0
A29: =ROW() -> 29 | BJ29: * | BK29: Собственный капитал | BL29: =MAX(BL$15:BL28)+1 -> 14 | BM29: 0 | BN29: * | BO29: EBIT | BP29: =MAX(BP$15:BP28)+1 -> 14 | BQ29: 0 | BR29: * | BS29: Поступление кредита | BT29: =MAX(BT$15:BT28)+1 -> 14 | BU29: 0
A30: =ROW() -> 30 | BJ30: * | BK30: Промежуточный баланс-контроль | BL30: =MAX(BL$15:BL29)+1 -> 15 | BM30: 0 | BN30: * | BO30: Прочие доходы | BP30: =MAX(BP$15:BP29)+1 -> 15 | BQ30: 0 | BR30: * | BS30: Возврат кредита | BT30: =MAX(BT$15:BT29)+1 -> 15 | BU30: 0
A31: =ROW() -> 31 | BJ31: * | BK31: Задолженность по прямым расходам | BL31: =MAX(BL$15:BL30)+1 -> 16 | BM31: 0 | BN31: * | BO31: Проценты начисленные | BP31: =MAX(BP$15:BP30)+1 -> 16 | BQ31: 0 | BR31: * | BS31: Оплата процентов по кредиту | BT31: =MAX(BT$15:BT30)+1 -> 16 | BU31: 0
A32: =ROW() -> 32 | BJ32: * | BK32: Задолженность по управленческим расходам | BL32: =MAX(BL$15:BL31)+1 -> 17 | BM32: =IF(OR(BK32=0,BK32=""),0,IF(COUNTIF(BK$15:BK$100000,BK32)=1,0,1)) -> 0 | BN32: * | BO32: Прибыль до налога на прибыль | BP32: =MAX(BP$15:BP31)+1 -> 17 | BQ32: 0 | BR32: * | BS32: Финпоток проекта с учетом финансирования | BT32: =MAX(BT$15:BT31)+1 -> 17 | BU32: 0
A33: =ROW() -> 33 | BJ33: * | BK33: Задолженность по капзатратам | BL33: =MAX(BL$15:BL32)+1 -> 18 | BM33: 0 | BN33: * | BO33: Налог на прибыль | BP33: =MAX(BP$15:BP32)+1 -> 18 | BQ33: 0 | BR33: * | BS33: Финпоток проекта с уч. финансир. нараст. итогом | BT33: =MAX(BT$15:BT32)+1 -> 18 | BU33: 0
A34: =ROW() -> 34 | BJ34: * | BK34: Внеоборотные активы | BL34: =MAX(BL$15:BL33)+1 -> 19 | BM34: 0 | BN34: * | BO34: Чистая прибыль | BP34: =MAX(BP$15:BP33)+1 -> 19 | BQ34: 0 | BR34: * | BS34: Осаточный кассовый разрыв | BT34: =MAX(BT$15:BT33)+1 -> 19 | BU34: 0
A35: =ROW() -> 35 | BJ35: * | BK35: ДЗ по возмещению НДС с капзатрат | BL35: =MAX(BL$15:BL34)+1 -> 20 | BM35: 0 | BN35: * | BO35: Проценты начисленные по кредиту | BP35: =MAX(BP$15:BP34)+1 -> 20 | BQ35: 0 | BR35: * | BS35: Итоговый финпоток | BT35: =MAX(BT$15:BT34)+1 -> 20 | BU35: =IF(OR(BS35=0,BS35=""),0,IF(COUNTIF(BS$15:BS$100000,BS35)=1,0,1)) -> 0
A36: =ROW() -> 36 | BJ36: * | BK36: Задолженность по налогам | BL36: =MAX(BL$15:BL35)+1 -> 21 | BM36: 0 | BR36: * | BS36: Итоговый финпоток нараст. итогом | BT36: =MAX(BT$15:BT35)+1 -> 21 | BU36: 0
A37: =ROW() -> 37 | BJ37: * | BK37: Задолженность по НДС | BL37: =MAX(BL$15:BL36)+1 -> 22 | BM37: 0 | BR37: * | BS37: Итоговый кассовый разрыв | BT37: =MAX(BT$15:BT36)+1 -> 22 | BU37: 0
A38: =ROW() -> 38 | BJ38: * | BK38: Задолженность по НП | BL38: =MAX(BL$15:BL37)+1 -> 23 | BM38: 0 | BR38: * | BS38: Финпоток по операционной деятельности | BT38: =MAX(BT$15:BT37)+1 -> 23 | BU38: 0
A39: =ROW() -> 39 | BJ39: * | BK39: Остаток долга по кредиту | BL39: =MAX(BL$15:BL38)+1 -> 24 | BM39: 0 | BR39: * | BS39: Финпоток по основной деятельности | BT39: =MAX(BT$15:BT38)+1 -> 24 | BU39: 0
A40: =ROW() -> 40 | BJ40: * | BK40: Задолженность по выплате %% по кредиту | BL40: =MAX(BL$15:BL39)+1 -> 25 | BM40: 0 | BR40: * | BS40: Финпоток по финансовой деятельности | BT40: =MAX(BT$15:BT39)+1 -> 25 | BU40: 0
A41: =ROW() -> 41 | BJ41: * | BK41: Вложения Учредителей в капитал | BL41: =MAX(BL$15:BL40)+1 -> 26 | BM41: 0 | BR41: * | BS41: Поступление ДС | BT41: =MAX(BT$15:BT40)+1 -> 26 | BU41: 0
A42: =ROW() -> 42 | BJ42: * | BK42: БАЛАНС | BL42: =MAX(BL$15:BL41)+1 -> 27 | BM42: 0 | BR42: * | BS42: Итоговый свободный финпоток (Total FCF) | BT42: =MAX(BT$15:BT41)+1 -> 27 | BU42: 0
A43: =ROW() -> 43 | BJ43: * | BL43: =MAX(BL$15:BL42)+1 -> 28 | BM43: 0
A44: =ROW() -> 44 | BJ44: * | BL44: =MAX(BL$15:BL43)+1 -> 29 | BM44: 0
A45: =ROW() -> 45 | BJ45: * | BL45: =MAX(BL$15:BL44)+1 -> 30 | BM45: 0
A46: =ROW() -> 46 | BJ46: * | BL46: =MAX(BL$15:BL45)+1 -> 31 | BM46: 0
A47: =ROW() -> 47
A48: =ROW() -> 48
A49: =ROW() -> 49
A50: =ROW() -> 50
A51: =ROW() -> 51
A52: =ROW() -> 52
A53: =ROW() -> 53
A54: =ROW() -> 54
A55: =ROW() -> 55
A56: =ROW() -> 56
A57: =ROW() -> 57
A58: =ROW() -> 58
A59: =ROW() -> 59
A60: =ROW() -> 60
A61: =ROW() -> 61
A62: =ROW() -> 62
A63: =ROW() -> 63
A64: =ROW() -> 64
A65: =ROW() -> 65
A66: =ROW() -> 66
A67: =ROW() -> 67
A68: =ROW() -> 68
A69: =ROW() -> 69
A70: =ROW() -> 70

Sheet KPI
I1: =COLUMN() -> 9
I2: =LEFT(ADDRESS(1,COLUMN(),4),LEN(ADDRESS(1,COLUMN(),4))-1) -> I
F11: =INDIRECT("START!I31") -> KPI | I11: =INDIRECT("START!K31") -> Справочники ключевых показателей эффективности
I13: Список показателей эффективности | Q13: Формулы расчета показателей
D14: =INDIRECT("Cntrl!M17") -> 0 | E14: =SUM($F14:$ML14) -> 0 | F14: =IFERROR(_xlfn.SHEET($A$1)-SUMIFS(Cntrl!O$15:O$100000,Cntrl!I$15:I$100000,$F$11),1) -> 0 | I14: =IF(OR(I13=0,I13=""),1,IF(COUNTIF(13:13,I13)=1,0,1)) -> 0 | K14: =SUM(K$15:K$100000) -> 0
A15: =ROW() -> 15 | I15: =$F$11&"!"&I$2&$A16&":"&I$2&($A15+MAX(J$15:J$100000)) -> KPI!I16:I92
A16: =ROW() -> 16 | I16: Срок окупаемости по чистой прибыли | J16: =MAX(J$15:J15)+1 -> 1 | K16: =IF(OR(I16=0,I16=""),0,IF(COUNTIF(I$15:I$100000,I16)=1,0,1)) -> 0
A17: =ROW() -> 17 | I17: Точка безубыточности по чистой прибыли | J17: =MAX(J$15:J16)+1 -> 2 | K17: =IF(OR(I17=0,I17=""),0,IF(COUNTIF(I$15:I$100000,I17)=1,0,1)) -> 0
A18: =ROW() -> 18 | I18: Срок окупаемости по финпотоку (PBP) | J18: =MAX(J$15:J17)+1 -> 3 | K18: 0
A19: =ROW() -> 19 | I19: Точка безубыточности по финпотоку | J19: =MAX(J$15:J18)+1 -> 4 | K19: 0
A20: =ROW() -> 20 | I20: IRR проекта | J20: =MAX(J$15:J19)+1 -> 5 | K20: 0
A21: =ROW() -> 21 | I21: NPV(Учредителя) | J21: =MAX(J$15:J20)+1 -> 6 | K21: 0
A22: =ROW() -> 22 | I22: IRR для кредиторов | J22: =MAX(J$15:J21)+1 -> 7 | K22: 0
A23: =ROW() -> 23 | I23: NPV(Кредиторов) | J23: =MAX(J$15:J22)+1 -> 8 | K23: =IF(OR(I23=0,I23=""),0,IF(COUNTIF(I$15:I$100000,I23)=1,0,1)) -> 0
A24: =ROW() -> 24 | I24: Рентабельность | J24: =MAX(J$15:J23)+1 -> 9 | K24: 0
A25: =ROW() -> 25 | I25: WACC | J25: =MAX(J$15:J24)+1 -> 10 | K25: 0
A26: =ROW() -> 26 | I26: NPV(WACC) | J26: =MAX(J$15:J25)+1 -> 11 | K26: 0
A27: =ROW() -> 27 | I27: ROI | J27: =MAX(J$15:J26)+1 -> 12 | K27: 0
A28: =ROW() -> 28 | I28: Дисконтированный срок окупаемости (DPBP) | J28: =MAX(J$15:J27)+1 -> 13 | K28: 0
A29: =ROW() -> 29 | I29: Коэффициент текущей ликвидности (L1) | J29: =MAX(J$15:J28)+1 -> 14 | K29: 0 | Q29: Отношение оборотных активов к краткосрочным обязательствам
A30: =ROW() -> 30 | I30: Коэффициент промежуточного покрытия (L2) | J30: =MAX(J$15:J29)+1 -> 15 | K30: 0 | Q30: Отношение суммы активов А1 и А2 к краткосрочным обязательствам
A31: =ROW() -> 31 | I31: Коэффициент абсолютной ликвидности (L3) | J31: =MAX(J$15:J30)+1 -> 16 | K31: =IF(OR(I31=0,I31=""),0,IF(COUNTIF(I$15:I$100000,I31)=1,0,1)) -> 0 | Q31: Отношение суммы активов А1 к краткосрочным обязательствам
A32: =ROW() -> 32 | I32: Коэффициент общей платежеспособности (L4) | J32: =MAX(J$15:J31)+1 -> 17 | K32: 0 | Q32: Отношение всех активов ко всем обязательствам
A33: =ROW() -> 33 | I33: Коэфф. платежеспособности по тек. обяз. (L5) | J33: =MAX(J$15:J32)+1 -> 18 | K33: 0 | Q33: Отношение среднемесячной выручки к краткосрочным обязательствам
A34: =ROW() -> 34 | J34: =MAX(J$15:J33)+1 -> 19 | K34: 0
A35: =ROW() -> 35 | I35: Оценка стоимости бизнеса/компании | J35: =MAX(J$15:J34)+1 -> 20 | K35: 0
A36: =ROW() -> 36 | J36: =MAX(J$15:J35)+1 -> 21 | K36: 0
A37: =ROW() -> 37 | J37: =MAX(J$15:J36)+1 -> 22 | K37: 0
A38: =ROW() -> 38 | J38: =MAX(J$15:J37)+1 -> 23 | K38: 0
A39: =ROW() -> 39 | I39: Терминальная стоимость (TV) | J39: =MAX(J$15:J38)+1 -> 24 | K39: 0
A40: =ROW() -> 40 | I40: NPV(TV) | J40: =MAX(J$15:J39)+1 -> 25 | K40: =IF(OR(I40=0,I40=""),0,IF(COUNTIF(I$15:I$100000,I40)=1,0,1)) -> 0
A41: =ROW() -> 41 | I41: CFADS | J41: =MAX(J$15:J40)+1 -> 26 | K41: 0
A42: =ROW() -> 42 | I42: Выплаты долга [Debt (Principals+Interests)] | J42: =MAX(J$15:J41)+1 -> 27 | K42: 0
A43: =ROW() -> 43 | I43: Выплаты тела кредитов (Principals) | J43: =MAX(J$15:J42)+1 -> 28 | K43: 0
A44: =ROW() -> 44 | I44: Выплаты %% (Interests) | J44: =MAX(J$15:J43)+1 -> 29 | K44: 0
A45: =ROW() -> 45 | I45: Коэф. покрытия выплат долга (DSCR) | J45: =MAX(J$15:J44)+1 -> 30 | K45: 0
A46: =ROW() -> 46 | I46: Коэф. покрытия процентов (ICR) | J46: =MAX(J$15:J45)+1 -> 31 | K46: =IF(OR(I46=0,I46=""),0,IF(COUNTIF(I$15:I$100000,I46)=1,0,1)) -> 0
A47: =ROW() -> 47 | I47: CF(EBIT) | J47: =MAX(J$15:J46)+1 -> 32 | K47: 0
A48: =ROW() -> 48 | I48: Наиболее ликвидные активы (А1) | J48: =MAX(J$15:J47)+1 -> 33 | K48: 0
A49: =ROW() -> 49 | I49: Денежные средства | J49: =MAX(J$15:J48)+1 -> 34 | K49: 0
A50: =ROW() -> 50 | I50: Финансовые вложения | J50: =MAX(J$15:J49)+1 -> 35 | K50: 0
A51: =ROW() -> 51 | I51: Быстро реализуемые активы (А2) | J51: =MAX(J$15:J50)+1 -> 36 | K51: 0
A52: =ROW() -> 52 | I52: Незавершенное производство | J52: =MAX(J$15:J51)+1 -> 37 | K52: 0
A53: =ROW() -> 53 | I53: Дебиторская задолженность | J53: =MAX(J$15:J52)+1 -> 38 | K53: =IF(OR(I53=0,I53=""),0,IF(COUNTIF(I$15:I$100000,I53)=1,0,1)) -> 0
A54: =ROW() -> 54 | I54: Авансы выданные | J54: =MAX(J$15:J53)+1 -> 39 | K54: 0
A55: =ROW() -> 55 | I55: Медленно реализуемые активы (А3) | J55: =MAX(J$15:J54)+1 -> 40 | K55: 0
A56: =ROW() -> 56 | I56: Запасы | J56: =MAX(J$15:J55)+1 -> 41 | K56: 0
A57: =ROW() -> 57 | I57: Трудно реализуемые активы (А4) | J57: =MAX(J$15:J56)+1 -> 42 | K57: 0
A58: =ROW() -> 58 | I58: Внеоборотные активы | J58: =MAX(J$15:J57)+1 -> 43 | K58: 0
A59: =ROW() -> 59 | I59: Наиболее срочные обязательства (П1) | J59: =MAX(J$15:J58)+1 -> 44 | K59: 0
A60: =ROW() -> 60 | I60: Овердрафт | J60: =MAX(J$15:J59)+1 -> 45 | K60: 0
A61: =ROW() -> 61 | I61: Кредиторская задолженность | J61: =MAX(J$15:J60)+1 -> 46 | K61: 0
A62: =ROW() -> 62 | I62: Краткосрочные обязательства (П2) | J62: =MAX(J$15:J61)+1 -> 47 | K62: 0
A63: =ROW() -> 63 | I63: Прочие краткосрочные обязательства | J63: =MAX(J$15:J62)+1 -> 48 | K63: 0
A64: =ROW() -> 64 | I64: Долгосрочные обязательства (П3) | J64: =MAX(J$15:J63)+1 -> 49 | K64: 0
A65: =ROW() -> 65 | I65: Долгосрочные кредиты | J65: =MAX(J$15:J64)+1 -> 50 | K65: 0
A66: =ROW() -> 66 | I66: Постоянные пассивы (П4) | J66: =MAX(J$15:J65)+1 -> 51 | K66: 0
A67: =ROW() -> 67 | I67: Собственный капитал | J67: =MAX(J$15:J66)+1 -> 52 | K67: =IF(OR(I67=0,I67=""),0,IF(COUNTIF(I$15:I$100000,I67)=1,0,1)) -> 0
A68: =ROW() -> 68 | I68: Собственные оборотные средства (СОС) | J68: =MAX(J$15:J67)+1 -> 53 | K68: 0 | Q68: Разность собственного капитала и внеоборотных активов
A69: =ROW() -> 69 | I69: Коэффициент финансовой устойчивости (S1) | J69: =MAX(J$15:J68)+1 -> 54 | K69: 0 | Q69: Отношение суммы собственного капитала и долгосрочных обязательств к активам
A70: =ROW() -> 70 | I70: Коэффициент автономии (независимости) (S2) | J70: =MAX(J$15:J69)+1 -> 55 | K70: 0 | Q70: Отношение собственного капитала к активам
I71: Коэфф. обеспеч-ти собств. об. средствами (S3) | J71: =MAX(J$15:J70)+1 -> 56 | K71: 0 | Q71: Отношение объема СОС к оборотным активам
I72: Коэффициент финансового рычага (S4) | J72: =MAX(J$15:J71)+1 -> 57 | K72: 0 | Q72: Отношение собственного капитала к заемному капиталу
I73: Рентабельность продаж (Return On Sales) (R1) | J73: =MAX(J$15:J72)+1 -> 58 | K73: 0 | Q73: Отношение валовой прибыли к выручке
I74: Рентабельность активов (Return On Assets) (R2) | J74: =MAX(J$15:J73)+1 -> 59 | K74: 0 | Q74: Отношение среднемесячной чистой прибыли за период к уровню активов на конец периода
I75: Рентаб-сть собств. капитала (Return On Equity) (R3) | J75: =MAX(J$15:J74)+1 -> 60 | K75: 0 | Q75: Отношение среднемесячной чистой прибыли за период к уровню собственного капитала на конец периода
I76: Рент. инвестиций (Return On Invested Capital) (R4) | J76: =MAX(J$15:J75)+1 -> 61 | K76: 0 | Q76: Отношение среднемес. EBITDA за период к уровню инвестиций (собств.+долгосроч.) на конец периода
I77: Рент. об. капитала (Return On Working Capital) (R5) | J77: =MAX(J$15:J76)+1 -> 62 | K77: 0 | Q77: Отношение среднемес. марж. прибыли за период к уровню оборотного капитала на конец периода
I78: Оборачиваемость запасов и незавершенки | J78: =MAX(J$15:J77)+1 -> 63 | K78: 0
I79: Период оборач-сти запасов и незавершенки (P1) | J79: =MAX(J$15:J78)+1 -> 64 | K79: =IF(OR(I79=0,I79=""),0,IF(COUNTIF(I$15:I$100000,I79)=1,0,1)) -> 0
I80: Оборачиваемость дебиторской задолженности | J80: =MAX(J$15:J79)+1 -> 65 | K80: 0
I81: Период оборач-ти дебит. задолженности (P2) | J81: =MAX(J$15:J80)+1 -> 66 | K81: 0
I82: Оборачиваемость кредиторской задолженности | J82: =MAX(J$15:J81)+1 -> 67 | K82: 0
I83: Период оборач-ти кредит. задолженности (P3) | J83: =MAX(J$15:J82)+1 -> 68 | K83: 0
I84: Финансовый цикл (P4) | J84: =MAX(J$15:J83)+1 -> 69 | K84: =IF(OR(I84=0,I84=""),0,IF(COUNTIF(I$15:I$100000,I84)=1,0,1)) -> 0
I85: ТЕМПЫ РОСТА АКТИВОВ [T(A)] | J85: =MAX(J$15:J84)+1 -> 70 | K85: 0
I86: ТЕМПЫ РОСТА ВЫРУЧКИ [T(R)] | J86: =MAX(J$15:J85)+1 -> 71 | K86: 0
I87: ТЕМПЫ РОСТА ЧИСТОЙ ПРИБЫЛИ [T(E)] | J87: =MAX(J$15:J86)+1 -> 72 | K87: 0
J88: =MAX(J$15:J87)+1 -> 73 | K88: 0
J89: =MAX(J$15:J88)+1 -> 74 | K89: 0
J90: =MAX(J$15:J89)+1 -> 75 | K90: 0
J91: =MAX(J$15:J90)+1 -> 76 | K91: 0
J92: =MAX(J$15:J91)+1 -> 77 | K92: 0

Sheet Mrkting
Y1: номер столбца: | AA1: 27 | AB1: 28 | AC1: 29 | AD1: 30 | AE1: 31 | AF1: 32 | AG1: 33 | AH1: 34 | AI1: 35 | AJ1: 36 | AK1: 37 | AL1: 38 | AM1: 39 | AN1: 40 | AO1: 41 | AP1: 42 | AQ1: 43 | AR1: 44 | AS1: 45 | AT1: 46 | AU1: 47 | AV1: 48 | AW1: 49 | AX1: 50 | AY1: 51 | AZ1: 52 | BA1: 53 | BB1: 54 | BC1: 55 | BD1: 56 | BE1: 57 | BF1: 58 | BG1: 59 | BH1: 60 | BI1: 61 | BJ1: 62 | BK1: 63 | BL1: 64 | BM1: 65 | BN1: 66 | BO1: 67 | BP1: 68 | BQ1: 69 | BR1: 70 | BS1: 71 | BT1: 72 | BU1: 73 | BV1: 74 | BW1: 75 | BX1: 76 | BY1: 77 | BZ1: 78 | CA1: 79 | CB1: 80 | CC1: 81 | CD1: 82 | CE1: 83 | CF1: 84 | CG1: 85 | CH1: 86 | CI1: 87 | CJ1: 88 | CK1: 89 | CL1: 90 | CM1: 91 | CN1: 92 | CO1: 93 | CP1: 94 | CQ1: 95 | CR1: 96 | CS1: 97 | CT1: 98 | CU1: 99
Y2: номер периода модели: | AA2: 1 | AB2: 2 | AC2: 3 | AD2: 4 | AE2: 5 | AF2: 6 | AG2: 7 | AH2: 8 | AI2: 9 | AJ2: 10 | AK2: 11 | AL2: 12 | AM2: 13 | AN2: 14 | AO2: 15 | AP2: 16 | AQ2: 17 | AR2: 18 | AS2: 19 | AT2: 20 | AU2: 21 | AV2: 22 | AW2: 23 | AX2: 24 | AY2: 25 | AZ2: 26 | BA2: 27 | BB2: 28 | BC2: 29 | BD2: 30 | BE2: 31 | BF2: 32 | BG2: 33 | BH2: 34 | BI2: 35 | BJ2: 36 | BK2: 37 | BL2: 38 | BM2: 39 | BN2: 40 | BO2: 41 | BP2: 42 | BQ2: 43 | BR2: 44 | BS2: 45 | BT2: 46 | BU2: 47 | BV2: 48 | BW2: 49 | BX2: 50 | BY2: 51 | BZ2: 52 | CA2: 53 | CB2: 54 | CC2: 55 | CD2: 56 | CE2: 57 | CF2: 58 | CG2: 59 | CH2: 60 | CI2: 61 | CJ2: 62 | CK2: 63 | CL2: 64 | CM2: 65 | CN2: 66 | CO2: 67 | CP2: 68 | CQ2: 69 | CR2: 70 | CS2: 71 | CT2: 72 | CU2: 73
Y3: номер факт-периода:
Y4: номер план-периода: | AA4: 1 | AB4: 2 | AC4: 3 | AD4: 4 | AE4: 5 | AF4: 6 | AG4: 7 | AH4: 8 | AI4: 9 | AJ4: 10 | AK4: 11 | AL4: 12 | AM4: 13 | AN4: 14 | AO4: 15 | AP4: 16 | AQ4: 17 | AR4: 18 | AS4: 19 | AT4: 20 | AU4: 21 | AV4: 22 | AW4: 23 | AX4: 24 | AY4: 25 | AZ4: 26 | BA4: 27 | BB4: 28 | BC4: 29 | BD4: 30 | BE4: 31 | BF4: 32 | BG4: 33 | BH4: 34 | BI4: 35 | BJ4: 36 | BK4: 37 | BL4: 38 | BM4: 39 | BN4: 40 | BO4: 41 | BP4: 42 | BQ4: 43 | BR4: 44 | BS4: 45 | BT4: 46 | BU4: 47 | BV4: 48 | BW4: 49 | BX4: 50 | BY4: 51 | BZ4: 52 | CA4: 53 | CB4: 54 | CC4: 55 | CD4: 56 | CE4: 57 | CF4: 58 | CG4: 59 | CH4: 60 | CI4: 61 | CJ4: 62 | CK4: 63 | CL4: 64 | CM4: 65 | CN4: 66 | CO4: 67 | CP4: 68 | CQ4: 69 | CR4: 70 | CS4: 71 | CT4: 72
Y5: число даты начала: | AA5: 1 | AB5: 1 | AC5: 1 | AD5: 1 | AE5: 1 | AF5: 1 | AG5: 1 | AH5: 1 | AI5: 1 | AJ5: 1 | AK5: 1 | AL5: 1 | AM5: 1 | AN5: 1 | AO5: 1 | AP5: 1 | AQ5: 1 | AR5: 1 | AS5: 1 | AT5: 1 | AU5: 1 | AV5: 1 | AW5: 1 | AX5: 1 | AY5: 1 | AZ5: 1 | BA5: 1 | BB5: 1 | BC5: 1 | BD5: 1 | BE5: 1 | BF5: 1 | BG5: 1 | BH5: 1 | BI5: 1 | BJ5: 1 | BK5: 1 | BL5: 1 | BM5: 1 | BN5: 1 | BO5: 1 | BP5: 1 | BQ5: 1 | BR5: 1 | BS5: 1 | BT5: 1 | BU5: 1 | BV5: 1 | BW5: 1 | BX5: 1 | BY5: 1 | BZ5: 1 | CA5: 1 | CB5: 1 | CC5: 1 | CD5: 1 | CE5: 1 | CF5: 1 | CG5: 1 | CH5: 1 | CI5: 1 | CJ5: 1 | CK5: 1 | CL5: 1 | CM5: 1 | CN5: 1 | CO5: 1 | CP5: 1 | CQ5: 1 | CR5: 1 | CS5: 1 | CT5: 1
Y6: номер месяца даты начала: | AA6: 7 | AB6: 8 | AC6: 9 | AD6: 10 | AE6: 11 | AF6: 12 | AG6: 1 | AH6: 2 | AI6: 3 | AJ6: 4 | AK6: 5 | AL6: 6 | AM6: 7 | AN6: 8 | AO6: 9 | AP6: 10 | AQ6: 11 | AR6: 12 | AS6: 1 | AT6: 2 | AU6: 3 | AV6: 4 | AW6: 5 | AX6: 6 | AY6: 7 | AZ6: 8 | BA6: 9 | BB6: 10 | BC6: 11 | BD6: 12 | BE6: 1 | BF6: 2 | BG6: 3 | BH6: 4 | BI6: 5 | BJ6: 6 | BK6: 7 | BL6: 8 | BM6: 9 | BN6: 10 | BO6: 11 | BP6: 12 | BQ6: 1 | BR6: 2 | BS6: 3 | BT6: 4 | BU6: 5 | BV6: 6 | BW6: 7 | BX6: 8 | BY6: 9 | BZ6: 10 | CA6: 11 | CB6: 12 | CC6: 1 | CD6: 2 | CE6: 3 | CF6: 4 | CG6: 5 | CH6: 6 | CI6: 7 | CJ6: 8 | CK6: 9 | CL6: 10 | CM6: 11 | CN6: 12 | CO6: 1 | CP6: 2 | CQ6: 3 | CR6: 4 | CS6: 5 | CT6: 6
Y7: год даты начала: | AA7: 21 | AB7: 21 | AC7: 21 | AD7: 21 | AE7: 21 | AF7: 21 | AG7: 22 | AH7: 22 | AI7: 22 | AJ7: 22 | AK7: 22 | AL7: 22 | AM7: 22 | AN7: 22 | AO7: 22 | AP7: 22 | AQ7: 22 | AR7: 22 | AS7: 23 | AT7: 23 | AU7: 23 | AV7: 23 | AW7: 23 | AX7: 23 | AY7: 23 | AZ7: 23 | BA7: 23 | BB7: 23 | BC7: 23 | BD7: 23 | BE7: 24 | BF7: 24 | BG7: 24 | BH7: 24 | BI7: 24 | BJ7: 24 | BK7: 24 | BL7: 24 | BM7: 24 | BN7: 24 | BO7: 24 | BP7: 24 | BQ7: 25 | BR7: 25 | BS7: 25 | BT7: 25 | BU7: 25 | BV7: 25 | BW7: 25 | BX7: 25 | BY7: 25 | BZ7: 25 | CA7: 25 | CB7: 25 | CC7: 26 | CD7: 26 | CE7: 26 | CF7: 26 | CG7: 26 | CH7: 26 | CI7: 26 | CJ7: 26 | CK7: 26 | CL7: 26 | CM7: 26 | CN7: 26 | CO7: 27 | CP7: 27 | CQ7: 27 | CR7: 27 | CS7: 27 | CT7: 27
Y8: число даты окончания: | AA8: 31 | AB8: 31 | AC8: 30 | AD8: 31 | AE8: 30 | AF8: 31 | AG8: 31 | AH8: 28 | AI8: 31 | AJ8: 30 | AK8: 31 | AL8: 30 | AM8: 31 | AN8: 31 | AO8: 30 | AP8: 31 | AQ8: 30 | AR8: 31 | AS8: 31 | AT8: 28 | AU8: 31 | AV8: 30 | AW8: 31 | AX8: 30 | AY8: 31 | AZ8: 31 | BA8: 30 | BB8: 31 | BC8: 30 | BD8: 31 | BE8: 31 | BF8: 29 | BG8: 31 | BH8: 30 | BI8: 31 | BJ8: 30 | BK8: 31 | BL8: 31 | BM8: 30 | BN8: 31 | BO8: 30 | BP8: 31 | BQ8: 31 | BR8: 28 | BS8: 31 | BT8: 30 | BU8: 31 | BV8: 30 | BW8: 31 | BX8: 31 | BY8: 30 | BZ8: 31 | CA8: 30 | CB8: 31 | CC8: 31 | CD8: 28 | CE8: 31 | CF8: 30 | CG8: 31 | CH8: 30 | CI8: 31 | CJ8: 31 | CK8: 30 | CL8: 31 | CM8: 30 | CN8: 31 | CO8: 31 | CP8: 28 | CQ8: 31 | CR8: 30 | CS8: 31 | CT8: 30
Y9: номер месяца даты окончания: | AA9: 7 | AB9: 8 | AC9: 9 | AD9: 10 | AE9: 11 | AF9: 12 | AG9: 1 | AH9: 2 | AI9: 3 | AJ9: 4 | AK9: 5 | AL9: 6 | AM9: 7 | AN9: 8 | AO9: 9 | AP9: 10 | AQ9: 11 | AR9: 12 | AS9: 1 | AT9: 2 | AU9: 3 | AV9: 4 | AW9: 5 | AX9: 6 | AY9: 7 | AZ9: 8 | BA9: 9 | BB9: 10 | BC9: 11 | BD9: 12 | BE9: 1 | BF9: 2 | BG9: 3 | BH9: 4 | BI9: 5 | BJ9: 6 | BK9: 7 | BL9: 8 | BM9: 9 | BN9: 10 | BO9: 11 | BP9: 12 | BQ9: 1 | BR9: 2 | BS9: 3 | BT9: 4 | BU9: 5 | BV9: 6 | BW9: 7 | BX9: 8 | BY9: 9 | BZ9: 10 | CA9: 11 | CB9: 12 | CC9: 1 | CD9: 2 | CE9: 3 | CF9: 4 | CG9: 5 | CH9: 6 | CI9: 7 | CJ9: 8 | CK9: 9 | CL9: 10 | CM9: 11 | CN9: 12 | CO9: 1 | CP9: 2 | CQ9: 3 | CR9: 4 | CS9: 5 | CT9: 6
Y10: год даты окончания: | AA10: 21 | AB10: 21 | AC10: 21 | AD10: 21 | AE10: 21 | AF10: 21 | AG10: 22 | AH10: 22 | AI10: 22 | AJ10: 22 | AK10: 22 | AL10: 22 | AM10: 22 | AN10: 22 | AO10: 22 | AP10: 22 | AQ10: 22 | AR10: 22 | AS10: 23 | AT10: 23 | AU10: 23 | AV10: 23 | AW10: 23 | AX10: 23 | AY10: 23 | AZ10: 23 | BA10: 23 | BB10: 23 | BC10: 23 | BD10: 23 | BE10: 24 | BF10: 24 | BG10: 24 | BH10: 24 | BI10: 24 | BJ10: 24 | BK10: 24 | BL10: 24 | BM10: 24 | BN10: 24 | BO10: 24 | BP10: 24 | BQ10: 25 | BR10: 25 | BS10: 25 | BT10: 25 | BU10: 25 | BV10: 25 | BW10: 25 | BX10: 25 | BY10: 25 | BZ10: 25 | CA10: 25 | CB10: 25 | CC10: 26 | CD10: 26 | CE10: 26 | CF10: 26 | CG10: 26 | CH10: 26 | CI10: 26 | CJ10: 26 | CK10: 26 | CL10: 26 | CM10: 26 | CN10: 26 | CO10: 27 | CP10: 27 | CQ10: 27 | CR10: 27 | CS10: 27 | CT10: 27
F11: Mrkting | I11: Маркетинг. Параметры рынков сбыта и каналов привлечения клиентов | Q11: все включает НДС | X11: 2021-07-01 | AA11: 2021-07-01 | AB11: 2021-08-01 | AC11: 2021-09-01 | AD11: 2021-10-01 | AE11: 2021-11-01 | AF11: 2021-12-01 | AG11: 2022-01-01 | AH11: 2022-02-01 | AI11: 2022-03-01 | AJ11: 2022-04-01 | AK11: 2022-05-01 | AL11: 2022-06-01 | AM11: 2022-07-01 | AN11: 2022-08-01 | AO11: 2022-09-01 | AP11: 2022-10-01 | AQ11: 2022-11-01 | AR11: 2022-12-01 | AS11: 2023-01-01 | AT11: 2023-02-01 | AU11: 2023-03-01 | AV11: 2023-04-01 | AW11: 2023-05-01 | AX11: 2023-06-01 | AY11: 2023-07-01 | AZ11: 2023-08-01 | BA11: 2023-09-01 | BB11: 2023-10-01 | BC11: 2023-11-01 | BD11: 2023-12-01 | BE11: 2024-01-01 | BF11: 2024-02-01 | BG11: 2024-03-01 | BH11: 2024-04-01 | BI11: 2024-05-01 | BJ11: 2024-06-01 | BK11: 2024-07-01 | BL11: 2024-08-01 | BM11: 2024-09-01 | BN11: 2024-10-01 | BO11: 2024-11-01 | BP11: 2024-12-01 | BQ11: 2025-01-01 | BR11: 2025-02-01 | BS11: 2025-03-01 | BT11: 2025-04-01 | BU11: 2025-05-01 | BV11: 2025-06-01 | BW11: 2025-07-01 | BX11: 2025-08-01 | BY11: 2025-09-01 | BZ11: 2025-10-01 | CA11: 2025-11-01 | CB11: 2025-12-01 | CC11: 2026-01-01 | CD11: 2026-02-01 | CE11: 2026-03-01 | CF11: 2026-04-01 | CG11: 2026-05-01 | CH11: 2026-06-01 | CI11: 2026-07-01 | CJ11: 2026-08-01 | CK11: 2026-09-01 | CL11: 2026-10-01 | CM11: 2026-11-01 | CN11: 2026-12-01 | CO11: 2027-01-01 | CP11: 2027-02-01 | CQ11: 2027-03-01 | CR11: 2027-04-01 | CS11: 2027-05-01 | CT11: 2027-06-01
H12: тип листа | Q12: расчетный | X12: 2027-06-30 | AA12: 2021-07-31 | AB12: 2021-08-31 | AC12: 2021-09-30 | AD12: 2021-10-31 | AE12: 2021-11-30 | AF12: 2021-12-31 | AG12: 2022-01-31 | AH12: 2022-02-28 | AI12: 2022-03-31 | AJ12: 2022-04-30 | AK12: 2022-05-31 | AL12: 2022-06-30 | AM12: 2022-07-31 | AN12: 2022-08-31 | AO12: 2022-09-30 | AP12: 2022-10-31 | AQ12: 2022-11-30 | AR12: 2022-12-31 | AS12: 2023-01-31 | AT12: 2023-02-28 | AU12: 2023-03-31 | AV12: 2023-04-30 | AW12: 2023-05-31 | AX12: 2023-06-30 | AY12: 2023-07-31 | AZ12: 2023-08-31 | BA12: 2023-09-30 | BB12: 2023-10-31 | BC12: 2023-11-30 | BD12: 2023-12-31 | BE12: 2024-01-31 | BF12: 2024-02-29 | BG12: 2024-03-31 | BH12: 2024-04-30 | BI12: 2024-05-31 | BJ12: 2024-06-30 | BK12: 2024-07-31 | BL12: 2024-08-31 | BM12: 2024-09-30 | BN12: 2024-10-31 | BO12: 2024-11-30 | BP12: 2024-12-31 | BQ12: 2025-01-31 | BR12: 2025-02-28 | BS12: 2025-03-31 | BT12: 2025-04-30 | BU12: 2025-05-31 | BV12: 2025-06-30 | BW12: 2025-07-31 | BX12: 2025-08-31 | BY12: 2025-09-30 | BZ12: 2025-10-31 | CA12: 2025-11-30 | CB12: 2025-12-31 | CC12: 2026-01-31 | CD12: 2026-02-28 | CE12: 2026-03-31 | CF12: 2026-04-30 | CG12: 2026-05-31 | CH12: 2026-06-30 | CI12: 2026-07-31 | CJ12: 2026-08-31 | CK12: 2026-09-30 | CL12: 2026-10-31 | CM12: 2026-11-30 | CN12: 2026-12-31 | CO12: 2027-01-31 | CP12: 2027-02-28 | CQ12: 2027-03-31 | CR12: 2027-04-30 | CS12: 2027-05-31 | CT12: 2027-06-30
H13: показатель | M13: ед.изм. | Q13: значение | X13: итого | AA13: 2021-07-01 | AB13: 2021-08-01 | AC13: 2021-09-01 | AD13: 2021-10-01 | AE13: 2021-11-01 | AF13: 2021-12-01 | AG13: 2022-01-01 | AH13: 2022-02-01 | AI13: 2022-03-01 | AJ13: 2022-04-01 | AK13: 2022-05-01 | AL13: 2022-06-01 | AM13: 2022-07-01 | AN13: 2022-08-01 | AO13: 2022-09-01 | AP13: 2022-10-01 | AQ13: 2022-11-01 | AR13: 2022-12-01 | AS13: 2023-01-01 | AT13: 2023-02-01 | AU13: 2023-03-01 | AV13: 2023-04-01 | AW13: 2023-05-01 | AX13: 2023-06-01 | AY13: 2023-07-01 | AZ13: 2023-08-01 | BA13: 2023-09-01 | BB13: 2023-10-01 | BC13: 2023-11-01 | BD13: 2023-12-01 | BE13: 2024-01-01 | BF13: 2024-02-01 | BG13: 2024-03-01 | BH13: 2024-04-01 | BI13: 2024-05-01 | BJ13: 2024-06-01 | BK13: 2024-07-01 | BL13: 2024-08-01 | BM13: 2024-09-01 | BN13: 2024-10-01 | BO13: 2024-11-01 | BP13: 2024-12-01 | BQ13: 2025-01-01 | BR13: 2025-02-01 | BS13: 2025-03-01 | BT13: 2025-04-01 | BU13: 2025-05-01 | BV13: 2025-06-01 | BW13: 2025-07-01 | BX13: 2025-08-01 | BY13: 2025-09-01 | BZ13: 2025-10-01 | CA13: 2025-11-01 | CB13: 2025-12-01 | CC13: 2026-01-01 | CD13: 2026-02-01 | CE13: 2026-03-01 | CF13: 2026-04-01 | CG13: 2026-05-01 | CH13: 2026-06-01 | CI13: 2026-07-01 | CJ13: 2026-08-01 | CK13: 2026-09-01 | CL13: 2026-10-01 | CM13: 2026-11-01 | CN13: 2026-12-01 | CO13: 2027-01-01 | CP13: 2027-02-01 | CQ13: 2027-03-01 | CR13: 2027-04-01 | CS13: 2027-05-01 | CT13: 2027-06-01
D14: 0 | E14: 0 | F14: 0 | G14: 0 | S14: 0 | T14: 0
A15: 15 | H15: разработка финмоделей: https://mngmnt.ru/ | Y15: обратный порядок периодизации | AA15: 73 | AB15: 72 | AC15: 71 | AD15: 70 | AE15: 69 | AF15: 68 | AG15: 67 | AH15: 66 | AI15: 65 | AJ15: 64 | AK15: 63 | AL15: 62 | AM15: 61 | AN15: 60 | AO15: 59 | AP15: 58 | AQ15: 57 | AR15: 56 | AS15: 55 | AT15: 54 | AU15: 53 | AV15: 52 | AW15: 51 | AX15: 50 | AY15: 49 | AZ15: 48 | BA15: 47 | BB15: 46 | BC15: 45 | BD15: 44 | BE15: 43 | BF15: 42 | BG15: 41 | BH15: 40 | BI15: 39 | BJ15: 38 | BK15: 37 | BL15: 36 | BM15: 35 | BN15: 34 | BO15: 33 | BP15: 32 | BQ15: 31 | BR15: 30 | BS15: 29 | BT15: 28 | BU15: 27 | BV15: 26 | BW15: 25 | BX15: 24 | BY15: 23 | BZ15: 22 | CA15: 21 | CB15: 20 | CC15: 19 | CD15: 18 | CE15: 17 | CF15: 16 | CG15: 15 | CH15: 14 | CI15: 13 | CJ15: 12 | CK15: 11 | CL15: 10 | CM15: 9 | CN15: 8 | CO15: 7 | CP15: 6 | CQ15: 5 | CR15: 4 | CS15: 3 | CT15: 2 | CU15: 1
A16: 16 | G16: 0 | H16: Метод расчета потока клиентов/заказчиков | K16: 1 | L16: Street - Уличный трафик вдоль салонов
A17: 17 | G17: 0 | H17: Метод расчета потока клиентов/заказчиков | I17: Сеть салонов - Поток посетителей | L17: начало 1 маркетингового блока
A18: 18
A19: 19 | G19: 0 | H19: Поток запусков создания салонов оптики | L19: 1 | M19: кол-во салонов | Q19: запуски процесса | X19: 33 | AA19: 0 | AB19: 1 | AC19: 2 | AD19: 0 | AE19: 3 | AF19: 0 | AG19: 0 | AH19: 3 | AI19: 0 | AJ19: 0 | AK19: 0 | AL19: 3 | AM19: 0 | AN19: 0 | AO19: 0 | AP19: 0 | AQ19: 3 | AR19: 0 | AS19: 0 | AT19: 0 | AU19: 0 | AV19: 0 | AW19: 3 | AX19: 0 | AY19: 0 | AZ19: 0 | BA19: 0 | BB19: 0 | BC19: 0 | BD19: 3 | BE19: 0 | BF19: 0 | BG19: 0 | BH19: 0 | BI19: 0 | BJ19: 0 | BK19: 0 | BL19: 3 | BM19: 0 | BN19: 0 | BO19: 0 | BP19: 0 | BQ19: 0 | BR19: 0 | BS19: 0 | BT19: 0 | BU19: 3 | BV19: 0 | BW19: 0 | BX19: 0 | BY19: 0 | BZ19: 0 | CA19: 0 | CB19: 0 | CC19: 0 | CD19: 0 | CE19: 3 | CF19: 0 | CG19: 0 | CH19: 0 | CI19: 0 | CJ19: 0 | CK19: 0 | CL19: 0 | CM19: 0 | CN19: 0 | CO19: 0 | CP19: 3 | CQ19: 0 | CR19: 0 | CS19: 0 | CT19: 0 | CU19: 0
A20: 20 | G20: 0 | H20: дата старта | I20: Начальная дата старта запусков создания | M20: дата из списка | P20: * | Q20: 2021-08-01 | R20: ^ | S20: 0 | Y20: идентификаторы запуска | AA20: 0 | AB20: 1 | AC20: 1 | AD20: 0 | AE20: 1 | AF20: 0 | AG20: 0 | AH20: 1 | AI20: 0 | AJ20: 0 | AK20: 0 | AL20: 1 | AM20: 0 | AN20: 0 | AO20: 0 | AP20: 0 | AQ20: 1 | AR20: 0 | AS20: 0 | AT20: 0 | AU20: 0 | AV20: 0 | AW20: 1 | AX20: 0 | AY20: 0 | AZ20: 0 | BA20: 0 | BB20: 0 | BC20: 0 | BD20: 1 | BE20: 0 | BF20: 0 | BG20: 0 | BH20: 0 | BI20: 0 | BJ20: 0 | BK20: 0 | BL20: 1 | BM20: 0 | BN20: 0 | BO20: 0 | BP20: 0 | BQ20: 0 | BR20: 0 | BS20: 0 | BT20: 0 | BU20: 1 | BV20: 0 | BW20: 0 | BX20: 0 | BY20: 0 | BZ20: 0 | CA20: 0 | CB20: 0 | CC20: 0 | CD20: 0 | CE20: 1 | CF20: 0 | CG20: 0 | CH20: 0 | CI20: 0 | CJ20: 0 | CK20: 0 | CL20: 0 | CM20: 0 | CN20: 0 | CO20: 0 | CP20: 1 | CQ20: 0 | CR20: 0 | CS20: 0 | CT20: 0 | CU20: 0
A21: 21 | G21: 0 | H21: Поток запусков создания салонов оптики | I21: номер соответствующего периода расчетов | M21: номер периода | Q21: 2 | S21: 0 | T21: 0
A22: 22 | G22: 0 | H22: дата старта | I22: Конечная дата активности по запуску создания | M22: дата из списка | P22: * | R22: ^ | S22: 0
A23: 23 | G23: 0 | H23: Поток запусков создания салонов оптики | I23: номер соответствующего периода расчетов | M23: номер периода | Q23: 72 | S23: 0 | T23: 0
A24: 24 | G24: 0 | H24: Поток запусков создания салонов оптики | I24: Задание потока запусков создания вручную | M24: кол-во салонов | X24: 0 | Y24: *
A25: 25 | G25: 0 | H25: Поток запусков создания салонов оптики | I25: Задание потока запусков создания через прогрессии
A26: 26 | G26: 0 | H26: Поток запусков создания салонов оптики | I26: Задание потока запусков создания через прогрессии | J26: Начальная частота запусков создания | M26: кол-во периодов | P26: * | Q26: 1 | S26: 0
A27: 27 | G27: 0 | H27: Поток запусков создания салонов оптики | I27: Задание потока запусков создания через прогрессии | J27: Лин. коэфф. изменения частоты создания | M27: кол-во периодов | P27: * | Q27: 1 | S27: 0
A28: 28 | G28: 0 | H28: дата старта | I28: Задание потока запусков создания через прогрессии | J28: Кол-во запусков создания в 1-ый период | M28: кол-во салонов | P28: * | Q28: 1 | S28: 0
A29: 29 | G29: 0 | H29: Поток запусков создания салонов оптики | I29: Задание потока запусков создания через прогрессии | J29: Лин. коэфф. изменения кол-ва запусков создания | M29: кол-во салонов | P29: * | Q29: 1 | S29: 0
A30: 30 | G30: 0 | H30: дата старта | I30: Задание потока запусков создания через прогрессии | J30: Максимальное кол-во новых запусков за период | M30: кол-во салонов | P30: * | Q30: 3 | S30: 0
A31: 31
A32: 32 | G32: 0 | H32: Расчет максим. целевого трафика за период | M32: трафик/период | Q32: 1,225 | T32: 0
A33: 33 | G33: 0 | H33: Расчет максим. целевого трафика за период | I33: Кол-во рабочих дней в периоде | M33: кол-во дней | P33: * | Q33: 25 | S33: 0
A34: 34 | G34: 0 | H34: Расчет максим. целевого трафика за период | I34: Поправка на конкурентов | M34: % | P34: * | Q34: 20.0% | S34: 0
A35: 35 | G35: 0 | H35: Расчет максим. целевого трафика за период | I35: Коэффициент лояльности | M35: % | P35: * | Q35: 70.0% | S35: 0
A36: 36 | G36: 0 | H36: Расчет максим. целевого трафика за период | I36: Доля людей, которым требуются услуги сети | M36: % | P36: * | Q36: 50.0% | S36: 0
A37: 37 | G37: 0 | H37: Расчет максим. целевого трафика за период | I37: Ежедневный трафик | M37: кол-во чел | P37: M | Q37: 700 | S37: 0
A38: 38
A39: 39 | G39: 0 | H39: Динамика выхода салона на максим. трафик | M39: трафик/салон | Q39: процесс | X39: 79,050 | AA39: 0 | AB39: 0 | AC39: 0 | AD39: 0 | AE39: 400 | AF39: 400 | AG39: 600 | AH39: 600 | AI39: 800 | AJ39: 800 | AK39: 1,000 | AL39: 1,000 | AM39: 1,200 | AN39: 1,200 | AO39: 1,225 | AP39: 1,225 | AQ39: 1,225 | AR39: 1,225 | AS39: 1,225 | AT39: 1,225 | AU39: 1,225 | AV39: 1,225 | AW39: 1,225 | AX39: 1,225 | AY39: 1,225 | AZ39: 1,225 | BA39: 1,225 | BB39: 1,225 | BC39: 1,225 | BD39: 1,225 | BE39: 1,225 | BF39: 1,225 | BG39: 1,225 | BH39: 1,225 | BI39: 1,225 | BJ39: 1,225 | BK39: 1,225 | BL39: 1,225 | BM39: 1,225 | BN39: 1,225 | BO39: 1,225 | BP39: 1,225 | BQ39: 1,225 | BR39: 1,225 | BS39: 1,225 | BT39: 1,225 | BU39: 1,225 | BV39: 1,225 | BW39: 1,225 | BX39: 1,225 | BY39: 1,225 | BZ39: 1,225 | CA39: 1,225 | CB39: 1,225 | CC39: 1,225 | CD39: 1,225 | CE39: 1,225 | CF39: 1,225 | CG39: 1,225 | CH39: 1,225 | CI39: 1,225 | CJ39: 1,225 | CK39: 1,225 | CL39: 1,225 | CM39: 1,225 | CN39: 1,225 | CO39: 1,225 | CP39: 1,225 | CQ39: 1,225 | CR39: 1,225 | CS39: 1,225 | CT39: 1,225 | CU39: 0
A40: 40 | G40: 0 | H40: Динамика выхода салона на максим. трафик | I40: Стартовый период с запуска создания | M40: номер периода | P40: * | Q40: 5 | S40: 0
A41: 41 | G41: 0 | H41: Динамика выхода салона на максим. трафик | I41: Финишный период с запуска создания | M41: номер периода | P41: * | S41: 0
A42: 42 | G42: 0 | H42: Динамика выхода салона на максим. трафик | I42: Вручную для каждого периода расчетов | M42: трафик/салон | X42: 0 | Y42: *
A43: 43 | G43: 0 | H43: тип прогрессии | I43: Через прогрессию | P43: * | Q43: линейная | R43: ^ | S43: 0
A44: 44 | G44: 0 | H44: Динамика выхода салона на максим. трафик | I44: Значение в стартовый период | M44: трафик/салон | P44: M | Q44: 400 | S44: 0
A45: 45 | G45: 0 | H45: Динамика выхода салона на максим. трафик | I45: Коэффициент прироста | M45: трафик/салон | P45: M | Q45: 200.0000 | S45: 0
A46: 46 | G46: 0 | H46: Динамика выхода салона на максим. трафик | I46: Частота приростов | M46: кол-во периодов | P46: M | Q46: 2 | S46: 0
A47: 47 | G47: 0 | H47: Динамика выхода салона на максим. трафик | I47: Обратное распределение трафика | M47: трафик/салон | X47: 79,050 | AA47: 0 | AB47: 1,225 | AC47: 1,225 | AD47: 1,225 | AE47: 1,225 | AF47: 1,225 | AG47: 1,225 | AH47: 1,225 | AI47: 1,225 | AJ47: 1,225 | AK47: 1,225 | AL47: 1,225 | AM47: 1,225 | AN47: 1,225 | AO47: 1,225 | AP47: 1,225 | AQ47: 1,225 | AR47: 1,225 | AS47: 1,225 | AT47: 1,225 | AU47: 1,225 | AV47: 1,225 | AW47: 1,225 | AX47: 1,225 | AY47: 1,225 | AZ47: 1,225 | BA47: 1,225 | BB47: 1,225 | BC47: 1,225 | BD47: 1,225 | BE47: 1,225 | BF47: 1,225 | BG47: 1,225 | BH47: 1,225 | BI47: 1,225 | BJ47: 1,225 | BK47: 1,225 | BL47: 1,225 | BM47: 1,225 | BN47: 1,225 | BO47: 1,225 | BP47: 1,225 | BQ47: 1,225 | BR47: 1,225 | BS47: 1,225 | BT47: 1,225 | BU47: 1,225 | BV47: 1,225 | BW47: 1,225 | BX47: 1,225 | BY47: 1,225 | BZ47: 1,225 | CA47: 1,225 | CB47: 1,225 | CC47: 1,225 | CD47: 1,225 | CE47: 1,225 | CF47: 1,225 | CG47: 1,225 | CH47: 1,200 | CI47: 1,200 | CJ47: 1,000 | CK47: 1,000 | CL47: 800 | CM47: 800 | CN47: 600 | CO47: 600 | CP47: 400 | CQ47: 400 | CR47: 0 | CS47: 0 | CT47: 0 | CU47: 0
A48: 48 | G48: 0 | H48: Динамика выхода салона на максим. трафик | I48: Процентное распределние трафика | M48: % | T48: 0 | X48: 100.00% | AA48: 0.00% | AB48: 0.00% | AC48: 0.00% | AD48: 0.00% | AE48: 0.51% | AF48: 0.51% | AG48: 0.76% | AH48: 0.76% | AI48: 1.01% | AJ48: 1.01% | AK48: 1.27% | AL48: 1.27% | AM48: 1.52% | AN48: 1.52% | AO48: 1.55% | AP48: 1.55% | AQ48: 1.55% | AR48: 1.55% | AS48: 1.55% | AT48: 1.55% | AU48: 1.55% | AV48: 1.55% | AW48: 1.55% | AX48: 1.55% | AY48: 1.55% | AZ48: 1.55% | BA48: 1.55% | BB48: 1.55% | BC48: 1.55% | BD48: 1.55% | BE48: 1.55% | BF48: 1.55% | BG48: 1.55% | BH48: 1.55% | BI48: 1.55% | BJ48: 1.55% | BK48: 1.55% | BL48: 1.55% | BM48: 1.55% | BN48: 1.55% | BO48: 1.55% | BP48: 1.55% | BQ48: 1.55% | BR48: 1.55% | BS48: 1.55% | BT48: 1.55% | BU48: 1.55% | BV48: 1.55% | BW48: 1.55% | BX48: 1.55% | BY48: 1.55% | BZ48: 1.55% | CA48: 1.55% | CB48: 1.55% | CC48: 1.55% | CD48: 1.55% | CE48: 1.55% | CF48: 1.55% | CG48: 1.55% | CH48: 1.55% | CI48: 1.55% | CJ48: 1.55% | CK48: 1.55% | CL48: 1.55% | CM48: 1.55% | CN48: 1.55% | CO48: 1.55% | CP48: 1.55% | CQ48: 1.55% | CR48: 1.55% | CS48: 1.55% | CT48: 1.55% | CU48: 0.00%
A49: 49
A50: 50 | G50: 0 | H50: Учет влияния сезонности | M50: за 100% берется максимальный трафик за период
A51: 51 | G51: 0 | H51: Учет влияния сезонности | I51: Номера месяцев года
A52: 52 | G52: 0 | H52: Учет влияния сезонности | I52: Номера месяцев года | J52: 1 | M52: % | P52: * | Q52: 50.0% | S52: 0
A53: 53 | G53: 0 | H53: Учет влияния сезонности | I53: Номера месяцев года | J53: 2 | M53: % | P53: * | Q53: 70.0% | S53: 0
A54: 54 | G54: 0 | H54: Учет влияния сезонности | I54: Номера месяцев года | J54: 3 | M54: % | P54: * | Q54: 100.0% | S54: 0
A55: 55 | G55: 0 | H55: Учет влияния сезонности | I55: Номера месяцев года | J55: 4 | M55: % | P55: * | Q55: 90.0% | S55: 0
A56: 56 | G56: 0 | H56: Учет влияния сезонности | I56: Номера месяцев года | J56: 5 | M56: % | P56: * | Q56: 80.0% | S56: 0
A57: 57 | G57: 0 | H57: Учет влияния сезонности | I57: Номера месяцев года | J57: 6 | M57: % | P57: * | Q57: 90.0% | S57: 0
A58: 58 | G58: 0 | H58: Учет влияния сезонности | I58: Номера месяцев года | J58: 7 | M58: % | P58: * | Q58: 95.0% | S58: 0
A59: 59 | G59: 0 | H59: Учет влияния сезонности | I59: Номера месяцев года | J59: 8 | M59: % | P59: * | Q59: 100.0% | S59: 0
A60: 60 | G60: 0 | H60: Учет влияния сезонности | I60: Номера месяцев года | J60: 9 | M60: % | P60: * | Q60: 100.0% | S60: 0
A61: 61 | G61: 0 | H61: Учет влияния сезонности | I61: Номера месяцев года | J61: 10 | M61: % | P61: * | Q61: 90.0% | S61: 0
A62: 62 | G62: 0 | H62: Учет влияния сезонности | I62: Номера месяцев года | J62: 11 | M62: % | P62: * | Q62: 70.0% | S62: 0
A63: 63 | G63: 0 | H63: Учет влияния сезонности | I63: Номера месяцев года | J63: 12 | M63: % | P63: * | Q63: 100.0% | S63: 0
A64: 64
A65: 65 | G65: 0 | H65: Трафик | L65: 1 | M65: кол-во потенциальных посетителей | X65: 1,314,091 | AA65: 0 | AB65: 0 | AC65: 0 | AD65: 0 | AE65: 0 | AF65: 400 | AG65: 600 | AH65: 980 | AI65: 3,000 | AJ65: 2,880 | AK65: 3,360 | AL65: 5,040 | AM65: 6,270 | AN65: 7,400 | AO65: 8,400 | AP65: 9,203 | AQ65: 7,613 | AR65: 12,075 | AS65: 6,075 | AT65: 9,345 | AU65: 14,550 | AV65: 13,703 | AW65: 12,660 | AX65: 14,783 | AY65: 16,174 | AZ65: 17,100 | BA65: 18,900 | BB65: 17,010 | BC65: 14,070 | BD65: 20,100 | BE65: 10,388 | BF65: 14,543 | BG65: 21,375 | BH65: 20,318 | BI65: 18,540 | BJ65: 21,398 | BK65: 22,658 | BL65: 24,450 | BM65: 24,450 | BN65: 22,545 | BO65: 17,535 | BP65: 26,850 | BQ65: 13,425 | BR65: 19,268 | BS65: 27,525 | BT65: 25,313 | BU65: 22,500 | BV65: 25,853 | BW65: 27,289 | BX65: 29,325 | BY65: 30,525 | BZ65: 27,540 | CA65: 21,840 | CB65: 31,200 | CC65: 15,900 | CD65: 22,260 | CE65: 32,400 | CF65: 29,160 | CG65: 26,400 | CH65: 29,700 | CI65: 32,561 | CJ65: 34,275 | CK65: 34,875 | CL65: 31,388 | CM65: 24,833 | CN65: 35,475 | CO65: 18,038 | CP65: 25,253 | CQ65: 36,675 | CR65: 33,008 | CS65: 29,400 | CT65: 34,155 | CU65: 0
A66: 66
A67: 67 | G67: 0 | H67: Конверсия в посетителя | L67: 1 | M67: % | X67: 9.99% | AA67: 0.00% | AB67: 5.00% | AC67: 5.00% | AD67: 6.00% | AE67: 6.00% | AF67: 7.00% | AG67: 7.00% | AH67: 8.00% | AI67: 8.00% | AJ67: 9.00% | AK67: 9.00% | AL67: 10.00% | AM67: 10.00% | AN67: 10.00% | AO67: 10.00% | AP67: 10.00% | AQ67: 10.00% | AR67: 10.00% | AS67: 10.00% | AT67: 10.00% | AU67: 10.00% | AV67: 10.00% | AW67: 10.00% | AX67: 10.00% | AY67: 10.00% | AZ67: 10.00% | BA67: 10.00% | BB67: 10.00% | BC67: 10.00% | BD67: 10.00% | BE67: 10.00% | BF67: 10.00% | BG67: 10.00% | BH67: 10.00% | BI67: 10.00% | BJ67: 10.00% | BK67: 10.00% | BL67: 10.00% | BM67: 10.00% | BN67: 10.00% | BO67: 10.00% | BP67: 10.00% | BQ67: 10.00% | BR67: 10.00% | BS67: 10.00% | BT67: 10.00% | BU67: 10.00% | BV67: 10.00% | BW67: 10.00% | BX67: 10.00% | BY67: 10.00% | BZ67: 10.00% | CA67: 10.00% | CB67: 10.00% | CC67: 10.00% | CD67: 10.00% | CE67: 10.00% | CF67: 10.00% | CG67: 10.00% | CH67: 10.00% | CI67: 10.00% | CJ67: 10.00% | CK67: 10.00% | CL67: 10.00% | CM67: 10.00% | CN67: 10.00% | CO67: 10.00% | CP67: 10.00% | CQ67: 10.00% | CR67: 10.00% | CS67: 10.00% | CT67: 10.00% | CU67: 0.00%
A68: 68 | G68: 0 | H68: Конверсия в посетителя | I68: Единое значение для всех периодов расчета | M68: % | P68: * | S68: 0
A69: 69 | G69: 0 | H69: Конверсия в посетителя | I69: Вручную для каждого периода расчетов | M69: % | X69: 0.00% | Y69: *
A70: 70 | G70: 0 | H70: тип прогрессии | I70: Через прогрессию | P70: * | Q70: линейная | R70: ^ | S70: 0
A71: 71 | G71: 0 | H71: Конверсия в посетителя | I71: Значение в стартовый период | M71: % | P71: * | Q71: 5.00% | S71: 0
A72: 72 | G72: 0 | H72: Конверсия в посетителя | I72: Коэффициент прироста | M72: % | P72: * | Q72: 1.00% | S72: 0
A73: 73 | G73: 0 | H73: Конверсия в посетителя | I73: Частота приростов | M73: кол-во периодов | P73: * | Q73: 2 | S73: 0
A74: 74 | G74: 0 | H74: Конверсия в посетителя | I74: Максимальное значение | M74: % | P74: * | Q74: 10.00% | S74: 0
A75: 75
A76: 76 | G76: 0 | H76: Валовый поток посетителей | L76: 1 | M76: кол-во посетителей | T76: 0 | X76: 131,237 | AA76: 0 | AB76: 0 | AC76: 0 | AD76: 0 | AE76: 0 | AF76: 28 | AG76: 42 | AH76: 78 | AI76: 240 | AJ76: 259 | AK76: 302 | AL76: 504 | AM76: 627 | AN76: 740 | AO76: 840 | AP76: 920 | AQ76: 761 | AR76: 1,208 | AS76: 608 | AT76: 935 | AU76: 1,455 | AV76: 1,370 | AW76: 1,266 | AX76: 1,478 | AY76: 1,617 | AZ76: 1,710 | BA76: 1,890 | BB76: 1,701 | BC76: 1,407 | BD76: 2,010 | BE76: 1,039 | BF76: 1,454 | BG76: 2,138 | BH76: 2,032 | BI76: 1,854 | BJ76: 2,140 | BK76: 2,266 | BL76: 2,445 | BM76: 2,445 | BN76: 2,255 | BO76: 1,754 | BP76: 2,685 | BQ76: 1,343 | BR76: 1,927 | BS76: 2,753 | BT76: 2,531 | BU76: 2,250 | BV76: 2,585 | BW76: 2,729 | BX76: 2,933 | BY76: 3,053 | BZ76: 2,754 | CA76: 2,184 | CB76: 3,120 | CC76: 1,590 | CD76: 2,226 | CE76: 3,240 | CF76: 2,916 | CG76: 2,640 | CH76: 2,970 | CI76: 3,256 | CJ76: 3,428 | CK76: 3,488 | CL76: 3,139 | CM76: 2,483 | CN76: 3,548 | CO76: 1,804 | CP76: 2,525 | CQ76: 3,668 | CR76: 3,301 | CS76: 2,940 | CT76: 3,416 | CU76: 0
A77: 77 | G77: 0 | H77: Валовый поток посетителей | I77: Очки | L77: 1 | M77: шт | T77: 0 | X77: 98,428 | AA77: 0 | AB77: 0 | AC77: 0 | AD77: 0 | AE77: 0 | AF77: 21 | AG77: 32 | AH77: 59 | AI77: 180 | AJ77: 194 | AK77: 227 | AL77: 378 | AM77: 470 | AN77: 555 | AO77: 630 | AP77: 690 | AQ77: 571 | AR77: 906 | AS77: 456 | AT77: 701 | AU77: 1,091 | AV77: 1,028 | AW77: 950 | AX77: 1,109 | AY77: 1,213 | AZ77: 1,283 | BA77: 1,418 | BB77: 1,276 | BC77: 1,055 | BD77: 1,508 | BE77: 779 | BF77: 1,091 | BG77: 1,603 | BH77: 1,524 | BI77: 1,391 | BJ77: 1,605 | BK77: 1,699 | BL77: 1,834 | BM77: 1,834 | BN77: 1,691 | BO77: 1,315 | BP77: 2,014 | BQ77: 1,007 | BR77: 1,445 | BS77: 2,064 | BT77: 1,898 | BU77: 1,688 | BV77: 1,939 | BW77: 2,047 | BX77: 2,199 | BY77: 2,289 | BZ77: 2,066 | CA77: 1,638 | CB77: 2,340 | CC77: 1,193 | CD77: 1,670 | CE77: 2,430 | CF77: 2,187 | CG77: 1,980 | CH77: 2,228 | CI77: 2,442 | CJ77: 2,571 | CK77: 2,616 | CL77: 2,354 | CM77: 1,862 | CN77: 2,661 | CO77: 1,353 | CP77: 1,894 | CQ77: 2,751 | CR77: 2,476 | CS77: 2,205 | CT77: 2,562 | CU77: 0
A78: 78 | G78: 0 | H78: Валовый поток посетителей | I78: Профилактика | L78: 1 | M78: шт | T78: 0 | X78: 26,247 | AA78: 0 | AB78: 0 | AC78: 0 | AD78: 0 | AE78: 0 | AF78: 6 | AG78: 8 | AH78: 16 | AI78: 48 | AJ78: 52 | AK78: 60 | AL78: 101 | AM78: 125 | AN78: 148 | AO78: 168 | AP78: 184 | AQ78: 152 | AR78: 242 | AS78: 122 | AT78: 187 | AU78: 291 | AV78: 274 | AW78: 253 | AX78: 296 | AY78: 323 | AZ78: 342 | BA78: 378 | BB78: 340 | BC78: 281 | BD78: 402 | BE78: 208 | BF78: 291 | BG78: 428 | BH78: 406 | BI78: 371 | BJ78: 428 | BK78: 453 | BL78: 489 | BM78: 489 | BN78: 451 | BO78: 351 | BP78: 537 | BQ78: 269 | BR78: 385 | BS78: 551 | BT78: 506 | BU78: 450 | BV78: 517 | BW78: 546 | BX78: 587 | BY78: 611 | BZ78: 551 | CA78: 437 | CB78: 624 | CC78: 318 | CD78: 445 | CE78: 648 | CF78: 583 | CG78: 528 | CH78: 594 | CI78: 651 | CJ78: 686 | CK78: 698 | CL78: 628 | CM78: 497 | CN78: 710 | CO78: 361 | CP78: 505 | CQ78: 734 | CR78: 660 | CS78: 588 | CT78: 683 | CU78: 0
A79: 79 | G79: 0 | H79: Валовый поток посетителей | I79: Аксессуары | L79: 1 | M79: шт | T79: 0 | X79: 6,562 | AA79: 0 | AB79: 0 | AC79: 0 | AD79: 0 | AE79: 0 | AF79: 1 | AG79: 2 | AH79: 4 | AI79: 12 | AJ79: 13 | AK79: 15 | AL79: 25 | AM79: 31 | AN79: 37 | AO79: 42 | AP79: 46 | AQ79: 38 | AR79: 60 | AS79: 30 | AT79: 47 | AU79: 73 | AV79: 69 | AW79: 63 | AX79: 74 | AY79: 81 | AZ79: 86 | BA79: 95 | BB79: 85 | BC79: 70 | BD79: 101 | BE79: 52 | BF79: 73 | BG79: 107 | BH79: 102 | BI79: 93 | BJ79: 107 | BK79: 113 | BL79: 122 | BM79: 122 | BN79: 113 | BO79: 88 | BP79: 134 | BQ79: 67 | BR79: 96 | BS79: 138 | BT79: 127 | BU79: 113 | BV79: 129 | BW79: 136 | BX79: 147 | BY79: 153 | BZ79: 138 | CA79: 109 | CB79: 156 | CC79: 80 | CD79: 111 | CE79: 162 | CF79: 146 | CG79: 132 | CH79: 149 | CI79: 163 | CJ79: 171 | CK79: 174 | CL79: 157 | CM79: 124 | CN79: 177 | CO79: 90 | CP79: 126 | CQ79: 183 | CR79: 165 | CS79: 147 | CT79: 171 | CU79: 0
A80: 80 | L80: пустая строка
A81: 81
A82: 82 | G82: 0 | H82: Долевое распределние потока по продукции | T82: 0
A83: 83 | G83: 0 | H83: продукция | I83: Расчет формулой разности: 100%-сумму() | M83: % | P83: * | Q83: Очки | R83: ^ | S83: 0 | T83: 0 | X83: 75.00% | AA83: 75.00% | AB83: 75.00% | AC83: 75.00% | AD83: 75.00% | AE83: 75.00% | AF83: 75.00% | AG83: 75.00% | AH83: 75.00% | AI83: 75.00% | AJ83: 75.00% | AK83: 75.00% | AL83: 75.00% | AM83: 75.00% | AN83: 75.00% | AO83: 75.00% | AP83: 75.00% | AQ83: 75.00% | AR83: 75.00% | AS83: 75.00% | AT83: 75.00% | AU83: 75.00% | AV83: 75.00% | AW83: 75.00% | AX83: 75.00% | AY83: 75.00% | AZ83: 75.00% | BA83: 75.00% | BB83: 75.00% | BC83: 75.00% | BD83: 75.00% | BE83: 75.00% | BF83: 75.00% | BG83: 75.00% | BH83: 75.00% | BI83: 75.00% | BJ83: 75.00% | BK83: 75.00% | BL83: 75.00% | BM83: 75.00% | BN83: 75.00% | BO83: 75.00% | BP83: 75.00% | BQ83: 75.00% | BR83: 75.00% | BS83: 75.00% | BT83: 75.00% | BU83: 75.00% | BV83: 75.00% | BW83: 75.00% | BX83: 75.00% | BY83: 75.00% | BZ83: 75.00% | CA83: 75.00% | CB83: 75.00% | CC83: 75.00% | CD83: 75.00% | CE83: 75.00% | CF83: 75.00% | CG83: 75.00% | CH83: 75.00% | CI83: 75.00% | CJ83: 75.00% | CK83: 75.00% | CL83: 75.00% | CM83: 75.00% | CN83: 75.00% | CO83: 75.00% | CP83: 75.00% | CQ83: 75.00% | CR83: 75.00% | CS83: 75.00% | CT83: 75.00% | CU83: 75.00%
A84: 84 | G84: 0 | H84: продукция | I84: Вручную для каждого периода расчетов | M84: % | P84: * | Q84: Профилактика | R84: ^ | S84: 0 | T84: 0 | X84: 20.00% | Y84: * | AA84: 20.00% | AB84: 20.00% | AC84: 20.00% | AD84: 20.00% | AE84: 20.00% | AF84: 20.00% | AG84: 20.00% | AH84: 20.00% | AI84: 20.00% | AJ84: 20.00% | AK84: 20.00% | AL84: 20.00% | AM84: 20.00% | AN84: 20.00% | AO84: 20.00% | AP84: 20.00% | AQ84: 20.00% | AR84: 20.00% | AS84: 20.00% | AT84: 20.00% | AU84: 20.00% | AV84: 20.00% | AW84: 20.00% | AX84: 20.00% | AY84: 20.00% | AZ84: 20.00% | BA84: 20.00% | BB84: 20.00% | BC84: 20.00% | BD84: 20.00% | BE84: 20.00% | BF84: 20.00% | BG84: 20.00% | BH84: 20.00% | BI84: 20.00% | BJ84: 20.00% | BK84: 20.00% | BL84: 20.00% | BM84: 20.00% | BN84: 20.00% | BO84: 20.00% | BP84: 20.00% | BQ84: 20.00% | BR84: 20.00% | BS84: 20.00% | BT84: 20.00% | BU84: 20.00% | BV84: 20.00% | BW84: 20.00% | BX84: 20.00% | BY84: 20.00% | BZ84: 20.00% | CA84: 20.00% | CB84: 20.00% | CC84: 20.00% | CD84: 20.00% | CE84: 20.00% | CF84: 20.00% | CG84: 20.00% | CH84: 20.00% | CI84: 20.00% | CJ84: 20.00% | CK84: 20.00% | CL84: 20.00% | CM84: 20.00% | CN84: 20.00% | CO84: 20.00% | CP84: 20.00% | CQ84: 20.00% | CR84: 20.00% | CS84: 20.00% | CT84: 20.00% | CU84: 20.00%
A85: 85 | G85: 0 | H85: продукция | I85: Вручную для каждого периода расчетов | M85: % | P85: * | Q85: Аксессуары | R85: ^ | S85: 0 | T85: 0 | X85: 5.00% | Y85: * | AA85: 5.00% | AB85: 5.00% | AC85: 5.00% | AD85: 5.00% | AE85: 5.00% | AF85: 5.00% | AG85: 5.00% | AH85: 5.00% | AI85: 5.00% | AJ85: 5.00% | AK85: 5.00% | AL85: 5.00% | AM85: 5.00% | AN85: 5.00% | AO85: 5.00% | AP85: 5.00% | AQ85: 5.00% | AR85: 5.00% | AS85: 5.00% | AT85: 5.00% | AU85: 5.00% | AV85: 5.00% | AW85: 5.00% | AX85: 5.00% | AY85: 5.00% | AZ85: 5.00% | BA85: 5.00% | BB85: 5.00% | BC85: 5.00% | BD85: 5.00% | BE85: 5.00% | BF85: 5.00% | BG85: 5.00% | BH85: 5.00% | BI85: 5.00% | BJ85: 5.00% | BK85: 5.00% | BL85: 5.00% | BM85: 5.00% | BN85: 5.00% | BO85: 5.00% | BP85: 5.00% | BQ85: 5.00% | BR85: 5.00% | BS85: 5.00% | BT85: 5.00% | BU85: 5.00% | BV85: 5.00% | BW85: 5.00% | BX85: 5.00% | BY85: 5.00% | BZ85: 5.00% | CA85: 5.00% | CB85: 5.00% | CC85: 5.00% | CD85: 5.00% | CE85: 5.00% | CF85: 5.00% | CG85: 5.00% | CH85: 5.00% | CI85: 5.00% | CJ85: 5.00% | CK85: 5.00% | CL85: 5.00% | CM85: 5.00% | CN85: 5.00% | CO85: 5.00% | CP85: 5.00% | CQ85: 5.00% | CR85: 5.00% | CS85: 5.00% | CT85: 5.00% | CU85: 5.00%
A86: 86 | L86: пустая строка
A87: 87
A88: 88 | G88: 0 | H88: Базовый прайс-лист продукции | M88: руб./посетитель | X88: 10,545.26 | AA88: 9,435.00 | AB88: 9,435.00 | AC88: 9,435.00 | AD88: 9,435.00 | AE88: 9,435.00 | AF88: 9,435.00 | AG88: 9,623.70 | AH88: 9,623.70 | AI88: 9,623.70 | AJ88: 9,623.70 | AK88: 9,623.70 | AL88: 9,623.70 | AM88: 9,816.17 | AN88: 9,816.17 | AO88: 9,816.17 | AP88: 9,816.17 | AQ88: 9,816.17 | AR88: 9,816.17 | AS88: 10,012.50 | AT88: 10,012.50 | AU88: 10,012.50 | AV88: 10,012.50 | AW88: 10,012.50 | AX88: 10,012.50 | AY88: 10,212.75 | AZ88: 10,212.75 | BA88: 10,212.75 | BB88: 10,212.75 | BC88: 10,212.75 | BD88: 10,212.75 | BE88: 10,417.00 | BF88: 10,417.00 | BG88: 10,417.00 | BH88: 10,417.00 | BI88: 10,417.00 | BJ88: 10,417.00 | BK88: 10,625.34 | BL88: 10,625.34 | BM88: 10,625.34 | BN88: 10,625.34 | BO88: 10,625.34 | BP88: 10,625.34 | BQ88: 10,837.85 | BR88: 10,837.85 | BS88: 10,837.85 | BT88: 10,837.85 | BU88: 10,837.85 | BV88: 10,837.85 | BW88: 11,054.61 | BX88: 11,054.61 | BY88: 11,054.61 | BZ88: 11,054.61 | CA88: 11,054.61 | CB88: 11,054.61 | CC88: 11,275.70 | CD88: 11,275.70 | CE88: 11,275.70 | CF88: 11,275.70 | CG88: 11,275.70 | CH88: 11,275.70 | CI88: 11,501.21 | CJ88: 11,501.21 | CK88: 11,501.21 | CL88: 11,501.21 | CM88: 11,501.21 | CN88: 11,501.21 | CO88: 11,731.24 | CP88: 11,731.24 | CQ88: 11,731.24 | CR88: 11,731.24 | CS88: 11,731.24 | CT88: 11,731.24 | CU88: 0.00
A89: 89 | G89: 0 | H89: Базовый прайс-лист продукции | I89: Очки | M89: руб./шт | P89: M | Q89: 12,000.00 | S89: 0 | X89: 13,412.09 | AA89: 12,000.00 | AB89: 12,000.00 | AC89: 12,000.00 | AD89: 12,000.00 | AE89: 12,000.00 | AF89: 12,000.00 | AG89: 12,240.00 | AH89: 12,240.00 | AI89: 12,240.00 | AJ89: 12,240.00 | AK89: 12,240.00 | AL89: 12,240.00 | AM89: 12,484.80 | AN89: 12,484.80 | AO89: 12,484.80 | AP89: 12,484.80 | AQ89: 12,484.80 | AR89: 12,484.80 | AS89: 12,734.50 | AT89: 12,734.50 | AU89: 12,734.50 | AV89: 12,734.50 | AW89: 12,734.50 | AX89: 12,734.50 | AY89: 12,989.19 | AZ89: 12,989.19 | BA89: 12,989.19 | BB89: 12,989.19 | BC89: 12,989.19 | BD89: 12,989.19 | BE89: 13,248.97 | BF89: 13,248.97 | BG89: 13,248.97 | BH89: 13,248.97 | BI89: 13,248.97 | BJ89: 13,248.97 | BK89: 13,513.95 | BL89: 13,513.95 | BM89: 13,513.95 | BN89: 13,513.95 | BO89: 13,513.95 | BP89: 13,513.95 | BQ89: 13,784.23 | BR89: 13,784.23 | BS89: 13,784.23 | BT89: 13,784.23 | BU89: 13,784.23 | BV89: 13,784.23 | BW89: 14,059.91 | BX89: 14,059.91 | BY89: 14,059.91 | BZ89: 14,059.91 | CA89: 14,059.91 | CB89: 14,059.91 | CC89: 14,341.11 | CD89: 14,341.11 | CE89: 14,341.11 | CF89: 14,341.11 | CG89: 14,341.11 | CH89: 14,341.11 | CI89: 14,627.93 | CJ89: 14,627.93 | CK89: 14,627.93 | CL89: 14,627.93 | CM89: 14,627.93 | CN89: 14,627.93 | CO89: 14,920.49 | CP89: 14,920.49 | CQ89: 14,920.49 | CR89: 14,920.49 | CS89: 14,920.49 | CT89: 14,920.49 | CU89: 0.00
A90: 90 | G90: 0 | H90: Базовый прайс-лист продукции | I90: Профилактика | M90: руб./шт | P90: M | Q90: 2,000.00 | S90: 0 | X90: 2,235.35 | AA90: 2,000.00 | AB90: 2,000.00 | AC90: 2,000.00 | AD90: 2,000.00 | AE90: 2,000.00 | AF90: 2,000.00 | AG90: 2,040.00 | AH90: 2,040.00 | AI90: 2,040.00 | AJ90: 2,040.00 | AK90: 2,040.00 | AL90: 2,040.00 | AM90: 2,080.80 | AN90: 2,080.80 | AO90: 2,080.80 | AP90: 2,080.80 | AQ90: 2,080.80 | AR90: 2,080.80 | AS90: 2,122.42 | AT90: 2,122.42 | AU90: 2,122.42 | AV90: 2,122.42 | AW90: 2,122.42 | AX90: 2,122.42 | AY90: 2,164.86 | AZ90: 2,164.86 | BA90: 2,164.86 | BB90: 2,164.86 | BC90: 2,164.86 | BD90: 2,164.86 | BE90: 2,208.16 | BF90: 2,208.16 | BG90: 2,208.16 | BH90: 2,208.16 | BI90: 2,208.16 | BJ90: 2,208.16 | BK90: 2,252.32 | BL90: 2,252.32 | BM90: 2,252.32 | BN90: 2,252.32 | BO90: 2,252.32 | BP90: 2,252.32 | BQ90: 2,297.37 | BR90: 2,297.37 | BS90: 2,297.37 | BT90: 2,297.37 | BU90: 2,297.37 | BV90: 2,297.37 | BW90: 2,343.32 | BX90: 2,343.32 | BY90: 2,343.32 | BZ90: 2,343.32 | CA90: 2,343.32 | CB90: 2,343.32 | CC90: 2,390.19 | CD90: 2,390.19 | CE90: 2,390.19 | CF90: 2,390.19 | CG90: 2,390.19 | CH90: 2,390.19 | CI90: 2,437.99 | CJ90: 2,437.99 | CK90: 2,437.99 | CL90: 2,437.99 | CM90: 2,437.99 | CN90: 2,437.99 | CO90: 2,486.75 | CP90: 2,486.75 | CQ90: 2,486.75 | CR90: 2,486.75 | CS90: 2,486.75 | CT90: 2,486.75 | CU90: 0.00
A91: 91 | G91: 0 | H91: Базовый прайс-лист продукции | I91: Аксессуары | M91: руб./шт | P91: M | Q91: 700.00 | S91: 0 | X91: 782.37 | AA91: 700.00 | AB91: 700.00 | AC91: 700.00 | AD91: 700.00 | AE91: 700.00 | AF91: 700.00 | AG91: 714.00 | AH91: 714.00 | AI91: 714.00 | AJ91: 714.00 | AK91: 714.00 | AL91: 714.00 | AM91: 728.28 | AN91: 728.28 | AO91: 728.28 | AP91: 728.28 | AQ91: 728.28 | AR91: 728.28 | AS91: 742.85 | AT91: 742.85 | AU91: 742.85 | AV91: 742.85 | AW91: 742.85 | AX91: 742.85 | AY91: 757.70 | AZ91: 757.70 | BA91: 757.70 | BB91: 757.70 | BC91: 757.70 | BD91: 757.70 | BE91: 772.86 | BF91: 772.86 | BG91: 772.86 | BH91: 772.86 | BI91: 772.86 | BJ91: 772.86 | BK91: 788.31 | BL91: 788.31 | BM91: 788.31 | BN91: 788.31 | BO91: 788.31 | BP91: 788.31 | BQ91: 804.08 | BR91: 804.08 | BS91: 804.08 | BT91: 804.08 | BU91: 804.08 | BV91: 804.08 | BW91: 820.16 | BX91: 820.16 | BY91: 820.16 | BZ91: 820.16 | CA91: 820.16 | CB91: 820.16 | CC91: 836.56 | CD91: 836.56 | CE91: 836.56 | CF91: 836.56 | CG91: 836.56 | CH91: 836.56 | CI91: 853.30 | CJ91: 853.30 | CK91: 853.30 | CL91: 853.30 | CM91: 853.30 | CN91: 853.30 | CO91: 870.36 | CP91: 870.36 | CQ91: 870.36 | CR91: 870.36 | CS91: 870.36 | CT91: 870.36 | CU91: 0.00
A92: 92 | L92: пустая строка
A93: 93 | G93: 0 | H93: Индексация прайс-листа
A94: 94 | G94: 0 | H94: Индексация прайс-листа | I94: Процент индексации/прироста | M94: % | P94: M | Q94: 2.00% | S94: 0
A95: 95 | G95: 0 | H95: Индексация прайс-листа | I95: Частота индексации | M95: кол-во периодов | P95: * | Q95: 6 | S95: 0
A96: 96
A97: 97 | G97: 0 | H97: Общий оборот (GMV) | L97: 1 | M97: руб. | T97: 0 | X97: 1,434,652,002 | AA97: 0 | AB97: 0 | AC97: 0 | AD97: 0 | AE97: 0 | AF97: 264,180 | AG97: 404,195 | AH97: 754,498 | AI97: 2,309,688 | AJ97: 2,494,463 | AK97: 2,910,207 | AL97: 4,850,345 | AM97: 6,154,741 | AN97: 7,263,969 | AO97: 8,245,586 | AP97: 9,033,334 | AQ97: 7,472,562 | AR97: 11,853,030 | AS97: 6,082,592 | AT97: 9,356,679 | AU97: 14,568,184 | AV97: 13,719,625 | AW97: 12,675,822 | AX97: 14,800,974 | AY97: 16,517,842 | AZ97: 17,463,798 | BA97: 19,302,093 | BB97: 17,371,883 | BC97: 14,369,336 | BD97: 20,527,622 | BE97: 10,820,661 | BF97: 15,148,926 | BG97: 22,266,343 | BH97: 21,164,745 | BI97: 19,313,122 | BJ97: 22,289,781 | BK97: 24,074,370 | BL97: 25,978,962 | BM97: 25,978,962 | BN97: 23,954,834 | BO97: 18,631,538 | BP97: 28,529,044 | BQ97: 14,549,813 | BR97: 20,881,826 | BS97: 29,831,180 | BT97: 27,433,306 | BU97: 24,385,161 | BV97: 28,018,550 | BW97: 30,166,639 | BX97: 32,417,633 | BY97: 33,744,186 | BZ97: 30,444,386 | CA97: 24,143,260 | CB97: 34,490,372 | CC97: 17,928,360 | CD97: 25,099,705 | CE97: 36,533,263 | CF97: 32,879,936 | CG97: 29,767,844 | CH97: 33,488,824 | CI97: 37,449,385 | CJ97: 39,420,405 | CK97: 40,110,478 | CL97: 36,099,430 | CM97: 28,560,386 | CN97: 40,800,551 | CO97: 21,160,218 | CP97: 29,624,305 | CQ97: 43,024,310 | CR97: 38,721,879 | CS97: 34,489,836 | CT97: 40,068,039 | CU97: 0
A98: 98 | G98: 0 | H98: Общий оборот (GMV) | I98: Очки | L98: 1 | M98: руб. | X98: 1,368,507,474 | AA98: 0 | AB98: 0 | AC98: 0 | AD98: 0 | AE98: 0 | AF98: 252,000 | AG98: 385,560 | AH98: 719,712 | AI98: 2,203,200 | AJ98: 2,379,456 | AK98: 2,776,032 | AL98: 4,626,720 | AM98: 5,870,977 | AN98: 6,929,064 | AO98: 7,865,424 | AP98: 8,616,853 | AQ98: 7,128,041 | AR98: 11,306,547 | AS98: 5,802,155 | AT98: 8,925,290 | AU98: 13,896,519 | AV98: 13,087,082 | AW98: 12,091,404 | AX98: 14,118,577 | AY98: 15,756,288 | AZ98: 16,658,631 | BA98: 18,412,171 | BB98: 16,570,954 | BC98: 13,706,838 | BD98: 19,581,198 | BE98: 10,321,775 | BF98: 14,450,486 | BG98: 21,239,754 | BH98: 20,188,946 | BI98: 18,422,692 | BJ98: 21,262,112 | BK98: 22,964,423 | BL98: 24,781,204 | BM98: 24,781,204 | BN98: 22,850,399 | BO98: 17,772,532 | BP98: 27,213,715 | BQ98: 13,878,995 | BR98: 19,919,071 | BS98: 28,455,816 | BT98: 26,168,495 | BU98: 23,260,885 | BV98: 26,726,757 | BW98: 28,775,808 | BX98: 30,923,020 | BY98: 32,188,412 | BZ98: 29,040,749 | CA98: 23,030,137 | CB98: 32,900,195 | CC98: 17,101,775 | CD98: 23,942,485 | CE98: 34,848,899 | CF98: 31,364,009 | CG98: 28,395,399 | CH98: 31,944,824 | CI98: 35,722,784 | CJ98: 37,602,930 | CK98: 38,261,187 | CL98: 34,435,069 | CM98: 27,243,611 | CN98: 38,919,444 | CO98: 20,184,628 | CP98: 28,258,479 | CQ98: 41,040,677 | CR98: 36,936,610 | CS98: 32,899,684 | CT98: 38,220,705 | CU98: 0
A99: 99 | G99: 0 | H99: Общий оборот (GMV) | I99: Профилактика | L99: 1 | M99: руб. | X99: 60,822,554 | AA99: 0 | AB99: 0 | AC99: 0 | AD99: 0 | AE99: 0 | AF99: 11,200 | AG99: 17,136 | AH99: 31,987 | AI99: 97,920 | AJ99: 105,754 | AK99: 123,379 | AL99: 205,632 | AM99: 260,932 | AN99: 307,958 | AO99: 349,574 | AP99: 382,971 | AQ99: 316,802 | AR99: 502,513 | AS99: 257,874 | AT99: 396,680 | AU99: 617,623 | AV99: 581,648 | AW99: 537,396 | AX99: 627,492 | AY99: 700,279 | AZ99: 740,384 | BA99: 818,319 | BB99: 736,487 | BC99: 609,193 | BD99: 870,275 | BE99: 458,746 | BF99: 642,244 | BG99: 943,989 | BH99: 897,286 | BI99: 818,786 | BJ99: 944,983 | BK99: 1,020,641 | BL99: 1,101,387 | BM99: 1,101,387 | BN99: 1,015,573 | BO99: 789,890 | BP99: 1,209,498 | BQ99: 616,844 | BR99: 885,292 | BS99: 1,264,703 | BT99: 1,163,044 | BU99: 1,033,817 | BV99: 1,187,856 | BW99: 1,278,925 | BX99: 1,374,356 | BY99: 1,430,596 | BZ99: 1,290,700 | CA99: 1,023,562 | CB99: 1,462,231 | CC99: 760,079 | CD99: 1,064,110 | CE99: 1,548,840 | CF99: 1,393,956 | CG99: 1,262,018 | CH99: 1,419,770 | CI99: 1,587,679 | CJ99: 1,671,241 | CK99: 1,700,497 | CL99: 1,530,447 | CM99: 1,210,827 | CN99: 1,729,753 | CO99: 897,095 | CP99: 1,255,932 | CQ99: 1,824,030 | CR99: 1,641,627 | CS99: 1,462,208 | CT99: 1,698,698 | CU99: 0
A100: 100 | G100: 0 | H100: Общий оборот (GMV) | I100: Аксессуары | L100: 1 | M100: руб. | X100: 5,321,974 | AA100: 0 | AB100: 0 | AC100: 0 | AD100: 0 | AE100: 0 | AF100: 980 | AG100: 1,499 | AH100: 2,799 | AI100: 8,568 | AJ100: 9,253 | AK100: 10,796 | AL100: 17,993 | AM100: 22,832 | AN100: 26,946 | AO100: 30,588 | AP100: 33,510 | AQ100: 27,720 | AR100: 43,970 | AS100: 22,564 | AT100: 34,709 | AU100: 54,042 | AV100: 50,894 | AW100: 47,022 | AX100: 54,906 | AY100: 61,274 | AZ100: 64,784 | BA100: 71,603 | BB100: 64,443 | BC100: 53,304 | BD100: 76,149 | BE100: 40,140 | BF100: 56,196 | BG100: 82,599 | BH100: 78,513 | BI100: 71,644 | BJ100: 82,686 | BK100: 89,306 | BL100: 96,371 | BM100: 96,371 | BN100: 88,863 | BO100: 69,115 | BP100: 105,831 | BQ100: 53,974 | BR100: 77,463 | BS100: 110,662 | BT100: 101,766 | BU100: 90,459 | BV100: 103,937 | BW100: 111,906 | BX100: 120,256 | BY100: 125,177 | BZ100: 112,936 | CA100: 89,562 | CB100: 127,945 | CC100: 66,507 | CD100: 93,110 | CE100: 135,523 | CF100: 121,971 | CG100: 110,427 | CH100: 124,230 | CI100: 138,922 | CJ100: 146,234 | CK100: 148,794 | CL100: 133,914 | CM100: 105,947 | CN100: 151,353 | CO100: 78,496 | CP100: 109,894 | CQ100: 159,603 | CR100: 143,642 | CS100: 127,943 | CT100: 148,636 | CU100: 0
A101: 101 | L101: пустая строка
A102: 102
A103: 103 | G103: 0 | H103: Доля продаж со скидками
A104: 104 | G104: 0 | H104: продукция | I104: Вручную для каждого периода расчетов | M104: % | Q104: Очки | S104: 0 | T104: 0 | X104: 20.00% | Y104: * | AA104: 20.00% | AB104: 20.00% | AC104: 20.00% | AD104: 20.00% | AE104: 20.00% | AF104: 20.00% | AG104: 20.00% | AH104: 20.00% | AI104: 20.00% | AJ104: 20.00% | AK104: 20.00% | AL104: 20.00% | AM104: 20.00% | AN104: 20.00% | AO104: 20.00% | AP104: 20.00% | AQ104: 20.00% | AR104: 20.00% | AS104: 20.00% | AT104: 20.00% | AU104: 20.00% | AV104: 20.00% | AW104: 20.00% | AX104: 20.00% | AY104: 20.00% | AZ104: 20.00% | BA104: 20.00% | BB104: 20.00% | BC104: 20.00% | BD104: 20.00% | BE104: 20.00% | BF104: 20.00% | BG104: 20.00% | BH104: 20.00% | BI104: 20.00% | BJ104: 20.00% | BK104: 20.00% | BL104: 20.00% | BM104: 20.00% | BN104: 20.00% | BO104: 20.00% | BP104: 20.00% | BQ104: 20.00% | BR104: 20.00% | BS104: 20.00% | BT104: 20.00% | BU104: 20.00% | BV104: 20.00% | BW104: 20.00% | BX104: 20.00% | BY104: 20.00% | BZ104: 20.00% | CA104: 20.00% | CB104: 20.00% | CC104: 20.00% | CD104: 20.00% | CE104: 20.00% | CF104: 20.00% | CG104: 20.00% | CH104: 20.00% | CI104: 20.00% | CJ104: 20.00% | CK104: 20.00% | CL104: 20.00% | CM104: 20.00% | CN104: 20.00% | CO104: 20.00% | CP104: 20.00% | CQ104: 20.00% | CR104: 20.00% | CS104: 20.00% | CT104: 20.00% | CU104: 20.00%
A105: 105 | G105: 0 | H105: продукция | I105: Вручную для каждого периода расчетов | M105: % | Q105: Профилактика | S105: 0 | T105: 0 | X105: 30.00% | Y105: * | AA105: 30.00% | AB105: 30.00% | AC105: 30.00% | AD105: 30.00% | AE105: 30.00% | AF105: 30.00% | AG105: 30.00% | AH105: 30.00% | AI105: 30.00% | AJ105: 30.00% | AK105: 30.00% | AL105: 30.00% | AM105: 30.00% | AN105: 30.00% | AO105: 30.00% | AP105: 30.00% | AQ105: 30.00% | AR105: 30.00% | AS105: 30.00% | AT105: 30.00% | AU105: 30.00% | AV105: 30.00% | AW105: 30.00% | AX105: 30.00% | AY105: 30.00% | AZ105: 30.00% | BA105: 30.00% | BB105: 30.00% | BC105: 30.00% | BD105: 30.00% | BE105: 30.00% | BF105: 30.00% | BG105: 30.00% | BH105: 30.00% | BI105: 30.00% | BJ105: 30.00% | BK105: 30.00% | BL105: 30.00% | BM105: 30.00% | BN105: 30.00% | BO105: 30.00% | BP105: 30.00% | BQ105: 30.00% | BR105: 30.00% | BS105: 30.00% | BT105: 30.00% | BU105: 30.00% | BV105: 30.00% | BW105: 30.00% | BX105: 30.00% | BY105: 30.00% | BZ105: 30.00% | CA105: 30.00% | CB105: 30.00% | CC105: 30.00% | CD105: 30.00% | CE105: 30.00% | CF105: 30.00% | CG105: 30.00% | CH105: 30.00% | CI105: 30.00% | CJ105: 30.00% | CK105: 30.00% | CL105: 30.00% | CM105: 30.00% | CN105: 30.00% | CO105: 30.00% | CP105: 30.00% | CQ105: 30.00% | CR105: 30.00% | CS105: 30.00% | CT105: 30.00% | CU105: 30.00%
A106: 106 | G106: 0 | H106: продукция | I106: Вручную для каждого периода расчетов | M106: % | Q106: Аксессуары | S106: 0 | T106: 0 | X106: 40.00% | Y106: * | AA106: 40.00% | AB106: 40.00% | AC106: 40.00% | AD106: 40.00% | AE106: 40.00% | AF106: 40.00% | AG106: 40.00% | AH106: 40.00% | AI106: 40.00% | AJ106: 40.00% | AK106: 40.00% | AL106: 40.00% | AM106: 40.00% | AN106: 40.00% | AO106: 40.00% | AP106: 40.00% | AQ106: 40.00% | AR106: 40.00% | AS106: 40.00% | AT106: 40.00% | AU106: 40.00% | AV106: 40.00% | AW106: 40.00% | AX106: 40.00% | AY106: 40.00% | AZ106: 40.00% | BA106: 40.00% | BB106: 40.00% | BC106: 40.00% | BD106: 40.00% | BE106: 40.00% | BF106: 40.00% | BG106: 40.00% | BH106: 40.00% | BI106: 40.00% | BJ106: 40.00% | BK106: 40.00% | BL106: 40.00% | BM106: 40.00% | BN106: 40.00% | BO106: 40.00% | BP106: 40.00% | BQ106: 40.00% | BR106: 40.00% | BS106: 40.00% | BT106: 40.00% | BU106: 40.00% | BV106: 40.00% | BW106: 40.00% | BX106: 40.00% | BY106: 40.00% | BZ106: 40.00% | CA106: 40.00% | CB106: 40.00% | CC106: 40.00% | CD106: 40.00% | CE106: 40.00% | CF106: 40.00% | CG106: 40.00% | CH106: 40.00% | CI106: 40.00% | CJ106: 40.00% | CK106: 40.00% | CL106: 40.00% | CM106: 40.00% | CN106: 40.00% | CO106: 40.00% | CP106: 40.00% | CQ106: 40.00% | CR106: 40.00% | CS106: 40.00% | CT106: 40.00% | CU106: 40.00%
A107: 107 | L107: пустая строка
A108: 108
A109: 109 | G109: 0 | H109: Средний размер скидок
A110: 110 | G110: 0 | H110: Средний размер скидок | I110: Очки | M110: % | P110: * | Q110: 20.0% | S110: 0 | X110: 10.5% | AA110: 20.0% | AB110: 20.0% | AC110: 20.0% | AD110: 19.0% | AE110: 19.0% | AF110: 19.0% | AG110: 18.0% | AH110: 18.0% | AI110: 18.0% | AJ110: 17.0% | AK110: 17.0% | AL110: 17.0% | AM110: 16.0% | AN110: 16.0% | AO110: 16.0% | AP110: 15.0% | AQ110: 15.0% | AR110: 15.0% | AS110: 14.0% | AT110: 14.0% | AU110: 14.0% | AV110: 13.0% | AW110: 13.0% | AX110: 13.0% | AY110: 12.0% | AZ110: 12.0% | BA110: 12.0% | BB110: 11.0% | BC110: 11.0% | BD110: 11.0% | BE110: 10.0% | BF110: 10.0% | BG110: 10.0% | BH110: 9.0% | BI110: 9.0% | BJ110: 9.0% | BK110: 8.0% | BL110: 8.0% | BM110: 8.0% | BN110: 7.0% | BO110: 7.0% | BP110: 7.0% | BQ110: 6.0% | BR110: 6.0% | BS110: 6.0% | BT110: 5.0% | BU110: 5.0% | BV110: 5.0% | BW110: 4.0% | BX110: 4.0% | BY110: 4.0% | BZ110: 3.0% | CA110: 3.0% | CB110: 3.0% | CC110: 2.0% | CD110: 2.0% | CE110: 2.0% | CF110: 1.0% | CG110: 1.0% | CH110: 1.0% | CI110: 0.0% | CJ110: 0.0% | CK110: 0.0% | CL110: 0.0% | CM110: 0.0% | CN110: 0.0% | CO110: 0.0% | CP110: 0.0% | CQ110: 0.0% | CR110: 0.0% | CS110: 0.0% | CT110: 0.0% | CU110: 0.0%
A111: 111 | G111: 0 | H111: Средний размер скидок | I111: Профилактика | M111: % | P111: * | Q111: 25.0% | S111: 0 | X111: 13.5% | AA111: 25.0% | AB111: 25.0% | AC111: 25.0% | AD111: 24.0% | AE111: 24.0% | AF111: 24.0% | AG111: 23.0% | AH111: 23.0% | AI111: 23.0% | AJ111: 22.0% | AK111: 22.0% | AL111: 22.0% | AM111: 21.0% | AN111: 21.0% | AO111: 21.0% | AP111: 20.0% | AQ111: 20.0% | AR111: 20.0% | AS111: 19.0% | AT111: 19.0% | AU111: 19.0% | AV111: 18.0% | AW111: 18.0% | AX111: 18.0% | AY111: 17.0% | AZ111: 17.0% | BA111: 17.0% | BB111: 16.0% | BC111: 16.0% | BD111: 16.0% | BE111: 15.0% | BF111: 15.0% | BG111: 15.0% | BH111: 14.0% | BI111: 14.0% | BJ111: 14.0% | BK111: 13.0% | BL111: 13.0% | BM111: 13.0% | BN111: 12.0% | BO111: 12.0% | BP111: 12.0% | BQ111: 11.0% | BR111: 11.0% | BS111: 11.0% | BT111: 10.0% | BU111: 10.0% | BV111: 10.0% | BW111: 9.0% | BX111: 9.0% | BY111: 9.0% | BZ111: 8.0% | CA111: 8.0% | CB111: 8.0% | CC111: 7.0% | CD111: 7.0% | CE111: 7.0% | CF111: 6.0% | CG111: 6.0% | CH111: 6.0% | CI111: 5.0% | CJ111: 5.0% | CK111: 5.0% | CL111: 4.0% | CM111: 4.0% | CN111: 4.0% | CO111: 3.0% | CP111: 3.0% | CQ111: 3.0% | CR111: 2.0% | CS111: 2.0% | CT111: 2.0% | CU111: 0.0%
A112: 112 | G112: 0 | H112: Средний размер скидок | I112: Аксессуары | M112: % | P112: * | Q112: 30.0% | S112: 0 | X112: 18.5% | AA112: 30.0% | AB112: 30.0% | AC112: 30.0% | AD112: 29.0% | AE112: 29.0% | AF112: 29.0% | AG112: 28.0% | AH112: 28.0% | AI112: 28.0% | AJ112: 27.0% | AK112: 27.0% | AL112: 27.0% | AM112: 26.0% | AN112: 26.0% | AO112: 26.0% | AP112: 25.0% | AQ112: 25.0% | AR112: 25.0% | AS112: 24.0% | AT112: 24.0% | AU112: 24.0% | AV112: 23.0% | AW112: 23.0% | AX112: 23.0% | AY112: 22.0% | AZ112: 22.0% | BA112: 22.0% | BB112: 21.0% | BC112: 21.0% | BD112: 21.0% | BE112: 20.0% | BF112: 20.0% | BG112: 20.0% | BH112: 19.0% | BI112: 19.0% | BJ112: 19.0% | BK112: 18.0% | BL112: 18.0% | BM112: 18.0% | BN112: 17.0% | BO112: 17.0% | BP112: 17.0% | BQ112: 16.0% | BR112: 16.0% | BS112: 16.0% | BT112: 15.0% | BU112: 15.0% | BV112: 15.0% | BW112: 14.0% | BX112: 14.0% | BY112: 14.0% | BZ112: 13.0% | CA112: 13.0% | CB112: 13.0% | CC112: 12.0% | CD112: 12.0% | CE112: 12.0% | CF112: 11.0% | CG112: 11.0% | CH112: 11.0% | CI112: 10.0% | CJ112: 10.0% | CK112: 10.0% | CL112: 9.0% | CM112: 9.0% | CN112: 9.0% | CO112: 8.0% | CP112: 8.0% | CQ112: 8.0% | CR112: 7.0% | CS112: 7.0% | CT112: 7.0% | CU112: 0.0%
A113: 113 | L113: пустая строка
A114: 114 | G114: 0 | H114: Линейные изменения размеров скидок
A115: 115 | G115: 0 | H115: Линейные изменения размеров скидок | I115: Коэффициент прироста | M115: % | P115: * | Q115: -1.0% | S115: 0
A116: 116 | G116: 0 | H116: Линейные изменения размеров скидок | I116: Частота приростов | M116: кол-во периодов | P116: * | Q116: 3 | S116: 0
A117: 117 | G117: 0 | H117: Линейные изменения размеров скидок | I117: Максимальное значение | M117: % | P117: * | Q117: 50.0% | S117: 0
A118: 118
A119: 119 | G119: 0 | H119: Маркетинговые скидки | L119: 1 | M119: руб. | T119: 0 | X119: 15,457,252 | AA119: 0 | AB119: 0 | AC119: 0 | AD119: 0 | AE119: 0 | AF119: 10,496 | AG119: 15,230 | AH119: 28,430 | AI119: 87,031 | AJ119: 88,881 | AK119: 103,694 | AL119: 172,823 | AM119: 206,684 | AN119: 243,934 | AO119: 276,898 | AP119: 284,835 | AQ119: 235,621 | AR119: 373,744 | AS119: 179,325 | AT119: 275,851 | AU119: 429,495 | AV119: 376,355 | AW119: 347,722 | AX119: 406,019 | AY119: 419,257 | AZ119: 443,268 | BA119: 489,927 | BB119: 405,326 | BC119: 335,269 | BD119: 478,956 | BE119: 230,290 | BF119: 322,406 | BG119: 473,883 | BH119: 407,054 | BI119: 371,442 | BJ119: 428,691 | BK119: 413,666 | BL119: 446,392 | BM119: 446,392 | BN119: 362,509 | BO119: 281,951 | BP119: 431,730 | BQ119: 190,358 | BR119: 273,201 | BS119: 390,287 | BT119: 302,682 | BU119: 269,051 | BV119: 309,139 | BW119: 271,004 | BX119: 291,226 | BY119: 303,143 | BZ119: 211,094 | CA119: 167,404 | CB119: 239,148 | CC119: 87,561 | CD119: 122,586 | CE119: 178,426 | CF119: 93,186 | CG119: 84,366 | CH119: 94,912 | CI119: 29,372 | CJ119: 30,918 | CK119: 31,459 | CL119: 23,186 | CM119: 18,344 | CN119: 26,206 | CO119: 10,586 | CP119: 14,820 | CQ119: 21,524 | CR119: 13,872 | CS119: 12,356 | CT119: 14,354 | CU119: 0
A120: 120 | G120: 0 | H120: Маркетинговые скидки | I120: Очки | L120: 1 | M120: руб. | X120: 13,422,680 | AA120: 0 | AB120: 0 | AC120: 0 | AD120: 0 | AE120: 0 | AF120: 9,576 | AG120: 13,880 | AH120: 25,910 | AI120: 79,315 | AJ120: 80,902 | AK120: 94,385 | AL120: 157,308 | AM120: 187,871 | AN120: 221,730 | AO120: 251,694 | AP120: 258,506 | AQ120: 213,841 | AR120: 339,196 | AS120: 162,460 | AT120: 249,908 | AU120: 389,103 | AV120: 340,264 | AW120: 314,377 | AX120: 367,083 | AY120: 378,151 | AZ120: 399,807 | BA120: 441,892 | BB120: 364,561 | BC120: 301,550 | BD120: 430,786 | BE120: 206,436 | BF120: 289,010 | BG120: 424,795 | BH120: 363,401 | BI120: 331,608 | BJ120: 382,718 | BK120: 367,431 | BL120: 396,499 | BM120: 396,499 | BN120: 319,906 | BO120: 248,815 | BP120: 380,992 | BQ120: 166,548 | BR120: 239,029 | BS120: 341,470 | BT120: 261,685 | BU120: 232,609 | BV120: 267,268 | BW120: 230,206 | BX120: 247,384 | BY120: 257,507 | BZ120: 174,244 | CA120: 138,181 | CB120: 197,401 | CC120: 68,407 | CD120: 95,770 | CE120: 139,396 | CF120: 62,728 | CG120: 56,791 | CH120: 63,890 | CI120: 0 | CJ120: 0 | CK120: 0 | CL120: 0 | CM120: 0 | CN120: 0 | CO120: 0 | CP120: 0 | CQ120: 0 | CR120: 0 | CS120: 0 | CT120: 0 | CU120: 0
A121: 121 | G121: 0 | H121: Маркетинговые скидки | I121: Профилактика | L121: 1 | M121: руб. | X121: 1,726,685 | AA121: 0 | AB121: 0 | AC121: 0 | AD121: 0 | AE121: 0 | AF121: 806 | AG121: 1,182 | AH121: 2,207 | AI121: 6,756 | AJ121: 6,980 | AK121: 8,143 | AL121: 13,572 | AM121: 16,439 | AN121: 19,401 | AO121: 22,023 | AP121: 22,978 | AQ121: 19,008 | AR121: 30,151 | AS121: 14,699 | AT121: 22,611 | AU121: 35,205 | AV121: 31,409 | AW121: 29,019 | AX121: 33,885 | AY121: 35,714 | AZ121: 37,760 | BA121: 41,734 | BB121: 35,351 | BC121: 29,241 | BD121: 41,773 | BE121: 20,644 | BF121: 28,901 | BG121: 42,480 | BH121: 37,686 | BI121: 34,389 | BJ121: 39,689 | BK121: 39,805 | BL121: 42,954 | BM121: 42,954 | BN121: 36,561 | BO121: 28,436 | BP121: 43,542 | BQ121: 20,356 | BR121: 29,215 | BS121: 41,735 | BT121: 34,891 | BU121: 31,015 | BV121: 35,636 | BW121: 34,531 | BX121: 37,108 | BY121: 38,626 | BZ121: 30,977 | CA121: 24,565 | CB121: 35,094 | CC121: 15,962 | CD121: 22,346 | CE121: 32,526 | CF121: 25,091 | CG121: 22,716 | CH121: 25,556 | CI121: 23,815 | CJ121: 25,069 | CK121: 25,507 | CL121: 18,365 | CM121: 14,530 | CN121: 20,757 | CO121: 8,074 | CP121: 11,303 | CQ121: 16,416 | CR121: 9,850 | CS121: 8,773 | CT121: 10,192 | CU121: 0
A122: 122 | G122: 0 | H122: Маркетинговые скидки | I122: Аксессуары | L122: 1 | M122: руб. | X122: 307,886 | AA122: 0 | AB122: 0 | AC122: 0 | AD122: 0 | AE122: 0 | AF122: 114 | AG122: 168 | AH122: 313 | AI122: 960 | AJ122: 999 | AK122: 1,166 | AL122: 1,943 | AM122: 2,374 | AN122: 2,802 | AO122: 3,181 | AP122: 3,351 | AQ122: 2,772 | AR122: 4,397 | AS122: 2,166 | AT122: 3,332 | AU122: 5,188 | AV122: 4,682 | AW122: 4,326 | AX122: 5,051 | AY122: 5,392 | AZ122: 5,701 | BA122: 6,301 | BB122: 5,413 | BC122: 4,478 | BD122: 6,397 | BE122: 3,211 | BF122: 4,496 | BG122: 6,608 | BH122: 5,967 | BI122: 5,445 | BJ122: 6,284 | BK122: 6,430 | BL122: 6,939 | BM122: 6,939 | BN122: 6,043 | BO122: 4,700 | BP122: 7,197 | BQ122: 3,454 | BR122: 4,958 | BS122: 7,082 | BT122: 6,106 | BU122: 5,428 | BV122: 6,236 | BW122: 6,267 | BX122: 6,734 | BY122: 7,010 | BZ122: 5,873 | CA122: 4,657 | CB122: 6,653 | CC122: 3,192 | CD122: 4,469 | CE122: 6,505 | CF122: 5,367 | CG122: 4,859 | CH122: 5,466 | CI122: 5,557 | CJ122: 5,849 | CK122: 5,952 | CL122: 4,821 | CM122: 3,814 | CN122: 5,449 | CO122: 2,512 | CP122: 3,517 | CQ122: 5,107 | CR122: 4,022 | CS122: 3,582 | CT122: 4,162 | CU122: 0
A123: 123 | L123: пустая строка
A124: 124
A125: 125 | G125: 0 | H125: Доля скидок в общем обороте | L125: 1 | M125: % | X125: 1.1% | AA125: 0.0% | AB125: 0.0% | AC125: 0.0% | AD125: 0.0% | AE125: 0.0% | AF125: 4.0% | AG125: 3.8% | AH125: 3.8% | AI125: 3.8% | AJ125: 3.6% | AK125: 3.6% | AL125: 3.6% | AM125: 3.4% | AN125: 3.4% | AO125: 3.4% | AP125: 3.2% | AQ125: 3.2% | AR125: 3.2% | AS125: 2.9% | AT125: 2.9% | AU125: 2.9% | AV125: 2.7% | AW125: 2.7% | AX125: 2.7% | AY125: 2.5% | AZ125: 2.5% | BA125: 2.5% | BB125: 2.3% | BC125: 2.3% | BD125: 2.3% | BE125: 2.1% | BF125: 2.1% | BG125: 2.1% | BH125: 1.9% | BI125: 1.9% | BJ125: 1.9% | BK125: 1.7% | BL125: 1.7% | BM125: 1.7% | BN125: 1.5% | BO125: 1.5% | BP125: 1.5% | BQ125: 1.3% | BR125: 1.3% | BS125: 1.3% | BT125: 1.1% | BU125: 1.1% | BV125: 1.1% | BW125: 0.9% | BX125: 0.9% | BY125: 0.9% | BZ125: 0.7% | CA125: 0.7% | CB125: 0.7% | CC125: 0.5% | CD125: 0.5% | CE125: 0.5% | CF125: 0.3% | CG125: 0.3% | CH125: 0.3% | CI125: 0.1% | CJ125: 0.1% | CK125: 0.1% | CL125: 0.1% | CM125: 0.1% | CN125: 0.1% | CO125: 0.1% | CP125: 0.1% | CQ125: 0.1% | CR125: 0.0% | CS125: 0.0% | CT125: 0.0% | CU125: 0.0%
A126: 126 | G126: 0 | H126: Доля скидок в общем обороте | I126: Очки | L126: 1 | M126: % | X126: 1.0% | AA126: 0.0% | AB126: 0.0% | AC126: 0.0% | AD126: 0.0% | AE126: 0.0% | AF126: 3.8% | AG126: 3.6% | AH126: 3.6% | AI126: 3.6% | AJ126: 3.4% | AK126: 3.4% | AL126: 3.4% | AM126: 3.2% | AN126: 3.2% | AO126: 3.2% | AP126: 3.0% | AQ126: 3.0% | AR126: 3.0% | AS126: 2.8% | AT126: 2.8% | AU126: 2.8% | AV126: 2.6% | AW126: 2.6% | AX126: 2.6% | AY126: 2.4% | AZ126: 2.4% | BA126: 2.4% | BB126: 2.2% | BC126: 2.2% | BD126: 2.2% | BE126: 2.0% | BF126: 2.0% | BG126: 2.0% | BH126: 1.8% | BI126: 1.8% | BJ126: 1.8% | BK126: 1.6% | BL126: 1.6% | BM126: 1.6% | BN126: 1.4% | BO126: 1.4% | BP126: 1.4% | BQ126: 1.2% | BR126: 1.2% | BS126: 1.2% | BT126: 1.0% | BU126: 1.0% | BV126: 1.0% | BW126: 0.8% | BX126: 0.8% | BY126: 0.8% | BZ126: 0.6% | CA126: 0.6% | CB126: 0.6% | CC126: 0.4% | CD126: 0.4% | CE126: 0.4% | CF126: 0.2% | CG126: 0.2% | CH126: 0.2% | CI126: 0.0% | CJ126: 0.0% | CK126: 0.0% | CL126: 0.0% | CM126: 0.0% | CN126: 0.0% | CO126: 0.0% | CP126: 0.0% | CQ126: 0.0% | CR126: 0.0% | CS126: 0.0% | CT126: 0.0% | CU126: 0.0%
A127: 127 | G127: 0 | H127: Доля скидок в общем обороте | I127: Профилактика | L127: 1 | M127: % | X127: 2.8% | AA127: 0.0% | AB127: 0.0% | AC127: 0.0% | AD127: 0.0% | AE127: 0.0% | AF127: 7.2% | AG127: 6.9% | AH127: 6.9% | AI127: 6.9% | AJ127: 6.6% | AK127: 6.6% | AL127: 6.6% | AM127: 6.3% | AN127: 6.3% | AO127: 6.3% | AP127: 6.0% | AQ127: 6.0% | AR127: 6.0% | AS127: 5.7% | AT127: 5.7% | AU127: 5.7% | AV127: 5.4% | AW127: 5.4% | AX127: 5.4% | AY127: 5.1% | AZ127: 5.1% | BA127: 5.1% | BB127: 4.8% | BC127: 4.8% | BD127: 4.8% | BE127: 4.5% | BF127: 4.5% | BG127: 4.5% | BH127: 4.2% | BI127: 4.2% | BJ127: 4.2% | BK127: 3.9% | BL127: 3.9% | BM127: 3.9% | BN127: 3.6% | BO127: 3.6% | BP127: 3.6% | BQ127: 3.3% | BR127: 3.3% | BS127: 3.3% | BT127: 3.0% | BU127: 3.0% | BV127: 3.0% | BW127: 2.7% | BX127: 2.7% | BY127: 2.7% | BZ127: 2.4% | CA127: 2.4% | CB127: 2.4% | CC127: 2.1% | CD127: 2.1% | CE127: 2.1% | CF127: 1.8% | CG127: 1.8% | CH127: 1.8% | CI127: 1.5% | CJ127: 1.5% | CK127: 1.5% | CL127: 1.2% | CM127: 1.2% | CN127: 1.2% | CO127: 0.9% | CP127: 0.9% | CQ127: 0.9% | CR127: 0.6% | CS127: 0.6% | CT127: 0.6% | CU127: 0.0%
A128: 128 | G128: 0 | H128: Доля скидок в общем обороте | I128: Аксессуары | L128: 1 | M128: % | X128: 5.8% | AA128: 0.0% | AB128: 0.0% | AC128: 0.0% | AD128: 0.0% | AE128: 0.0% | AF128: 11.6% | AG128: 11.2% | AH128: 11.2% | AI128: 11.2% | AJ128: 10.8% | AK128: 10.8% | AL128: 10.8% | AM128: 10.4% | AN128: 10.4% | AO128: 10.4% | AP128: 10.0% | AQ128: 10.0% | AR128: 10.0% | AS128: 9.6% | AT128: 9.6% | AU128: 9.6% | AV128: 9.2% | AW128: 9.2% | AX128: 9.2% | AY128: 8.8% | AZ128: 8.8% | BA128: 8.8% | BB128: 8.4% | BC128: 8.4% | BD128: 8.4% | BE128: 8.0% | BF128: 8.0% | BG128: 8.0% | BH128: 7.6% | BI128: 7.6% | BJ128: 7.6% | BK128: 7.2% | BL128: 7.2% | BM128: 7.2% | BN128: 6.8% | BO128: 6.8% | BP128: 6.8% | BQ128: 6.4% | BR128: 6.4% | BS128: 6.4% | BT128: 6.0% | BU128: 6.0% | BV128: 6.0% | BW128: 5.6% | BX128: 5.6% | BY128: 5.6% | BZ128: 5.2% | CA128: 5.2% | CB128: 5.2% | CC128: 4.8% | CD128: 4.8% | CE128: 4.8% | CF128: 4.4% | CG128: 4.4% | CH128: 4.4% | CI128: 4.0% | CJ128: 4.0% | CK128: 4.0% | CL128: 3.6% | CM128: 3.6% | CN128: 3.6% | CO128: 3.2% | CP128: 3.2% | CQ128: 3.2% | CR128: 2.8% | CS128: 2.8% | CT128: 2.8% | CU128: 0.0%
A129: 129 | L129: пустая строка
A130: 130
A131: 131 | G131: 0 | H131: Общий оборот (GMV) с учетом скидок | L131: 1 | M131: руб. | T131: 0 | X131: 1,419,194,750 | AA131: 0 | AB131: 0 | AC131: 0 | AD131: 0 | AE131: 0 | AF131: 253,684 | AG131: 388,965 | AH131: 726,068 | AI131: 2,222,657 | AJ131: 2,405,582 | AK131: 2,806,513 | AL131: 4,677,521 | AM131: 5,948,057 | AN131: 7,020,035 | AO131: 7,968,688 | AP131: 8,748,499 | AQ131: 7,236,941 | AR131: 11,479,286 | AS131: 5,903,267 | AT131: 9,080,828 | AU131: 14,138,689 | AV131: 13,343,269 | AW131: 12,328,100 | AX131: 14,394,956 | AY131: 16,098,585 | AZ131: 17,020,530 | BA131: 18,812,165 | BB131: 16,966,558 | BC131: 14,034,066 | BD131: 20,048,666 | BE131: 10,590,371 | BF131: 14,826,519 | BG131: 21,792,460 | BH131: 20,757,691 | BI131: 18,941,680 | BJ131: 21,861,089 | BK131: 23,660,704 | BL131: 25,532,570 | BM131: 25,532,570 | BN131: 23,592,326 | BO131: 18,349,587 | BP131: 28,097,314 | BQ131: 14,359,455 | BR131: 20,608,625 | BS131: 29,440,893 | BT131: 27,130,624 | BU131: 24,116,110 | BV131: 27,709,410 | BW131: 29,895,634 | BX131: 32,126,407 | BY131: 33,441,042 | BZ131: 30,233,292 | CA131: 23,975,857 | CB131: 34,251,224 | CC131: 17,840,799 | CD131: 24,977,119 | CE131: 36,354,836 | CF131: 32,786,751 | CG131: 29,683,478 | CH131: 33,393,913 | CI131: 37,420,013 | CJ131: 39,389,487 | CK131: 40,079,019 | CL131: 36,076,244 | CM131: 28,542,042 | CN131: 40,774,345 | CO131: 21,149,632 | CP131: 29,609,485 | CQ131: 43,002,787 | CR131: 38,708,007 | CS131: 34,477,480 | CT131: 40,053,685 | CU131: 0
A132: 132 | G132: 0 | H132: Общий оборот (GMV) с учетом скидок | I132: Очки | L132: 1 | M132: руб. | X132: 1,355,084,793 | AA132: 0 | AB132: 0 | AC132: 0 | AD132: 0 | AE132: 0 | AF132: 242,424 | AG132: 371,680 | AH132: 693,802 | AI132: 2,123,885 | AJ132: 2,298,554 | AK132: 2,681,647 | AL132: 4,469,412 | AM132: 5,683,106 | AN132: 6,707,334 | AO132: 7,613,730 | AP132: 8,358,347 | AQ132: 6,914,199 | AR132: 10,967,351 | AS132: 5,639,694 | AT132: 8,675,382 | AU132: 13,507,416 | AV132: 12,746,818 | AW132: 11,777,027 | AX132: 13,751,494 | AY132: 15,378,138 | AZ132: 16,258,824 | BA132: 17,970,279 | BB132: 16,206,393 | BC132: 13,405,288 | BD132: 19,150,411 | BE132: 10,115,340 | BF132: 14,161,476 | BG132: 20,814,959 | BH132: 19,825,545 | BI132: 18,091,084 | BJ132: 20,879,394 | BK132: 22,596,992 | BL132: 24,384,705 | BM132: 24,384,705 | BN132: 22,530,493 | BO132: 17,523,717 | BP132: 26,832,723 | BQ132: 13,712,447 | BR132: 19,680,042 | BS132: 28,114,346 | BT132: 25,906,810 | BU132: 23,028,276 | BV132: 26,459,489 | BW132: 28,545,601 | BX132: 30,675,636 | BY132: 31,930,905 | BZ132: 28,866,505 | CA132: 22,891,956 | CB132: 32,702,794 | CC132: 17,033,368 | CD132: 23,846,715 | CE132: 34,709,504 | CF132: 31,301,281 | CG132: 28,338,609 | CH132: 31,880,935 | CI132: 35,722,784 | CJ132: 37,602,930 | CK132: 38,261,187 | CL132: 34,435,069 | CM132: 27,243,611 | CN132: 38,919,444 | CO132: 20,184,628 | CP132: 28,258,479 | CQ132: 41,040,677 | CR132: 36,936,610 | CS132: 32,899,684 | CT132: 38,220,705 | CU132: 0
A133: 133 | G133: 0 | H133: Общий оборот (GMV) с учетом скидок | I133: Профилактика | L133: 1 | M133: руб. | X133: 59,095,869 | AA133: 0 | AB133: 0 | AC133: 0 | AD133: 0 | AE133: 0 | AF133: 10,394 | AG133: 15,954 | AH133: 29,780 | AI133: 91,164 | AJ133: 98,774 | AK133: 115,236 | AL133: 192,060 | AM133: 244,494 | AN133: 288,557 | AO133: 327,551 | AP133: 359,993 | AQ133: 297,794 | AR133: 472,362 | AS133: 243,175 | AT133: 374,069 | AU133: 582,419 | AV133: 550,239 | AW133: 508,376 | AX133: 593,608 | AY133: 664,565 | AZ133: 702,624 | BA133: 776,584 | BB133: 701,135 | BC133: 579,952 | BD133: 828,502 | BE133: 438,102 | BF133: 613,343 | BG133: 901,510 | BH133: 859,600 | BI133: 784,397 | BJ133: 905,293 | BK133: 980,836 | BL133: 1,058,433 | BM133: 1,058,433 | BN133: 979,013 | BO133: 761,454 | BP133: 1,165,956 | BQ133: 596,488 | BR133: 856,077 | BS133: 1,222,968 | BT133: 1,128,153 | BU133: 1,002,803 | BV133: 1,152,220 | BW133: 1,244,394 | BX133: 1,337,249 | BY133: 1,391,970 | BZ133: 1,259,723 | CA133: 998,996 | CB133: 1,427,137 | CC133: 744,117 | CD133: 1,041,764 | CE133: 1,516,314 | CF133: 1,368,865 | CG133: 1,239,301 | CH133: 1,394,214 | CI133: 1,563,864 | CJ133: 1,646,173 | CK133: 1,674,990 | CL133: 1,512,082 | CM133: 1,196,297 | CN133: 1,708,996 | CO133: 889,021 | CP133: 1,244,629 | CQ133: 1,807,614 | CR133: 1,631,777 | CS133: 1,453,435 | CT133: 1,688,506 | CU133: 0
A134: 134 | G134: 0 | H134: Общий оборот (GMV) с учетом скидок | I134: Аксессуары | L134: 1 | M134: руб. | X134: 5,014,087 | AA134: 0 | AB134: 0 | AC134: 0 | AD134: 0 | AE134: 0 | AF134: 866 | AG134: 1,331 | AH134: 2,485 | AI134: 7,608 | AJ134: 8,254 | AK134: 9,630 | AL134: 16,050 | AM134: 20,457 | AN134: 24,144 | AO134: 27,407 | AP134: 30,159 | AQ134: 24,948 | AR134: 39,573 | AS134: 20,398 | AT134: 31,377 | AU134: 48,854 | AV134: 46,212 | AW134: 42,696 | AX134: 49,854 | AY134: 55,882 | AZ134: 59,083 | BA134: 65,302 | BB134: 59,029 | BC134: 48,827 | BD134: 69,753 | BE134: 36,929 | BF134: 51,701 | BG134: 75,991 | BH134: 72,546 | BI134: 66,199 | BJ134: 76,402 | BK134: 82,876 | BL134: 89,433 | BM134: 89,433 | BN134: 82,820 | BO134: 64,416 | BP134: 98,635 | BQ134: 50,520 | BR134: 72,505 | BS134: 103,579 | BT134: 95,660 | BU134: 85,031 | BV134: 97,701 | BW134: 105,639 | BX134: 113,522 | BY134: 118,167 | BZ134: 107,064 | CA134: 84,904 | CB134: 121,292 | CC134: 63,315 | CD134: 88,640 | CE134: 129,018 | CF134: 116,604 | CG134: 105,568 | CH134: 118,764 | CI134: 133,365 | CJ134: 140,384 | CK134: 142,842 | CL134: 129,093 | CM134: 102,133 | CN134: 145,905 | CO134: 75,984 | CP134: 106,377 | CQ134: 154,495 | CR134: 139,620 | CS134: 124,361 | CT134: 144,474 | CU134: 0
A135: 135 | L135: пустая строка
A136: 136
A137: 137 | G137: 0 | H137: Подготовка рекламных материалов | L137: 1 | M137: руб. | Q137: начисление | X137: 1,650,000 | AA137: 0 | AB137: 0 | AC137: 40,000 | AD137: 90,000 | AE137: 20,000 | AF137: 120,000 | AG137: 30,000 | AH137: 0 | AI137: 120,000 | AJ137: 30,000 | AK137: 0 | AL137: 0 | AM137: 120,000 | AN137: 30,000 | AO137: 0 | AP137: 0 | AQ137: 0 | AR137: 120,000 | AS137: 30,000 | AT137: 0 | AU137: 0 | AV137: 0 | AW137: 0 | AX137: 120,000 | AY137: 30,000 | AZ137: 0 | BA137: 0 | BB137: 0 | BC137: 0 | BD137: 0 | BE137: 120,000 | BF137: 30,000 | BG137: 0 | BH137: 0 | BI137: 0 | BJ137: 0 | BK137: 0 | BL137: 0 | BM137: 120,000 | BN137: 30,000 | BO137: 0 | BP137: 0 | BQ137: 0 | BR137: 0 | BS137: 0 | BT137: 0 | BU137: 0 | BV137: 120,000 | BW137: 30,000 | BX137: 0 | BY137: 0 | BZ137: 0 | CA137: 0 | CB137: 0 | CC137: 0 | CD137: 0 | CE137: 0 | CF137: 120,000 | CG137: 30,000 | CH137: 0 | CI137: 0 | CJ137: 0 | CK137: 0 | CL137: 0 | CM137: 0 | CN137: 0 | CO137: 0 | CP137: 0 | CQ137: 120,000 | CR137: 30,000 | CS137: 0 | CT137: 0 | CU137: 0
A138: 138 | G138: 0 | H138: Подготовка рекламных материалов | I138: Распределение расхода для одного запуска | M138: руб. | Q138: процесс | T138: 0 | U138: 0 | X138: 50,000 | AA138: 0 | AB138: 40,000 | AC138: 10,000 | AD138: 0 | AE138: 0 | AF138: 0 | AG138: 0 | AH138: 0 | AI138: 0 | AJ138: 0 | AK138: 0 | AL138: 0 | AM138: 0 | AN138: 0 | AO138: 0 | AP138: 0 | AQ138: 0 | AR138: 0 | AS138: 0 | AT138: 0 | AU138: 0 | AV138: 0 | AW138: 0 | AX138: 0 | AY138: 0 | AZ138: 0 | BA138: 0 | BB138: 0 | BC138: 0 | BD138: 0 | BE138: 0 | BF138: 0 | BG138: 0 | BH138: 0 | BI138: 0 | BJ138: 0 | BK138: 0 | BL138: 0 | BM138: 0 | BN138: 0 | BO138: 0 | BP138: 0 | BQ138: 0 | BR138: 0 | BS138: 0 | BT138: 0 | BU138: 0 | BV138: 0 | BW138: 0 | BX138: 0 | BY138: 0 | BZ138: 0 | CA138: 0 | CB138: 0 | CC138: 0 | CD138: 0 | CE138: 0 | CF138: 0 | CG138: 0 | CH138: 0 | CI138: 0 | CJ138: 0 | CK138: 0 | CL138: 0 | CM138: 0 | CN138: 0 | CO138: 0 | CP138: 0 | CQ138: 0 | CR138: 0 | CS138: 0 | CT138: 0 | CU138: 0
A139: 139 | G139: 0 | H139: Подготовка рекламных материалов | I139: Распределение расхода для одного запуска | J139: Сумма расхода для одного запуска по этой статье | M139: руб. | P139: * | Q139: 50,000 | S139: 0 | Y139: обратное распределение расхода | AA139: 0 | AB139: 0 | AC139: 0 | AD139: 0 | AE139: 0 | AF139: 0 | AG139: 0 | AH139: 0 | AI139: 0 | AJ139: 0 | AK139: 0 | AL139: 0 | AM139: 0 | AN139: 0 | AO139: 0 | AP139: 0 | AQ139: 0 | AR139: 0 | AS139: 0 | AT139: 0 | AU139: 0 | AV139: 0 | AW139: 0 | AX139: 0 | AY139: 0 | AZ139: 0 | BA139: 0 | BB139: 0 | BC139: 0 | BD139: 0 | BE139: 0 | BF139: 0 | BG139: 0 | BH139: 0 | BI139: 0 | BJ139: 0 | BK139: 0 | BL139: 0 | BM139: 0 | BN139: 0 | BO139: 0 | BP139: 0 | BQ139: 0 | BR139: 0 | BS139: 0 | BT139: 0 | BU139: 0 | BV139: 0 | BW139: 0 | BX139: 0 | BY139: 0 | BZ139: 0 | CA139: 0 | CB139: 0 | CC139: 0 | CD139: 0 | CE139: 0 | CF139: 0 | CG139: 0 | CH139: 0 | CI139: 0 | CJ139: 0 | CK139: 0 | CL139: 0 | CM139: 0 | CN139: 0 | CO139: 0 | CP139: 0 | CQ139: 0 | CR139: 0 | CS139: 10,000 | CT139: 40,000 | CU139: 0
A140: 140 | G140: 0 | H140: Подготовка рекламных материалов | I140: Распределение расхода для одного запуска | J140: Процентное распределение расхода по периодам | M140: % | T140: 0 | X140: 100.00% | Y140: * | AB140: 80.00% | AC140: 20.00%
A141: 141
A142: 142 | G142: 0 | H142: Подготовка рекламных материалов | L142: 1 | M142: руб. | Q142: оплата | X142: 1,650,000 | AA142: 0 | AB142: 4,000 | AC142: 17,000 | AD142: 48,000 | AE142: 79,000 | AF142: 41,000 | AG142: 90,000 | AH142: 33,000 | AI142: 27,000 | AJ142: 90,000 | AK142: 21,000 | AL142: 12,000 | AM142: 27,000 | AN142: 90,000 | AO142: 21,000 | AP142: 0 | AQ142: 12,000 | AR142: 27,000 | AS142: 90,000 | AT142: 21,000 | AU142: 0 | AV142: 0 | AW142: 12,000 | AX142: 27,000 | AY142: 90,000 | AZ142: 21,000 | BA142: 0 | BB142: 0 | BC142: 0 | BD142: 12,000 | BE142: 27,000 | BF142: 90,000 | BG142: 21,000 | BH142: 0 | BI142: 0 | BJ142: 0 | BK142: 0 | BL142: 12,000 | BM142: 27,000 | BN142: 90,000 | BO142: 21,000 | BP142: 0 | BQ142: 0 | BR142: 0 | BS142: 0 | BT142: 0 | BU142: 12,000 | BV142: 27,000 | BW142: 90,000 | BX142: 21,000 | BY142: 0 | BZ142: 0 | CA142: 0 | CB142: 0 | CC142: 0 | CD142: 0 | CE142: 12,000 | CF142: 27,000 | CG142: 90,000 | CH142: 21,000 | CI142: 0 | CJ142: 0 | CK142: 0 | CL142: 0 | CM142: 0 | CN142: 0 | CO142: 0 | CP142: 12,000 | CQ142: 27,000 | CR142: 90,000 | CS142: 21,000 | CT142: 0 | CU142: 0
A143: 143 | G143: 0 | H143: Подготовка рекламных материалов | I143: Задаем через указание % предоплаты и сроков
A144: 144 | G144: 0 | H144: Подготовка рекламных материалов | I144: Задаем через указание % предоплаты и сроков | J144: Размер предоплаты | M144: % | P144: * | Q144: 30.0% | S144: 0
A145: 145 | G145: 0 | H145: Подготовка рекламных материалов | I145: Задаем через указание % предоплаты и сроков | J145: Период оборачиваемости предоплаты (срок) | M145: кол-во дней | P145: * | Q145: 10 | S145: 0
A146: 146 | G146: 0 | H146: Подготовка рекламных материалов | I146: Задаем через указание % предоплаты и сроков | J146: расчет в количестве периодов | M146: кол-во периодов | Q146: 0.3 | S146: 0 | T146: 0
A147: 147 | G147: 0 | H147: Подготовка рекламных материалов | I147: Задаем через указание % предоплаты и сроков | J147: Размер доплаты | M147: % | Q147: 70.0% | S147: 0 | T147: 0
A148: 148 | G148: 0 | H148: Подготовка рекламных материалов | I148: Задаем через указание % предоплаты и сроков | J148: Период оборачиваемости доплат (срок) | M148: кол-во дней | P148: * | Q148: 30 | S148: 0
A149: 149 | G149: 0 | H149: Подготовка рекламных материалов | I149: Задаем через указание % предоплаты и сроков | J149: расчет в количестве периодов | M149: кол-во периодов | Q149: 1.0 | S149: 0 | T149: 0
A150: 150
A151: 151 | G151: 0 | H151: Подготовка рекламных материалов | L151: 1 | M151: руб. | Q151: учет | X151: 966,904 | AA151: 0 | AB151: 0 | AC151: 0 | AD151: 0 | AE151: 0 | AF151: 253 | AG151: 759 | AH151: 886 | AI151: 1,898 | AJ151: 2,024 | AK151: 2,657 | AL151: 3,542 | AM151: 4,175 | AN151: 4,681 | AO151: 5,313 | AP151: 6,467 | AQ151: 6,879 | AR151: 7,638 | AS151: 7,685 | AT151: 8,444 | AU151: 9,203 | AV151: 9,630 | AW151: 10,009 | AX151: 10,389 | AY151: 10,769 | AZ151: 10,816 | BA151: 11,954 | BB151: 11,954 | BC151: 12,713 | BD151: 12,713 | BE151: 13,140 | BF151: 13,140 | BG151: 13,520 | BH151: 14,279 | BI151: 14,658 | BJ151: 15,038 | BK151: 15,085 | BL151: 15,465 | BM151: 15,465 | BN151: 15,844 | BO151: 15,844 | BP151: 16,983 | BQ151: 16,983 | BR151: 17,410 | BS151: 17,410 | BT151: 17,789 | BU151: 17,789 | BV151: 18,169 | BW151: 18,169 | BX151: 18,548 | BY151: 19,307 | BZ151: 19,355 | CA151: 19,734 | CB151: 19,734 | CC151: 20,114 | CD151: 20,114 | CE151: 20,493 | CF151: 20,493 | CG151: 20,873 | CH151: 20,873 | CI151: 21,679 | CJ151: 21,679 | CK151: 22,059 | CL151: 22,059 | CM151: 22,438 | CN151: 22,438 | CO151: 22,818 | CP151: 22,818 | CQ151: 23,197 | CR151: 23,197 | CS151: 23,245 | CT151: 24,004 | CU151: 0
A152: 152 | G152: 0 | H152: Подготовка рекламных материалов | I152: Применяется процентное распределение трафика
A153: 153 | G153: 0 | H153: Подготовка рекламных материалов | I153: Применяется процентное распределение трафика | J153: %-ное распределение учета расходов | M153: % | Q153: процесс | T153: 0 | X153: 100.0% | AA153: 0.0% | AB153: 0.0% | AC153: 0.0% | AD153: 0.0% | AE153: 0.5% | AF153: 0.5% | AG153: 0.8% | AH153: 0.8% | AI153: 1.0% | AJ153: 1.0% | AK153: 1.3% | AL153: 1.3% | AM153: 1.5% | AN153: 1.5% | AO153: 1.5% | AP153: 1.5% | AQ153: 1.5% | AR153: 1.5% | AS153: 1.5% | AT153: 1.5% | AU153: 1.5% | AV153: 1.5% | AW153: 1.5% | AX153: 1.5% | AY153: 1.5% | AZ153: 1.5% | BA153: 1.5% | BB153: 1.5% | BC153: 1.5% | BD153: 1.5% | BE153: 1.5% | BF153: 1.5% | BG153: 1.5% | BH153: 1.5% | BI153: 1.5% | BJ153: 1.5% | BK153: 1.5% | BL153: 1.5% | BM153: 1.5% | BN153: 1.5% | BO153: 1.5% | BP153: 1.5% | BQ153: 1.5% | BR153: 1.5% | BS153: 1.5% | BT153: 1.5% | BU153: 1.5% | BV153: 1.5% | BW153: 1.5% | BX153: 1.5% | BY153: 1.5% | BZ153: 1.5% | CA153: 1.5% | CB153: 1.5% | CC153: 1.5% | CD153: 1.5% | CE153: 1.5% | CF153: 1.5% | CG153: 1.5% | CH153: 1.5% | CI153: 1.5% | CJ153: 1.5% | CK153: 1.5% | CL153: 1.5% | CM153: 1.5% | CN153: 1.5% | CO153: 1.5% | CP153: 1.5% | CQ153: 1.5% | CR153: 1.5% | CS153: 1.5% | CT153: 1.5% | CU153: 0.0%
A154: 154 | G154: 0 | H154: Подготовка рекламных материалов | I154: Применяется процентное распределение трафика | J154: обратный порядок распределения учета расхода | M154: руб. | T154: 0 | Y154: обратный порядок процесса | AA154: 0 | AB154: 775 | AC154: 775 | AD154: 775 | AE154: 775 | AF154: 775 | AG154: 775 | AH154: 775 | AI154: 775 | AJ154: 775 | AK154: 775 | AL154: 775 | AM154: 775 | AN154: 775 | AO154: 775 | AP154: 775 | AQ154: 775 | AR154: 775 | AS154: 775 | AT154: 775 | AU154: 775 | AV154: 775 | AW154: 775 | AX154: 775 | AY154: 775 | AZ154: 775 | BA154: 775 | BB154: 775 | BC154: 775 | BD154: 775 | BE154: 775 | BF154: 775 | BG154: 775 | BH154: 775 | BI154: 775 | BJ154: 775 | BK154: 775 | BL154: 775 | BM154: 775 | BN154: 775 | BO154: 775 | BP154: 775 | BQ154: 775 | BR154: 775 | BS154: 775 | BT154: 775 | BU154: 775 | BV154: 775 | BW154: 775 | BX154: 775 | BY154: 775 | BZ154: 775 | CA154: 775 | CB154: 775 | CC154: 775 | CD154: 775 | CE154: 775 | CF154: 775 | CG154: 775 | CH154: 759 | CI154: 759 | CJ154: 633 | CK154: 633 | CL154: 506 | CM154: 506 | CN154: 380 | CO154: 380 | CP154: 253 | CQ154: 253 | CR154: 0 | CS154: 0 | CT154: 0 | CU154: 0
A155: 155 | L155: пустая строка
A156: 156
A157: 157 | G157: 0 | H157: Съемка видео-роликов | L157: 1 | M157: руб. | Q157: начисление | X157: 660,000 | AA157: 0 | AB157: 0 | AC157: 20,000 | AD157: 40,000 | AE157: 0 | AF157: 60,000 | AG157: 0 | AH157: 0 | AI157: 60,000 | AJ157: 0 | AK157: 0 | AL157: 0 | AM157: 60,000 | AN157: 0 | AO157: 0 | AP157: 0 | AQ157: 0 | AR157: 60,000 | AS157: 0 | AT157: 0 | AU157: 0 | AV157: 0 | AW157: 0 | AX157: 60,000 | AY157: 0 | AZ157: 0 | BA157: 0 | BB157: 0 | BC157: 0 | BD157: 0 | BE157: 60,000 | BF157: 0 | BG157: 0 | BH157: 0 | BI157: 0 | BJ157: 0 | BK157: 0 | BL157: 0 | BM157: 60,000 | BN157: 0 | BO157: 0 | BP157: 0 | BQ157: 0 | BR157: 0 | BS157: 0 | BT157: 0 | BU157: 0 | BV157: 60,000 | BW157: 0 | BX157: 0 | BY157: 0 | BZ157: 0 | CA157: 0 | CB157: 0 | CC157: 0 | CD157: 0 | CE157: 0 | CF157: 60,000 | CG157: 0 | CH157: 0 | CI157: 0 | CJ157: 0 | CK157: 0 | CL157: 0 | CM157: 0 | CN157: 0 | CO157: 0 | CP157: 0 | CQ157: 60,000 | CR157: 0 | CS157: 0 | CT157: 0 | CU157: 0
A158: 158 | G158: 0 | H158: Съемка видео-роликов | I158: Распределение расхода для одного запуска | M158: руб. | Q158: процесс | T158: 0 | U158: 0 | X158: 20,000 | AA158: 0 | AB158: 20,000 | AC158: 0 | AD158: 0 | AE158: 0 | AF158: 0 | AG158: 0 | AH158: 0 | AI158: 0 | AJ158: 0 | AK158: 0 | AL158: 0 | AM158: 0 | AN158: 0 | AO158: 0 | AP158: 0 | AQ158: 0 | AR158: 0 | AS158: 0 | AT158: 0 | AU158: 0 | AV158: 0 | AW158: 0 | AX158: 0 | AY158: 0 | AZ158: 0 | BA158: 0 | BB158: 0 | BC158: 0 | BD158: 0 | BE158: 0 | BF158: 0 | BG158: 0 | BH158: 0 | BI158: 0 | BJ158: 0 | BK158: 0 | BL158: 0 | BM158: 0 | BN158: 0 | BO158: 0 | BP158: 0 | BQ158: 0 | BR158: 0 | BS158: 0 | BT158: 0 | BU158: 0 | BV158: 0 | BW158: 0 | BX158: 0 | BY158: 0 | BZ158: 0 | CA158: 0 | CB158: 0 | CC158: 0 | CD158: 0 | CE158: 0 | CF158: 0 | CG158: 0 | CH158: 0 | CI158: 0 | CJ158: 0 | CK158: 0 | CL158: 0 | CM158: 0 | CN158: 0 | CO158: 0 | CP158: 0 | CQ158: 0 | CR158: 0 | CS158: 0 | CT158: 0 | CU158: 0
A159: 159 | G159: 0 | H159: Съемка видео-роликов | I159: Распределение расхода для одного запуска | J159: Сумма расхода для одного запуска по этой статье | M159: руб. | P159: * | Q159: 20,000 | S159: 0 | Y159: обратное распределение расхода | AA159: 0 | AB159: 0 | AC159: 0 | AD159: 0 | AE159: 0 | AF159: 0 | AG159: 0 | AH159: 0 | AI159: 0 | AJ159: 0 | AK159: 0 | AL159: 0 | AM159: 0 | AN159: 0 | AO159: 0 | AP159: 0 | AQ159: 0 | AR159: 0 | AS159: 0 | AT159: 0 | AU159: 0 | AV159: 0 | AW159: 0 | AX159: 0 | AY159: 0 | AZ159: 0 | BA159: 0 | BB159: 0 | BC159: 0 | BD159: 0 | BE159: 0 | BF159: 0 | BG159: 0 | BH159: 0 | BI159: 0 | BJ159: 0 | BK159: 0 | BL159: 0 | BM159: 0 | BN159: 0 | BO159: 0 | BP159: 0 | BQ159: 0 | BR159: 0 | BS159: 0 | BT159: 0 | BU159: 0 | BV159: 0 | BW159: 0 | BX159: 0 | BY159: 0 | BZ159: 0 | CA159: 0 | CB159: 0 | CC159: 0 | CD159: 0 | CE159: 0 | CF159: 0 | CG159: 0 | CH159: 0 | CI159: 0 | CJ159: 0 | CK159: 0 | CL159: 0 | CM159: 0 | CN159: 0 | CO159: 0 | CP159: 0 | CQ159: 0 | CR159: 0 | CS159: 0 | CT159: 20,000 | CU159: 0
A160: 160 | G160: 0 | H160: Съемка видео-роликов | I160: Распределение расхода для одного запуска | J160: Процентное распределение расхода по периодам | M160: % | T160: 0 | X160: 100.00% | Y160: * | AA160: 0.00% | AB160: 100.00%
A161: 161
A162: 162 | G162: 0 | H162: Съемка видео-роликов | L162: 1 | M162: руб. | Q162: оплата | X162: 660,000 | AA162: 0 | AB162: 2,000 | AC162: 8,000 | AD162: 22,000 | AE162: 34,000 | AF162: 12,000 | AG162: 42,000 | AH162: 6,000 | AI162: 12,000 | AJ162: 42,000 | AK162: 0 | AL162: 6,000 | AM162: 12,000 | AN162: 42,000 | AO162: 0 | AP162: 0 | AQ162: 6,000 | AR162: 12,000 | AS162: 42,000 | AT162: 0 | AU162: 0 | AV162: 0 | AW162: 6,000 | AX162: 12,000 | AY162: 42,000 | AZ162: 0 | BA162: 0 | BB162: 0 | BC162: 0 | BD162: 6,000 | BE162: 12,000 | BF162: 42,000 | BG162: 0 | BH162: 0 | BI162: 0 | BJ162: 0 | BK162: 0 | BL162: 6,000 | BM162: 12,000 | BN162: 42,000 | BO162: 0 | BP162: 0 | BQ162: 0 | BR162: 0 | BS162: 0 | BT162: 0 | BU162: 6,000 | BV162: 12,000 | BW162: 42,000 | BX162: 0 | BY162: 0 | BZ162: 0 | CA162: 0 | CB162: 0 | CC162: 0 | CD162: 0 | CE162: 6,000 | CF162: 12,000 | CG162: 42,000 | CH162: 0 | CI162: 0 | CJ162: 0 | CK162: 0 | CL162: 0 | CM162: 0 | CN162: 0 | CO162: 0 | CP162: 6,000 | CQ162: 12,000 | CR162: 42,000 | CS162: 0 | CT162: 0 | CU162: 0
A163: 163 | G163: 0 | H163: Съемка видео-роликов | I163: Задаем через указание % предоплаты и сроков
A164: 164 | G164: 0 | H164: Съемка видео-роликов | I164: Задаем через указание % предоплаты и сроков | J164: Размер предоплаты | M164: % | P164: * | Q164: 30.0% | S164: 0
A165: 165 | G165: 0 | H165: Съемка видео-роликов | I165: Задаем через указание % предоплаты и сроков | J165: Период оборачиваемости предоплаты (срок) | M165: кол-во дней | P165: * | Q165: 10 | S165: 0
A166: 166 | G166: 0 | H166: Съемка видео-роликов | I166: Задаем через указание % предоплаты и сроков | J166: расчет в количестве периодов | M166: кол-во периодов | Q166: 0.3 | S166: 0 | T166: 0
A167: 167 | G167: 0 | H167: Съемка видео-роликов | I167: Задаем через указание % предоплаты и сроков | J167: Размер доплаты | M167: % | Q167: 70.0% | S167: 0 | T167: 0
A168: 168 | G168: 0 | H168: Съемка видео-роликов | I168: Задаем через указание % предоплаты и сроков | J168: Период оборачиваемости доплат (срок) | M168: кол-во дней | P168: * | Q168: 30 | S168: 0
A169: 169 | G169: 0 | H169: Съемка видео-роликов | I169: Задаем через указание % предоплаты и сроков | J169: расчет в количестве периодов | M169: кол-во периодов | Q169: 1.0 | S169: 0 | T169: 0
A170: 170
A171: 171 | G171: 0 | H171: Съемка видео-роликов | L171: 1 | M171: руб. | Q171: учет | X171: 386,762 | AA171: 0 | AB171: 0 | AC171: 0 | AD171: 0 | AE171: 0 | AF171: 101 | AG171: 304 | AH171: 354 | AI171: 759 | AJ171: 810 | AK171: 1,063 | AL171: 1,417 | AM171: 1,670 | AN171: 1,872 | AO171: 2,125 | AP171: 2,587 | AQ171: 2,751 | AR171: 3,055 | AS171: 3,074 | AT171: 3,378 | AU171: 3,681 | AV171: 3,852 | AW171: 4,004 | AX171: 4,156 | AY171: 4,307 | AZ171: 4,326 | BA171: 4,782 | BB171: 4,782 | BC171: 5,085 | BD171: 5,085 | BE171: 5,256 | BF171: 5,256 | BG171: 5,408 | BH171: 5,712 | BI171: 5,863 | BJ171: 6,015 | BK171: 6,034 | BL171: 6,186 | BM171: 6,186 | BN171: 6,338 | BO171: 6,338 | BP171: 6,793 | BQ171: 6,793 | BR171: 6,964 | BS171: 6,964 | BT171: 7,116 | BU171: 7,116 | BV171: 7,268 | BW171: 7,268 | BX171: 7,419 | BY171: 7,723 | BZ171: 7,742 | CA171: 7,894 | CB171: 7,894 | CC171: 8,046 | CD171: 8,046 | CE171: 8,197 | CF171: 8,197 | CG171: 8,349 | CH171: 8,349 | CI171: 8,672 | CJ171: 8,672 | CK171: 8,824 | CL171: 8,824 | CM171: 8,975 | CN171: 8,975 | CO171: 9,127 | CP171: 9,127 | CQ171: 9,279 | CR171: 9,279 | CS171: 9,298 | CT171: 9,602 | CU171: 0
A172: 172 | G172: 0 | H172: Съемка видео-роликов | I172: Применяется процентное распределение трафика
A173: 173 | G173: 0 | H173: Съемка видео-роликов | I173: Применяется процентное распределение трафика | J173: %-ное распределение учета расходов | M173: % | Q173: процесс | T173: 0 | X173: 100.0% | AA173: 0.0% | AB173: 0.0% | AC173: 0.0% | AD173: 0.0% | AE173: 0.5% | AF173: 0.5% | AG173: 0.8% | AH173: 0.8% | AI173: 1.0% | AJ173: 1.0% | AK173: 1.3% | AL173: 1.3% | AM173: 1.5% | AN173: 1.5% | AO173: 1.5% | AP173: 1.5% | AQ173: 1.5% | AR173: 1.5% | AS173: 1.5% | AT173: 1.5% | AU173: 1.5% | AV173: 1.5% | AW173: 1.5% | AX173: 1.5% | AY173: 1.5% | AZ173: 1.5% | BA173: 1.5% | BB173: 1.5% | BC173: 1.5% | BD173: 1.5% | BE173: 1.5% | BF173: 1.5% | BG173: 1.5% | BH173: 1.5% | BI173: 1.5% | BJ173: 1.5% | BK173: 1.5% | BL173: 1.5% | BM173: 1.5% | BN173: 1.5% | BO173: 1.5% | BP173: 1.5% | BQ173: 1.5% | BR173: 1.5% | BS173: 1.5% | BT173: 1.5% | BU173: 1.5% | BV173: 1.5% | BW173: 1.5% | BX173: 1.5% | BY173: 1.5% | BZ173: 1.5% | CA173: 1.5% | CB173: 1.5% | CC173: 1.5% | CD173: 1.5% | CE173: 1.5% | CF173: 1.5% | CG173: 1.5% | CH173: 1.5% | CI173: 1.5% | CJ173: 1.5% | CK173: 1.5% | CL173: 1.5% | CM173: 1.5% | CN173: 1.5% | CO173: 1.5% | CP173: 1.5% | CQ173: 1.5% | CR173: 1.5% | CS173: 1.5% | CT173: 1.5% | CU173: 0.0%
A174: 174 | G174: 0 | H174: Съемка видео-роликов | I174: Применяется процентное распределение трафика | J174: обратный порядок распределения учета расхода | M174: руб. | T174: 0 | Y174: обратный порядок процесса | AA174: 0 | AB174: 310 | AC174: 310 | AD174: 310 | AE174: 310 | AF174: 310 | AG174: 310 | AH174: 310 | AI174: 310 | AJ174: 310 | AK174: 310 | AL174: 310 | AM174: 310 | AN174: 310 | AO174: 310 | AP174: 310 | AQ174: 310 | AR174: 310 | AS174: 310 | AT174: 310 | AU174: 310 | AV174: 310 | AW174: 310 | AX174: 310 | AY174: 310 | AZ174: 310 | BA174: 310 | BB174: 310 | BC174: 310 | BD174: 310 | BE174: 310 | BF174: 310 | BG174: 310 | BH174: 310 | BI174: 310 | BJ174: 310 | BK174: 310 | BL174: 310 | BM174: 310 | BN174: 310 | BO174: 310 | BP174: 310 | BQ174: 310 | BR174: 310 | BS174: 310 | BT174: 310 | BU174: 310 | BV174: 310 | BW174: 310 | BX174: 310 | BY174: 310 | BZ174: 310 | CA174: 310 | CB174: 310 | CC174: 310 | CD174: 310 | CE174: 310 | CF174: 310 | CG174: 310 | CH174: 304 | CI174: 304 | CJ174: 253 | CK174: 253 | CL174: 202 | CM174: 202 | CN174: 152 | CO174: 152 | CP174: 101 | CQ174: 101 | CR174: 0 | CS174: 0 | CT174: 0 | CU174: 0
A175: 175 | L175: пустая строка
A176: 176
A177: 177 | G177: 0 | H177: Аутсорсинг внешних исполнителей | L177: 1 | M177: руб. | Q177: начисление | X177: 1,650,000 | AA177: 0 | AB177: 15,000 | AC177: 60,000 | AD177: 65,000 | AE177: 55,000 | AF177: 90,000 | AG177: 15,000 | AH177: 45,000 | AI177: 90,000 | AJ177: 15,000 | AK177: 0 | AL177: 45,000 | AM177: 90,000 | AN177: 15,000 | AO177: 0 | AP177: 0 | AQ177: 45,000 | AR177: 90,000 | AS177: 15,000 | AT177: 0 | AU177: 0 | AV177: 0 | AW177: 45,000 | AX177: 90,000 | AY177: 15,000 | AZ177: 0 | BA177: 0 | BB177: 0 | BC177: 0 | BD177: 45,000 | BE177: 90,000 | BF177: 15,000 | BG177: 0 | BH177: 0 | BI177: 0 | BJ177: 0 | BK177: 0 | BL177: 45,000 | BM177: 90,000 | BN177: 15,000 | BO177: 0 | BP177: 0 | BQ177: 0 | BR177: 0 | BS177: 0 | BT177: 0 | BU177: 45,000 | BV177: 90,000 | BW177: 15,000 | BX177: 0 | BY177: 0 | BZ177: 0 | CA177: 0 | CB177: 0 | CC177: 0 | CD177: 0 | CE177: 45,000 | CF177: 90,000 | CG177: 15,000 | CH177: 0 | CI177: 0 | CJ177: 0 | CK177: 0 | CL177: 0 | CM177: 0 | CN177: 0 | CO177: 0 | CP177: 45,000 | CQ177: 90,000 | CR177: 15,000 | CS177: 0 | CT177: 0 | CU177: 0
A178: 178 | G178: 0 | H178: Аутсорсинг внешних исполнителей | I178: Распределение расхода для одного запуска | M178: руб. | Q178: процесс | T178: 0 | U178: 0 | X178: 50,000 | AA178: 15,000 | AB178: 30,000 | AC178: 5,000 | AD178: 0 | AE178: 0 | AF178: 0 | AG178: 0 | AH178: 0 | AI178: 0 | AJ178: 0 | AK178: 0 | AL178: 0 | AM178: 0 | AN178: 0 | AO178: 0 | AP178: 0 | AQ178: 0 | AR178: 0 | AS178: 0 | AT178: 0 | AU178: 0 | AV178: 0 | AW178: 0 | AX178: 0 | AY178: 0 | AZ178: 0 | BA178: 0 | BB178: 0 | BC178: 0 | BD178: 0 | BE178: 0 | BF178: 0 | BG178: 0 | BH178: 0 | BI178: 0 | BJ178: 0 | BK178: 0 | BL178: 0 | BM178: 0 | BN178: 0 | BO178: 0 | BP178: 0 | BQ178: 0 | BR178: 0 | BS178: 0 | BT178: 0 | BU178: 0 | BV178: 0 | BW178: 0 | BX178: 0 | BY178: 0 | BZ178: 0 | CA178: 0 | CB178: 0 | CC178: 0 | CD178: 0 | CE178: 0 | CF178: 0 | CG178: 0 | CH178: 0 | CI178: 0 | CJ178: 0 | CK178: 0 | CL178: 0 | CM178: 0 | CN178: 0 | CO178: 0 | CP178: 0 | CQ178: 0 | CR178: 0 | CS178: 0 | CT178: 0 | CU178: 0
A179: 179 | G179: 0 | H179: Аутсорсинг внешних исполнителей | I179: Распределение расхода для одного запуска | J179: Сумма расхода для одного запуска по этой статье | M179: руб. | P179: * | Q179: 50,000 | S179: 0 | Y179: обратное распределение расхода | AA179: 0 | AB179: 0 | AC179: 0 | AD179: 0 | AE179: 0 | AF179: 0 | AG179: 0 | AH179: 0 | AI179: 0 | AJ179: 0 | AK179: 0 | AL179: 0 | AM179: 0 | AN179: 0 | AO179: 0 | AP179: 0 | AQ179: 0 | AR179: 0 | AS179: 0 | AT179: 0 | AU179: 0 | AV179: 0 | AW179: 0 | AX179: 0 | AY179: 0 | AZ179: 0 | BA179: 0 | BB179: 0 | BC179: 0 | BD179: 0 | BE179: 0 | BF179: 0 | BG179: 0 | BH179: 0 | BI179: 0 | BJ179: 0 | BK179: 0 | BL179: 0 | BM179: 0 | BN179: 0 | BO179: 0 | BP179: 0 | BQ179: 0 | BR179: 0 | BS179: 0 | BT179: 0 | BU179: 0 | BV179: 0 | BW179: 0 | BX179: 0 | BY179: 0 | BZ179: 0 | CA179: 0 | CB179: 0 | CC179: 0 | CD179: 0 | CE179: 0 | CF179: 0 | CG179: 0 | CH179: 0 | CI179: 0 | CJ179: 0 | CK179: 0 | CL179: 0 | CM179: 0 | CN179: 0 | CO179: 0 | CP179: 0 | CQ179: 0 | CR179: 0 | CS179: 5,000 | CT179: 30,000 | CU179: 15,000
A180: 180 | G180: 0 | H180: Аутсорсинг внешних исполнителей | I180: Распределение расхода для одного запуска | J180: Процентное распределение расхода по периодам | M180: % | T180: 0 | X180: 100.00% | Y180: * | AA180: 30.00% | AB180: 60.00% | AC180: 10.00%
A181: 181
A182: 182 | G182: 0 | H182: Аутсорсинг внешних исполнителей | L182: 1 | M182: руб. | Q182: оплата | X182: 1,650,000 | AA182: 1,500 | AB182: 9,000 | AC182: 29,000 | AD182: 60,500 | AE182: 65,500 | AF182: 58,000 | AG182: 70,500 | AH182: 28,500 | AI182: 51,000 | AJ182: 66,000 | AK182: 15,000 | AL182: 18,000 | AM182: 51,000 | AN182: 66,000 | AO182: 10,500 | AP182: 4,500 | AQ182: 18,000 | AR182: 51,000 | AS182: 66,000 | AT182: 10,500 | AU182: 0 | AV182: 4,500 | AW182: 18,000 | AX182: 51,000 | AY182: 66,000 | AZ182: 10,500 | BA182: 0 | BB182: 0 | BC182: 4,500 | BD182: 18,000 | BE182: 51,000 | BF182: 66,000 | BG182: 10,500 | BH182: 0 | BI182: 0 | BJ182: 0 | BK182: 4,500 | BL182: 18,000 | BM182: 51,000 | BN182: 66,000 | BO182: 10,500 | BP182: 0 | BQ182: 0 | BR182: 0 | BS182: 0 | BT182: 4,500 | BU182: 18,000 | BV182: 51,000 | BW182: 66,000 | BX182: 10,500 | BY182: 0 | BZ182: 0 | CA182: 0 | CB182: 0 | CC182: 0 | CD182: 4,500 | CE182: 18,000 | CF182: 51,000 | CG182: 66,000 | CH182: 10,500 | CI182: 0 | CJ182: 0 | CK182: 0 | CL182: 0 | CM182: 0 | CN182: 0 | CO182: 4,500 | CP182: 18,000 | CQ182: 51,000 | CR182: 66,000 | CS182: 10,500 | CT182: 0 | CU182: 0
A183: 183 | G183: 0 | H183: Аутсорсинг внешних исполнителей | I183: Задаем через указание % предоплаты и сроков
A184: 184 | G184: 0 | H184: Аутсорсинг внешних исполнителей | I184: Задаем через указание % предоплаты и сроков | J184: Размер предоплаты | M184: % | P184: * | Q184: 30.0% | S184: 0
A185: 185 | G185: 0 | H185: Аутсорсинг внешних исполнителей | I185: Задаем через указание % предоплаты и сроков | J185: Период оборачиваемости предоплаты (срок) | M185: кол-во дней | P185: * | Q185: 10 | S185: 0
A186: 186 | G186: 0 | H186: Аутсорсинг внешних исполнителей | I186: Задаем через указание % предоплаты и сроков | J186: расчет в количестве периодов | M186: кол-во периодов | Q186: 0.3 | S186: 0 | T186: 0
A187: 187 | G187: 0 | H187: Аутсорсинг внешних исполнителей | I187: Задаем через указание % предоплаты и сроков | J187: Размер доплаты | M187: % | Q187: 70.0% | S187: 0 | T187: 0
A188: 188 | G188: 0 | H188: Аутсорсинг внешних исполнителей | I188: Задаем через указание % предоплаты и сроков | J188: Период оборачиваемости доплат (срок) | M188: кол-во дней | P188: * | Q188: 30 | S188: 0
A189: 189 | G189: 0 | H189: Аутсорсинг внешних исполнителей | I189: Задаем через указание % предоплаты и сроков | J189: расчет в количестве периодов | M189: кол-во периодов | Q189: 1.0 | S189: 0 | T189: 0
A190: 190
A191: 191 | G191: 0 | H191: Аутсорсинг внешних исполнителей | L191: 1 | M191: руб. | Q191: учет | X191: 966,904 | AA191: 0 | AB191: 0 | AC191: 0 | AD191: 0 | AE191: 0 | AF191: 253 | AG191: 759 | AH191: 886 | AI191: 1,898 | AJ191: 2,024 | AK191: 2,657 | AL191: 3,542 | AM191: 4,175 | AN191: 4,681 | AO191: 5,313 | AP191: 6,467 | AQ191: 6,879 | AR191: 7,638 | AS191: 7,685 | AT191: 8,444 | AU191: 9,203 | AV191: 9,630 | AW191: 10,009 | AX191: 10,389 | AY191: 10,769 | AZ191: 10,816 | BA191: 11,954 | BB191: 11,954 | BC191: 12,713 | BD191: 12,713 | BE191: 13,140 | BF191: 13,140 | BG191: 13,520 | BH191: 14,279 | BI191: 14,658 | BJ191: 15,038 | BK191: 15,085 | BL191: 15,465 | BM191: 15,465 | BN191: 15,844 | BO191: 15,844 | BP191: 16,983 | BQ191: 16,983 | BR191: 17,410 | BS191: 17,410 | BT191: 17,789 | BU191: 17,789 | BV191: 18,169 | BW191: 18,169 | BX191: 18,548 | BY191: 19,307 | BZ191: 19,355 | CA191: 19,734 | CB191: 19,734 | CC191: 20,114 | CD191: 20,114 | CE191: 20,493 | CF191: 20,493 | CG191: 20,873 | CH191: 20,873 | CI191: 21,679 | CJ191: 21,679 | CK191: 22,059 | CL191: 22,059 | CM191: 22,438 | CN191: 22,438 | CO191: 22,818 | CP191: 22,818 | CQ191: 23,197 | CR191: 23,197 | CS191: 23,245 | CT191: 24,004 | CU191: 0
A192: 192 | G192: 0 | H192: Аутсорсинг внешних исполнителей | I192: Применяется процентное распределение трафика
A193: 193 | G193: 0 | H193: Аутсорсинг внешних исполнителей | I193: Применяется процентное распределение трафика | J193: %-ное распределение учета расходов | M193: % | Q193: процесс | T193: 0 | X193: 100.0% | AA193: 0.0% | AB193: 0.0% | AC193: 0.0% | AD193: 0.0% | AE193: 0.5% | AF193: 0.5% | AG193: 0.8% | AH193: 0.8% | AI193: 1.0% | AJ193: 1.0% | AK193: 1.3% | AL193: 1.3% | AM193: 1.5% | AN193: 1.5% | AO193: 1.5% | AP193: 1.5% | AQ193: 1.5% | AR193: 1.5% | AS193: 1.5% | AT193: 1.5% | AU193: 1.5% | AV193: 1.5% | AW193: 1.5% | AX193: 1.5% | AY193: 1.5% | AZ193: 1.5% | BA193: 1.5% | BB193: 1.5% | BC193: 1.5% | BD193: 1.5% | BE193: 1.5% | BF193: 1.5% | BG193: 1.5% | BH193: 1.5% | BI193: 1.5% | BJ193: 1.5% | BK193: 1.5% | BL193: 1.5% | BM193: 1.5% | BN193: 1.5% | BO193: 1.5% | BP193: 1.5% | BQ193: 1.5% | BR193: 1.5% | BS193: 1.5% | BT193: 1.5% | BU193: 1.5% | BV193: 1.5% | BW193: 1.5% | BX193: 1.5% | BY193: 1.5% | BZ193: 1.5% | CA193: 1.5% | CB193: 1.5% | CC193: 1.5% | CD193: 1.5% | CE193: 1.5% | CF193: 1.5% | CG193: 1.5% | CH193: 1.5% | CI193: 1.5% | CJ193: 1.5% | CK193: 1.5% | CL193: 1.5% | CM193: 1.5% | CN193: 1.5% | CO193: 1.5% | CP193: 1.5% | CQ193: 1.5% | CR193: 1.5% | CS193: 1.5% | CT193: 1.5% | CU193: 0.0%
A194: 194 | G194: 0 | H194: Аутсорсинг внешних исполнителей | I194: Применяется процентное распределение трафика | J194: обратный порядок распределения учета расхода | M194: руб. | T194: 0 | Y194: обратный порядок процесса | AA194: 0 | AB194: 775 | AC194: 775 | AD194: 775 | AE194: 775 | AF194: 775 | AG194: 775 | AH194: 775 | AI194: 775 | AJ194: 775 | AK194: 775 | AL194: 775 | AM194: 775 | AN194: 775 | AO194: 775 | AP194: 775 | AQ194: 775 | AR194: 775 | AS194: 775 | AT194: 775 | AU194: 775 | AV194: 775 | AW194: 775 | AX194: 775 | AY194: 775 | AZ194: 775 | BA194: 775 | BB194: 775 | BC194: 775 | BD194: 775 | BE194: 775 | BF194: 775 | BG194: 775 | BH194: 775 | BI194: 775 | BJ194: 775 | BK194: 775 | BL194: 775 | BM194: 775 | BN194: 775 | BO194: 775 | BP194: 775 | BQ194: 775 | BR194: 775 | BS194: 775 | BT194: 775 | BU194: 775 | BV194: 775 | BW194: 775 | BX194: 775 | BY194: 775 | BZ194: 775 | CA194: 775 | CB194: 775 | CC194: 775 | CD194: 775 | CE194: 775 | CF194: 775 | CG194: 775 | CH194: 759 | CI194: 759 | CJ194: 633 | CK194: 633 | CL194: 506 | CM194: 506 | CN194: 380 | CO194: 380 | CP194: 253 | CQ194: 253 | CR194: 0 | CS194: 0 | CT194: 0 | CU194: 0
A195: 195 | L195: пустая строка
A196: 196
A197: 197 | G197: 0 | H197: Представительские расходы | L197: 1 | M197: руб. | Q197: начисление | X197: 13,140,913 | AA197: 0 | AB197: 0 | AC197: 0 | AD197: 0 | AE197: 0 | AF197: 4,000 | AG197: 6,000 | AH197: 9,800 | AI197: 30,000 | AJ197: 28,800 | AK197: 33,600 | AL197: 50,400 | AM197: 62,700 | AN197: 74,000 | AO197: 84,000 | AP197: 92,025 | AQ197: 76,125 | AR197: 120,750 | AS197: 60,750 | AT197: 93,450 | AU197: 145,500 | AV197: 137,025 | AW197: 126,600 | AX197: 147,825 | AY197: 161,738 | AZ197: 171,000 | BA197: 189,000 | BB197: 170,100 | BC197: 140,700 | BD197: 201,000 | BE197: 103,875 | BF197: 145,425 | BG197: 213,750 | BH197: 203,175 | BI197: 185,400 | BJ197: 213,975 | BK197: 226,575 | BL197: 244,500 | BM197: 244,500 | BN197: 225,450 | BO197: 175,350 | BP197: 268,500 | BQ197: 134,250 | BR197: 192,675 | BS197: 275,250 | BT197: 253,125 | BU197: 225,000 | BV197: 258,525 | BW197: 272,888 | BX197: 293,250 | BY197: 305,250 | BZ197: 275,400 | CA197: 218,400 | CB197: 312,000 | CC197: 159,000 | CD197: 222,600 | CE197: 324,000 | CF197: 291,600 | CG197: 264,000 | CH197: 297,000 | CI197: 325,613 | CJ197: 342,750 | CK197: 348,750 | CL197: 313,875 | CM197: 248,325 | CN197: 354,750 | CO197: 180,375 | CP197: 252,525 | CQ197: 366,750 | CR197: 330,075 | CS197: 294,000 | CT197: 341,550 | CU197: 0
A198: 198 | G198: 0 | H198: тип зависимости переменных расходов | I198: Выбираем тип зависимости переменных расходов | P198: * | Q198: натуральные факторы | R198: ^ | S198: 0
A199: 199 | G199: 0 | H199: натуральные факторы переменных расходов маркетинга | I199: Выбираем показатель (фактор) зависимости | P199: * | Q199: Трафик | R199: ^ | S199: 0
A200: 200 | G200: 0 | H200: Представительские расходы | I200: Норматив расхода на единицу фактора | M200: руб. | P200: * | Q200: 10.0000 | S200: 0
... 389 more rows

Sheet CapEx
Y1: номер столбца: | AA1: 27 | AB1: 28 | AC1: 29 | AD1: 30 | AE1: 31 | AF1: 32 | AG1: 33 | AH1: 34 | AI1: 35 | AJ1: 36 | AK1: 37 | AL1: 38 | AM1: 39 | AN1: 40 | AO1: 41 | AP1: 42 | AQ1: 43 | AR1: 44 | AS1: 45 | AT1: 46 | AU1: 47 | AV1: 48 | AW1: 49 | AX1: 50 | AY1: 51 | AZ1: 52 | BA1: 53 | BB1: 54 | BC1: 55 | BD1: 56 | BE1: 57 | BF1: 58 | BG1: 59 | BH1: 60 | BI1: 61 | BJ1: 62 | BK1: 63 | BL1: 64 | BM1: 65 | BN1: 66 | BO1: 67 | BP1: 68 | BQ1: 69 | BR1: 70 | BS1: 71 | BT1: 72 | BU1: 73 | BV1: 74 | BW1: 75 | BX1: 76 | BY1: 77 | BZ1: 78 | CA1: 79 | CB1: 80 | CC1: 81 | CD1: 82 | CE1: 83 | CF1: 84 | CG1: 85 | CH1: 86 | CI1: 87 | CJ1: 88 | CK1: 89 | CL1: 90 | CM1: 91 | CN1: 92 | CO1: 93 | CP1: 94 | CQ1: 95 | CR1: 96 | CS1: 97 | CT1: 98 | CU1: 99
Y2: номер периода модели: | AA2: 1 | AB2: 2 | AC2: 3 | AD2: 4 | AE2: 5 | AF2: 6 | AG2: 7 | AH2: 8 | AI2: 9 | AJ2: 10 | AK2: 11 | AL2: 12 | AM2: 13 | AN2: 14 | AO2: 15 | AP2: 16 | AQ2: 17 | AR2: 18 | AS2: 19 | AT2: 20 | AU2: 21 | AV2: 22 | AW2: 23 | AX2: 24 | AY2: 25 | AZ2: 26 | BA2: 27 | BB2: 28 | BC2: 29 | BD2: 30 | BE2: 31 | BF2: 32 | BG2: 33 | BH2: 34 | BI2: 35 | BJ2: 36 | BK2: 37 | BL2: 38 | BM2: 39 | BN2: 40 | BO2: 41 | BP2: 42 | BQ2: 43 | BR2: 44 | BS2: 45 | BT2: 46 | BU2: 47 | BV2: 48 | BW2: 49 | BX2: 50 | BY2: 51 | BZ2: 52 | CA2: 53 | CB2: 54 | CC2: 55 | CD2: 56 | CE2: 57 | CF2: 58 | CG2: 59 | CH2: 60 | CI2: 61 | CJ2: 62 | CK2: 63 | CL2: 64 | CM2: 65 | CN2: 66 | CO2: 67 | CP2: 68 | CQ2: 69 | CR2: 70 | CS2: 71 | CT2: 72 | CU2: 73
Y3: номер факт-периода:
Y4: номер план-периода: | AA4: 1 | AB4: 2 | AC4: 3 | AD4: 4 | AE4: 5 | AF4: 6 | AG4: 7 | AH4: 8 | AI4: 9 | AJ4: 10 | AK4: 11 | AL4: 12 | AM4: 13 | AN4: 14 | AO4: 15 | AP4: 16 | AQ4: 17 | AR4: 18 | AS4: 19 | AT4: 20 | AU4: 21 | AV4: 22 | AW4: 23 | AX4: 24 | AY4: 25 | AZ4: 26 | BA4: 27 | BB4: 28 | BC4: 29 | BD4: 30 | BE4: 31 | BF4: 32 | BG4: 33 | BH4: 34 | BI4: 35 | BJ4: 36 | BK4: 37 | BL4: 38 | BM4: 39 | BN4: 40 | BO4: 41 | BP4: 42 | BQ4: 43 | BR4: 44 | BS4: 45 | BT4: 46 | BU4: 47 | BV4: 48 | BW4: 49 | BX4: 50 | BY4: 51 | BZ4: 52 | CA4: 53 | CB4: 54 | CC4: 55 | CD4: 56 | CE4: 57 | CF4: 58 | CG4: 59 | CH4: 60 | CI4: 61 | CJ4: 62 | CK4: 63 | CL4: 64 | CM4: 65 | CN4: 66 | CO4: 67 | CP4: 68 | CQ4: 69 | CR4: 70 | CS4: 71 | CT4: 72
Y5: число даты начала: | AA5: 1 | AB5: 1 | AC5: 1 | AD5: 1 | AE5: 1 | AF5: 1 | AG5: 1 | AH5: 1 | AI5: 1 | AJ5: 1 | AK5: 1 | AL5: 1 | AM5: 1 | AN5: 1 | AO5: 1 | AP5: 1 | AQ5: 1 | AR5: 1 | AS5: 1 | AT5: 1 | AU5: 1 | AV5: 1 | AW5: 1 | AX5: 1 | AY5: 1 | AZ5: 1 | BA5: 1 | BB5: 1 | BC5: 1 | BD5: 1 | BE5: 1 | BF5: 1 | BG5: 1 | BH5: 1 | BI5: 1 | BJ5: 1 | BK5: 1 | BL5: 1 | BM5: 1 | BN5: 1 | BO5: 1 | BP5: 1 | BQ5: 1 | BR5: 1 | BS5: 1 | BT5: 1 | BU5: 1 | BV5: 1 | BW5: 1 | BX5: 1 | BY5: 1 | BZ5: 1 | CA5: 1 | CB5: 1 | CC5: 1 | CD5: 1 | CE5: 1 | CF5: 1 | CG5: 1 | CH5: 1 | CI5: 1 | CJ5: 1 | CK5: 1 | CL5: 1 | CM5: 1 | CN5: 1 | CO5: 1 | CP5: 1 | CQ5: 1 | CR5: 1 | CS5: 1 | CT5: 1
Y6: номер месяца даты начала: | AA6: 7 | AB6: 8 | AC6: 9 | AD6: 10 | AE6: 11 | AF6: 12 | AG6: 1 | AH6: 2 | AI6: 3 | AJ6: 4 | AK6: 5 | AL6: 6 | AM6: 7 | AN6: 8 | AO6: 9 | AP6: 10 | AQ6: 11 | AR6: 12 | AS6: 1 | AT6: 2 | AU6: 3 | AV6: 4 | AW6: 5 | AX6: 6 | AY6: 7 | AZ6: 8 | BA6: 9 | BB6: 10 | BC6: 11 | BD6: 12 | BE6: 1 | BF6: 2 | BG6: 3 | BH6: 4 | BI6: 5 | BJ6: 6 | BK6: 7 | BL6: 8 | BM6: 9 | BN6: 10 | BO6: 11 | BP6: 12 | BQ6: 1 | BR6: 2 | BS6: 3 | BT6: 4 | BU6: 5 | BV6: 6 | BW6: 7 | BX6: 8 | BY6: 9 | BZ6: 10 | CA6: 11 | CB6: 12 | CC6: 1 | CD6: 2 | CE6: 3 | CF6: 4 | CG6: 5 | CH6: 6 | CI6: 7 | CJ6: 8 | CK6: 9 | CL6: 10 | CM6: 11 | CN6: 12 | CO6: 1 | CP6: 2 | CQ6: 3 | CR6: 4 | CS6: 5 | CT6: 6
Y7: год даты начала: | AA7: 21 | AB7: 21 | AC7: 21 | AD7: 21 | AE7: 21 | AF7: 21 | AG7: 22 | AH7: 22 | AI7: 22 | AJ7: 22 | AK7: 22 | AL7: 22 | AM7: 22 | AN7: 22 | AO7: 22 | AP7: 22 | AQ7: 22 | AR7: 22 | AS7: 23 | AT7: 23 | AU7: 23 | AV7: 23 | AW7: 23 | AX7: 23 | AY7: 23 | AZ7: 23 | BA7: 23 | BB7: 23 | BC7: 23 | BD7: 23 | BE7: 24 | BF7: 24 | BG7: 24 | BH7: 24 | BI7: 24 | BJ7: 24 | BK7: 24 | BL7: 24 | BM7: 24 | BN7: 24 | BO7: 24 | BP7: 24 | BQ7: 25 | BR7: 25 | BS7: 25 | BT7: 25 | BU7: 25 | BV7: 25 | BW7: 25 | BX7: 25 | BY7: 25 | BZ7: 25 | CA7: 25 | CB7: 25 | CC7: 26 | CD7: 26 | CE7: 26 | CF7: 26 | CG7: 26 | CH7: 26 | CI7: 26 | CJ7: 26 | CK7: 26 | CL7: 26 | CM7: 26 | CN7: 26 | CO7: 27 | CP7: 27 | CQ7: 27 | CR7: 27 | CS7: 27 | CT7: 27
Y8: число даты окончания: | AA8: 31 | AB8: 31 | AC8: 30 | AD8: 31 | AE8: 30 | AF8: 31 | AG8: 31 | AH8: 28 | AI8: 31 | AJ8: 30 | AK8: 31 | AL8: 30 | AM8: 31 | AN8: 31 | AO8: 30 | AP8: 31 | AQ8: 30 | AR8: 31 | AS8: 31 | AT8: 28 | AU8: 31 | AV8: 30 | AW8: 31 | AX8: 30 | AY8: 31 | AZ8: 31 | BA8: 30 | BB8: 31 | BC8: 30 | BD8: 31 | BE8: 31 | BF8: 29 | BG8: 31 | BH8: 30 | BI8: 31 | BJ8: 30 | BK8: 31 | BL8: 31 | BM8: 30 | BN8: 31 | BO8: 30 | BP8: 31 | BQ8: 31 | BR8: 28 | BS8: 31 | BT8: 30 | BU8: 31 | BV8: 30 | BW8: 31 | BX8: 31 | BY8: 30 | BZ8: 31 | CA8: 30 | CB8: 31 | CC8: 31 | CD8: 28 | CE8: 31 | CF8: 30 | CG8: 31 | CH8: 30 | CI8: 31 | CJ8: 31 | CK8: 30 | CL8: 31 | CM8: 30 | CN8: 31 | CO8: 31 | CP8: 28 | CQ8: 31 | CR8: 30 | CS8: 31 | CT8: 30
Y9: номер месяца даты окончания: | AA9: 7 | AB9: 8 | AC9: 9 | AD9: 10 | AE9: 11 | AF9: 12 | AG9: 1 | AH9: 2 | AI9: 3 | AJ9: 4 | AK9: 5 | AL9: 6 | AM9: 7 | AN9: 8 | AO9: 9 | AP9: 10 | AQ9: 11 | AR9: 12 | AS9: 1 | AT9: 2 | AU9: 3 | AV9: 4 | AW9: 5 | AX9: 6 | AY9: 7 | AZ9: 8 | BA9: 9 | BB9: 10 | BC9: 11 | BD9: 12 | BE9: 1 | BF9: 2 | BG9: 3 | BH9: 4 | BI9: 5 | BJ9: 6 | BK9: 7 | BL9: 8 | BM9: 9 | BN9: 10 | BO9: 11 | BP9: 12 | BQ9: 1 | BR9: 2 | BS9: 3 | BT9: 4 | BU9: 5 | BV9: 6 | BW9: 7 | BX9: 8 | BY9: 9 | BZ9: 10 | CA9: 11 | CB9: 12 | CC9: 1 | CD9: 2 | CE9: 3 | CF9: 4 | CG9: 5 | CH9: 6 | CI9: 7 | CJ9: 8 | CK9: 9 | CL9: 10 | CM9: 11 | CN9: 12 | CO9: 1 | CP9: 2 | CQ9: 3 | CR9: 4 | CS9: 5 | CT9: 6
Y10: год даты окончания: | AA10: 21 | AB10: 21 | AC10: 21 | AD10: 21 | AE10: 21 | AF10: 21 | AG10: 22 | AH10: 22 | AI10: 22 | AJ10: 22 | AK10: 22 | AL10: 22 | AM10: 22 | AN10: 22 | AO10: 22 | AP10: 22 | AQ10: 22 | AR10: 22 | AS10: 23 | AT10: 23 | AU10: 23 | AV10: 23 | AW10: 23 | AX10: 23 | AY10: 23 | AZ10: 23 | BA10: 23 | BB10: 23 | BC10: 23 | BD10: 23 | BE10: 24 | BF10: 24 | BG10: 24 | BH10: 24 | BI10: 24 | BJ10: 24 | BK10: 24 | BL10: 24 | BM10: 24 | BN10: 24 | BO10: 24 | BP10: 24 | BQ10: 25 | BR10: 25 | BS10: 25 | BT10: 25 | BU10: 25 | BV10: 25 | BW10: 25 | BX10: 25 | BY10: 25 | BZ10: 25 | CA10: 25 | CB10: 25 | CC10: 26 | CD10: 26 | CE10: 26 | CF10: 26 | CG10: 26 | CH10: 26 | CI10: 26 | CJ10: 26 | CK10: 26 | CL10: 26 | CM10: 26 | CN10: 26 | CO10: 27 | CP10: 27 | CQ10: 27 | CR10: 27 | CS10: 27 | CT10: 27
F11: CapEx | I11: Календарный план-график капитальных затрат | Q11: все включает НДС | X11: 2021-07-01 | AA11: 2021-07-01 | AB11: 2021-08-01 | AC11: 2021-09-01 | AD11: 2021-10-01 | AE11: 2021-11-01 | AF11: 2021-12-01 | AG11: 2022-01-01 | AH11: 2022-02-01 | AI11: 2022-03-01 | AJ11: 2022-04-01 | AK11: 2022-05-01 | AL11: 2022-06-01 | AM11: 2022-07-01 | AN11: 2022-08-01 | AO11: 2022-09-01 | AP11: 2022-10-01 | AQ11: 2022-11-01 | AR11: 2022-12-01 | AS11: 2023-01-01 | AT11: 2023-02-01 | AU11: 2023-03-01 | AV11: 2023-04-01 | AW11: 2023-05-01 | AX11: 2023-06-01 | AY11: 2023-07-01 | AZ11: 2023-08-01 | BA11: 2023-09-01 | BB11: 2023-10-01 | BC11: 2023-11-01 | BD11: 2023-12-01 | BE11: 2024-01-01 | BF11: 2024-02-01 | BG11: 2024-03-01 | BH11: 2024-04-01 | BI11: 2024-05-01 | BJ11: 2024-06-01 | BK11: 2024-07-01 | BL11: 2024-08-01 | BM11: 2024-09-01 | BN11: 2024-10-01 | BO11: 2024-11-01 | BP11: 2024-12-01 | BQ11: 2025-01-01 | BR11: 2025-02-01 | BS11: 2025-03-01 | BT11: 2025-04-01 | BU11: 2025-05-01 | BV11: 2025-06-01 | BW11: 2025-07-01 | BX11: 2025-08-01 | BY11: 2025-09-01 | BZ11: 2025-10-01 | CA11: 2025-11-01 | CB11: 2025-12-01 | CC11: 2026-01-01 | CD11: 2026-02-01 | CE11: 2026-03-01 | CF11: 2026-04-01 | CG11: 2026-05-01 | CH11: 2026-06-01 | CI11: 2026-07-01 | CJ11: 2026-08-01 | CK11: 2026-09-01 | CL11: 2026-10-01 | CM11: 2026-11-01 | CN11: 2026-12-01 | CO11: 2027-01-01 | CP11: 2027-02-01 | CQ11: 2027-03-01 | CR11: 2027-04-01 | CS11: 2027-05-01 | CT11: 2027-06-01
H12: тип листа | Q12: расчетный | X12: 2027-06-30 | AA12: 2021-07-31 | AB12: 2021-08-31 | AC12: 2021-09-30 | AD12: 2021-10-31 | AE12: 2021-11-30 | AF12: 2021-12-31 | AG12: 2022-01-31 | AH12: 2022-02-28 | AI12: 2022-03-31 | AJ12: 2022-04-30 | AK12: 2022-05-31 | AL12: 2022-06-30 | AM12: 2022-07-31 | AN12: 2022-08-31 | AO12: 2022-09-30 | AP12: 2022-10-31 | AQ12: 2022-11-30 | AR12: 2022-12-31 | AS12: 2023-01-31 | AT12: 2023-02-28 | AU12: 2023-03-31 | AV12: 2023-04-30 | AW12: 2023-05-31 | AX12: 2023-06-30 | AY12: 2023-07-31 | AZ12: 2023-08-31 | BA12: 2023-09-30 | BB12: 2023-10-31 | BC12: 2023-11-30 | BD12: 2023-12-31 | BE12: 2024-01-31 | BF12: 2024-02-29 | BG12: 2024-03-31 | BH12: 2024-04-30 | BI12: 2024-05-31 | BJ12: 2024-06-30 | BK12: 2024-07-31 | BL12: 2024-08-31 | BM12: 2024-09-30 | BN12: 2024-10-31 | BO12: 2024-11-30 | BP12: 2024-12-31 | BQ12: 2025-01-31 | BR12: 2025-02-28 | BS12: 2025-03-31 | BT12: 2025-04-30 | BU12: 2025-05-31 | BV12: 2025-06-30 | BW12: 2025-07-31 | BX12: 2025-08-31 | BY12: 2025-09-30 | BZ12: 2025-10-31 | CA12: 2025-11-30 | CB12: 2025-12-31 | CC12: 2026-01-31 | CD12: 2026-02-28 | CE12: 2026-03-31 | CF12: 2026-04-30 | CG12: 2026-05-31 | CH12: 2026-06-30 | CI12: 2026-07-31 | CJ12: 2026-08-31 | CK12: 2026-09-30 | CL12: 2026-10-31 | CM12: 2026-11-30 | CN12: 2026-12-31 | CO12: 2027-01-31 | CP12: 2027-02-28 | CQ12: 2027-03-31 | CR12: 2027-04-30 | CS12: 2027-05-31 | CT12: 2027-06-30
H13: показатель | M13: ед.изм. | Q13: значение | X13: итого | AA13: 2021-07-01 | AB13: 2021-08-01 | AC13: 2021-09-01 | AD13: 2021-10-01 | AE13: 2021-11-01 | AF13: 2021-12-01 | AG13: 2022-01-01 | AH13: 2022-02-01 | AI13: 2022-03-01 | AJ13: 2022-04-01 | AK13: 2022-05-01 | AL13: 2022-06-01 | AM13: 2022-07-01 | AN13: 2022-08-01 | AO13: 2022-09-01 | AP13: 2022-10-01 | AQ13: 2022-11-01 | AR13: 2022-12-01 | AS13: 2023-01-01 | AT13: 2023-02-01 | AU13: 2023-03-01 | AV13: 2023-04-01 | AW13: 2023-05-01 | AX13: 2023-06-01 | AY13: 2023-07-01 | AZ13: 2023-08-01 | BA13: 2023-09-01 | BB13: 2023-10-01 | BC13: 2023-11-01 | BD13: 2023-12-01 | BE13: 2024-01-01 | BF13: 2024-02-01 | BG13: 2024-03-01 | BH13: 2024-04-01 | BI13: 2024-05-01 | BJ13: 2024-06-01 | BK13: 2024-07-01 | BL13: 2024-08-01 | BM13: 2024-09-01 | BN13: 2024-10-01 | BO13: 2024-11-01 | BP13: 2024-12-01 | BQ13: 2025-01-01 | BR13: 2025-02-01 | BS13: 2025-03-01 | BT13: 2025-04-01 | BU13: 2025-05-01 | BV13: 2025-06-01 | BW13: 2025-07-01 | BX13: 2025-08-01 | BY13: 2025-09-01 | BZ13: 2025-10-01 | CA13: 2025-11-01 | CB13: 2025-12-01 | CC13: 2026-01-01 | CD13: 2026-02-01 | CE13: 2026-03-01 | CF13: 2026-04-01 | CG13: 2026-05-01 | CH13: 2026-06-01 | CI13: 2026-07-01 | CJ13: 2026-08-01 | CK13: 2026-09-01 | CL13: 2026-10-01 | CM13: 2026-11-01 | CN13: 2026-12-01 | CO13: 2027-01-01 | CP13: 2027-02-01 | CQ13: 2027-03-01 | CR13: 2027-04-01 | CS13: 2027-05-01 | CT13: 2027-06-01
D14: 0 | E14: 0 | F14: 0 | G14: 0 | S14: 0 | T14: 0
A15: 15 | H15: разработка финмоделей: https://mngmnt.ru/ | Y15: обратный порядок периодизации | AA15: 73 | AB15: 72 | AC15: 71 | AD15: 70 | AE15: 69 | AF15: 68 | AG15: 67 | AH15: 66 | AI15: 65 | AJ15: 64 | AK15: 63 | AL15: 62 | AM15: 61 | AN15: 60 | AO15: 59 | AP15: 58 | AQ15: 57 | AR15: 56 | AS15: 55 | AT15: 54 | AU15: 53 | AV15: 52 | AW15: 51 | AX15: 50 | AY15: 49 | AZ15: 48 | BA15: 47 | BB15: 46 | BC15: 45 | BD15: 44 | BE15: 43 | BF15: 42 | BG15: 41 | BH15: 40 | BI15: 39 | BJ15: 38 | BK15: 37 | BL15: 36 | BM15: 35 | BN15: 34 | BO15: 33 | BP15: 32 | BQ15: 31 | BR15: 30 | BS15: 29 | BT15: 28 | BU15: 27 | BV15: 26 | BW15: 25 | BX15: 24 | BY15: 23 | BZ15: 22 | CA15: 21 | CB15: 20 | CC15: 19 | CD15: 18 | CE15: 17 | CF15: 16 | CG15: 15 | CH15: 14 | CI15: 13 | CJ15: 12 | CK15: 11 | CL15: 10 | CM15: 9 | CN15: 8 | CO15: 7 | CP15: 6 | CQ15: 5 | CR15: 4 | CS15: 3 | CT15: 2 | CU15: 1
A16: 16 | G16: 0 | H16: План-график разовых амортизируемых капзатрат | M16: руб. | T16: 0 | X16: 5,870,000 | AA16: 3,620,000 | AB16: 2,250,000 | AC16: 0 | AD16: 0 | AE16: 0 | AF16: 0 | AG16: 0 | AH16: 0 | AI16: 0 | AJ16: 0 | AK16: 0 | AL16: 0 | AM16: 0 | AN16: 0 | AO16: 0 | AP16: 0 | AQ16: 0 | AR16: 0 | AS16: 0 | AT16: 0 | AU16: 0 | AV16: 0 | AW16: 0 | AX16: 0 | AY16: 0 | AZ16: 0 | BA16: 0 | BB16: 0 | BC16: 0 | BD16: 0 | BE16: 0 | BF16: 0 | BG16: 0 | BH16: 0 | BI16: 0 | BJ16: 0 | BK16: 0 | BL16: 0 | BM16: 0 | BN16: 0 | BO16: 0 | BP16: 0 | BQ16: 0 | BR16: 0 | BS16: 0 | BT16: 0 | BU16: 0 | BV16: 0 | BW16: 0 | BX16: 0 | BY16: 0 | BZ16: 0 | CA16: 0 | CB16: 0 | CC16: 0 | CD16: 0 | CE16: 0 | CF16: 0 | CG16: 0 | CH16: 0 | CI16: 0 | CJ16: 0 | CK16: 0 | CL16: 0 | CM16: 0 | CN16: 0 | CO16: 0 | CP16: 0 | CQ16: 0 | CR16: 0 | CS16: 0 | CT16: 0 | CU16: 0
A17: 17 | G17: 0 | H17: План-график разовых амортизируемых капзатрат | I17: Оформление юрлица | M17: руб. // % | P17: * | Q17: 20,000 | S17: 0 | T17: 0 | X17: 100.00% | Y17: * | AA17: 100.00%
A18: 18 | G18: 0 | H18: План-график разовых амортизируемых капзатрат | I18: Юридические расходы | M18: руб. // % | P18: * | Q18: 50,000 | S18: 0 | T18: 0 | X18: 100.00% | Y18: * | AA18: 100.00%
A19: 19 | G19: 0 | H19: План-график разовых амортизируемых капзатрат | I19: Разработка логотипа и дизайна | M19: руб. // % | P19: * | Q19: 300,000 | S19: 0 | T19: 0 | X19: 100.00% | Y19: * | AA19: 100.00%
A20: 20 | G20: 0 | H20: План-график разовых амортизируемых капзатрат | I20: Заключение контрактов с поставщиками | M20: руб. // % | P20: * | Q20: 500,000 | S20: 0 | T20: 0 | X20: 100.00% | Y20: * | AA20: 50.00% | AB20: 50.00%
A21: 21 | G21: 0 | H21: План-график разовых амортизируемых капзатрат | I21: Оборудование для сетевой мастерской | M21: руб. // % | P21: * | Q21: 4,000,000 | S21: 0 | T21: 0 | X21: 100.00% | Y21: * | AA21: 50.00% | AB21: 50.00%
A22: 22 | G22: 0 | H22: План-график разовых амортизируемых капзатрат | I22: Лицензирование | M22: руб. // % | P22: * | Q22: 1,000,000 | S22: 0 | T22: 0 | X22: 100.00% | Y22: * | AA22: 100.00%
A23: 23 | G23: 0 | H23: План-график разовых амортизируемых капзатрат | I23: Разовые капзатраты - 7 | M23: руб. // % | P23: * | S23: 0 | T23: 0 | X23: 100.00% | Y23: * | AA23: 100.00%
A24: 24 | G24: 0 | H24: План-график разовых амортизируемых капзатрат | I24: Разовые капзатраты - 8 | M24: руб. // % | P24: * | S24: 0 | T24: 0 | X24: 100.00% | Y24: * | AA24: 100.00%
A25: 25 | G25: 0 | H25: План-график разовых амортизируемых капзатрат | I25: Разовые капзатраты - 9 | M25: руб. // % | P25: * | S25: 0 | T25: 0 | X25: 100.00% | Y25: * | AA25: 100.00%
A26: 26 | G26: 0 | H26: План-график разовых амортизируемых капзатрат | I26: Разовые капзатраты - 10 | M26: руб. // % | P26: * | S26: 0 | T26: 0 | X26: 100.00% | Y26: * | AA26: 100.00%
A27: 27 | L27: пустая строка
A28: 28 | T28: 0 | X28: 0 | AA28: 0 | AB28: 0 | AC28: 0 | AD28: 0 | AE28: 0 | AF28: 0 | AG28: 0 | AH28: 0 | AI28: 0 | AJ28: 0 | AK28: 0 | AL28: 0 | AM28: 0 | AN28: 0 | AO28: 0 | AP28: 0 | AQ28: 0 | AR28: 0 | AS28: 0 | AT28: 0 | AU28: 0 | AV28: 0 | AW28: 0 | AX28: 0 | AY28: 0 | AZ28: 0 | BA28: 0 | BB28: 0 | BC28: 0 | BD28: 0 | BE28: 0 | BF28: 0 | BG28: 0 | BH28: 0 | BI28: 0 | BJ28: 0 | BK28: 0 | BL28: 0 | BM28: 0 | BN28: 0 | BO28: 0 | BP28: 0 | BQ28: 0 | BR28: 0 | BS28: 0 | BT28: 0 | BU28: 0 | BV28: 0 | BW28: 0 | BX28: 0 | BY28: 0 | BZ28: 0 | CA28: 0 | CB28: 0 | CC28: 0 | CD28: 0 | CE28: 0 | CF28: 0 | CG28: 0 | CH28: 0 | CI28: 0 | CJ28: 0 | CK28: 0 | CL28: 0 | CM28: 0 | CN28: 0 | CO28: 0 | CP28: 0 | CQ28: 0 | CR28: 0 | CS28: 0 | CT28: 0 | CU28: 0
A29: 29 | G29: 0 | H29: Капзатраты разовые амортизируемые | M29: руб. | Q29: начисление | T29: 0 | X29: 5,870,000 | AA29: 3,620,000 | AB29: 2,250,000 | AC29: 0 | AD29: 0 | AE29: 0 | AF29: 0 | AG29: 0 | AH29: 0 | AI29: 0 | AJ29: 0 | AK29: 0 | AL29: 0 | AM29: 0 | AN29: 0 | AO29: 0 | AP29: 0 | AQ29: 0 | AR29: 0 | AS29: 0 | AT29: 0 | AU29: 0 | AV29: 0 | AW29: 0 | AX29: 0 | AY29: 0 | AZ29: 0 | BA29: 0 | BB29: 0 | BC29: 0 | BD29: 0 | BE29: 0 | BF29: 0 | BG29: 0 | BH29: 0 | BI29: 0 | BJ29: 0 | BK29: 0 | BL29: 0 | BM29: 0 | BN29: 0 | BO29: 0 | BP29: 0 | BQ29: 0 | BR29: 0 | BS29: 0 | BT29: 0 | BU29: 0 | BV29: 0 | BW29: 0 | BX29: 0 | BY29: 0 | BZ29: 0 | CA29: 0 | CB29: 0 | CC29: 0 | CD29: 0 | CE29: 0 | CF29: 0 | CG29: 0 | CH29: 0 | CI29: 0 | CJ29: 0 | CK29: 0 | CL29: 0 | CM29: 0 | CN29: 0 | CO29: 0 | CP29: 0 | CQ29: 0 | CR29: 0 | CS29: 0 | CT29: 0 | CU29: 0
A30: 30 | G30: 0 | H30: Капзатраты разовые амортизируемые | I30: Оформление юрлица | M30: руб. | Q30: начисление | X30: 20,000 | AA30: 20,000 | AB30: 0 | AC30: 0 | AD30: 0 | AE30: 0 | AF30: 0 | AG30: 0 | AH30: 0 | AI30: 0 | AJ30: 0 | AK30: 0 | AL30: 0 | AM30: 0 | AN30: 0 | AO30: 0 | AP30: 0 | AQ30: 0 | AR30: 0 | AS30: 0 | AT30: 0 | AU30: 0 | AV30: 0 | AW30: 0 | AX30: 0 | AY30: 0 | AZ30: 0 | BA30: 0 | BB30: 0 | BC30: 0 | BD30: 0 | BE30: 0 | BF30: 0 | BG30: 0 | BH30: 0 | BI30: 0 | BJ30: 0 | BK30: 0 | BL30: 0 | BM30: 0 | BN30: 0 | BO30: 0 | BP30: 0 | BQ30: 0 | BR30: 0 | BS30: 0 | BT30: 0 | BU30: 0 | BV30: 0 | BW30: 0 | BX30: 0 | BY30: 0 | BZ30: 0 | CA30: 0 | CB30: 0 | CC30: 0 | CD30: 0 | CE30: 0 | CF30: 0 | CG30: 0 | CH30: 0 | CI30: 0 | CJ30: 0 | CK30: 0 | CL30: 0 | CM30: 0 | CN30: 0 | CO30: 0 | CP30: 0 | CQ30: 0 | CR30: 0 | CS30: 0 | CT30: 0 | CU30: 0
A31: 31 | G31: 0 | H31: Капзатраты разовые амортизируемые | I31: Юридические расходы | M31: руб. | Q31: начисление | X31: 50,000 | AA31: 50,000 | AB31: 0 | AC31: 0 | AD31: 0 | AE31: 0 | AF31: 0 | AG31: 0 | AH31: 0 | AI31: 0 | AJ31: 0 | AK31: 0 | AL31: 0 | AM31: 0 | AN31: 0 | AO31: 0 | AP31: 0 | AQ31: 0 | AR31: 0 | AS31: 0 | AT31: 0 | AU31: 0 | AV31: 0 | AW31: 0 | AX31: 0 | AY31: 0 | AZ31: 0 | BA31: 0 | BB31: 0 | BC31: 0 | BD31: 0 | BE31: 0 | BF31: 0 | BG31: 0 | BH31: 0 | BI31: 0 | BJ31: 0 | BK31: 0 | BL31: 0 | BM31: 0 | BN31: 0 | BO31: 0 | BP31: 0 | BQ31: 0 | BR31: 0 | BS31: 0 | BT31: 0 | BU31: 0 | BV31: 0 | BW31: 0 | BX31: 0 | BY31: 0 | BZ31: 0 | CA31: 0 | CB31: 0 | CC31: 0 | CD31: 0 | CE31: 0 | CF31: 0 | CG31: 0 | CH31: 0 | CI31: 0 | CJ31: 0 | CK31: 0 | CL31: 0 | CM31: 0 | CN31: 0 | CO31: 0 | CP31: 0 | CQ31: 0 | CR31: 0 | CS31: 0 | CT31: 0 | CU31: 0
A32: 32 | G32: 0 | H32: Капзатраты разовые амортизируемые | I32: Разработка логотипа и дизайна | M32: руб. | Q32: начисление | X32: 300,000 | AA32: 300,000 | AB32: 0 | AC32: 0 | AD32: 0 | AE32: 0 | AF32: 0 | AG32: 0 | AH32: 0 | AI32: 0 | AJ32: 0 | AK32: 0 | AL32: 0 | AM32: 0 | AN32: 0 | AO32: 0 | AP32: 0 | AQ32: 0 | AR32: 0 | AS32: 0 | AT32: 0 | AU32: 0 | AV32: 0 | AW32: 0 | AX32: 0 | AY32: 0 | AZ32: 0 | BA32: 0 | BB32: 0 | BC32: 0 | BD32: 0 | BE32: 0 | BF32: 0 | BG32: 0 | BH32: 0 | BI32: 0 | BJ32: 0 | BK32: 0 | BL32: 0 | BM32: 0 | BN32: 0 | BO32: 0 | BP32: 0 | BQ32: 0 | BR32: 0 | BS32: 0 | BT32: 0 | BU32: 0 | BV32: 0 | BW32: 0 | BX32: 0 | BY32: 0 | BZ32: 0 | CA32: 0 | CB32: 0 | CC32: 0 | CD32: 0 | CE32: 0 | CF32: 0 | CG32: 0 | CH32: 0 | CI32: 0 | CJ32: 0 | CK32: 0 | CL32: 0 | CM32: 0 | CN32: 0 | CO32: 0 | CP32: 0 | CQ32: 0 | CR32: 0 | CS32: 0 | CT32: 0 | CU32: 0
A33: 33 | G33: 0 | H33: Капзатраты разовые амортизируемые | I33: Заключение контрактов с поставщиками | M33: руб. | Q33: начисление | X33: 500,000 | AA33: 250,000 | AB33: 250,000 | AC33: 0 | AD33: 0 | AE33: 0 | AF33: 0 | AG33: 0 | AH33: 0 | AI33: 0 | AJ33: 0 | AK33: 0 | AL33: 0 | AM33: 0 | AN33: 0 | AO33: 0 | AP33: 0 | AQ33: 0 | AR33: 0 | AS33: 0 | AT33: 0 | AU33: 0 | AV33: 0 | AW33: 0 | AX33: 0 | AY33: 0 | AZ33: 0 | BA33: 0 | BB33: 0 | BC33: 0 | BD33: 0 | BE33: 0 | BF33: 0 | BG33: 0 | BH33: 0 | BI33: 0 | BJ33: 0 | BK33: 0 | BL33: 0 | BM33: 0 | BN33: 0 | BO33: 0 | BP33: 0 | BQ33: 0 | BR33: 0 | BS33: 0 | BT33: 0 | BU33: 0 | BV33: 0 | BW33: 0 | BX33: 0 | BY33: 0 | BZ33: 0 | CA33: 0 | CB33: 0 | CC33: 0 | CD33: 0 | CE33: 0 | CF33: 0 | CG33: 0 | CH33: 0 | CI33: 0 | CJ33: 0 | CK33: 0 | CL33: 0 | CM33: 0 | CN33: 0 | CO33: 0 | CP33: 0 | CQ33: 0 | CR33: 0 | CS33: 0 | CT33: 0 | CU33: 0
A34: 34 | G34: 0 | H34: Капзатраты разовые амортизируемые | I34: Оборудование для сетевой мастерской | M34: руб. | Q34: начисление | X34: 4,000,000 | AA34: 2,000,000 | AB34: 2,000,000 | AC34: 0 | AD34: 0 | AE34: 0 | AF34: 0 | AG34: 0 | AH34: 0 | AI34: 0 | AJ34: 0 | AK34: 0 | AL34: 0 | AM34: 0 | AN34: 0 | AO34: 0 | AP34: 0 | AQ34: 0 | AR34: 0 | AS34: 0 | AT34: 0 | AU34: 0 | AV34: 0 | AW34: 0 | AX34: 0 | AY34: 0 | AZ34: 0 | BA34: 0 | BB34: 0 | BC34: 0 | BD34: 0 | BE34: 0 | BF34: 0 | BG34: 0 | BH34: 0 | BI34: 0 | BJ34: 0 | BK34: 0 | BL34: 0 | BM34: 0 | BN34: 0 | BO34: 0 | BP34: 0 | BQ34: 0 | BR34: 0 | BS34: 0 | BT34: 0 | BU34: 0 | BV34: 0 | BW34: 0 | BX34: 0 | BY34: 0 | BZ34: 0 | CA34: 0 | CB34: 0 | CC34: 0 | CD34: 0 | CE34: 0 | CF34: 0 | CG34: 0 | CH34: 0 | CI34: 0 | CJ34: 0 | CK34: 0 | CL34: 0 | CM34: 0 | CN34: 0 | CO34: 0 | CP34: 0 | CQ34: 0 | CR34: 0 | CS34: 0 | CT34: 0 | CU34: 0
A35: 35 | G35: 0 | H35: Капзатраты разовые амортизируемые | I35: Лицензирование | M35: руб. | Q35: начисление | X35: 1,000,000 | AA35: 1,000,000 | AB35: 0 | AC35: 0 | AD35: 0 | AE35: 0 | AF35: 0 | AG35: 0 | AH35: 0 | AI35: 0 | AJ35: 0 | AK35: 0 | AL35: 0 | AM35: 0 | AN35: 0 | AO35: 0 | AP35: 0 | AQ35: 0 | AR35: 0 | AS35: 0 | AT35: 0 | AU35: 0 | AV35: 0 | AW35: 0 | AX35: 0 | AY35: 0 | AZ35: 0 | BA35: 0 | BB35: 0 | BC35: 0 | BD35: 0 | BE35: 0 | BF35: 0 | BG35: 0 | BH35: 0 | BI35: 0 | BJ35: 0 | BK35: 0 | BL35: 0 | BM35: 0 | BN35: 0 | BO35: 0 | BP35: 0 | BQ35: 0 | BR35: 0 | BS35: 0 | BT35: 0 | BU35: 0 | BV35: 0 | BW35: 0 | BX35: 0 | BY35: 0 | BZ35: 0 | CA35: 0 | CB35: 0 | CC35: 0 | CD35: 0 | CE35: 0 | CF35: 0 | CG35: 0 | CH35: 0 | CI35: 0 | CJ35: 0 | CK35: 0 | CL35: 0 | CM35: 0 | CN35: 0 | CO35: 0 | CP35: 0 | CQ35: 0 | CR35: 0 | CS35: 0 | CT35: 0 | CU35: 0
A36: 36 | G36: 0 | H36: Капзатраты разовые амортизируемые | I36: Разовые капзатраты - 7 | M36: руб. | Q36: начисление | X36: 0 | AA36: 0 | AB36: 0 | AC36: 0 | AD36: 0 | AE36: 0 | AF36: 0 | AG36: 0 | AH36: 0 | AI36: 0 | AJ36: 0 | AK36: 0 | AL36: 0 | AM36: 0 | AN36: 0 | AO36: 0 | AP36: 0 | AQ36: 0 | AR36: 0 | AS36: 0 | AT36: 0 | AU36: 0 | AV36: 0 | AW36: 0 | AX36: 0 | AY36: 0 | AZ36: 0 | BA36: 0 | BB36: 0 | BC36: 0 | BD36: 0 | BE36: 0 | BF36: 0 | BG36: 0 | BH36: 0 | BI36: 0 | BJ36: 0 | BK36: 0 | BL36: 0 | BM36: 0 | BN36: 0 | BO36: 0 | BP36: 0 | BQ36: 0 | BR36: 0 | BS36: 0 | BT36: 0 | BU36: 0 | BV36: 0 | BW36: 0 | BX36: 0 | BY36: 0 | BZ36: 0 | CA36: 0 | CB36: 0 | CC36: 0 | CD36: 0 | CE36: 0 | CF36: 0 | CG36: 0 | CH36: 0 | CI36: 0 | CJ36: 0 | CK36: 0 | CL36: 0 | CM36: 0 | CN36: 0 | CO36: 0 | CP36: 0 | CQ36: 0 | CR36: 0 | CS36: 0 | CT36: 0 | CU36: 0
A37: 37 | G37: 0 | H37: Капзатраты разовые амортизируемые | I37: Разовые капзатраты - 8 | M37: руб. | Q37: начисление | X37: 0 | AA37: 0 | AB37: 0 | AC37: 0 | AD37: 0 | AE37: 0 | AF37: 0 | AG37: 0 | AH37: 0 | AI37: 0 | AJ37: 0 | AK37: 0 | AL37: 0 | AM37: 0 | AN37: 0 | AO37: 0 | AP37: 0 | AQ37: 0 | AR37: 0 | AS37: 0 | AT37: 0 | AU37: 0 | AV37: 0 | AW37: 0 | AX37: 0 | AY37: 0 | AZ37: 0 | BA37: 0 | BB37: 0 | BC37: 0 | BD37: 0 | BE37: 0 | BF37: 0 | BG37: 0 | BH37: 0 | BI37: 0 | BJ37: 0 | BK37: 0 | BL37: 0 | BM37: 0 | BN37: 0 | BO37: 0 | BP37: 0 | BQ37: 0 | BR37: 0 | BS37: 0 | BT37: 0 | BU37: 0 | BV37: 0 | BW37: 0 | BX37: 0 | BY37: 0 | BZ37: 0 | CA37: 0 | CB37: 0 | CC37: 0 | CD37: 0 | CE37: 0 | CF37: 0 | CG37: 0 | CH37: 0 | CI37: 0 | CJ37: 0 | CK37: 0 | CL37: 0 | CM37: 0 | CN37: 0 | CO37: 0 | CP37: 0 | CQ37: 0 | CR37: 0 | CS37: 0 | CT37: 0 | CU37: 0
A38: 38 | G38: 0 | H38: Капзатраты разовые амортизируемые | I38: Разовые капзатраты - 9 | M38: руб. | Q38: начисление | X38: 0 | AA38: 0 | AB38: 0 | AC38: 0 | AD38: 0 | AE38: 0 | AF38: 0 | AG38: 0 | AH38: 0 | AI38: 0 | AJ38: 0 | AK38: 0 | AL38: 0 | AM38: 0 | AN38: 0 | AO38: 0 | AP38: 0 | AQ38: 0 | AR38: 0 | AS38: 0 | AT38: 0 | AU38: 0 | AV38: 0 | AW38: 0 | AX38: 0 | AY38: 0 | AZ38: 0 | BA38: 0 | BB38: 0 | BC38: 0 | BD38: 0 | BE38: 0 | BF38: 0 | BG38: 0 | BH38: 0 | BI38: 0 | BJ38: 0 | BK38: 0 | BL38: 0 | BM38: 0 | BN38: 0 | BO38: 0 | BP38: 0 | BQ38: 0 | BR38: 0 | BS38: 0 | BT38: 0 | BU38: 0 | BV38: 0 | BW38: 0 | BX38: 0 | BY38: 0 | BZ38: 0 | CA38: 0 | CB38: 0 | CC38: 0 | CD38: 0 | CE38: 0 | CF38: 0 | CG38: 0 | CH38: 0 | CI38: 0 | CJ38: 0 | CK38: 0 | CL38: 0 | CM38: 0 | CN38: 0 | CO38: 0 | CP38: 0 | CQ38: 0 | CR38: 0 | CS38: 0 | CT38: 0 | CU38: 0
A39: 39 | G39: 0 | H39: Капзатраты разовые амортизируемые | I39: Разовые капзатраты - 10 | M39: руб. | Q39: начисление | X39: 0 | AA39: 0 | AB39: 0 | AC39: 0 | AD39: 0 | AE39: 0 | AF39: 0 | AG39: 0 | AH39: 0 | AI39: 0 | AJ39: 0 | AK39: 0 | AL39: 0 | AM39: 0 | AN39: 0 | AO39: 0 | AP39: 0 | AQ39: 0 | AR39: 0 | AS39: 0 | AT39: 0 | AU39: 0 | AV39: 0 | AW39: 0 | AX39: 0 | AY39: 0 | AZ39: 0 | BA39: 0 | BB39: 0 | BC39: 0 | BD39: 0 | BE39: 0 | BF39: 0 | BG39: 0 | BH39: 0 | BI39: 0 | BJ39: 0 | BK39: 0 | BL39: 0 | BM39: 0 | BN39: 0 | BO39: 0 | BP39: 0 | BQ39: 0 | BR39: 0 | BS39: 0 | BT39: 0 | BU39: 0 | BV39: 0 | BW39: 0 | BX39: 0 | BY39: 0 | BZ39: 0 | CA39: 0 | CB39: 0 | CC39: 0 | CD39: 0 | CE39: 0 | CF39: 0 | CG39: 0 | CH39: 0 | CI39: 0 | CJ39: 0 | CK39: 0 | CL39: 0 | CM39: 0 | CN39: 0 | CO39: 0 | CP39: 0 | CQ39: 0 | CR39: 0 | CS39: 0 | CT39: 0 | CU39: 0
A40: 40 | L40: пустая строка
A41: 41
A42: 42 | G42: 0 | H42: Капзатраты разовые амортизируемые | M42: руб. | Q42: оплата | X42: 5,870,000 | AA42: 3,620,000 | AB42: 2,250,000 | AC42: 0 | AD42: 0 | AE42: 0 | AF42: 0 | AG42: 0 | AH42: 0 | AI42: 0 | AJ42: 0 | AK42: 0 | AL42: 0 | AM42: 0 | AN42: 0 | AO42: 0 | AP42: 0 | AQ42: 0 | AR42: 0 | AS42: 0 | AT42: 0 | AU42: 0 | AV42: 0 | AW42: 0 | AX42: 0 | AY42: 0 | AZ42: 0 | BA42: 0 | BB42: 0 | BC42: 0 | BD42: 0 | BE42: 0 | BF42: 0 | BG42: 0 | BH42: 0 | BI42: 0 | BJ42: 0 | BK42: 0 | BL42: 0 | BM42: 0 | BN42: 0 | BO42: 0 | BP42: 0 | BQ42: 0 | BR42: 0 | BS42: 0 | BT42: 0 | BU42: 0 | BV42: 0 | BW42: 0 | BX42: 0 | BY42: 0 | BZ42: 0 | CA42: 0 | CB42: 0 | CC42: 0 | CD42: 0 | CE42: 0 | CF42: 0 | CG42: 0 | CH42: 0 | CI42: 0 | CJ42: 0 | CK42: 0 | CL42: 0 | CM42: 0 | CN42: 0 | CO42: 0 | CP42: 0 | CQ42: 0 | CR42: 0 | CS42: 0 | CT42: 0 | CU42: 0
A43: 43 | G43: 0 | H43: Капзатраты разовые амортизируемые | I43: Задаем через указание % предоплаты и сроков
A44: 44 | G44: 0 | H44: Капзатраты разовые амортизируемые | I44: Задаем через указание % предоплаты и сроков | J44: Размер предоплаты | M44: % | P44: * | S44: 0
A45: 45 | G45: 0 | H45: Капзатраты разовые амортизируемые | I45: Задаем через указание % предоплаты и сроков | J45: Период оборачиваемости предоплаты (срок) | M45: кол-во дней | P45: * | S45: 0
A46: 46 | G46: 0 | H46: Капзатраты разовые амортизируемые | I46: Задаем через указание % предоплаты и сроков | J46: расчет в количестве периодов | M46: кол-во периодов | Q46: 0.0 | S46: 0 | T46: 0
A47: 47 | G47: 0 | H47: Капзатраты разовые амортизируемые | I47: Задаем через указание % предоплаты и сроков | J47: Размер доплаты | M47: % | Q47: 100.0% | S47: 0 | T47: 0
A48: 48 | G48: 0 | H48: Капзатраты разовые амортизируемые | I48: Задаем через указание % предоплаты и сроков | J48: Период оборачиваемости доплат (срок) | M48: кол-во дней | P48: * | S48: 0
A49: 49 | G49: 0 | H49: Капзатраты разовые амортизируемые | I49: Задаем через указание % предоплаты и сроков | J49: расчет в количестве периодов | M49: кол-во периодов | Q49: 0.0 | S49: 0 | T49: 0
A50: 50
A51: 51 | G51: 0 | H51: Ввод в эксплуатацию | M51: руб. | Q51: списание | T51: 0 | X51: 5,870,000 | AA51: 1,370,000 | AB51: 4,500,000 | AC51: 0 | AD51: 0 | AE51: 0 | AF51: 0 | AG51: 0 | AH51: 0 | AI51: 0 | AJ51: 0 | AK51: 0 | AL51: 0 | AM51: 0 | AN51: 0 | AO51: 0 | AP51: 0 | AQ51: 0 | AR51: 0 | AS51: 0 | AT51: 0 | AU51: 0 | AV51: 0 | AW51: 0 | AX51: 0 | AY51: 0 | AZ51: 0 | BA51: 0 | BB51: 0 | BC51: 0 | BD51: 0 | BE51: 0 | BF51: 0 | BG51: 0 | BH51: 0 | BI51: 0 | BJ51: 0 | BK51: 0 | BL51: 0 | BM51: 0 | BN51: 0 | BO51: 0 | BP51: 0 | BQ51: 0 | BR51: 0 | BS51: 0 | BT51: 0 | BU51: 0 | BV51: 0 | BW51: 0 | BX51: 0 | BY51: 0 | BZ51: 0 | CA51: 0 | CB51: 0 | CC51: 0 | CD51: 0 | CE51: 0 | CF51: 0 | CG51: 0 | CH51: 0 | CI51: 0 | CJ51: 0 | CK51: 0 | CL51: 0 | CM51: 0 | CN51: 0 | CO51: 0 | CP51: 0 | CQ51: 0 | CR51: 0 | CS51: 0 | CT51: 0 | CU51: 0
A52: 52 | G52: 0 | H52: Ввод в эксплуатацию | I52: Оформление юрлица | M52: руб. | P52: * | Q52: в последний период данной статьи | R52: ^ | S52: 0 | T52: 0 | X52: 20,000 | AA52: 20,000 | AB52: 0 | AC52: 0 | AD52: 0 | AE52: 0 | AF52: 0 | AG52: 0 | AH52: 0 | AI52: 0 | AJ52: 0 | AK52: 0 | AL52: 0 | AM52: 0 | AN52: 0 | AO52: 0 | AP52: 0 | AQ52: 0 | AR52: 0 | AS52: 0 | AT52: 0 | AU52: 0 | AV52: 0 | AW52: 0 | AX52: 0 | AY52: 0 | AZ52: 0 | BA52: 0 | BB52: 0 | BC52: 0 | BD52: 0 | BE52: 0 | BF52: 0 | BG52: 0 | BH52: 0 | BI52: 0 | BJ52: 0 | BK52: 0 | BL52: 0 | BM52: 0 | BN52: 0 | BO52: 0 | BP52: 0 | BQ52: 0 | BR52: 0 | BS52: 0 | BT52: 0 | BU52: 0 | BV52: 0 | BW52: 0 | BX52: 0 | BY52: 0 | BZ52: 0 | CA52: 0 | CB52: 0 | CC52: 0 | CD52: 0 | CE52: 0 | CF52: 0 | CG52: 0 | CH52: 0 | CI52: 0 | CJ52: 0 | CK52: 0 | CL52: 0 | CM52: 0 | CN52: 0 | CO52: 0 | CP52: 0 | CQ52: 0 | CR52: 0 | CS52: 0 | CT52: 0 | CU52: 0
A53: 53 | G53: 0 | H53: Ввод в эксплуатацию | I53: Юридические расходы | M53: руб. | P53: * | Q53: в последний период данной статьи | R53: ^ | S53: 0 | T53: 0 | X53: 50,000 | AA53: 50,000 | AB53: 0 | AC53: 0 | AD53: 0 | AE53: 0 | AF53: 0 | AG53: 0 | AH53: 0 | AI53: 0 | AJ53: 0 | AK53: 0 | AL53: 0 | AM53: 0 | AN53: 0 | AO53: 0 | AP53: 0 | AQ53: 0 | AR53: 0 | AS53: 0 | AT53: 0 | AU53: 0 | AV53: 0 | AW53: 0 | AX53: 0 | AY53: 0 | AZ53: 0 | BA53: 0 | BB53: 0 | BC53: 0 | BD53: 0 | BE53: 0 | BF53: 0 | BG53: 0 | BH53: 0 | BI53: 0 | BJ53: 0 | BK53: 0 | BL53: 0 | BM53: 0 | BN53: 0 | BO53: 0 | BP53: 0 | BQ53: 0 | BR53: 0 | BS53: 0 | BT53: 0 | BU53: 0 | BV53: 0 | BW53: 0 | BX53: 0 | BY53: 0 | BZ53: 0 | CA53: 0 | CB53: 0 | CC53: 0 | CD53: 0 | CE53: 0 | CF53: 0 | CG53: 0 | CH53: 0 | CI53: 0 | CJ53: 0 | CK53: 0 | CL53: 0 | CM53: 0 | CN53: 0 | CO53: 0 | CP53: 0 | CQ53: 0 | CR53: 0 | CS53: 0 | CT53: 0 | CU53: 0
A54: 54 | G54: 0 | H54: Ввод в эксплуатацию | I54: Разработка логотипа и дизайна | M54: руб. | P54: * | Q54: в последний период данной статьи | R54: ^ | S54: 0 | T54: 0 | X54: 300,000 | AA54: 300,000 | AB54: 0 | AC54: 0 | AD54: 0 | AE54: 0 | AF54: 0 | AG54: 0 | AH54: 0 | AI54: 0 | AJ54: 0 | AK54: 0 | AL54: 0 | AM54: 0 | AN54: 0 | AO54: 0 | AP54: 0 | AQ54: 0 | AR54: 0 | AS54: 0 | AT54: 0 | AU54: 0 | AV54: 0 | AW54: 0 | AX54: 0 | AY54: 0 | AZ54: 0 | BA54: 0 | BB54: 0 | BC54: 0 | BD54: 0 | BE54: 0 | BF54: 0 | BG54: 0 | BH54: 0 | BI54: 0 | BJ54: 0 | BK54: 0 | BL54: 0 | BM54: 0 | BN54: 0 | BO54: 0 | BP54: 0 | BQ54: 0 | BR54: 0 | BS54: 0 | BT54: 0 | BU54: 0 | BV54: 0 | BW54: 0 | BX54: 0 | BY54: 0 | BZ54: 0 | CA54: 0 | CB54: 0 | CC54: 0 | CD54: 0 | CE54: 0 | CF54: 0 | CG54: 0 | CH54: 0 | CI54: 0 | CJ54: 0 | CK54: 0 | CL54: 0 | CM54: 0 | CN54: 0 | CO54: 0 | CP54: 0 | CQ54: 0 | CR54: 0 | CS54: 0 | CT54: 0 | CU54: 0
A55: 55 | G55: 0 | H55: Ввод в эксплуатацию | I55: Заключение контрактов с поставщиками | M55: руб. | P55: * | Q55: в последний период данной статьи | R55: ^ | S55: 0 | T55: 0 | X55: 500,000 | AA55: 0 | AB55: 500,000 | AC55: 0 | AD55: 0 | AE55: 0 | AF55: 0 | AG55: 0 | AH55: 0 | AI55: 0 | AJ55: 0 | AK55: 0 | AL55: 0 | AM55: 0 | AN55: 0 | AO55: 0 | AP55: 0 | AQ55: 0 | AR55: 0 | AS55: 0 | AT55: 0 | AU55: 0 | AV55: 0 | AW55: 0 | AX55: 0 | AY55: 0 | AZ55: 0 | BA55: 0 | BB55: 0 | BC55: 0 | BD55: 0 | BE55: 0 | BF55: 0 | BG55: 0 | BH55: 0 | BI55: 0 | BJ55: 0 | BK55: 0 | BL55: 0 | BM55: 0 | BN55: 0 | BO55: 0 | BP55: 0 | BQ55: 0 | BR55: 0 | BS55: 0 | BT55: 0 | BU55: 0 | BV55: 0 | BW55: 0 | BX55: 0 | BY55: 0 | BZ55: 0 | CA55: 0 | CB55: 0 | CC55: 0 | CD55: 0 | CE55: 0 | CF55: 0 | CG55: 0 | CH55: 0 | CI55: 0 | CJ55: 0 | CK55: 0 | CL55: 0 | CM55: 0 | CN55: 0 | CO55: 0 | CP55: 0 | CQ55: 0 | CR55: 0 | CS55: 0 | CT55: 0 | CU55: 0
A56: 56 | G56: 0 | H56: Ввод в эксплуатацию | I56: Оборудование для сетевой мастерской | M56: руб. | P56: * | Q56: в последний период данной статьи | R56: ^ | S56: 0 | T56: 0 | X56: 4,000,000 | AA56: 0 | AB56: 4,000,000 | AC56: 0 | AD56: 0 | AE56: 0 | AF56: 0 | AG56: 0 | AH56: 0 | AI56: 0 | AJ56: 0 | AK56: 0 | AL56: 0 | AM56: 0 | AN56: 0 | AO56: 0 | AP56: 0 | AQ56: 0 | AR56: 0 | AS56: 0 | AT56: 0 | AU56: 0 | AV56: 0 | AW56: 0 | AX56: 0 | AY56: 0 | AZ56: 0 | BA56: 0 | BB56: 0 | BC56: 0 | BD56: 0 | BE56: 0 | BF56: 0 | BG56: 0 | BH56: 0 | BI56: 0 | BJ56: 0 | BK56: 0 | BL56: 0 | BM56: 0 | BN56: 0 | BO56: 0 | BP56: 0 | BQ56: 0 | BR56: 0 | BS56: 0 | BT56: 0 | BU56: 0 | BV56: 0 | BW56: 0 | BX56: 0 | BY56: 0 | BZ56: 0 | CA56: 0 | CB56: 0 | CC56: 0 | CD56: 0 | CE56: 0 | CF56: 0 | CG56: 0 | CH56: 0 | CI56: 0 | CJ56: 0 | CK56: 0 | CL56: 0 | CM56: 0 | CN56: 0 | CO56: 0 | CP56: 0 | CQ56: 0 | CR56: 0 | CS56: 0 | CT56: 0 | CU56: 0
A57: 57 | G57: 0 | H57: Ввод в эксплуатацию | I57: Лицензирование | M57: руб. | P57: * | Q57: в последний период данной статьи | R57: ^ | S57: 0 | T57: 0 | X57: 1,000,000 | AA57: 1,000,000 | AB57: 0 | AC57: 0 | AD57: 0 | AE57: 0 | AF57: 0 | AG57: 0 | AH57: 0 | AI57: 0 | AJ57: 0 | AK57: 0 | AL57: 0 | AM57: 0 | AN57: 0 | AO57: 0 | AP57: 0 | AQ57: 0 | AR57: 0 | AS57: 0 | AT57: 0 | AU57: 0 | AV57: 0 | AW57: 0 | AX57: 0 | AY57: 0 | AZ57: 0 | BA57: 0 | BB57: 0 | BC57: 0 | BD57: 0 | BE57: 0 | BF57: 0 | BG57: 0 | BH57: 0 | BI57: 0 | BJ57: 0 | BK57: 0 | BL57: 0 | BM57: 0 | BN57: 0 | BO57: 0 | BP57: 0 | BQ57: 0 | BR57: 0 | BS57: 0 | BT57: 0 | BU57: 0 | BV57: 0 | BW57: 0 | BX57: 0 | BY57: 0 | BZ57: 0 | CA57: 0 | CB57: 0 | CC57: 0 | CD57: 0 | CE57: 0 | CF57: 0 | CG57: 0 | CH57: 0 | CI57: 0 | CJ57: 0 | CK57: 0 | CL57: 0 | CM57: 0 | CN57: 0 | CO57: 0 | CP57: 0 | CQ57: 0 | CR57: 0 | CS57: 0 | CT57: 0 | CU57: 0
A58: 58 | G58: 0 | H58: Ввод в эксплуатацию | I58: Разовые капзатраты - 7 | M58: руб. | P58: * | Q58: в последний период данной статьи | R58: ^ | S58: 0 | T58: 0 | X58: 0 | AA58: 0 | AB58: 0 | AC58: 0 | AD58: 0 | AE58: 0 | AF58: 0 | AG58: 0 | AH58: 0 | AI58: 0 | AJ58: 0 | AK58: 0 | AL58: 0 | AM58: 0 | AN58: 0 | AO58: 0 | AP58: 0 | AQ58: 0 | AR58: 0 | AS58: 0 | AT58: 0 | AU58: 0 | AV58: 0 | AW58: 0 | AX58: 0 | AY58: 0 | AZ58: 0 | BA58: 0 | BB58: 0 | BC58: 0 | BD58: 0 | BE58: 0 | BF58: 0 | BG58: 0 | BH58: 0 | BI58: 0 | BJ58: 0 | BK58: 0 | BL58: 0 | BM58: 0 | BN58: 0 | BO58: 0 | BP58: 0 | BQ58: 0 | BR58: 0 | BS58: 0 | BT58: 0 | BU58: 0 | BV58: 0 | BW58: 0 | BX58: 0 | BY58: 0 | BZ58: 0 | CA58: 0 | CB58: 0 | CC58: 0 | CD58: 0 | CE58: 0 | CF58: 0 | CG58: 0 | CH58: 0 | CI58: 0 | CJ58: 0 | CK58: 0 | CL58: 0 | CM58: 0 | CN58: 0 | CO58: 0 | CP58: 0 | CQ58: 0 | CR58: 0 | CS58: 0 | CT58: 0 | CU58: 0
A59: 59 | G59: 0 | H59: Ввод в эксплуатацию | I59: Разовые капзатраты - 8 | M59: руб. | P59: * | Q59: в последний период данной статьи | R59: ^ | S59: 0 | T59: 0 | X59: 0 | AA59: 0 | AB59: 0 | AC59: 0 | AD59: 0 | AE59: 0 | AF59: 0 | AG59: 0 | AH59: 0 | AI59: 0 | AJ59: 0 | AK59: 0 | AL59: 0 | AM59: 0 | AN59: 0 | AO59: 0 | AP59: 0 | AQ59: 0 | AR59: 0 | AS59: 0 | AT59: 0 | AU59: 0 | AV59: 0 | AW59: 0 | AX59: 0 | AY59: 0 | AZ59: 0 | BA59: 0 | BB59: 0 | BC59: 0 | BD59: 0 | BE59: 0 | BF59: 0 | BG59: 0 | BH59: 0 | BI59: 0 | BJ59: 0 | BK59: 0 | BL59: 0 | BM59: 0 | BN59: 0 | BO59: 0 | BP59: 0 | BQ59: 0 | BR59: 0 | BS59: 0 | BT59: 0 | BU59: 0 | BV59: 0 | BW59: 0 | BX59: 0 | BY59: 0 | BZ59: 0 | CA59: 0 | CB59: 0 | CC59: 0 | CD59: 0 | CE59: 0 | CF59: 0 | CG59: 0 | CH59: 0 | CI59: 0 | CJ59: 0 | CK59: 0 | CL59: 0 | CM59: 0 | CN59: 0 | CO59: 0 | CP59: 0 | CQ59: 0 | CR59: 0 | CS59: 0 | CT59: 0 | CU59: 0
A60: 60 | G60: 0 | H60: Ввод в эксплуатацию | I60: Разовые капзатраты - 9 | M60: руб. | P60: * | Q60: в последний период данной статьи | R60: ^ | S60: 0 | T60: 0 | X60: 0 | AA60: 0 | AB60: 0 | AC60: 0 | AD60: 0 | AE60: 0 | AF60: 0 | AG60: 0 | AH60: 0 | AI60: 0 | AJ60: 0 | AK60: 0 | AL60: 0 | AM60: 0 | AN60: 0 | AO60: 0 | AP60: 0 | AQ60: 0 | AR60: 0 | AS60: 0 | AT60: 0 | AU60: 0 | AV60: 0 | AW60: 0 | AX60: 0 | AY60: 0 | AZ60: 0 | BA60: 0 | BB60: 0 | BC60: 0 | BD60: 0 | BE60: 0 | BF60: 0 | BG60: 0 | BH60: 0 | BI60: 0 | BJ60: 0 | BK60: 0 | BL60: 0 | BM60: 0 | BN60: 0 | BO60: 0 | BP60: 0 | BQ60: 0 | BR60: 0 | BS60: 0 | BT60: 0 | BU60: 0 | BV60: 0 | BW60: 0 | BX60: 0 | BY60: 0 | BZ60: 0 | CA60: 0 | CB60: 0 | CC60: 0 | CD60: 0 | CE60: 0 | CF60: 0 | CG60: 0 | CH60: 0 | CI60: 0 | CJ60: 0 | CK60: 0 | CL60: 0 | CM60: 0 | CN60: 0 | CO60: 0 | CP60: 0 | CQ60: 0 | CR60: 0 | CS60: 0 | CT60: 0 | CU60: 0
A61: 61 | G61: 0 | H61: Ввод в эксплуатацию | I61: Разовые капзатраты - 10 | M61: руб. | P61: * | Q61: в последний период данной статьи | R61: ^ | S61: 0 | T61: 0 | X61: 0 | AA61: 0 | AB61: 0 | AC61: 0 | AD61: 0 | AE61: 0 | AF61: 0 | AG61: 0 | AH61: 0 | AI61: 0 | AJ61: 0 | AK61: 0 | AL61: 0 | AM61: 0 | AN61: 0 | AO61: 0 | AP61: 0 | AQ61: 0 | AR61: 0 | AS61: 0 | AT61: 0 | AU61: 0 | AV61: 0 | AW61: 0 | AX61: 0 | AY61: 0 | AZ61: 0 | BA61: 0 | BB61: 0 | BC61: 0 | BD61: 0 | BE61: 0 | BF61: 0 | BG61: 0 | BH61: 0 | BI61: 0 | BJ61: 0 | BK61: 0 | BL61: 0 | BM61: 0 | BN61: 0 | BO61: 0 | BP61: 0 | BQ61: 0 | BR61: 0 | BS61: 0 | BT61: 0 | BU61: 0 | BV61: 0 | BW61: 0 | BX61: 0 | BY61: 0 | BZ61: 0 | CA61: 0 | CB61: 0 | CC61: 0 | CD61: 0 | CE61: 0 | CF61: 0 | CG61: 0 | CH61: 0 | CI61: 0 | CJ61: 0 | CK61: 0 | CL61: 0 | CM61: 0 | CN61: 0 | CO61: 0 | CP61: 0 | CQ61: 0 | CR61: 0 | CS61: 0 | CT61: 0 | CU61: 0
A62: 62 | L62: пустая строка
A63: 63
A64: 64 | G64: 0 | H64: Параметры амортизации разовых капзатрат | Q64: процесс
A65: 65 | G65: 0 | H65: Параметры амортизации разовых капзатрат | I65: Оформление юрлица | M65: кол-во лет // % | P65: * | Q65: 5 | S65: 0 | T65: 0 | X65: 100.00% | AA65: 0.00% | AB65: 1.67% | AC65: 1.67% | AD65: 1.67% | AE65: 1.67% | AF65: 1.67% | AG65: 1.67% | AH65: 1.67% | AI65: 1.67% | AJ65: 1.67% | AK65: 1.67% | AL65: 1.67% | AM65: 1.67% | AN65: 1.67% | AO65: 1.67% | AP65: 1.67% | AQ65: 1.67% | AR65: 1.67% | AS65: 1.67% | AT65: 1.67% | AU65: 1.67% | AV65: 1.67% | AW65: 1.67% | AX65: 1.67% | AY65: 1.67% | AZ65: 1.67% | BA65: 1.67% | BB65: 1.67% | BC65: 1.67% | BD65: 1.67% | BE65: 1.67% | BF65: 1.67% | BG65: 1.67% | BH65: 1.67% | BI65: 1.67% | BJ65: 1.67% | BK65: 1.67% | BL65: 1.67% | BM65: 1.67% | BN65: 1.67% | BO65: 1.67% | BP65: 1.67% | BQ65: 1.67% | BR65: 1.67% | BS65: 1.67% | BT65: 1.67% | BU65: 1.67% | BV65: 1.67% | BW65: 1.67% | BX65: 1.67% | BY65: 1.67% | BZ65: 1.67% | CA65: 1.67% | CB65: 1.67% | CC65: 1.67% | CD65: 1.67% | CE65: 1.67% | CF65: 1.67% | CG65: 1.67% | CH65: 1.67% | CI65: 1.67% | CJ65: 0.00% | CK65: 0.00% | CL65: 0.00% | CM65: 0.00% | CN65: 0.00% | CO65: 0.00% | CP65: 0.00% | CQ65: 0.00% | CR65: 0.00% | CS65: 0.00% | CT65: 0.00% | CU65: 0.00%
A66: 66 | G66: 0 | H66: Параметры амортизации разовых капзатрат | I66: Юридические расходы | M66: кол-во лет // % | P66: * | Q66: 5 | S66: 0 | T66: 0 | X66: 100.00% | AA66: 0.00% | AB66: 1.67% | AC66: 1.67% | AD66: 1.67% | AE66: 1.67% | AF66: 1.67% | AG66: 1.67% | AH66: 1.67% | AI66: 1.67% | AJ66: 1.67% | AK66: 1.67% | AL66: 1.67% | AM66: 1.67% | AN66: 1.67% | AO66: 1.67% | AP66: 1.67% | AQ66: 1.67% | AR66: 1.67% | AS66: 1.67% | AT66: 1.67% | AU66: 1.67% | AV66: 1.67% | AW66: 1.67% | AX66: 1.67% | AY66: 1.67% | AZ66: 1.67% | BA66: 1.67% | BB66: 1.67% | BC66: 1.67% | BD66: 1.67% | BE66: 1.67% | BF66: 1.67% | BG66: 1.67% | BH66: 1.67% | BI66: 1.67% | BJ66: 1.67% | BK66: 1.67% | BL66: 1.67% | BM66: 1.67% | BN66: 1.67% | BO66: 1.67% | BP66: 1.67% | BQ66: 1.67% | BR66: 1.67% | BS66: 1.67% | BT66: 1.67% | BU66: 1.67% | BV66: 1.67% | BW66: 1.67% | BX66: 1.67% | BY66: 1.67% | BZ66: 1.67% | CA66: 1.67% | CB66: 1.67% | CC66: 1.67% | CD66: 1.67% | CE66: 1.67% | CF66: 1.67% | CG66: 1.67% | CH66: 1.67% | CI66: 1.67% | CJ66: 0.00% | CK66: 0.00% | CL66: 0.00% | CM66: 0.00% | CN66: 0.00% | CO66: 0.00% | CP66: 0.00% | CQ66: 0.00% | CR66: 0.00% | CS66: 0.00% | CT66: 0.00% | CU66: 0.00%
A67: 67 | G67: 0 | H67: Параметры амортизации разовых капзатрат | I67: Разработка логотипа и дизайна | M67: кол-во лет // % | P67: * | Q67: 5 | S67: 0 | T67: 0 | X67: 100.00% | AA67: 0.00% | AB67: 1.67% | AC67: 1.67% | AD67: 1.67% | AE67: 1.67% | AF67: 1.67% | AG67: 1.67% | AH67: 1.67% | AI67: 1.67% | AJ67: 1.67% | AK67: 1.67% | AL67: 1.67% | AM67: 1.67% | AN67: 1.67% | AO67: 1.67% | AP67: 1.67% | AQ67: 1.67% | AR67: 1.67% | AS67: 1.67% | AT67: 1.67% | AU67: 1.67% | AV67: 1.67% | AW67: 1.67% | AX67: 1.67% | AY67: 1.67% | AZ67: 1.67% | BA67: 1.67% | BB67: 1.67% | BC67: 1.67% | BD67: 1.67% | BE67: 1.67% | BF67: 1.67% | BG67: 1.67% | BH67: 1.67% | BI67: 1.67% | BJ67: 1.67% | BK67: 1.67% | BL67: 1.67% | BM67: 1.67% | BN67: 1.67% | BO67: 1.67% | BP67: 1.67% | BQ67: 1.67% | BR67: 1.67% | BS67: 1.67% | BT67: 1.67% | BU67: 1.67% | BV67: 1.67% | BW67: 1.67% | BX67: 1.67% | BY67: 1.67% | BZ67: 1.67% | CA67: 1.67% | CB67: 1.67% | CC67: 1.67% | CD67: 1.67% | CE67: 1.67% | CF67: 1.67% | CG67: 1.67% | CH67: 1.67% | CI67: 1.67% | CJ67: 0.00% | CK67: 0.00% | CL67: 0.00% | CM67: 0.00% | CN67: 0.00% | CO67: 0.00% | CP67: 0.00% | CQ67: 0.00% | CR67: 0.00% | CS67: 0.00% | CT67: 0.00% | CU67: 0.00%
A68: 68 | G68: 0 | H68: Параметры амортизации разовых капзатрат | I68: Заключение контрактов с поставщиками | M68: кол-во лет // % | P68: * | Q68: 5 | S68: 0 | T68: 0 | X68: 100.00% | AA68: 0.00% | AB68: 1.67% | AC68: 1.67% | AD68: 1.67% | AE68: 1.67% | AF68: 1.67% | AG68: 1.67% | AH68: 1.67% | AI68: 1.67% | AJ68: 1.67% | AK68: 1.67% | AL68: 1.67% | AM68: 1.67% | AN68: 1.67% | AO68: 1.67% | AP68: 1.67% | AQ68: 1.67% | AR68: 1.67% | AS68: 1.67% | AT68: 1.67% | AU68: 1.67% | AV68: 1.67% | AW68: 1.67% | AX68: 1.67% | AY68: 1.67% | AZ68: 1.67% | BA68: 1.67% | BB68: 1.67% | BC68: 1.67% | BD68: 1.67% | BE68: 1.67% | BF68: 1.67% | BG68: 1.67% | BH68: 1.67% | BI68: 1.67% | BJ68: 1.67% | BK68: 1.67% | BL68: 1.67% | BM68: 1.67% | BN68: 1.67% | BO68: 1.67% | BP68: 1.67% | BQ68: 1.67% | BR68: 1.67% | BS68: 1.67% | BT68: 1.67% | BU68: 1.67% | BV68: 1.67% | BW68: 1.67% | BX68: 1.67% | BY68: 1.67% | BZ68: 1.67% | CA68: 1.67% | CB68: 1.67% | CC68: 1.67% | CD68: 1.67% | CE68: 1.67% | CF68: 1.67% | CG68: 1.67% | CH68: 1.67% | CI68: 1.67% | CJ68: 0.00% | CK68: 0.00% | CL68: 0.00% | CM68: 0.00% | CN68: 0.00% | CO68: 0.00% | CP68: 0.00% | CQ68: 0.00% | CR68: 0.00% | CS68: 0.00% | CT68: 0.00% | CU68: 0.00%
A69: 69 | G69: 0 | H69: Параметры амортизации разовых капзатрат | I69: Оборудование для сетевой мастерской | M69: кол-во лет // % | P69: * | Q69: 5 | S69: 0 | T69: 0 | X69: 100.00% | AA69: 0.00% | AB69: 1.67% | AC69: 1.67% | AD69: 1.67% | AE69: 1.67% | AF69: 1.67% | AG69: 1.67% | AH69: 1.67% | AI69: 1.67% | AJ69: 1.67% | AK69: 1.67% | AL69: 1.67% | AM69: 1.67% | AN69: 1.67% | AO69: 1.67% | AP69: 1.67% | AQ69: 1.67% | AR69: 1.67% | AS69: 1.67% | AT69: 1.67% | AU69: 1.67% | AV69: 1.67% | AW69: 1.67% | AX69: 1.67% | AY69: 1.67% | AZ69: 1.67% | BA69: 1.67% | BB69: 1.67% | BC69: 1.67% | BD69: 1.67% | BE69: 1.67% | BF69: 1.67% | BG69: 1.67% | BH69: 1.67% | BI69: 1.67% | BJ69: 1.67% | BK69: 1.67% | BL69: 1.67% | BM69: 1.67% | BN69: 1.67% | BO69: 1.67% | BP69: 1.67% | BQ69: 1.67% | BR69: 1.67% | BS69: 1.67% | BT69: 1.67% | BU69: 1.67% | BV69: 1.67% | BW69: 1.67% | BX69: 1.67% | BY69: 1.67% | BZ69: 1.67% | CA69: 1.67% | CB69: 1.67% | CC69: 1.67% | CD69: 1.67% | CE69: 1.67% | CF69: 1.67% | CG69: 1.67% | CH69: 1.67% | CI69: 1.67% | CJ69: 0.00% | CK69: 0.00% | CL69: 0.00% | CM69: 0.00% | CN69: 0.00% | CO69: 0.00% | CP69: 0.00% | CQ69: 0.00% | CR69: 0.00% | CS69: 0.00% | CT69: 0.00% | CU69: 0.00%
A70: 70 | G70: 0 | H70: Параметры амортизации разовых капзатрат | I70: Лицензирование | M70: кол-во лет // % | P70: * | S70: 0 | T70: 0 | X70: 100.00% | AA70: 0.00% | AB70: 8.33% | AC70: 8.33% | AD70: 8.33% | AE70: 8.33% | AF70: 8.33% | AG70: 8.33% | AH70: 8.33% | AI70: 8.33% | AJ70: 8.33% | AK70: 8.33% | AL70: 8.33% | AM70: 8.33% | AN70: 0.00% | AO70: 0.00% | AP70: 0.00% | AQ70: 0.00% | AR70: 0.00% | AS70: 0.00% | AT70: 0.00% | AU70: 0.00% | AV70: 0.00% | AW70: 0.00% | AX70: 0.00% | AY70: 0.00% | AZ70: 0.00% | BA70: 0.00% | BB70: 0.00% | BC70: 0.00% | BD70: 0.00% | BE70: 0.00% | BF70: 0.00% | BG70: 0.00% | BH70: 0.00% | BI70: 0.00% | BJ70: 0.00% | BK70: 0.00% | BL70: 0.00% | BM70: 0.00% | BN70: 0.00% | BO70: 0.00% | BP70: 0.00% | BQ70: 0.00% | BR70: 0.00% | BS70: 0.00% | BT70: 0.00% | BU70: 0.00% | BV70: 0.00% | BW70: 0.00% | BX70: 0.00% | BY70: 0.00% | BZ70: 0.00% | CA70: 0.00% | CB70: 0.00% | CC70: 0.00% | CD70: 0.00% | CE70: 0.00% | CF70: 0.00% | CG70: 0.00% | CH70: 0.00% | CI70: 0.00% | CJ70: 0.00% | CK70: 0.00% | CL70: 0.00% | CM70: 0.00% | CN70: 0.00% | CO70: 0.00% | CP70: 0.00% | CQ70: 0.00% | CR70: 0.00% | CS70: 0.00% | CT70: 0.00% | CU70: 0.00%
A71: 71 | G71: 0 | H71: Параметры амортизации разовых капзатрат | I71: Разовые капзатраты - 7 | M71: кол-во лет // % | P71: * | S71: 0 | T71: 0 | X71: 100.00% | AA71: 0.00% | AB71: 8.33% | AC71: 8.33% | AD71: 8.33% | AE71: 8.33% | AF71: 8.33% | AG71: 8.33% | AH71: 8.33% | AI71: 8.33% | AJ71: 8.33% | AK71: 8.33% | AL71: 8.33% | AM71: 8.33% | AN71: 0.00% | AO71: 0.00% | AP71: 0.00% | AQ71: 0.00% | AR71: 0.00% | AS71: 0.00% | AT71: 0.00% | AU71: 0.00% | AV71: 0.00% | AW71: 0.00% | AX71: 0.00% | AY71: 0.00% | AZ71: 0.00% | BA71: 0.00% | BB71: 0.00% | BC71: 0.00% | BD71: 0.00% | BE71: 0.00% | BF71: 0.00% | BG71: 0.00% | BH71: 0.00% | BI71: 0.00% | BJ71: 0.00% | BK71: 0.00% | BL71: 0.00% | BM71: 0.00% | BN71: 0.00% | BO71: 0.00% | BP71: 0.00% | BQ71: 0.00% | BR71: 0.00% | BS71: 0.00% | BT71: 0.00% | BU71: 0.00% | BV71: 0.00% | BW71: 0.00% | BX71: 0.00% | BY71: 0.00% | BZ71: 0.00% | CA71: 0.00% | CB71: 0.00% | CC71: 0.00% | CD71: 0.00% | CE71: 0.00% | CF71: 0.00% | CG71: 0.00% | CH71: 0.00% | CI71: 0.00% | CJ71: 0.00% | CK71: 0.00% | CL71: 0.00% | CM71: 0.00% | CN71: 0.00% | CO71: 0.00% | CP71: 0.00% | CQ71: 0.00% | CR71: 0.00% | CS71: 0.00% | CT71: 0.00% | CU71: 0.00%
A72: 72 | G72: 0 | H72: Параметры амортизации разовых капзатрат | I72: Разовые капзатраты - 8 | M72: кол-во лет // % | P72: * | S72: 0 | T72: 0 | X72: 100.00% | AA72: 0.00% | AB72: 8.33% | AC72: 8.33% | AD72: 8.33% | AE72: 8.33% | AF72: 8.33% | AG72: 8.33% | AH72: 8.33% | AI72: 8.33% | AJ72: 8.33% | AK72: 8.33% | AL72: 8.33% | AM72: 8.33% | AN72: 0.00% | AO72: 0.00% | AP72: 0.00% | AQ72: 0.00% | AR72: 0.00% | AS72: 0.00% | AT72: 0.00% | AU72: 0.00% | AV72: 0.00% | AW72: 0.00% | AX72: 0.00% | AY72: 0.00% | AZ72: 0.00% | BA72: 0.00% | BB72: 0.00% | BC72: 0.00% | BD72: 0.00% | BE72: 0.00% | BF72: 0.00% | BG72: 0.00% | BH72: 0.00% | BI72: 0.00% | BJ72: 0.00% | BK72: 0.00% | BL72: 0.00% | BM72: 0.00% | BN72: 0.00% | BO72: 0.00% | BP72: 0.00% | BQ72: 0.00% | BR72: 0.00% | BS72: 0.00% | BT72: 0.00% | BU72: 0.00% | BV72: 0.00% | BW72: 0.00% | BX72: 0.00% | BY72: 0.00% | BZ72: 0.00% | CA72: 0.00% | CB72: 0.00% | CC72: 0.00% | CD72: 0.00% | CE72: 0.00% | CF72: 0.00% | CG72: 0.00% | CH72: 0.00% | CI72: 0.00% | CJ72: 0.00% | CK72: 0.00% | CL72: 0.00% | CM72: 0.00% | CN72: 0.00% | CO72: 0.00% | CP72: 0.00% | CQ72: 0.00% | CR72: 0.00% | CS72: 0.00% | CT72: 0.00% | CU72: 0.00%
A73: 73 | G73: 0 | H73: Параметры амортизации разовых капзатрат | I73: Разовые капзатраты - 9 | M73: кол-во лет // % | P73: * | S73: 0 | T73: 0 | X73: 100.00% | AA73: 0.00% | AB73: 8.33% | AC73: 8.33% | AD73: 8.33% | AE73: 8.33% | AF73: 8.33% | AG73: 8.33% | AH73: 8.33% | AI73: 8.33% | AJ73: 8.33% | AK73: 8.33% | AL73: 8.33% | AM73: 8.33% | AN73: 0.00% | AO73: 0.00% | AP73: 0.00% | AQ73: 0.00% | AR73: 0.00% | AS73: 0.00% | AT73: 0.00% | AU73: 0.00% | AV73: 0.00% | AW73: 0.00% | AX73: 0.00% | AY73: 0.00% | AZ73: 0.00% | BA73: 0.00% | BB73: 0.00% | BC73: 0.00% | BD73: 0.00% | BE73: 0.00% | BF73: 0.00% | BG73: 0.00% | BH73: 0.00% | BI73: 0.00% | BJ73: 0.00% | BK73: 0.00% | BL73: 0.00% | BM73: 0.00% | BN73: 0.00% | BO73: 0.00% | BP73: 0.00% | BQ73: 0.00% | BR73: 0.00% | BS73: 0.00% | BT73: 0.00% | BU73: 0.00% | BV73: 0.00% | BW73: 0.00% | BX73: 0.00% | BY73: 0.00% | BZ73: 0.00% | CA73: 0.00% | CB73: 0.00% | CC73: 0.00% | CD73: 0.00% | CE73: 0.00% | CF73: 0.00% | CG73: 0.00% | CH73: 0.00% | CI73: 0.00% | CJ73: 0.00% | CK73: 0.00% | CL73: 0.00% | CM73: 0.00% | CN73: 0.00% | CO73: 0.00% | CP73: 0.00% | CQ73: 0.00% | CR73: 0.00% | CS73: 0.00% | CT73: 0.00% | CU73: 0.00%
A74: 74 | G74: 0 | H74: Параметры амортизации разовых капзатрат | I74: Разовые капзатраты - 10 | M74: кол-во лет // % | P74: * | S74: 0 | T74: 0 | X74: 100.00% | AA74: 0.00% | AB74: 8.33% | AC74: 8.33% | AD74: 8.33% | AE74: 8.33% | AF74: 8.33% | AG74: 8.33% | AH74: 8.33% | AI74: 8.33% | AJ74: 8.33% | AK74: 8.33% | AL74: 8.33% | AM74: 8.33% | AN74: 0.00% | AO74: 0.00% | AP74: 0.00% | AQ74: 0.00% | AR74: 0.00% | AS74: 0.00% | AT74: 0.00% | AU74: 0.00% | AV74: 0.00% | AW74: 0.00% | AX74: 0.00% | AY74: 0.00% | AZ74: 0.00% | BA74: 0.00% | BB74: 0.00% | BC74: 0.00% | BD74: 0.00% | BE74: 0.00% | BF74: 0.00% | BG74: 0.00% | BH74: 0.00% | BI74: 0.00% | BJ74: 0.00% | BK74: 0.00% | BL74: 0.00% | BM74: 0.00% | BN74: 0.00% | BO74: 0.00% | BP74: 0.00% | BQ74: 0.00% | BR74: 0.00% | BS74: 0.00% | BT74: 0.00% | BU74: 0.00% | BV74: 0.00% | BW74: 0.00% | BX74: 0.00% | BY74: 0.00% | BZ74: 0.00% | CA74: 0.00% | CB74: 0.00% | CC74: 0.00% | CD74: 0.00% | CE74: 0.00% | CF74: 0.00% | CG74: 0.00% | CH74: 0.00% | CI74: 0.00% | CJ74: 0.00% | CK74: 0.00% | CL74: 0.00% | CM74: 0.00% | CN74: 0.00% | CO74: 0.00% | CP74: 0.00% | CQ74: 0.00% | CR74: 0.00% | CS74: 0.00% | CT74: 0.00% | CU74: 0.00%
A75: 75 | L75: пустая строка
A76: 76
A77: 77 | G77: 0 | H77: Обратное распределение амортизации
A78: 78 | G78: 0 | H78: Обратное распределение амортизации | I78: Оформление юрлица | M78: % | T78: 0 | X78: 100.00% | AA78: 0.00% | AB78: 0.00% | AC78: 0.00% | AD78: 0.00% | AE78: 0.00% | AF78: 0.00% | AG78: 0.00% | AH78: 0.00% | AI78: 0.00% | AJ78: 0.00% | AK78: 0.00% | AL78: 0.00% | AM78: 1.67% | AN78: 1.67% | AO78: 1.67% | AP78: 1.67% | AQ78: 1.67% | AR78: 1.67% | AS78: 1.67% | AT78: 1.67% | AU78: 1.67% | AV78: 1.67% | AW78: 1.67% | AX78: 1.67% | AY78: 1.67% | AZ78: 1.67% | BA78: 1.67% | BB78: 1.67% | BC78: 1.67% | BD78: 1.67% | BE78: 1.67% | BF78: 1.67% | BG78: 1.67% | BH78: 1.67% | BI78: 1.67% | BJ78: 1.67% | BK78: 1.67% | BL78: 1.67% | BM78: 1.67% | BN78: 1.67% | BO78: 1.67% | BP78: 1.67% | BQ78: 1.67% | BR78: 1.67% | BS78: 1.67% | BT78: 1.67% | BU78: 1.67% | BV78: 1.67% | BW78: 1.67% | BX78: 1.67% | BY78: 1.67% | BZ78: 1.67% | CA78: 1.67% | CB78: 1.67% | CC78: 1.67% | CD78: 1.67% | CE78: 1.67% | CF78: 1.67% | CG78: 1.67% | CH78: 1.67% | CI78: 1.67% | CJ78: 1.67% | CK78: 1.67% | CL78: 1.67% | CM78: 1.67% | CN78: 1.67% | CO78: 1.67% | CP78: 1.67% | CQ78: 1.67% | CR78: 1.67% | CS78: 1.67% | CT78: 1.67% | CU78: 0.00%
A79: 79 | G79: 0 | H79: Обратное распределение амортизации | I79: Юридические расходы | M79: % | T79: 0 | X79: 100.00% | AA79: 0.00% | AB79: 0.00% | AC79: 0.00% | AD79: 0.00% | AE79: 0.00% | AF79: 0.00% | AG79: 0.00% | AH79: 0.00% | AI79: 0.00% | AJ79: 0.00% | AK79: 0.00% | AL79: 0.00% | AM79: 1.67% | AN79: 1.67% | AO79: 1.67% | AP79: 1.67% | AQ79: 1.67% | AR79: 1.67% | AS79: 1.67% | AT79: 1.67% | AU79: 1.67% | AV79: 1.67% | AW79: 1.67% | AX79: 1.67% | AY79: 1.67% | AZ79: 1.67% | BA79: 1.67% | BB79: 1.67% | BC79: 1.67% | BD79: 1.67% | BE79: 1.67% | BF79: 1.67% | BG79: 1.67% | BH79: 1.67% | BI79: 1.67% | BJ79: 1.67% | BK79: 1.67% | BL79: 1.67% | BM79: 1.67% | BN79: 1.67% | BO79: 1.67% | BP79: 1.67% | BQ79: 1.67% | BR79: 1.67% | BS79: 1.67% | BT79: 1.67% | BU79: 1.67% | BV79: 1.67% | BW79: 1.67% | BX79: 1.67% | BY79: 1.67% | BZ79: 1.67% | CA79: 1.67% | CB79: 1.67% | CC79: 1.67% | CD79: 1.67% | CE79: 1.67% | CF79: 1.67% | CG79: 1.67% | CH79: 1.67% | CI79: 1.67% | CJ79: 1.67% | CK79: 1.67% | CL79: 1.67% | CM79: 1.67% | CN79: 1.67% | CO79: 1.67% | CP79: 1.67% | CQ79: 1.67% | CR79: 1.67% | CS79: 1.67% | CT79: 1.67% | CU79: 0.00%
A80: 80 | G80: 0 | H80: Обратное распределение амортизации | I80: Разработка логотипа и дизайна | M80: % | T80: 0 | X80: 100.00% | AA80: 0.00% | AB80: 0.00% | AC80: 0.00% | AD80: 0.00% | AE80: 0.00% | AF80: 0.00% | AG80: 0.00% | AH80: 0.00% | AI80: 0.00% | AJ80: 0.00% | AK80: 0.00% | AL80: 0.00% | AM80: 1.67% | AN80: 1.67% | AO80: 1.67% | AP80: 1.67% | AQ80: 1.67% | AR80: 1.67% | AS80: 1.67% | AT80: 1.67% | AU80: 1.67% | AV80: 1.67% | AW80: 1.67% | AX80: 1.67% | AY80: 1.67% | AZ80: 1.67% | BA80: 1.67% | BB80: 1.67% | BC80: 1.67% | BD80: 1.67% | BE80: 1.67% | BF80: 1.67% | BG80: 1.67% | BH80: 1.67% | BI80: 1.67% | BJ80: 1.67% | BK80: 1.67% | BL80: 1.67% | BM80: 1.67% | BN80: 1.67% | BO80: 1.67% | BP80: 1.67% | BQ80: 1.67% | BR80: 1.67% | BS80: 1.67% | BT80: 1.67% | BU80: 1.67% | BV80: 1.67% | BW80: 1.67% | BX80: 1.67% | BY80: 1.67% | BZ80: 1.67% | CA80: 1.67% | CB80: 1.67% | CC80: 1.67% | CD80: 1.67% | CE80: 1.67% | CF80: 1.67% | CG80: 1.67% | CH80: 1.67% | CI80: 1.67% | CJ80: 1.67% | CK80: 1.67% | CL80: 1.67% | CM80: 1.67% | CN80: 1.67% | CO80: 1.67% | CP80: 1.67% | CQ80: 1.67% | CR80: 1.67% | CS80: 1.67% | CT80: 1.67% | CU80: 0.00%
A81: 81 | G81: 0 | H81: Обратное распределение амортизации | I81: Заключение контрактов с поставщиками | M81: % | T81: 0 | X81: 100.00% | AA81: 0.00% | AB81: 0.00% | AC81: 0.00% | AD81: 0.00% | AE81: 0.00% | AF81: 0.00% | AG81: 0.00% | AH81: 0.00% | AI81: 0.00% | AJ81: 0.00% | AK81: 0.00% | AL81: 0.00% | AM81: 1.67% | AN81: 1.67% | AO81: 1.67% | AP81: 1.67% | AQ81: 1.67% | AR81: 1.67% | AS81: 1.67% | AT81: 1.67% | AU81: 1.67% | AV81: 1.67% | AW81: 1.67% | AX81: 1.67% | AY81: 1.67% | AZ81: 1.67% | BA81: 1.67% | BB81: 1.67% | BC81: 1.67% | BD81: 1.67% | BE81: 1.67% | BF81: 1.67% | BG81: 1.67% | BH81: 1.67% | BI81: 1.67% | BJ81: 1.67% | BK81: 1.67% | BL81: 1.67% | BM81: 1.67% | BN81: 1.67% | BO81: 1.67% | BP81: 1.67% | BQ81: 1.67% | BR81: 1.67% | BS81: 1.67% | BT81: 1.67% | BU81: 1.67% | BV81: 1.67% | BW81: 1.67% | BX81: 1.67% | BY81: 1.67% | BZ81: 1.67% | CA81: 1.67% | CB81: 1.67% | CC81: 1.67% | CD81: 1.67% | CE81: 1.67% | CF81: 1.67% | CG81: 1.67% | CH81: 1.67% | CI81: 1.67% | CJ81: 1.67% | CK81: 1.67% | CL81: 1.67% | CM81: 1.67% | CN81: 1.67% | CO81: 1.67% | CP81: 1.67% | CQ81: 1.67% | CR81: 1.67% | CS81: 1.67% | CT81: 1.67% | CU81: 0.00%
A82: 82 | G82: 0 | H82: Обратное распределение амортизации | I82: Оборудование для сетевой мастерской | M82: % | T82: 0 | X82: 100.00% | AA82: 0.00% | AB82: 0.00% | AC82: 0.00% | AD82: 0.00% | AE82: 0.00% | AF82: 0.00% | AG82: 0.00% | AH82: 0.00% | AI82: 0.00% | AJ82: 0.00% | AK82: 0.00% | AL82: 0.00% | AM82: 1.67% | AN82: 1.67% | AO82: 1.67% | AP82: 1.67% | AQ82: 1.67% | AR82: 1.67% | AS82: 1.67% | AT82: 1.67% | AU82: 1.67% | AV82: 1.67% | AW82: 1.67% | AX82: 1.67% | AY82: 1.67% | AZ82: 1.67% | BA82: 1.67% | BB82: 1.67% | BC82: 1.67% | BD82: 1.67% | BE82: 1.67% | BF82: 1.67% | BG82: 1.67% | BH82: 1.67% | BI82: 1.67% | BJ82: 1.67% | BK82: 1.67% | BL82: 1.67% | BM82: 1.67% | BN82: 1.67% | BO82: 1.67% | BP82: 1.67% | BQ82: 1.67% | BR82: 1.67% | BS82: 1.67% | BT82: 1.67% | BU82: 1.67% | BV82: 1.67% | BW82: 1.67% | BX82: 1.67% | BY82: 1.67% | BZ82: 1.67% | CA82: 1.67% | CB82: 1.67% | CC82: 1.67% | CD82: 1.67% | CE82: 1.67% | CF82: 1.67% | CG82: 1.67% | CH82: 1.67% | CI82: 1.67% | CJ82: 1.67% | CK82: 1.67% | CL82: 1.67% | CM82: 1.67% | CN82: 1.67% | CO82: 1.67% | CP82: 1.67% | CQ82: 1.67% | CR82: 1.67% | CS82: 1.67% | CT82: 1.67% | CU82: 0.00%
A83: 83 | G83: 0 | H83: Обратное распределение амортизации | I83: Лицензирование | M83: % | T83: 0 | X83: 100.00% | AA83: 0.00% | AB83: 0.00% | AC83: 0.00% | AD83: 0.00% | AE83: 0.00% | AF83: 0.00% | AG83: 0.00% | AH83: 0.00% | AI83: 0.00% | AJ83: 0.00% | AK83: 0.00% | AL83: 0.00% | AM83: 0.00% | AN83: 0.00% | AO83: 0.00% | AP83: 0.00% | AQ83: 0.00% | AR83: 0.00% | AS83: 0.00% | AT83: 0.00% | AU83: 0.00% | AV83: 0.00% | AW83: 0.00% | AX83: 0.00% | AY83: 0.00% | AZ83: 0.00% | BA83: 0.00% | BB83: 0.00% | BC83: 0.00% | BD83: 0.00% | BE83: 0.00% | BF83: 0.00% | BG83: 0.00% | BH83: 0.00% | BI83: 0.00% | BJ83: 0.00% | BK83: 0.00% | BL83: 0.00% | BM83: 0.00% | BN83: 0.00% | BO83: 0.00% | BP83: 0.00% | BQ83: 0.00% | BR83: 0.00% | BS83: 0.00% | BT83: 0.00% | BU83: 0.00% | BV83: 0.00% | BW83: 0.00% | BX83: 0.00% | BY83: 0.00% | BZ83: 0.00% | CA83: 0.00% | CB83: 0.00% | CC83: 0.00% | CD83: 0.00% | CE83: 0.00% | CF83: 0.00% | CG83: 0.00% | CH83: 0.00% | CI83: 8.33% | CJ83: 8.33% | CK83: 8.33% | CL83: 8.33% | CM83: 8.33% | CN83: 8.33% | CO83: 8.33% | CP83: 8.33% | CQ83: 8.33% | CR83: 8.33% | CS83: 8.33% | CT83: 8.33% | CU83: 0.00%
A84: 84 | G84: 0 | H84: Обратное распределение амортизации | I84: Разовые капзатраты - 7 | M84: % | T84: 0 | X84: 100.00% | AA84: 0.00% | AB84: 0.00% | AC84: 0.00% | AD84: 0.00% | AE84: 0.00% | AF84: 0.00% | AG84: 0.00% | AH84: 0.00% | AI84: 0.00% | AJ84: 0.00% | AK84: 0.00% | AL84: 0.00% | AM84: 0.00% | AN84: 0.00% | AO84: 0.00% | AP84: 0.00% | AQ84: 0.00% | AR84: 0.00% | AS84: 0.00% | AT84: 0.00% | AU84: 0.00% | AV84: 0.00% | AW84: 0.00% | AX84: 0.00% | AY84: 0.00% | AZ84: 0.00% | BA84: 0.00% | BB84: 0.00% | BC84: 0.00% | BD84: 0.00% | BE84: 0.00% | BF84: 0.00% | BG84: 0.00% | BH84: 0.00% | BI84: 0.00% | BJ84: 0.00% | BK84: 0.00% | BL84: 0.00% | BM84: 0.00% | BN84: 0.00% | BO84: 0.00% | BP84: 0.00% | BQ84: 0.00% | BR84: 0.00% | BS84: 0.00% | BT84: 0.00% | BU84: 0.00% | BV84: 0.00% | BW84: 0.00% | BX84: 0.00% | BY84: 0.00% | BZ84: 0.00% | CA84: 0.00% | CB84: 0.00% | CC84: 0.00% | CD84: 0.00% | CE84: 0.00% | CF84: 0.00% | CG84: 0.00% | CH84: 0.00% | CI84: 8.33% | CJ84: 8.33% | CK84: 8.33% | CL84: 8.33% | CM84: 8.33% | CN84: 8.33% | CO84: 8.33% | CP84: 8.33% | CQ84: 8.33% | CR84: 8.33% | CS84: 8.33% | CT84: 8.33% | CU84: 0.00%
